Workbook

Sheet Front page

Sheet Guide
B8: Context & Purpose
B9: What is the MH FYFV Dashboard? The MH FYFV Dashboard, first published in October 2016, is a response to the recommendation in the Five Year Forward View for Mental Health that NHS England create a tool “that will identify metrics for monitoring key performance and outcomes data and that that will allow us to hold national and local bodies to account for implementing this strategy.” A key purpose of the Dashboard is to enable NHS England and the Five Year Forward View Programme Board to monitor progress on its commitments to transform mental health services. Additionally, by making the data publically available, we are ensuring that commissioners can use it as a tool to inform their work and that service users and their families and carers can see how local services are performing. Understanding financial data in the Mental Health Dashboard The Mental Health Dashboard includes an unprecedented level of information on the amount of money being invested in mental health services across England. As well as publishing overall spend on mental health, it also includes programme level spend at CCG, STP, regional and national level. This includes spend data on: • Children and young people’s (CYP) mental health services • CYP eating disorder services • Early intervention in psychosis services • IAPT services • A&E liaison services • Crisis resolution home treatment services It is important to note that some CCGs have had difficulties extracting costs for specific services that they commission because of block contract arrangements. As a consequence, although the total mental health spend by CCG is accurate, it may be under or overstated at the individual programme levels listed above. NHS England continues to work closely with CCGs to support them to improve the quality of information they are able to provide on their expenditure. Nevertheless, it is advised that this information is used with caution. Calculating the Mental Health Investment Standard NHS England has committed to increasing the proportion of NHS spending on mental health, and has developed the ‘Mental Health Investment Standard’ (MHIS) to track whether this is being delivered. In simple terms, achievement of the MHIS compares the growth of CCG spend on mental health with the growth of a CCG’s programme allocation. The increase in MH spend should be at least equal or greater in percentage terms to the % overall growth in programme allocation. The MHIS is calculated at CCG level and nationally. To calculate whether the MH investment standard will be met based on the planned spend figures for 2018/19, the 2017/18 actual spend figures used (as reported in this dashboard) must be adjusted to exclude the expenditure against additional allocations made during the year as these are not included in planned spend. The MHIS calculation also does not include planned or actual spend on learning disabilities and dementia, which is included in the total mental health spend presented here. Data availability and quality Whilst every effort has been made to ensure that the data in the Mental Health Dashboard has been properly quality assured, some of the data used is classed as experimental, whilst other information, particularly financial data, is necessarily revised and improved over time. Data is correct at the time of publishing, however, caution is advised when seeking to draw comparisons between data between different iterations of the Dashboard.
B24: Sheet description
B25: Metadata: | D25: This sheet contains information about the data used for each indicator. In particular, it includes a description of the indicators; information on the numerators and denominators (where applicable); any caveats around the data and the methodology; the indicator reporting period (quarter or year) as well as information and links to the data sources.
B27: Dashboard: | D27: This sheet shows the value; the change; the annual objective; the trend and performance against the national median for each indicator. A detailed description of each column is provided in the "Dashboard" section below
B29: Dashboard
B30: To begin, select one of the four geographies (England, Region, STP or CCG) from the first drop-down list at the top of the page. If you have selected "England" there is no further action required. For all other geographies, please select one of the five regions (North of England, London, Midlands and East of England, South West of England and South East of England) from the second drop-down list. Similar to the first drop-down, if you have selected "Region" there is no further action required. Lastly, for CCGs or STPs, select one of the 195 CCGs or 42 STPs listed by region and alphabetically in the last drop-down list.
B40: The dashboard is automatically populated with the data relevant to the selected geography or organisation.
B41: A key/description for each column is also available in the Dashboard tab by clicking on the column headings.
B42: A description of each column in the Dashboard can be found below:
B43: Code: | D43: This is a unique code for each indicator, used across this spreadsheet. You can use this code to search for the indicator you are interested in by using the filter in column B of the Metadata tab.
B45: Indicator: | D45: This column shows the short description of each indicator. For a more detailed description please see the Metadata tab. National measures only: Certain indicator data are only available at a national (England) and in some cases regional level only, hence a few indicators are marked as national measures only. When a CCG is selected from the drop-down list, the values for these measures are greyed out.
B48: Latest reporting period: | D48: This column shows for each indicator the latest reporting period that the dashboard includes data for. For indicators updated in the latest dashboard iteration this field is in bold and italics
B50: Indicator value | D50: The value of the indicator in the latest reporting period and in brackets the annual objective for each indicator (where applicable), as set out in the Five Year Forward View for Mental Health implementation plan. Where there is an annual objective, a red dot signifies that the value is below the objective; a green dot that it's meeting the objective. N/A signifies that data is either suppressed (counts of less than 5) or not available at that level
B55: Standard met/on track: | D55: This column shows the indicator value compared to the National Standard, if the indicator value meets (or exceeds) the National Standard target the icon will be green if the indicator value does not met the National standard target the icon will be red
B59: National Standard | D59: This column shows the national standard for each measure, this is also in the Metadata tab with more detailed information about each measure.
B62: Trend | D62: The sparklines give an indication of trend over a specified time period (usually the last 6 quarters or last 3 years depending on the indicator reporting period and the data availability). NB: Where there are only a limited number of data points in the sparkline graphs then apparent changes may appear distorted and care should be taken when interpreting.
B65: Better is..: | D65: This column indicates whether a high or a low value is considered better for the particular measure. An upward arrow p indicates that higher values are better, while a downward arrow q that lower values are better. N/A denotes Not Applicable and is shown when an indicator needs to be considered alongside other measures to interpret the figures and hence a higher or a lower value is not necessarily indication of better performance.
B68: Range | D68: The spine chart shows the relative performance of the organisation. An organisation value towards the right of the scale indicates “better” performance (which may relate to a lower or higher indicator value depending on the indicator in hand) and towards the left of the scale indicates “worse” performance. Percentiles are based on national data. The spine chart is only available at CCG level and only applicable to a set of indicators. When the organisation value is blank or suppressed (*) it is not showing on the chart. NB:Not all indicators presented with spine charts have been standardised, so interpretation needs to be undertaken with caution. Please use the sparklines to add context
B80: Printing
B81: The "Dashboard" and "Guide" tabs are designed to print on A3 paper in portrait orientation and the "Metadata" tab in landscape orientation. Go to the File Ribbon and select Print. If you are happy with the print preview then click print otherwise select page setup to adjust scaling.
B83: Updates
B84: The dashboard will be updated quarterly.
B86: Version Control
B87: 2016-10-27 | C87: October 2016 publication | D87: First version
B88: 2017-01-30 | C88: January 2017 publication | D88: Refreshed data for all indicators bolded and italicised in the "Latest reporting period" column. Added STP functionality. Added two new indicators, IAPT (i_b) and IAPT(ii_b). Revised the definition and calculation for indicators SP (ii_a) and SP(ii_b).
B89: 2017-05-02 | C89: May 2017 publication | D89: Refreshed data for all indicators bolded and italicised in the "Latest reporting period" column. Revised the definition and calculation for indicator IAPT (i_b). Replaced previously reported experimental measure CYP (ii) Number of new CYP under 18 receiving treatment in NHS funded community services with Number of CYP receiving at least two contacts in NHS funded community services. See the Metadata tab for the definition of updated indicator
B90: 2017-07-28 | C90: July 2017 publication | D90: Refreshed data for all indicators bolded and italicised in the "Latest reporting period" column. Revised finance indicators to no longer refer to plan data but to year end outturn data.
B91: 2017-11-10 | C91: November 2017 publication | D91: Refreshed data for all indicators bolded and italicised in the "Latest reporting period" column. Indicators updated, amended and removed.
B92: 2018-01-31 | C92: National Summary (Q1&Q2 2017/18) | D92: Provided a summary front sheet giving a national view of a 6 month period (Q1 and Q2 2017/18).
B93: 2018-02-07 | C93: February 2018 publication | D93: Time period of publication changed from quarterly to cover a 6 month period (Q1 and Q2 2017/18). Refreshed data for all indicators bolded and italicised in the "Latest reporting period" column. Indicators updated, amended and removed.
B94: 2018-07-06 | C94: August 2018 publications | D94: Two publications provided to cover Q3 and Q4. Refreshed data for all indicators bolded and italicised in the "Latest reporting period" column.
B95: 2018-11-20 | C95: January 2019 Publication | D95: Restructured dashboard to use the new CCG, STP and regional structures for 2071/18 (see below). Refreshed data for all indicators bolded and italicised in the "Latest reporting period" column. Indicators updated, amended and removed. New indicators EIP(i.a), CR (iii.a), CR(iii.b) and CR(iii.c) added.
B96: 2019-01-17 | C96: February 2019 publication | D96: Refreshed data for all indicators bolded and italicised in the "Latest reporting period" column.
B97: 2019-01-17 | C97: February 2019 publication | D97: National standards added to dashboard IAPT Access standard attainment adjusted to be based on trajectory from 2017/18 to 2018/19 standard – see metadata for details.
B98: 2019-07-16 | C98: August 2019 Reissue | D98: Adjusted actual 2017/18 total spend for Lancashire and South Cumbria STP and Cumbria and North East STP to better reflect boundary changes between two CCGs.
B100: The following CCG mergers have taken place from April 2018.
B101: New CCG Name | D101: Former CCGs
B102: 14Y NHS Buckinghamshire CCG | D102: NHS Aylesbury Vale CCG (10Y) NHS Chiltern CCG (10H)
B103: 15A NHS Berkshire West CCG | D103: NHS Newbury & District CCG (10M) NHS North & West Reading CCG (10N) NHS South Reading CCG (10W) NHS Wokingham CCG (11D)
B104: 15C NHS Bristol, North Somerset and South Gloucestershire CCG | D104: NHS Bristol CCG (11H) NHS North Somerset CCG (11T) NHS South Gloucestershire CCG (12A)
B105: 15D NHS East Berkshire CCG | D105: NHS Bracknell & Ascot CCG (10G) NHS Slough CCG (10T) NHS Windsor, Ascot & Maidenhead CCG (11C)
B106: 15E NHS Birmingham and Solihull CCG | D106: NHS Birmingham Cross City CCG (13P) NHS Birmingham South and Central CCG (04X) Solihull CCG (05P)
B107: 15F NHS Leeds CCG | D107: NHS Leeds North CCG (02V) NHS Leeds South & East CCG (03G) NHS Leeds West CCG (03C)
B108: In addition the South Region has now been split between South West and South East. A new STP - Cumbria and North East has been formed from the merger of Northumberland, Tyne and Wear STP, Durham, Darlington, Tees, Hambleton, Richmondshire and Whitby STP and West, North and East Cumbria STP
B109: Contacts
B110: If you have comments or issues related to this Dashboard then please contact england.fyfvmh-dashboard@nhs.net

Sheet Metadata
B8: Code | C8: Indicator name | D8: Description * | E8: Standard (if applicable) | F8: Numerator | G8: Denominator | H8: Further Information and Data Quality | I8: Reporting period | J8: Data source | K8: Link to published data source (where available)
B9: Children and Young people (CYP) Mental Health
B10: CYP(i.b) | C10: % of CYP accessing treatment by NHS funded community services (at least two contacts) | D10: The numerator for this indicator is the number of children and young people (CYP) who received at least two contacts following a referral. The first contact must be within the relevant financial year and before their 18th birthday. Those contacts could be direct or indirect activity (excluding SMS or email). The denominator is the estimated prevalence of CYP with a diagnosable mental health condition. | E10: 0.3 | F10: Number of CYP with two or more contacts in the year (excluding SMS or email) Individuals are only counted once in each financial year, even if they have more than one referral. They can be counted again in later financial years if they have at least two relevant contacts in each year. | G10: Prevalence of CYP with a diagnosable mental health condition taken from CCG plans for 2017/18. These CCG estimates are based on 2004 prevalence from ONS, updated using local intelligence. | H10: The NHS has committed to improving access so that by 2020/21, 70,000 more children and young people are accessing treatment each year. Based on estimated prevalence available in 2016 (ONS, 2004) when that commitment was made, that equated to access for 35% of children and young people with a diagnosable mental health condition. The implementation plan for the Five Year Forward View for Mental Health set out the indicative national trajectory that builds towards this ambition. Progress is measured through the Mental Health Services Data Set (MHSDS), which collects data on the numbers of children and young people accessing services. But, for 2017/18 a one off data collection was carried out due to issues with the MHSDS data. The accuracy of the MHSDS is dependent on all providers of NHS commissioned services ensuring they record and submit every patient contact. Reviews of MHSDS data through April to December 2017 indicated issues with the flow of accurate data from some providers, leading to under-reporting of their progress. A data validation exercise was jointly developed and commissioned by NHS England, NHS Improvement and NHS Digital using the Strategic Data Collection Service (SDCS). All NHS commissioned children and young people’s mental health services, including voluntary/ independent sector providers funded by Clinical Commissioning Groups (CCGs) have been required to confirm whether their 2017-18 MHSDS access figures were accurate, or submit an alternative locally held figure if the MHSDS reported position was incomplete. All SDCS submissions have been sent to CCGs to be validated. We expect that this validation will be a one-off exercise, as commissioners and providers should ensure accurate data flows to MHSDS in 2018-19. | I10: Annual | J10: Numerator: Strategic Data Collection Service Denominator: Unpublished estimated 2017/18 prevalence of CYP with a diagnosable mental health condition, provided by CCGs (based on 2004 estimates from ONS) | K10: Numerator: SDCS Revalidation
B11: CYP(ii.a) | C11: % of CYP with eating disorders (ED) seen within 1 week (urgent) | D11: The proportion of Children and Young People (CYP) with Eating Disorders (urgent cases) that wait 1 week or less from referral to start of NICE-approved treatment. | E11: 95% by 2020/21 | F11: The number of CYP with a suspected ED (urgent cases) that started treatment within 1 week of referral in the reporting period. | G11: The number of CYP with a suspected ED (urgent cases) that started treatment in the reporting period. | H11: The standard includes all children and young people up to the age of 19 years in whatever setting (community or inpatients) the young person is receiving care. Due to small numbers of children and young people at a CCG and STP level, the percentages for these organisations are calculated using data for a rolling 12 month period | I11: Quarter (regional and national data) Rolling 12 months (CCG and STP level) | J11: SDCS | K11: NHS England: CYP Eating Disorder Waiting Times
B12: CYP(ii.b) | C12: % of CYP with eating disorders (ED) seen within 4 weeks (routine) | D12: The proportion of Children and Young People with Eating Disorders (routine cases) that wait 4 weeks or less from referral to start of NICE-approved treatment. | E12: 95% by 2020/21 | F12: The number of CYP with suspected ED (routine cases) that started treatment within 4 weeks of referral in the reporting period. | G12: The number of CYP with a suspected ED (routine cases) that started treatment in the reporting period. | H12: As for CYP (ii.a) | I12: Quarter (regional and national data) Rolling 12 months (CCG and STP level) | J12: SDCS | K12: NHS England: CYP Eating Disorder Waiting Times
B13: CYP(iii.a) | C13: Total number of bed days for CYP under 18 in CAMHS tier 4 wards | D13: The number of bed days in Children and Adolescent Mental Health Service (CAMHS) Wards for patients aged 0-17 in the reporting period | F13: N/A | G13: N/A | H13: Since the previous publication of the mental health dashboard, data quality against this indicator has been reviewed. Following this work, figures for previous quarters have been updated. Please note that this indicator now includes medium secure and deaf inpatient children (from 2017/18). All values of less than 5 have been suppressed and replaced with N/A in this output. | I13: Quarter | J13: Provider Specialised Mental Health template submissions (NHS England) | K13: N/A
B14: CYP(iii.b) | C14: Number of admissions of CYP under 18 in Child and Adolescent Mental Health Services tier 4 wards | D14: The number of admissions in Children and Adolescent Mental Health Service (CAMHS) Wards for patients aged 0-17 in the reporting period | F14: N/A | G14: N/A | H14: As for CYP (iii.a) | I14: Quarter | J14: Provider Specialised Mental Health template Provider submissions (NHS England) | K14: N/A
B15: CYP(iv.a) | C15: Bed days of CYP under 18 in adult in-patient wards | D15: A count of bed days for people aged 0-17 who were in an adult ward each month. Individuals are allocated to a CCG based on the person's CCG at the end of the month. Three months data is then aggregated to produce the quarterly figure. (MHSDS measure: MHS24a-c) | F15: N/A | G15: N/A | H15: NHS Digital are working closely with providers to encourage reporting and check data quality. As a result of data quality issues Q2 and Q3 data for 2017/18 were republished as a supplementary file in July 2018. NHS Digital investigated any provider for which there were more than 5 children on adult wards or more than 100 bed days on adult wards within a single month and requested data quality feedback. These parameters for investigation were selected to ensure any large data quality issues are examined whilst avoiding excessive burden on providers in investigation of smaller values. Further information can be found in the data quality section of the associated monthly MHSDS publications. These statistics are classified as experimental and should be used with caution. Experimental statistics are new official statistics undergoing evaluation. Except for England, all values of less than 5 have been suppressed and replaced with a N/A in this output. All unsuppressed sub-national values have been rounded to the nearest 5. | I15: Quarter | J15: MHSDS | K15: MHSDS NHS Digital Publication
B16: CYP(iv.b) | C16: Number of CYP under 18 in adult in-patient wards | D16: The number of children and young people aged 0-17 admitted in adult in-patient wards in the reporting period. This is a count of people, aged 0-17, who were on an adult ward at any point during the quarter. To avoid counting individuals more than once, the CCG is allocated based on the data submitted for the latest month in the quarter that person spent time in an adult ward. | F16: N/A | G16: N/A | H16: As for CYP (iv.a) | I16: Quarter | J16: MHSDS | K16: MHSDS NHS Digital Publication
B17: CYP(v) | C17: CYP Mental Health planned CCG spend - excluding learning disabilities and eating disorders | D17: 2018/19 planned spend by CCGs for CYP MH (excluding learning disabilities and eating disorders) | F17: N/A | G17: N/A | I17: Year | J17: NHS England Finance financial template returns
B18: CYP(vi) | C18: CYP Mental Health planned CCG spend - eating disorders | D18: 2018/19 planned spend by CCGs for CYP MH eating disorders | F18: N/A | G18: N/A | H18: Some CCGs have had difficulties extracting costs for specific services that they commission because of block or integrated contract arrangements. As a result there are 12 CCGs that show zero planned spend for CYP Eating Disorders, which is being reported as N/A in this dashboard. | I18: Year | J18: NHS England Finance financial template returns
B19: Adult mental health: common mental health problems
B20: IAPT(i.a) | C20: Improving Access to Psychological Therapies access rate: proportion of people with depression/anxiety entering during reporting period | D20: The proportion of people who have depression and/or anxiety disorders that enter NHS funded treatment with IAPT Services in the reporting period | E20: 4.75 by Q4 2018/19 | F20: The number of people who enter treatment to IAPT Services in the reporting period | G20: The number of people who have depression and/or anxiety disorders (local estimate based on Adult Psychiatric Morbidity Survey 2000) | H20: The annual objective set out in the Five Year Forward View Implementation plan for 2018/19 is 19%, and assessment is based on a quarterly “run rate” requirement, with the expectation that each CCG will achieve a rate of at least 4.75% of local prevalence entering services by quarter 4 of 2018/19. The measurement of whether IAPT access ambitions have been met is made in the last quarter of the year giving time for expansion to take place. For quarters 1 to 3 of the year progress is measured against a straight line trajectory from the previous year’s standard. The figures for each quarter are as follows: Q1, 4.34%; Q2, 4.48%; Q3, 4.61%. | I20: Quarter | J20: IAPT dataset | K20: NHS Digital: IAPT reports
B21: IAPT(i.b) | C21: IAPT % of all referrals that are for older people 65+ | D21: The proportion of referrals for those aged 65 and over of all referrals | F21: The number of referrals for those aged 65 and over | G21: All referrals | I21: Quarter | J21: IAPT dataset | K21: NHS Digital: IAPT reports
B22: IAPT(ii.a) | C22: IAPT recovery rate: % of people that attended at least 2 treatment contacts and are moving to recovery | D22: The proportion of people who have attended at least two treatment contacts and are moving to recovery (defined as those who at initial assessment achieved "caseness” and at final session did not) in the reporting period (Column name in the IAPT quarterly report: Recovery Rate) | E22: 0.5 | F22: The number of people moving to Recovery. 'Recovery' Column in the IAPT quarterly report | G22: The number of people who completed treatment 'FinishedCourseTreatment' Column minus those who were not at caseness prior to treatment 'NotCaseness' Column | H22: Please note: NHS Digital publishes a pre-calculated recovery rate using unrounded data that is used at England, STP and CCG level. The IAPT quarterly report does not include a regional aggregation so the regional proportions have been calculated by NHS England as follows: The sum of all the CCGs within each region for the Recovery Column in the IAPT quarterly report/ the sum of all the CCGs within each region for the FinishedCourseTreatment Column minus the NotCaseness Column | I22: Quarter | J22: IAPT dataset | K22: NHS Digital: IAPT reports
B23: IAPT(ii.b) | C23: IAPT recovery rate for black, Asian or minority ethnic (BAME) groups | D23: The proportion of people with a black, Asian or minority ethnicity (BAME) who have attended at least two treatment contacts and are moving to recovery (defined as those who at initial assessment achieved "caseness” and at final session did not) in the reporting period (Column name in the IAPT quarterly report: Recovery Rate for variable type: BME) | E23: 0.5 | F23: The number of people moving to Recovery. 'Recovery' Column in the IAPT quarterly report for BAME groups only | G23: The number of people who completed treatment 'FinishedCourseTreatment' Column minus those who were not at caseness prior to treatment 'NotCaseness' Column - for BME groups only | H23: Please note: NHS Digital publishes a pre-calculated recovery rate using unrounded data that is used at England, STP and CCG level. The IAPT quarterly report does not include a regional aggregation so the regional proportions have been calculated by NHS England as follows: The sum of all the CCGs within each region for the Recovery Column in the IAPT quarterly report/ the sum of all the CCGs within each region for the FinishedCourseTreatment Column minus the NotCaseness Column, all for BAME groups only | I23: Quarter | J23: IAPT dataset | K23: NHS Digital: IAPT reports
B24: IAPT(iii.a) | C24: IAPT % of people receiving first treatment appointment within 6 weeks of referral | D24: The proportion of people who finished treatment in the reporting period who had their first treatment appointment within 6 weeks of referral | E24: 0.75 | F24: FirstTreatment6WeeksFinishedCourse | G24: FinishedCourseTreatment | H24: Please note: NHS Digital publishes a pre-calculated proportion using unrounded data. The IAPT quarterly report does not include a regional aggregation. The regional proportions have been calculated by NHS England by using the numerator and denominator outlined here, aggregating the CCG level figures. | I24: Quarter | J24: IAPT dataset | K24: NHS Digital: IAPT reports
B25: IAPT(iii.b) | C25: IAPT % of people receiving first treatment appointment within 18 weeks of referral | D25: The proportion of people who finished treatment in the reporting period who had their first treatment appointment within 18 weeks of referral | E25: 0.95 | F25: FirstTreatment18WeeksFinishedCourse | G25: FinishedCourseTreatment | H25: Please note: NHS Digital publishes a pre-calculated proportion using unrounded data. The IAPT quarterly report does not include a regional aggregation. The regional proportions have been calculated by NHS England by using the numerator and denominator outlined here, aggregating the CCG level figures. | I25: Quarter | J25: IAPT dataset | K25: NHS Digital: IAPT reports
B26: IAPT(iv) | C26: IAPT planned CCG spend | D26: 2018/19 planned spend by CCGs for Improving Access to Psychological Therapies services | F26: N/A | G26: N/A | H26: Some CCGs have had difficulties extracting costs for specific services that they commission because of block or integrated contract arrangements. As a result there are 3 CCGs that show zero planned spend for IAPT, which is being reported as N/A in this dashboard. | I26: Year | J26: NHS England Finance financial template returns
B27: Early intervention in psychosis (EIP)
B28: EIP(i) | C28: % of people who started treatment within 2 weeks of referral - All ages | D28: Proportion of ended referrals who received their first treatment appointment within 2 weeks of referral in the reporting period | E28: 0.53 | F28: The number of ended referrals that start a course of treatment in the reporting period who received their first treatment appointment within 2 weeks of referral. | G28: The number of ended referrals that start a course of treatment in the reporting period. | H28: The SDCS data collection is an interim aggregate data collection which replaces the UNIFY2 collection run by NHS England until data of sufficient quality are available from the Mental Health Services dataset (MHSDS). While data quality in the MHSDS dataset has improved significantly, there remains a gap between MHSDS data and the SDCS collection for this reporting period. | I28: Quarter | J28: SDCS | K28: NHS England: EIP waiting times
B29: EIP(i.a) | C29: % of services graded at level 2 or above | D29: Proportion of services graded at level 2 or above in the annual EIP self-assessment of specialist EIP provision in line with NICE recommendations | E29: 1 | F29: The number of EIP services graded at level 2 or above in the 2017/18 reporting period | G29: The number of EIP services in the 2017/18 reporting period | H29: In implementing the five year forward view for mental health NHS England set out a trajectory for delivery of the EIP standard. The standard is ‘two-pronged’ and both conditions must be met for the standard to be deemed to have been achieved: 1. a maximum wait of two weeks from referral to start of treatment; and 2. treatment delivered in accordance with NICE guidelines and quality standards for psychosis and schizophrenia – either in children and young people CG155 (2013) and QS102 or in adults CG178 (2014) and QS80. This indicator measures delivery of the second part of the standard. The trajectory for 2018/19 was for all services to be graded at level 2 by the end of the year. | I29: Annual | J29: EIP self-assessment - delivered by the Royal College of Psychiatrist's Centre for Quality Improvement, commissioned by NHS England | K29: N/A
B30: EIP(ii) | C30: EIP planned CCG spend | D30: 2018/19 planned spend by CCGs for EIP teams and services | F30: N/A | G30: N/A | H30: Some CCGs have had difficulties extracting costs for specific services that they commission because of block or integrated contract arrangements. As a result there are some CCGs that show zero spend for mental health programmes, which is being reported as N/A in this dashboard. There are 11 CCGs showing zero in their planned spend for Early Intervention in Psychosis services. | I30: Year | J30: NHS England Finance financial template returns | K30: N/A
B31: Employment Support
B32: ES(i) | C32: Number of people accessing Individual Placement Support services | D32: The number of secondary mental health service users who accessed an IPS service during 2016/17 for the purposes of receiving employment support. IPS = Individual Placement and Support. | E32: 2016/17 is baseline figure to be doubled by 2020/21 | F32: N/A | G32: N/A | H32: This data collection established a baseline from which to measure improved access to IPS. It is intended that further collections will be undertaken in 2018/19 to provide at least an annual view of progress on this indicator. Data relates only to IPS services (not generic employment support services). Not all STPs currently have IPS provision in their area. STP allocation is from the geographical location of the service. Data was collected at aggregate service level, not individual service user record level. | I32: Year | J32: NHS England IPS Stocktake | K32: N/A
B33: Crisis and acute care and use of the Mental Health Act (MHA)
B34: CR(i) | C34: % of Crisis Resolution Home Treatment services able to meet selected core functions | D34: Services able to meet all of functions A-F. These functions have been selected as key indicators from the survey to demonstrate elements of a 24/7 crisis response and capacity to offer intensive 24/7 home treatment. See descriptions below | F34: The number of sites in the selected geography answering yes to indicators C, D,E and F together | G34: The number of sites in the selected geography submitting figures to the survey | H34: This data collection established a baseline from which to measure improvements in Crisis Resolution Home Treatment teams. It is intended that further collections will be undertaken to provide an annual view of progress in this area. It is expected that updated data for 2017/18 will be available for the Q2 2018/19 dashboard Survey responses submitted by CRHTTs to HEE / UCL survey as a snapshot in November 2016. Survey data are intended to prompt further local discussion. Local data on CRHT provision likely to be more accurate and should take precedence. | I34: 2016/17 | J34: Survey commissioned by Health Education England, conducted by University College London | K34: N/A
B35: CR(ii) | C35: Crisis resolution home treatment teams planned spend | D35: 2018/19 planned spend for Crisis resolution home treatment teams | F35: N/A | G35: N/A | H35: Some CCGs have had difficulties extracting costs for specific services that they commission because of block or integrated contract arrangements. As a result there are some CCGs that show zero spend for mental health programmes, which is being reported as N/A in this dashboard. 21 CCGs returned zero in their planned spend for crisis resolution home treatment teams. | I35: Year | J35: NHS England Finance financial template returns | K35: N/A
B36: CR(iii.a) | C36: Total number of inappropriate Out of Area bed days | D36: The total number of days in which patients have been placed out of area due to unavailable beds in their usual network | E36: Zero by 2020/21 | F36: N/A | G36: N/A | H36: An Out of Area Placement is when a person with assessed acute mental health needs who requires adult mental health acute inpatient care is admitted to a unit that does not form part of their usual local network of services. By this we mean an inpatient unit that does not usually admit people living in the catchment of the person’s local community mental health service, and where the person cannot be visited regularly by their care co-ordinator to ensure continuity of care and effective discharge planning. An 'Inappropriate' out of area placement is one that is solely or primarily necessitated because of the unavailability of a local acute bed will not meet the criteria for being appropriate. Data is currently being collected through the Clinical Audit Platform until the data becomes aligned and available from the MHSDS, the chosen mechanism for the long term collection of this data. | I36: Quarter | J36: Out of Area Placements in Mental Health - Clinical Audit Platform (CAP) NHS Digital | K36: NHS Digital Publications: Out of Area Placements
B37: CR(iii.b) | C37: Number of inappropriate Mental Health Out of Area Placements started in the period | D37: The total number of patients who have started a placement out of area due to unavailable beds in their usual network. | E37: Zero by 2020/21 | F37: N/A | G37: N/A | I37: Quarter | J37: Out of Area Placements in Mental Health - Clinical Audit Platform (CAP) NHS Digital | K37: NHS Digital Publications: Out of Area Placements
B38: CR(iii.c) | C38: Reported spend on inappropriate Out of Area Placements | D38: The total spend on out of area beds reported by providers who have sent patients out of area to an alternative provider | E38: Zero by 2020/21 | F38: N/A | G38: N/A | H38: This is the total cost incurred by one provider when sending a patient to a different provider. Where a provider places a patient out of area but within the same trust (for example when a trust covers a large geographical area) these costs will not be reported here. | I38: Quarter | J38: Out of Area Placements in Mental Health - Clinical Audit Platform (CAP) NHS Digital | K38: NHS Digital Publications: Out of Area Placements
B39: CR(iv.a) | C39: Number of detentions under the Mental Health Act | D39: The number of detentions under the mental health act 1983 (includes all providers) | F39: N/A | G39: N/A | H39: his is the second annual MHA report by NHS Digital using Mental Health Services Data Set (MHSDS) data as the official source of MHA statistics. Because this is a relatively new data collection there were significant data quality and completeness issues especially in the first annual MHA report for 2016/17. While this new data seems to indicate an increase since 2016/17, this is likely to be due to improvements in MHSDS data completeness. The count of detentions does not include uses of Sections 4, 5(2) & 5(4) or 135 & 136 | I39: Year | J39: Mental Health Act Statistics, NHS Digital | K39: NHS Digital Publications: Mental Health Act Statistics
B40: CR(iv.b) | C40: % of people detained under the MHA who are BAME | D40: The proportion of total detentions under the mental health act 1983, with a black, Asian or minority ethnic (BAME) ethnicity | F40: The number of people with a "mixed", "Asian or Asian British", "black or black British" or "other ethnic groups" ethnic group that have been detained under the mental health act | G40: The total number of detentions under the mental health act | H40: As for CR(iv.a) | I40: Year | J40: Mental Health Act Statistics, NHS Digital | K40: NHS Digital Publications: Mental Health Act Statistics
B41: CR(v.a) | C41: Number of section 136 detentions taken to police cells as a place of safety | D41: The number of section136 detentions taken to police cells as a place of safety in England | F41: N/A | G41: N/A | I41: Year | J41: National Police Chiefs' Council Lead for Mental Health | K41: Use of Section 136 of the Mental Health Act 1983 in 2017-18
B42: CR(v.b) | C42: Number of section 136 detentions taken to police cells as a place of safety that are under 18 | D42: The number of section136 detentions taken to police cells as a place of safety in England that are under 18 | F42: N/A | G42: N/A | I42: Year | J42: National Police Chiefs' Council Lead for Mental Health | K42: Use of Section 136 of the Mental Health Act 1983 in 2017-18
B43: Acute hospital mental health liaison
B44: AC(i) | C44: % of acute hospitals meeting the ‘core 24’ service standard | D44: The proportion of acute hospitals meeting all three core 24 criteria - Liaison teams commissioned to operate 24/7 Liaison teams in acute hospitals operating close to recommended minimum workforce numbers to operate 24/7, i.e. services with a "Core 24" or "Enhanced LPSE-3 Service Grading Teams with response time standards (1hr for emergency, 24 hr for ward referrals) | E44: 0.07 | F44: The number of acute hospitals meeting all three core 24 criteria | G44: The total number of acute hospitals with complete data | H44: The baseline for this indicator was set in 2015 at 7%. It is intended that further collections will be undertaken to provide an annual view of progress on this indicator. It is expected that updated data for 2017/18 will be available later in 2018. | I44: TBD | J44: Third Annual Survey of Liaison Psychiatry in England, Health Education England | K44: N/A
B45: AC(ii) | C45: A&E and Ward Liaison mental health planned spend | D45: 2017/18 planned spend for A&E and Ward Liaison mental health services | F45: N/A | G45: N/A | H45: Some CCGs have had difficulties extracting costs for specific services that they commission because of block or integrated contract arrangements. As a result there are some CCGs that show zero spend for mental health programmes, which is being reported as N/A in this dashboard. There are 6 CCGs returning zero in their planned spend for A&E liaison services. | I45: Year | J45: NHS England Finance financial template returns | K45: N/A
B46: Health & Justice
B47: HJ(i) | C47: Number of mental health secure transfers within 2 weeks of acceptance under the MHA- Age:18+ | D47: The number of mental health secure transfers for patients aged 18 and over within 2 weeks of acceptance under the MHA | F47: N/A | G47: N/A | H47: This indicator has been excluded due to an issue with the completeness of the data. That issue has been resolved but data is not reported in this dashboard prior to Q1 2018/19. | I47: Quarter | J47: Health and Justice Indicators of Performance (HJIP) | K47: N/A
B48: HJ(ii.a) | C48: % of prison population receiving group therapy in secure and detained settings - Age:18+ | D48: The proportion of the prison population receiving group therapy in secure and detained settings | F48: The number of the prison population receiving group therapy | G48: The number of patients in secure and detained settings at the end of the reporting period | H48: Not all patients on the register would be expected to be receiving group and/or individual therapies at a given point in time, as some patients' condition maybe in remission or managed by medication and won't require additional therapies. As group and individual therapies are not mutually exclusive, a small number of patients may be in receipt of both in any given reporting period. Please note these percentages exclude data from the North East due to identified data quality issues. | I48: Quarter | J48: Health and Justice Indicators of Performance (HJIP) | K48: N/A
B49: HJ(ii.b) | C49: % of mental health patients receiving individual therapy in secure and detained settings - Age:18+ | D49: The proportion of mental health patients receiving individual therapy in secure and detained settings | F49: The number of mental health patients receiving individual therapy | G49: The number patients on the mental health register in secure and detained settings (according to QOF codes) at the end of the reporting period | H49: See HJ(ii.a) | I49: Quarter | J49: Health and Justice Indicators of Performance (HJIP) | K49: N/A
B50: HJ(iii) | C50: % of population of England with access to liaison and diversion services - All ages | D50: The proportion of population with access to Liaison and Diversion services | E50: 0.6 | F50: The number of people with access to Liaison and Diversion services | G50: Total England population based on the 2011 census | I50: Year | J50: Liaison and Diversion Programme Team | K50: N/A
B51: Suicide prevention
B52: SP(i) | C52: Suicide: age-standardised death rate per 100,000 population - Age:10+ | D52: The rolling three year aggregate age-standardised mortality rate from suicide and injury of undetermined intent per 100,000 population | F52: Number of deaths from suicide in the reporting period. In England and Wales, suicide is defined as deaths given an underlying cause of intentional self-harm or injury/poisoning of undetermined intent. International Classification of Diseases (ICD) codes used in this dataset X60-X84 Intentional self-harm Y10-Y3478 Injury/poisoning of undetermined intent Deaths were selected using the final underlying cause of death. 7 Excluding injury/poisoning of undetermined intent for persons aged 10-14. 8 Excluding Y33.9 where the coroner's verdict was pending in England and Wales for the years 2001-2006. From 2007 onwards, deaths which were previously coded to Y33.9 are coded to U50.9. | G52: The resident population divided by 100,000 | H52: Figures are for suicides of persons aged 10 years and over. This same age band was used as a lower limit for the underlying population dataset used to calculate rates. The rates are standardised 100,000 population to the 2013 European Standard Population. Age-standardised rates are used to allow comparison between populations which may contain different proportions of people of different ages. | I52: Rolling three year aggregate | J52: Office for National Statistics | K52: ONS CCG level age standardised suicide rates
K53: ONS STP level age standardised suicide rates
B54: SP(ii.a) | C54: Hospital admissions for self-harm: age standardised rate per 100,000 - Age: 10-24 | D54: Directly standardised rate of finished admission episodes for self-harm per 100,000 population aged 10-24 years | F54: Number of finished admission episodes in children aged between 10 and 24 years for intentional self-harm in the reporting period. Self-harm is defined by external cause codes (ICD10 X60-X84) which include: •Intentional self poisoning (X60 to X69 inclusive); •Intentional self harm by hanging, drowning or jumping (X70, X71 and X80); • Intentional self harm by firearm/explosive (X72 to X75 inclusive); • Intentional self harm using other implement (X78 and X79) • Intentional self harm other (X76, X77 and X81 to X84). This definition does not include events of undetermined intent | G54: Numbers of patients registered at a GP Practice aged between 10 to 24 divided by 100,000. | H54: Directly standardised rate per 100,000 population calculated using the revised European Standard Population 2013 (2013 ESP). For more information on the methodology please see ONS publication below: | I54: Quarter | J54: Numerator: Hospital Episode Statistics (HES), NHS Digital Denominator: Number of patients registered at a GP practice, NHS Digital | K54: Numerator: NHS Digital: HES
H55: Revised European Standard Population 2013 | K55: Denominator: NHS Digital: GP registered population
B56: SP(ii.b) | C56: Hospital admissions for self-harm: age standardised rate per 100,000 - Age:25+ | D56: Directly standardised rate of finished admission episodes for self-harm per 100,000 population aged 25+ | F56: Number of finished admission episodes in children aged between 10 and 24 years for intentional self-harm in the reporting period. See SP(ii.a) for self-harm definition | G56: Numbers of patients registered at a GP Practice aged 25 and over divided by 100,000. | H56: Directly standardised rate per 100,000 population calculated using the revised European Standard Population 2013 (2013 ESP). For more information on the methodology please see ONS publication below: | I56: Quarter | J56: Numerator: Hospital Episode Statistics (HES), NHS Digital Denominator: Number of patients registered at a GP practice, NHS Digital | K56: Numerator: NHS Digital: HES
H57: Revised European Standard Population 2013 | K57: Denominator: NHS Digital: GP registered population
B58: SP(iii) | C58: % of patients on CPA discharged from hospital and followed up within 7 days | D58: The proportion patients on CPA discharged from hospital and followed up within 7 days | F58: Number of patients on CPA who were followed up within 7 days after discharge from psychiatric inpatient care (QA) | G58: Total number of patients on CPA discharged from psychiatric inpatient care (QA) | H58: The national total includes figures for services commissioned by NHS England | I58: Quarter | J58: SDCS | K58: Mental Health Community Teams Activity
B59: Meeting commitment to increase mental health funding
B60: MHF(i) | C60: CCG spend on MH as a % of CCG allocations | D60: Mental health spend (including learning disabilities and dementia) as a proportion of overall CCG allocation in the relevant year | F60: Total CCG mental health spend (including learning disabilities and dementia) | G60: Total CCG allocation (excludes primary care co-commissioning and administration specific allocations) | H60: This indicator shows for the relevant financial year, the CCG spend on mental health as a percentage of their overall allocations. For 2018/19 the figures are planned spend, while for all previous financial years the figures are the actual spend. Over the course of 2018/19 there will be additional expenditure on projects that will be funded from additional resources that will be allocated throughout the year. This additional expenditure is not included in planned spend for 2018/19 because the additional allocations were not known to CCGs at this point, but the equivalent expenditure is included in the previous year’s figures. For all financial years, the overall allocation excludes primary care co-commissioning and administration specific allocations. | I60: Year | J60: NHS England Finance financial template returns | K60: N/A
B61: MHF(ii.a) and MHF (ii.b) | C61: Total mental health spend by financial year | D61: Total mental health spend by financial year (including learning disabilities and dementia) | F61: N/A | G61: N/A | H61: The total national NHS spend on mental health services is made up of both CCG and specialised commissioning spend. It does not include MH spend in primary care or on central non-commissioning. For 2018/19 the figures are planned spend, while for all previous financial years the figures are the actual spend. Over the course of 2018/19 there will be additional expenditure on projects that will be funded from additional resources that will be allocated throughout the year. This additional expenditure is not included in planned spend for 2018/19 because the additional allocations were not known to CCGs at this point, but the equivalent expenditure is included in the previous year’s figures. Nationally the planned increase in CCG spend on mental health between 2017/18 and 2018/19 on a like-for-like basis is 3.8% compared to a 3.0% increase in the national CCG allocation. Spend on specialised commissioning covers a number of specialised mental health services that are planned nationally and regionally by NHS England. The funding for these services is held separately from CCG budgets, which is why it’s shown separately and is only reported at a national level. | I61: Year | J61: CCG spend: NHS England Finance financial template returns Specialised commissioning spend: Specialised Commissioning hub templates | K61: N/A
B62: MHF(iii) | C62: Meeting the Mental Health Investment Standard? | D62: This measure shows whether the MH investment standard was achieved in the relevant financial year by CCG and nationally. | F62: Annual increase in CCG mental health spend | G62: Annual overall increase in total CCG allocation | H62: The mental health investment standard (MHIS) requires that the annual percentage increase in CCG spend on mental health services in the relevant financial year should be at least equal to or greater than the percentage increase in their overall allocation. Spend in each financial year is compared to the previous financial year. To calculate whether the MH investment standard will be met based on the planned spend figures for 2018/19, the 2017/18 actual spend figures used must be adjusted to exclude the expenditure against additional allocations made during the year. The MHIS calculation also does not include planned or actual spend on learning disabilities and dementia, which is included in the total mental health spend presented here. Specialised commissioning spend is not included in the mental health investment standard compliance calculation. The MHIS is calculated at CCG level and nationally across all CCGs. | I62: Year | J62: NHS England Finance financial template returns | K62: N/A

Sheet Dashboard
N3: =TypeSelector -> 1
N5: =LEFT(Selected_Org_Name,3) -> Eng
N6: =CCGName -> England
N7: =IF(TypeSelector=3,"Select STP","Select CCG") -> Select CCG
N8: =IF(N3=3,"Overview for "&Selected_Org_Name&" STP", "Overview for "&Selected_Org_Name) -> Overview for England
N10: =OFFSET('LKP - Organisation codes'!$A$2,MATCH(Selected_Org_Name,'LKP - Organisation codes'!Org_list,0),) -> EN
D12: Click on the column headings below for a brief description of each column
B13: Code | C13: Indicator* - Please see the Metadata tab for further details on the indicators | D13: Reporting period | E13: Indicator value | F13: Standard met | G13: Trend ** | H13: Better is… | I13: Range ***
B14: Children and Young people (CYP) Mental Health | D14: ='Calc - Sparklines'!D13 -> 0 | E14: =IFERROR(IF('Calc - Sparklines'!T13="","",'Calc - Sparklines'!T13),"N/A") -> N/A | G14: ='Calc - Sparklines'!X13 -> N/A
B15: CYP(i.b) | C15: % of CYP accessing treatment by NHS funded community services (at least two contacts) ⱡ | D15: ='Calc - Sparklines'!D14 -> 2017/18 | E15: =IFERROR(IF('Calc - Sparklines'!T14="","",'Calc - Sparklines'!T14),"N/A") -> 0.3050977763 | F15: =E15 -> 0.3050977763 | G15: ='Calc - Sparklines'!X14 -> N/A | H15: ▲ | I15: =IF($N$3=1,"N/A", IF($N$3=2,"National measure only", IF($N$3=3,"National measure only", IF($N$3=4,"National measure only","")))) -> N/A
B16: CYP(ii.a) | C16: % of CYP with eating disorders seen within 1 week (urgent) + | D16: ='Calc - Sparklines'!D15 -> Q2 2018/19 | E16: =IFERROR(IF('Calc - Sparklines'!T15="","",'Calc - Sparklines'!T15),"N/A") -> 0.8130081301 | F16: N/A | G16: ='Calc - Sparklines'!X15 ->  | H16: ▲ | I16: N/A
B17: CYP(ii.b) | C17: % of CYP with eating disorders seen within 4 weeks (routine) + | D17: ='Calc - Sparklines'!D16 -> Q2 2018/19 | E17: =IFERROR(IF('Calc - Sparklines'!T16="","",'Calc - Sparklines'!T16),"N/A") -> 0.8017894012 | F17: N/A | G17: ='Calc - Sparklines'!X16 ->  | H17: ▲ | I17: N/A
B18: CYP(iii.a) | C18: Number of bed days for CYP under 18 in Child and Adolescent Mental Health Services tier 4 wards | D18: ='Calc - Sparklines'!D17 -> Q2 2018/19 | E18: =IFERROR(IF('Calc - Sparklines'!T17="","",'Calc - Sparklines'!T17),"N/A") -> 101976 | F18: N/A | G18: ='Calc - Sparklines'!X17 ->  | H18: N/A | I18: N/A
B19: CYP(iii.b) | C19: Number of admissions of CYP under 18 in Child and Adolescent Mental Health Services tier 4 wards | D19: ='Calc - Sparklines'!D18 -> Q2 2018/19 | E19: =IFERROR(IF('Calc - Sparklines'!T18="","",'Calc - Sparklines'!T18),"N/A") -> 1108 | F19: N/A | G19: ='Calc - Sparklines'!X18 ->  | H19: N/A | I19: N/A
B20: CYP(iv.a) | C20: Bed days of CYP under 18 in adult in-patient wards | D20: ='Calc - Sparklines'!D19 -> Q2 2018/19 | E20: =IFERROR(IF('Calc - Sparklines'!T19="","",'Calc - Sparklines'!T19),"N/A") -> 388 | F20: N/A | G20: ='Calc - Sparklines'!X19 ->  | H20: ▼ | I20: N/A
B21: CYP(iv.b) | C21: Number of CYP under 18 in adult in-patient wards | D21: ='Calc - Sparklines'!D20 -> Q2 2018/19 | E21: =IFERROR(IF('Calc - Sparklines'!T20="","",'Calc - Sparklines'!T20),"N/A") -> 37 | F21: N/A | G21: ='Calc - Sparklines'!X20 ->  | H21: ▼ | I21: N/A
B22: CYP(v) | C22: CYP Mental Health planned CCG spend - excluding learning disabilities and eating disorders | D22: ='Calc - Sparklines'!D21 -> 2018/19 planned | E22: =IFERROR(IF('Calc - Sparklines'!T21="","",'Calc - Sparklines'!T21),"N/A") -> 676604727.4 | F22: N/A | G22: ='Calc - Sparklines'!X21 -> N/A | H22: N/A | I22: N/A
B23: CYP(vi) | C23: CYP Mental Health planned CCG spend - eating disorders | D23: ='Calc - Sparklines'!D22 -> 2018/19 planned | E23: =IFERROR(IF('Calc - Sparklines'!T22="","",'Calc - Sparklines'!T22),"N/A") -> 50720650.11 | F23: N/A | G23: ='Calc - Sparklines'!X22 -> N/A | H23: N/A | I23: N/A
B24: Adult mental health: common mental health problems (Improving Access to Psychological Therapies services)
B25: IAPT(i.a) | C25: IAPT access rate: proportion of people with depression/anxiety entering NHS funded treatment during reporting period ++ | D25: ='Calc - Sparklines'!D24 -> Q2 2018/19 | E25: =IFERROR(IF('Calc - Sparklines'!T24="","",'Calc - Sparklines'!T24),"N/A") -> 0.04239202189 | F25: =E25 -> 0.04239202189 | G25: ='Calc - Sparklines'!X24 ->  | H25: ▲ | I25: =IF($N$3=1,"Chart available at STP and CCG level", IF($N$3=2,"Chart available at STP and CCG level", IF($N$3=3,"", IF($N$3=4,"","")))) -> Chart available at STP and CCG level
B26: IAPT(i.b) | C26: IAPT % of all referrals that are for older people 65+ | D26: ='Calc - Sparklines'!D25 -> Q2 2018/19 | E26: =IFERROR(IF('Calc - Sparklines'!T25="","",'Calc - Sparklines'!T25),"N/A") -> 0.06626504439 | F26: N/A | G26: ='Calc - Sparklines'!X25 ->  | H26: ▲ | I26: Chart available at STP and CCG level
B27: IAPT(ii.a) | C27: IAPT recovery rate: % of people that attended at least 2 treatment contacts and are moving to recovery | D27: ='Calc - Sparklines'!D26 -> Q2 2018/19 | E27: =IFERROR(IF('Calc - Sparklines'!T26="","",'Calc - Sparklines'!T26),"N/A") -> 0.513 | F27: =E27 -> 0.513 | G27: ='Calc - Sparklines'!X26 ->  | H27: ▲ | I27: Chart available at STP and CCG level
B28: IAPT(ii.b) | C28: IAPT recovery rate for black, Asian or minority ethnic (BAME) groups | D28: ='Calc - Sparklines'!D27 -> Q2 2018/19 | E28: =IFERROR(IF('Calc - Sparklines'!T27="","",'Calc - Sparklines'!T27),"N/A") -> 0.479 | F28: =E28 -> 0.479 | G28: ='Calc - Sparklines'!X27 ->  | H28: ▲ | I28: Chart available at STP and CCG level
B29: IAPT(iii.a) | C29: IAPT % of people receiving first treatment appointment within 6 weeks of referral | D29: ='Calc - Sparklines'!D28 -> Q2 2018/19 | E29: =IFERROR(IF('Calc - Sparklines'!T28="","",'Calc - Sparklines'!T28),"N/A") -> 0.895 | F29: =E29 -> 0.895 | G29: ='Calc - Sparklines'!X28 ->  | H29: ▲ | I29: Chart available at STP and CCG level
B30: IAPT(iii.b) | C30: IAPT % of people receiving first treatment appointment within 18 weeks of referral | D30: ='Calc - Sparklines'!D29 -> Q2 2018/19 | E30: =IFERROR(IF('Calc - Sparklines'!T29="","",'Calc - Sparklines'!T29),"N/A") -> 0.991 | F30: =E30 -> 0.991 | G30: ='Calc - Sparklines'!X29 ->  | H30: ▲ | I30: Chart available at STP and CCG level
B31: IAPT(iv) | C31: IAPT planned CCG spend | D31: ='Calc - Sparklines'!D30 -> 2018/19 planned | E31: =IFERROR(IF('Calc - Sparklines'!T30="","",'Calc - Sparklines'!T30),"N/A") -> 479857086.7 | F31: N/A | G31: ='Calc - Sparklines'!X30 -> N/A | H31: N/A | I31: N/A
B32: Early intervention in psychosis (EIP)
B33: EIP(i) | C33: % of people who started treatment within 2 weeks of referral - All ages | D33: ='Calc - Sparklines'!D32 -> Q2 2018/19 | E33: =IFERROR(IF('Calc - Sparklines'!T32="","",'Calc - Sparklines'!T32),"N/A") -> 0.7542533081 | F33: =E33 -> 0.7542533081 | G33: ='Calc - Sparklines'!X32 ->  | H33: ▲ | I33: =IF($N$3=1,"Chart available at STP and CCG level", IF($N$3=2,"Chart available at STP and CCG level", IF($N$3=3,"", IF($N$3=4,"","")))) -> Chart available at STP and CCG level
B34: EIP(i.a) | C34: % of CCG commissioned EIP services meeting NICE level 2 | D34: ='Calc - Sparklines'!D33 -> 2017/18 | E34: =IFERROR(IF('Calc - Sparklines'!T33="","",'Calc - Sparklines'!T33),"N/A") -> 0.779 | F34: =E34 -> 0.779 | G34: ='Calc - Sparklines'!X33 -> N/A | H34: ▲ | I34: =IF($N$3=1,"N/A", IF($N$3=2,"N/A", IF($N$3=3,"Data not available at STP level", IF($N$3=4,"Data not available at CCG level","")))) -> N/A
B35: EIP(ii) | C35: EIP planned CCG spend | D35: ='Calc - Sparklines'!D34 -> 2018/19 planned | E35: =IFERROR(IF('Calc - Sparklines'!T34="","",'Calc - Sparklines'!T34),"N/A") -> 164444118.7 | F35: N/A | G35: ='Calc - Sparklines'!X34 -> N/A | H35: N/A | I35: N/A
B36: Employment support
B37: ES(i) | C37: Number of people accessing Individual Placement Support services | D37: ='Calc - Sparklines'!D36 -> 2016/17 | E37: =IFERROR(IF('Calc - Sparklines'!T36="","",'Calc - Sparklines'!T36),"N/A") -> 9775 | F37: N/A | G37: ='Calc - Sparklines'!X36 -> Baseline figure | H37: ▲ | I37: =IF($N$3=1,"N/A", IF($N$3=2,"National measure only", IF($N$3=3,"National measure only", IF($N$3=4,"National measure only","")))) -> N/A
B38: Crisis and acute care and use of the Mental Health Act (MHA)
B39: CR(i) | C39: % of Crisis Resolution Home Treatment services able to meet selected core functions ~ | D39: ='Calc - Sparklines'!D38 -> 2016/17 | E39: =IFERROR(IF('Calc - Sparklines'!T38="","",'Calc - Sparklines'!T38),"N/A") -> 0.2368421053 | F39: N/A | G39: ='Calc - Sparklines'!X38 -> Baseline figure | H39: ▲ | I39: =IF($N$3=1,"N/A", IF($N$3=2,"N/A", IF($N$3=3,"National and Regional measure only", IF($N$3=4,"National and Regional measure only","")))) -> N/A
B40: CR(ii) | C40: Crisis resolution home treatment teams planned spend | D40: ='Calc - Sparklines'!D39 -> 2018/19 planned | E40: =IFERROR(IF('Calc - Sparklines'!T39="","",'Calc - Sparklines'!T39),"N/A") -> 328554773.6 | F40: N/A | G40: ='Calc - Sparklines'!X39 -> N/A | H40: N/A | I40: N/A
B41: CR(iii.a) | C41: Total number of inappropriate Out of Area bed days | D41: ='Calc - Sparklines'!D40 -> Q2 2018/19 | E41: =IFERROR(IF('Calc - Sparklines'!T40="","",'Calc - Sparklines'!T40),"N/A") -> 57290 | F41: N/A | G41: ='Calc - Sparklines'!X40 ->  | H41: ▼ | I41: N/A
B42: CR(iii.b) | C42: Number of inappropriate Mental Health Out of Area Placements started in the period | D42: ='Calc - Sparklines'!D41 -> Q2 2018/19 | E42: =IFERROR(IF('Calc - Sparklines'!T41="","",'Calc - Sparklines'!T41),"N/A") -> 1855 | F42: N/A | G42: ='Calc - Sparklines'!X41 ->  | H42: ▼ | I42: N/A
B43: CR(iii.c) | C43: Reported spend on inappropriate Out of Area Placements | D43: ='Calc - Sparklines'!D42 -> Q2 2018/19 | E43: =IFERROR(IF('Calc - Sparklines'!T42="","",'Calc - Sparklines'!T42),"N/A") -> 26805460 | F43: N/A | G43: ='Calc - Sparklines'!X42 ->  | H43: ▼ | I43: N/A
B44: CR(iv.a) | C44: Number of detentions under the Mental Health Act | D44: ='Calc - Sparklines'!D43 -> 2017/18 | E44: =IFERROR(IF('Calc - Sparklines'!T43="","",'Calc - Sparklines'!T43),"N/A") -> 49551 | F44: N/A | G44: ='Calc - Sparklines'!X43 -> N/A | H44: ▼ | I44: =IF($N$3=1,"N/A", IF($N$3=2,"National measure only", IF($N$3=3,"National measure only", IF($N$3=4,"National measure only","")))) -> N/A
B45: CR(iv.b) | C45: % of people detained under the MHA who are BAME | D45: ='Calc - Sparklines'!D44 -> 2017/18 | E45: =IFERROR(IF('Calc - Sparklines'!T44="","",'Calc - Sparklines'!T44),"N/A") -> 0.29 | F45: N/A | G45: ='Calc - Sparklines'!X44 -> N/A | H45: ▼ | I45: =IF($N$3=1,"N/A", IF($N$3=2,"National measure only", IF($N$3=3,"National measure only", IF($N$3=4,"National measure only","")))) -> N/A
B46: CR(v.a) | C46: Number of section 136 detentions taken to police cells as a place of safety # | D46: ='Calc - Sparklines'!D45 -> 2017/18 | E46: =IFERROR(IF('Calc - Sparklines'!T45="","",'Calc - Sparklines'!T45),"N/A") -> 408 | F46: N/A | G46: ='Calc - Sparklines'!X45 ->  | H46: ▼ | I46: =IF($N$3=1,"N/A", IF($N$3=2,"National measure only", IF($N$3=3,"National measure only", IF($N$3=4,"National measure only","")))) -> N/A
B47: CR(v.b) | C47: Number of section 136 detentions taken to police cells as a place of safety that are under 18 # | D47: ='Calc - Sparklines'!D46 -> 2017/18 | E47: =IFERROR(IF('Calc - Sparklines'!T46="","",'Calc - Sparklines'!T46),"N/A") -> 10 | F47: N/A | G47: ='Calc - Sparklines'!X46 ->  | H47: ▼ | I47: =IF($N$3=1,"N/A", IF($N$3=2,"National measure only", IF($N$3=3,"National measure only", IF($N$3=4,"National measure only","")))) -> N/A
B48: Acute hospital mental health liaison
B49: AC(i) | C49: % of acute hospitals meeting the ‘core 24’ service standard | D49: ='Calc - Sparklines'!D48 -> 2015/16 | E49: =IFERROR(IF('Calc - Sparklines'!T48="","",'Calc - Sparklines'!T48),"N/A") -> 0.1016949153 | F49: =E49 -> 0.1016949153 | H49: ▲ | I49: =IF($N$3=1,"N/A", IF($N$3=2,"National measure only", IF($N$3=3,"National measure only", IF($N$3=4,"National measure only","")))) -> N/A
B50: AC(ii) | C50: A&E and Ward Liaison mental health planned spend | D50: ='Calc - Sparklines'!D49 -> 2018/19 planned | E50: =IFERROR(IF('Calc - Sparklines'!T49="","",'Calc - Sparklines'!T49),"N/A") -> 168929399 | F50: N/A | G50: ='Calc - Sparklines'!X49 -> N/A | H50: N/A | I50: N/A
B51: Health & Justice
B52: HJ(i) | C52: Number of mental health secure transfers within 2 weeks of acceptance under the MHA- Age:18+ ## | D52: ='Calc - Sparklines'!D51 -> Q2 2018/19 | E52: =IFERROR(IF('Calc - Sparklines'!T51="","",'Calc - Sparklines'!T51),"N/A") -> 74 | F52: N/A | G52: ='Calc - Sparklines'!X51 -> N/A | H52: N/A | I52: =IF($N$3=1,"N/A", IF($N$3=2,"National measure only", IF($N$3=3,"National measure only", IF($N$3=4,"National measure only","")))) -> N/A
B53: HJ(ii.a) | C53: % of prison population receiving group therapy in secure and detained settings - Age:18+ | D53: ='Calc - Sparklines'!D52 -> Q4 2017/18 | E53: =IFERROR(IF('Calc - Sparklines'!T52="","",'Calc - Sparklines'!T52),"N/A") -> 0.02024980984 | F53: N/A | G53: ='Calc - Sparklines'!X52 ->  | H53: ▲ | I53: =IF($N$3=1,"N/A", IF($N$3=2,"National measure only", IF($N$3=3,"National measure only", IF($N$3=4,"National measure only","")))) -> N/A
B54: HJ(ii.b) | C54: % of mental health patients receiving individual therapy in secure and detained settings - Age:18+ | D54: ='Calc - Sparklines'!D53 -> Q4 2017/18 | E54: =IFERROR(IF('Calc - Sparklines'!T53="","",'Calc - Sparklines'!T53),"N/A") -> 0.856835885 | F54: N/A | G54: ='Calc - Sparklines'!X53 ->  | H54: ▲ | I54: =IF($N$3=1,"N/A", IF($N$3=2,"National measure only", IF($N$3=3,"National measure only", IF($N$3=4,"National measure only","")))) -> N/A
B55: HJ(iii) | C55: % of population of England with access to liaison and diversion services - All ages | D55: ='Calc - Sparklines'!D54 -> 2017/18 | E55: =IFERROR(IF('Calc - Sparklines'!T54="","",'Calc - Sparklines'!T54),"N/A") -> 0.82 | F55: =E55 -> 0.82 | G55: ='Calc - Sparklines'!X54 ->  | H55: ▲ | I55: =IF($N$3=1,"N/A", IF($N$3=2,"National measure only", IF($N$3=3,"National measure only", IF($N$3=4,"National measure only","")))) -> N/A
B56: Suicide prevention
B57: SP(i) | C57: Suicide: age-standardised death rate per 100,000 population - Age:10+ | D57: ='Calc - Sparklines'!D56 -> 2015-2017 | E57: =IFERROR(IF('Calc - Sparklines'!T56="","",'Calc - Sparklines'!T56),"N/A") -> 9.571141619 | F57: N/A | G57: ='Calc - Sparklines'!X56 ->  | H57: ▼ | I57: =IF($N$3=1,"Chart available at STP and CCG level", IF($N$3=2,"Chart available at STP and CCG level", IF($N$3=3,"", IF($N$3=4,"","")))) -> Chart available at STP and CCG level
B58: SP(ii.a) | C58: Hospital admissions for self-harm: age standardised rate per 100,000 - Age: 10-24 | D58: ='Calc - Sparklines'!D57 -> Q2 2018/19 | E58: =IFERROR(IF('Calc - Sparklines'!T57="","",'Calc - Sparklines'!T57),"N/A") -> 101.8513397 | F58: N/A | G58: ='Calc - Sparklines'!X57 ->  | H58: ▼ | I58: =IF($N$3=1,"Chart available at STP and CCG level", IF($N$3=2,"Chart available at STP and CCG level", IF($N$3=3,"", IF($N$3=4,"","")))) -> Chart available at STP and CCG level
B59: SP(ii.b) | C59: Hospital admissions for self-harm: age standardised rate per 100,000 - Age:25+ | D59: ='Calc - Sparklines'!D58 -> Q2 2018/19 | E59: =IFERROR(IF('Calc - Sparklines'!T58="","",'Calc - Sparklines'!T58),"N/A") -> 42.65524903 | F59: N/A | G59: ='Calc - Sparklines'!X58 ->  | H59: ▼ | I59: =IF($N$3=1,"Chart available at STP and CCG level", IF($N$3=2,"Chart available at STP and CCG level", IF($N$3=3,"", IF($N$3=4,"","")))) -> Chart available at STP and CCG level
B60: SP(iii) | C60: % of patients on Care Programme Approach discharged from hospital and followed up within 7 days | D60: ='Calc - Sparklines'!D59 -> Q2 2018/19 | E60: =IFERROR(IF('Calc - Sparklines'!T59="","",'Calc - Sparklines'!T59),"N/A") -> 0.9572599532 | F60: N/A | G60: ='Calc - Sparklines'!X59 ->  | H60: ▲ | I60: =IF($N$3=1,"Chart available at STP and CCG level", IF($N$3=2,"Chart available at STP and CCG level", IF($N$3=3,"", IF($N$3=4,"","")))) -> Chart available at STP and CCG level
B61: Meeting commitment to increase mental health funding | D61: ='Calc - Sparklines'!D60 -> 0
B62: MHF(i) | C62: CCG spend on MH as a % of CCG base allocations | D62: ='Calc - Sparklines'!D61 -> 2018/19 planned | E62: =IFERROR(IF('Calc - Sparklines'!T61="","",'Calc - Sparklines'!T61),"N/A") -> 0.1380493354 | F62: N/A | G62: N/A | H62: N/A | I62: N/A
B63: MHF(ii.a) | C63: Mental health actual spend in 2017/18 ^ | D63: ='Calc - Sparklines'!D62 -> 2017/18 | E63: =IFERROR(IF('Calc - Sparklines'!T62="","",'Calc - Sparklines'!T62),"N/A") -> 1.007962118e+10 | F63: N/A | G63: N/A | H63: N/A | I63: N/A
B64: MHF(ii.b) | C64: Mental health planned spend in 2018/19 ^ | D64: ='Calc - Sparklines'!D63 -> 2018/19 planned | E64: =IFERROR(IF('Calc - Sparklines'!T63="","",'Calc - Sparklines'!T63),"N/A") -> 1.028897723e+10 | F64: N/A | G64: N/A | H64: N/A | I64: N/A
B65: MHF(iii) | C65: MH investment standard achieved? ^^ | D65: ='Calc - Sparklines'!D64 -> 2018/19 planned | E65: =IFERROR(IF('Calc - Sparklines'!T64="","",'Calc - Sparklines'!T64),"N/A") -> Y | F65: N/A | G65: N/A | H65: N/A | I65: N/A
C68: Meeting commitment to increase mental health funding | D68: Local CCG spend on mental health (£m) | E68: NHSE Specialised Commissioning spend on mental health (£m) | F68: Total NHS spend on mental health (£m) | G68: CCG spend on MH as a % of CCG base allocations | H68: MH Investment Standard met?^^ | I68: No. CCGs meeting MHIS ^^ | J68: % CCGs meeting MHIS ^^
C69: Total actual spend - 2015/16 | D69: 9148.3 | E69: 1830.6 | F69: 10978.9 | G69: 0.131 | H69: Y | I69: 170 out of 209 | J69: 0.81
C70: Total actual spend - 2016/17 | D70: 9722.8 | E70: 1879.1 | F70: 11601.9 | G70: 0.136 | H70: Y | I70: 177 out of 209 | J70: 0.85
C71: Total actual spend - 2017/18 ^ | D71: 10079.6 | E71: =F71-D71 -> 1896.4 | F71: 11976 | G71: 0.137 | H71: Y | I71: 186 out of 207 | J71: 0.9
C72: Total planned spend - 2018/19 ^ | D72: 10289 | E72: 1865.9 | F72: =D72+E72 -> 12154.9 | G72: 0.138 | H72: Y | I72: 195 out of 195 | J72: 1
B74: ^ | C74: Over the course of 2018/19 there will be additional expenditure on projects that will be funded from additional resources that will be allocated throughout the year. This additional expenditure is not included in planned spend for 2018/19 because the additional allocations were not known to CCGs at this point, but the equivalent expenditure is included in the previous year’s figures. The total CCG spend nationally for 2017/18 was £9,914.4m excluding expenditure against the additional allocations made during the year. Nationally the planned increase in CCG spend on mental health between 2017/18 and 2018/19 on a like-for-like basis is 3.8% compared to a 3.0% increase in the national CCG allocation. Total mental health spend reported here includes spending on learning disabilities and dementia, which is not included in the MHIS or the baseline spend for the commitment in the NHS Long Term Plan to increase mental health spending by at least £2.3bn a year by 2023/24. In 2018/19 planned spend on learning disabilities and dementia was £1,963m.
B75: ^^ | C75: To calculate whether the MH investment standard will be met based on the planned spend figures for 2018/19, the 2017/18 actual spend figures used must be adjusted to exclude the expenditure against additional allocations made during the year. The MHIS calculation also does not include planned or actual spend on learning disabilities and dementia, which is included in the total mental health spend presented here. Specialised commissioning spend is not included in the mental health investment standard compliance calculation.
B76: * | C76: The indicators within this dashboard should be interpreted with caution, some data are experimental and improvements or decreases could be due to data quality fluctuations. Please see Metadata tab for further details.
B77: ** | C77: Where fewer than three time periods are available trendlines are not shown. This may apply to data that has only been collected for a short period, or where an individual organisation has data in some periods that are suppressed due to small numbers. If the most recent period is suppressed no trendline will be shown
B78: *** | C78: Not all indicators presented with spine charts have been standardised, so interpretation needs to be undertaken with caution. Please use the trend lines to add context.
B79: ⱡ | C79: Scrutiny of data on the number of CYP aged 0-18 receiving treatment by NHS commissioned services has highlighted anomalies (most notably significant under-reporting of CYP by non-NHS providers). A validation exercise where CCGs were asked to agree the MHSDS data or provide an alternative local value was carried out by NHS Digital and published in July 2018. The national access rate derived from this data is published here. See meta-data for more information.
B80: + | C80: Data at national and regional level is presented for the most recent quarter. Due to low numbers CCG and STP percentages are calculated using data from the last 12 months
B81: ++ | C81: Standard based on trajectory from Q4 2017/18 to Q4 2018/19 standard – see metadata for details
B82: ~ | C82: Data not available for the CCG, STP and regional structure (South East/South West regions) established in April 2018. New data will be available in the Q3 2018/19 dashboard
B83: # | C83: In addition the British Transport Police used a police station as a place of safety 10 times, once for a person under 18. It is not possible to determine from the data if these people were in England or Wales.
B84: ## | C84: No trend line is available for this indicator as data was excluded in 2017/18 due to an issue with the completeness of the data

Sheet Briefing tables (hidden)
B8: Code | C8: Indicator - Please see the Metadata tab for further details on the indicators | D8: Q1 2016/17 | E8: Q2 2016/17 | F8: Q3 2016/17 | G8: Q4 2016/17 | H8: Q1 2017/18 | I8: Change * | K8: Min | L8: Max | M8: Better is…
B9: Children and Young people (CYP) Mental Health
B10: CYP(i.c) | C10: Number of new CYP aged 0-18 receiving treatment from NHS funded community services ⱡ | D10: - | E10: 17902 | F10: 21921 | G10: 24825 | H10: 23924 | I10: =IF(H10>G10,"▲", IF(H10<G10,"▼","◄►")) -> ▼ | K10: =MIN(Data_Latest_CYP_i) -> 0 | L10: =MAX(Data_Latest_CYP_i) -> 0 | M10: ▲
B11: CYP(ii.a) | C11: % of CYP with eating disorders seen within 1 week (urgent) | D11: 0.6485355649 | E11: 0.5796460177 | F11: 0.6721854305 | G11: 0.686746988 | H11: 0.7330960854 | I11: ▲ | K11: =MIN(Data_Latest_CYP_ii_a) -> 0 | L11: =MAX(Data_Latest_CYP_ii_a) -> 1 | M11: ▲
B12: CYP(ii.b) | C12: % of CYP with eating disorders seen within 4 weeks (routine) | D12: 0.6513661202 | E12: 0.6748140276 | F12: 0.7896081772 | G12: 0.7886382623 | H12: 0.7874538745 | I12: ▼ | K12: =MIN(Data_Latest_CYP_ii_b) -> 0.2253521127 | L12: =MAX(Data_Latest_CYP_ii_b) -> 1 | M12: ▲
B13: CYP(iii.a) | C13: Number of bed days for CYP under 18 in CAMHS tier 4 wards | D13: 92380 | E13: 95378 | F13: 102567 | G13: 103421 | H13: 91791 | I13: ▼ | K13: =MIN(Data_Latest_CYP_iii_a) -> 20 | L13: =MAX(Data_Latest_CYP_iii_a) -> 2833 | M13: ▼
B14: CYP(iii.b) | C14: Number of admissions of CYP under 18 in CAMHS tier 4 wards | D14: 4117 | E14: 2967 | F14: 2434 | G14: 1348 | H14: 2612 | I14: ▲ | K14: =MIN(Data_Latest_CYP_iii_b) -> 5 | L14: =MAX(Data_Latest_CYP_iii_b) -> 31 | M14: ▼
B15: CYP(iv.a) | C15: Bed days of CYP under 18 in adult in-patient wards | D15: 1938 | E15: 2654 | F15: 2700 | G15: 321 | H15: 428 | I15: ▲ | K15: =MIN(Data_Latest_CYP_iv_a) -> 5 | L15: =MAX(Data_Latest_CYP_iv_a) -> 75 | M15: ▼
B16: CYP(iv.b) | C16: Number of CYP under 18 in adult in-patient wards | D16: 79 | E16: 90 | F16: 83 | G16: 42 | H16: 57 | I16: ▲ | K16: =MIN(Data_Latest_CYP_iv_b) -> 0 | L16: =MAX(Data_Latest_CYP_iv_b) -> 0 | M16: ▼
B17: Adult mental health: common mental health problems
B18: IAPT(i.a) | C18: IAPT access to treatment rate | D18: 0.04004039662 | E18: 0.03752950236 | F18: 0.03806242492 | G18: 0.04120502699 | H18: 0.04030370169 | I18: =IF(H18>G18,"▲", IF(H18<G18,"▼","◄►")) -> ▼ | K18: =MIN(Data_Latest_IAPT_i_a) -> 0.0230692371 | L18: =MAX(Data_Latest_IAPT_i_a) -> 0.07134363853 | M18: ▲
B19: IAPT(i.b) | C19: IAPT % of all referrals that are for older people 65+ | D19: 0.07051405173 | E19: 0.0758319296 | F19: 0.06790641312 | G19: 0.06844675613 | H19: 0.06786990036 | I19: ▼ | K19: =MIN(Data_Latest_IAPT_i_b) -> 0.0202020202 | L19: =MAX(Data_Latest_IAPT_i_b) -> 0.2033898305 | M19: ▲
B20: IAPT(ii.a) | C20: IAPT recovery rate: % of people that attended at least 2 treatment contacts and are moving to recovery | D20: 0.489 | E20: 0.485 | F20: 0.488 | G20: 0.51 | H20: 0.506 | I20: ▼ | K20: =MIN(Data_Latest_IAPT_ii_a) -> 0.32 | L20: =MAX(Data_Latest_IAPT_ii_a) -> 0.66 | M20: ▲
B21: IAPT(ii.b) | C21: IAPT recovery rate for black or minority ethnic (BME) groups | D21: 0.451 | E21: 0.45 | F21: 0.457 | G21: 0.47 | H21: 0.468 | I21: ▼ | K21: =MIN(Data_Latest_IAPT_ii_b) -> 0.22 | L21: =MAX(Data_Latest_IAPT_ii_b) -> 0.75 | M21: ▲
B22: IAPT(iii.a) | C22: IAPT: % of people receiving first treatment appointment within 6 weeks of referral | D22: 0.8456414993 | E22: 0.8672008928 | F22: 0.8864402442 | G22: 0.8964721093 | H22: 0.892 | I22: ▼ | K22: =MIN(Data_Latest_IAPT_iii_a) -> 0.43 | L22: =MAX(Data_Latest_IAPT_iii_a) -> 1 | M22: ▲
B23: IAPT(iii.b) | C23: IAPT: % of people receiving first treatment appointment within 18 weeks of referral | D23: 0.9726217678 | E23: 0.9800135797 | F23: 0.983957884 | G23: 1 | H23: 0.99 | I23: ▼ | K23: =MIN(Data_Latest_IAPT_iii_b) -> 0.87 | L23: =MAX(Data_Latest_IAPT_iii_b) -> 1 | M23: ▲
B24: Early intervention in psychosis (EIP)
B25: EIP(i) | C25: % of people who started treatment within 2 weeks of referral - All ages | D25: 0.6867061812 | E25: 0.7619843924 | F25: 0.7625737567 | G25: 0.7659084365 | H25: 0.7619793298 | I25: =IF(H25>G25,"▲", IF(H25<G25,"▼","◄►")) -> ▼ | K25: =MIN(Data_Latest_EIP_i) -> 0 | L25: =MAX(Data_Latest_EIP_i) -> 1 | M25: ▲
B26: Suicide prevention
B27: SP(ii.a) | C27: Hospital admissions for self-harm: age standardised rate per 100,000 - Age: 10-24 | D27: 107.5188639 | E27: 89.94124719 | F27: 89.30476313 | G27: 105.7517192 | H27: 112.4575234 | I27: =IF(H27>G27,"▲", IF(H27<G27,"▼","◄►")) -> ▲ | K27: =MIN(Data_Latest_SP_ii_a) -> 20.63133786 | L27: =MAX(Data_Latest_SP_ii_a) -> 239.6572387 | M27: ▼
B28: SP(ii.b) | C28: Hospital admissions for self-harm: age standardised rate per 100,000 - Age:25+ | D28: 41.02023713 | E28: 39.91281021 | F28: 35.21954812 | G28: 34.45998154 | H28: 39.87991401 | I28: =IF(H28>G28,"▲", IF(H28<G28,"▼","◄►")) -> ▲ | K28: =MIN(Data_Latest_SP_ii_b) -> 9.889091419 | L28: =MAX(Data_Latest_SP_ii_b) -> 99.75787584 | M28: ▼
B29: SP(iii) | C29: % of patients on CPA discharged from hospital and followed up within 7 days | D29: 0.9620300056 | E29: 0.9679459887 | F29: 0.9676164977 | G29: 0.9684847004 | H29: 0.9665282189 | I29: =IF(H29>G29,"▲", IF(H29<G29,"▼","◄►")) -> ▼ | K29: =MIN(Data_Latest_SP_iii) -> 0.7684210526 | L29: =MAX(Data_Latest_SP_iii) -> 1 | M29: ▲
B30: Crisis and acute care and use of the mental health act (MHA)
B31: CR(iii.a) | C31: Total number of bed nights for Out of Area Placements (OAPs) | D31: - | E31: - | F31: - | G31: - | H31: 67550 | K31: =MIN(Data_latest_CR_iii_a) -> 0 | L31: =MAX(Data_latest_CR_iii_a) -> 3630 | M31: ▼
B32: CR(iii.b) | C32: Total number of Out of Area Placements (OAPs) | D32: - | E32: - | F32: - | G32: - | H32: 833 | K32: =MIN(Data_latest_CR_iii_b) -> 0 | L32: =MAX(Data_latest_CR_iii_b) -> 3630 | M32: ▼
B33: CR(iii.c) | C33: Total costs for Out of Area Placements (OAPs - external placements only) | D33: - | E33: - | F33: - | G33: - | H33: 25163100 | K33: =MIN(Data_latest_CR_iii_c) -> 0 | L33: =MAX(Data_latest_CR_iii_c) -> 1901921 | M33: ▼
B34: CR(iv.a) | C34: Number of detentions under the Mental Health Act | D34: - | E34: - | F34: - | G34: - | H34: 45864 | K34: =MIN(Data_Latest_CR_iv_a) ->  | L34: =MAX(Data_Latest_CR_iv_a) ->  | M34: ▼
B35: CR(iv.b) | C35: % of people detained under the MHA who are BME | D35: - | E35: - | F35: - | G35: - | H35: 0.3 | K35: =MIN(Data_Latest_CR_iv_b) ->  | L35: =MAX(Data_Latest_CR_iv_b) ->  | M35: N/A
B36: Health & Justice
B37: HJ(i) | C37: Number of mental health secure transfers within 2 weeks of acceptance under the MHA- Age:18+ | D37: 90 | E37: 89 | F37: 108 | G37: 83 | H37: 73 | I37: =IF(H37>G37,"▲", IF(H37<G37,"▼","◄►")) -> ▼ | K37: =MIN(Data_Latest_HJ_i) ->  | L37: =MAX(Data_Latest_HJ_i) ->  | M37: N/A
B38: HJ(ii.a) | C38: % of mental health patients receiving group therapy in secure and detained settings - Age:18+ | H38: 0.03176944615 | I38: =IF(H38>G38,"▲", IF(H38<G38,"▼","◄►")) -> ▲ | K38: =MIN(Data_Latest_HJ_ii_a) ->  | L38: =MAX(Data_Latest_HJ_ii_a) ->  | M38: ▲
B39: HJ(ii.b) | C39: % of mental patients receiving individual therapy in secure and detained settings - Age:18+ | D39: 0.3186717157 | E39: 0.3521471192 | F39: 0.363717605 | G39: 0.400315831 | H39: 0.7617757782 | I39: =IF(H39>G39,"▲", IF(H39<G39,"▼","◄►")) -> ▲ | K39: =MIN(Data_Latest_HJ_ii_b) ->  | L39: =MAX(Data_Latest_HJ_ii_b) ->  | M39: ▲
B41: Acute hospital (UEC) liaison | D41: 2015/16
B42: AC(i) | C42: % of acute hospitals meeting the ‘core 24’ service standard (criteria a, b and c below) | D42: 0.1016949153 | K42: =MIN(Data_Latest_AC_i) ->  | L42: =MAX(Data_Latest_AC_i) ->  | M42: ▲
B44: Crisis and acute care and use of the mental health act (MHA) | D44: 2016/17
B45: CR(i) | C45: % of CRHT services in the STP area able to meet selected core functions | D45: 0.2368421053 | K45: =MIN(Data_Latest_CR_i) ->  | L45: =MAX(Data_Latest_CR_i) ->  | M45: ▲
B47: Health & Justice | D47: 2015/16 | E47: 2016/17
B48: HJ(iii) | C48: % of population with access to liaison and diversion services - All ages | D48: 0.22 | E48: 0.68 | I48: =IF(E48>D48,"▲", IF(E48<D48,"▼","◄►")) -> ▲ | K48: =MIN(Data_Latest_HJ_iii) ->  | L48: =MAX(Data_Latest_HJ_iii) ->  | M48: ▲
B50: Crisis and acute care and use of the mental health act (MHA) | D50: 2013/14 | E50: 2014/15 | F50: 2015/16 | G50: 2016/17
B51: CR(v.a) | C51: Number of section 136 detentions taken to police cells as a place of safety | D51: - | E51: 3996 | F51: 1764 | G51: 898 | I51: =IF(F51>E51,"▲", IF(F51<E51,"▼","◄►")) -> ▼ | K51: =MIN(Data_Latest_CR_v_a) ->  | L51: =MAX(Data_Latest_CR_v_a) ->  | M51: ▼
B52: CR(v.b) | C52: Number of these that are under 18 | D52: 236 | E52: 145 | F52: 35 | G52: 20 | I52: =IF(F52>E52,"▲", IF(F52<E52,"▼","◄►")) -> ▼ | K52: =MIN(Data_Latest_CR_v_b) ->  | L52: =MAX(Data_Latest_CR_v_b) ->  | M52: ▼
B54: Meeting commitment to increase mental health funding | D54: 2015/16 | E54: 2016/17 | F54: 2017/18
B55: MHF(i) | C55: Mental health planned spend as a % of overall CCG allocation | D55: 0.1252598265 | E55: 0.1266054465 | F55: 0.136953073 | I55: =IF(F55>E55,"▲", IF(F55<E55,"▼","◄►")) -> ▲ | K55: =MIN(Data_Latest_MHF_i) -> 0.08084887247 | L55: =MAX(Data_Latest_MHF_i) -> 0.2093182823 | M55: N/A
B56: MHF(ii.a) | C56: Mental health forecast outturn (£k) | D56: 9148313.818 | E56: 9722830.54 | F56: 9921159.67 | I56: =IF(F56>E56,"▲", IF(F56<E56,"▼","◄►")) -> ▲ | K56: =MIN(Data_Latest_MHF_ii) ->  | L56: =MAX(Data_Latest_MHF_ii) ->  | M56: N/A
B57: MHF(ii.b) | C57: Mental health planned spend (£k) | D57: - | E57: 9722830.54 | F57: 9907754.679 | I57: =IF(F57>E57,"▲", IF(F57<E57,"▼","◄►")) -> ▲ | K57: =MIN(Data_Latest_MHF_ii_b) -> 11975921 | L57: =MAX(Data_Latest_MHF_ii_b) -> 263884000 | M57: N/A
B58: MHF(iii) | C58: Mental Health Investment Standard achieved? | D58: - | E58: Y | F58: Y | M58: N/A
B59: MHF(iv) | C59: Mental Health Spec Comm planned spend (£k) | D59: - | E59: - | F59: - | K59: =MIN(Data_Latest_MHF_iv) ->  | L59: =MAX(Data_Latest_MHF_iv) ->  | M59: N/A
B61: Suicide prevention | D61: 2011-2013 | E61: 2012-2014 | F61: 2013-2015
B62: SP(i) | C62: Suicide: age-standardised death rate per 100,000 population - Age:10+ | D62: 9.8 | E62: 10 | F62: 10.1 | I62: =IF(F62>E62,"▲", IF(F62<E62,"▼","◄►")) -> ▲ | K62: =MIN(Data_Latest_SP_i) -> 5.690211546 | L62: =MAX(Data_Latest_SP_i) -> 17.92798208 | M62: ▼

Sheet Calc - Sparklines (hidden)
A1: Selected CCG | C1: =Selected_Org_Name -> England
A2: Selected Org Code | C2: =Selected_Org_Code -> EN | E2: =IFERROR(IF(ISNUMBER( INDEX(INDIRECT(#REF!), MATCH('Calc - Sparklines'!$C$1,INDIRECT(#REF!),0), MATCH('Calc - Sparklines'!#REF!,INDIRECT(#REF!),0)-11))=FALSE,NA(), INDEX(INDIRECT(#REF!), MATCH('Calc - Sparklines'!$C$1,INDIRECT(#REF!),0), MATCH('Calc - Sparklines'!#REF!,INDIRECT(#REF!),0)-11)),NA()) ->  | F2: =ISNUMBER(#REF!) -> FALSE | G2: =ISNUMBER(#REF!) -> FALSE | H2: =ISNUMBER(#REF!) -> FALSE | I2: =ISNUMBER(#REF!) -> FALSE | J2: =ISNUMBER(#REF!) -> FALSE | K2: =ISNUMBER(#REF!) -> FALSE | L2: =ISNUMBER(#REF!) -> FALSE | M2: =ISNUMBER(#REF!) -> FALSE | N2: =ISNUMBER(#REF!) -> FALSE | O2: =ISNUMBER(#REF!) -> FALSE
E3: 11 | F3: 10 | G3: 9 | H3: 8 | I3: 7 | J3: 6 | K3: 5 | L3: 4 | M3: 3 | N3: 2 | O3: 1 | P3: 0
Q6: p | R6: p
I7: =OFFSET('Calc - Sparklines'!$P$16,,-'Calc - Sparklines'!$S$16,,-'Calc - Sparklines'!$R$16) -> 
C10: Indicator | D10: Latest Period | E10: Period 1 | F10: Period 2 | G10: Period 3 | H10: Period 4 | I10: Period 5 | J10: Period 6 | K10: Period 7 | L10: Period 8 | M10: Period 9 | N10: Period 10 | O10: Period 11 | P10: Period 12 | R10: Available data points | S10: Periods out of date | T10: Latest value | U10: Previous Value | V10: Change | W10: Sparkline Named range | X10: Include sparkline? | Z10: Data Range | AA10: Organisation Range | AB10: Period Range
A11: Perinatal Mental Health | B11: Perinatal Mental Health | D11: =#REF! ->  | E11: =IFERROR(IF(ISNUMBER( INDEX(INDIRECT($Z11), MATCH('Calc - Sparklines'!$C$1,INDIRECT($AA11),0), MATCH('Calc - Sparklines'!$D11,INDIRECT($AB11),0)-E$3))=FALSE,NA(), INDEX(INDIRECT($Z11), MATCH('Calc - Sparklines'!$C$1,INDIRECT($AA11),0), MATCH('Calc - Sparklines'!$D11,INDIRECT($AB11),0)-E$3)),NA()) ->  | F11: =IFERROR(IF(ISNUMBER( INDEX(INDIRECT($Z11), MATCH('Calc - Sparklines'!$C$1,INDIRECT($AA11),0), MATCH('Calc - Sparklines'!$D11,INDIRECT($AB11),0)-F$3))=FALSE,NA(), INDEX(INDIRECT($Z11), MATCH('Calc - Sparklines'!$C$1,INDIRECT($AA11),0), MATCH('Calc - Sparklines'!$D11,INDIRECT($AB11),0)-F$3)),NA()) ->  | G11: =IFERROR(IF(ISNUMBER( INDEX(INDIRECT($Z11), MATCH('Calc - Sparklines'!$C$1,INDIRECT($AA11),0), MATCH('Calc - Sparklines'!$D11,INDIRECT($AB11),0)-G$3))=FALSE,NA(), INDEX(INDIRECT($Z11), MATCH('Calc - Sparklines'!$C$1,INDIRECT($AA11),0), MATCH('Calc - Sparklines'!$D11,INDIRECT($AB11),0)-G$3)),NA()) ->  | H11: =IFERROR(IF(ISNUMBER( INDEX(INDIRECT($Z11), MATCH('Calc - Sparklines'!$C$1,INDIRECT($AA11),0), MATCH('Calc - Sparklines'!$D11,INDIRECT($AB11),0)-H$3))=FALSE,NA(), INDEX(INDIRECT($Z11), MATCH('Calc - Sparklines'!$C$1,INDIRECT($AA11),0), MATCH('Calc - Sparklines'!$D11,INDIRECT($AB11),0)-H$3)),NA()) ->  | I11: =IFERROR(IF(ISNUMBER( INDEX(INDIRECT($Z11), MATCH('Calc - Sparklines'!$C$1,INDIRECT($AA11),0), MATCH('Calc - Sparklines'!$D11,INDIRECT($AB11),0)-I$3))=FALSE,NA(), INDEX(INDIRECT($Z11), MATCH('Calc - Sparklines'!$C$1,INDIRECT($AA11),0), MATCH('Calc - Sparklines'!$D11,INDIRECT($AB11),0)-I$3)),NA()) ->  | J11: =IFERROR(IF(ISNUMBER( INDEX(INDIRECT($Z11), MATCH('Calc - Sparklines'!$C$1,INDIRECT($AA11),0), MATCH('Calc - Sparklines'!$D11,INDIRECT($AB11),0)-J$3))=FALSE,NA(), INDEX(INDIRECT($Z11), MATCH('Calc - Sparklines'!$C$1,INDIRECT($AA11),0), MATCH('Calc - Sparklines'!$D11,INDIRECT($AB11),0)-J$3)),NA()) ->  | K11: =IFERROR(IF(ISNUMBER( INDEX(INDIRECT($Z11), MATCH('Calc - Sparklines'!$C$1,INDIRECT($AA11),0), MATCH('Calc - Sparklines'!$D11,INDIRECT($AB11),0)-K$3))=FALSE,NA(), INDEX(INDIRECT($Z11), MATCH('Calc - Sparklines'!$C$1,INDIRECT($AA11),0), MATCH('Calc - Sparklines'!$D11,INDIRECT($AB11),0)-K$3)),NA()) ->  | L11: =IFERROR(IF(ISNUMBER( INDEX(INDIRECT($Z11), MATCH('Calc - Sparklines'!$C$1,INDIRECT($AA11),0), MATCH('Calc - Sparklines'!$D11,INDIRECT($AB11),0)-L$3))=FALSE,NA(), INDEX(INDIRECT($Z11), MATCH('Calc - Sparklines'!$C$1,INDIRECT($AA11),0), MATCH('Calc - Sparklines'!$D11,INDIRECT($AB11),0)-L$3)),NA()) ->  | M11: =IFERROR(IF(ISNUMBER( INDEX(INDIRECT($Z11), MATCH('Calc - Sparklines'!$C$1,INDIRECT($AA11),0), MATCH('Calc - Sparklines'!$D11,INDIRECT($AB11),0)-M$3))=FALSE,NA(), INDEX(INDIRECT($Z11), MATCH('Calc - Sparklines'!$C$1,INDIRECT($AA11),0), MATCH('Calc - Sparklines'!$D11,INDIRECT($AB11),0)-M$3)),NA()) ->  | N11: =IFERROR(IF(ISNUMBER( INDEX(INDIRECT($Z11), MATCH('Calc - Sparklines'!$C$1,INDIRECT($AA11),0), MATCH('Calc - Sparklines'!$D11,INDIRECT($AB11),0)-N$3))=FALSE,NA(), INDEX(INDIRECT($Z11), MATCH('Calc - Sparklines'!$C$1,INDIRECT($AA11),0), MATCH('Calc - Sparklines'!$D11,INDIRECT($AB11),0)-N$3)),NA()) ->  | O11: =IFERROR(IF(ISNUMBER( INDEX(INDIRECT($Z11), MATCH('Calc - Sparklines'!$C$1,INDIRECT($AA11),0), MATCH('Calc - Sparklines'!$D11,INDIRECT($AB11),0)-O$3))=FALSE,NA(), INDEX(INDIRECT($Z11), MATCH('Calc - Sparklines'!$C$1,INDIRECT($AA11),0), MATCH('Calc - Sparklines'!$D11,INDIRECT($AB11),0)-O$3)),NA()) ->  | P11: =IFERROR(IF(ISNUMBER( INDEX(INDIRECT($Z11), MATCH('Calc - Sparklines'!$C$1,INDIRECT($AA11),0), MATCH('Calc - Sparklines'!$D11,INDIRECT($AB11),0)-P$3))=FALSE,NA(), INDEX(INDIRECT($Z11), MATCH('Calc - Sparklines'!$C$1,INDIRECT($AA11),0), MATCH('Calc - Sparklines'!$D11,INDIRECT($AB11),0)-P$3)),NA()) ->  | S11: =IF(P11="N/A",IF(O11="N/A",2,1),0) ->  | T11: =OFFSET(P11,,-S11) ->  | U11: =IF(ISERROR(O11),IF(ISERROR(N11),IF(ISERROR(M11),IF(ISERROR(L11),IF(ISERROR(K11),IF(ISERROR(J11),IF(ISERROR(I11),IF(ISERROR(H11),IF(ISERROR(G11),IF(ISERROR(F11),IF(ISERROR(E11), NA(), E11),F11),G11),H11),I11),J11),K11),L11),M11),N11),O11) ->  | V11: =IF(D11="","",IFERROR(IF(T11>U11,"▲", IF(T11<U11,"▼","◄►")),"N/A")) ->  | X11: =IF(ISNA(T11),"N/A",IF(R11<=2,"N/A","")) -> N/A | AD11: Heading
B12: PMH(i) | C12: Additional number of women receiving specialist perinatal care compared to baseline | E12: =IFERROR(IF(ISNUMBER( INDEX(INDIRECT($Z12), MATCH('Calc - Sparklines'!$C$1,INDIRECT($AA12),0), MATCH('Calc - Sparklines'!$D12,INDIRECT($AB12),0)-E$3))=FALSE,NA(), INDEX(INDIRECT($Z12), MATCH('Calc - Sparklines'!$C$1,INDIRECT($AA12),0), MATCH('Calc - Sparklines'!$D12,INDIRECT($AB12),0)-E$3)),NA()) ->  | F12: =IFERROR(IF(ISNUMBER( INDEX(INDIRECT($Z12), MATCH('Calc - Sparklines'!$C$1,INDIRECT($AA12),0), MATCH('Calc - Sparklines'!$D12,INDIRECT($AB12),0)-F$3))=FALSE,NA(), INDEX(INDIRECT($Z12), MATCH('Calc - Sparklines'!$C$1,INDIRECT($AA12),0), MATCH('Calc - Sparklines'!$D12,INDIRECT($AB12),0)-F$3)),NA()) ->  | G12: =IFERROR(IF(ISNUMBER( INDEX(INDIRECT($Z12), MATCH('Calc - Sparklines'!$C$1,INDIRECT($AA12),0), MATCH('Calc - Sparklines'!$D12,INDIRECT($AB12),0)-G$3))=FALSE,NA(), INDEX(INDIRECT($Z12), MATCH('Calc - Sparklines'!$C$1,INDIRECT($AA12),0), MATCH('Calc - Sparklines'!$D12,INDIRECT($AB12),0)-G$3)),NA()) ->  | H12: =IFERROR(IF(ISNUMBER( INDEX(INDIRECT($Z12), MATCH('Calc - Sparklines'!$C$1,INDIRECT($AA12),0), MATCH('Calc - Sparklines'!$D12,INDIRECT($AB12),0)-H$3))=FALSE,NA(), INDEX(INDIRECT($Z12), MATCH('Calc - Sparklines'!$C$1,INDIRECT($AA12),0), MATCH('Calc - Sparklines'!$D12,INDIRECT($AB12),0)-H$3)),NA()) ->  | I12: =IFERROR(IF(ISNUMBER( INDEX(INDIRECT($Z12), MATCH('Calc - Sparklines'!$C$1,INDIRECT($AA12),0), MATCH('Calc - Sparklines'!$D12,INDIRECT($AB12),0)-I$3))=FALSE,NA(), INDEX(INDIRECT($Z12), MATCH('Calc - Sparklines'!$C$1,INDIRECT($AA12),0), MATCH('Calc - Sparklines'!$D12,INDIRECT($AB12),0)-I$3)),NA()) ->  | J12: =IFERROR(IF(ISNUMBER( INDEX(INDIRECT($Z12), MATCH('Calc - Sparklines'!$C$1,INDIRECT($AA12),0), MATCH('Calc - Sparklines'!$D12,INDIRECT($AB12),0)-J$3))=FALSE,NA(), INDEX(INDIRECT($Z12), MATCH('Calc - Sparklines'!$C$1,INDIRECT($AA12),0), MATCH('Calc - Sparklines'!$D12,INDIRECT($AB12),0)-J$3)),NA()) ->  | K12: =IFERROR(IF(ISNUMBER( INDEX(INDIRECT($Z12), MATCH('Calc - Sparklines'!$C$1,INDIRECT($AA12),0), MATCH('Calc - Sparklines'!$D12,INDIRECT($AB12),0)-K$3))=FALSE,NA(), INDEX(INDIRECT($Z12), MATCH('Calc - Sparklines'!$C$1,INDIRECT($AA12),0), MATCH('Calc - Sparklines'!$D12,INDIRECT($AB12),0)-K$3)),NA()) ->  | L12: =IFERROR(IF(ISNUMBER( INDEX(INDIRECT($Z12), MATCH('Calc - Sparklines'!$C$1,INDIRECT($AA12),0), MATCH('Calc - Sparklines'!$D12,INDIRECT($AB12),0)-L$3))=FALSE,NA(), INDEX(INDIRECT($Z12), MATCH('Calc - Sparklines'!$C$1,INDIRECT($AA12),0), MATCH('Calc - Sparklines'!$D12,INDIRECT($AB12),0)-L$3)),NA()) ->  | M12: =IFERROR(IF(ISNUMBER( INDEX(INDIRECT($Z12), MATCH('Calc - Sparklines'!$C$1,INDIRECT($AA12),0), MATCH('Calc - Sparklines'!$D12,INDIRECT($AB12),0)-M$3))=FALSE,NA(), INDEX(INDIRECT($Z12), MATCH('Calc - Sparklines'!$C$1,INDIRECT($AA12),0), MATCH('Calc - Sparklines'!$D12,INDIRECT($AB12),0)-M$3)),NA()) ->  | N12: =IFERROR(IF(ISNUMBER( INDEX(INDIRECT($Z12), MATCH('Calc - Sparklines'!$C$1,INDIRECT($AA12),0), MATCH('Calc - Sparklines'!$D12,INDIRECT($AB12),0)-N$3))=FALSE,NA(), INDEX(INDIRECT($Z12), MATCH('Calc - Sparklines'!$C$1,INDIRECT($AA12),0), MATCH('Calc - Sparklines'!$D12,INDIRECT($AB12),0)-N$3)),NA()) ->  | O12: =IFERROR(IF(ISNUMBER( INDEX(INDIRECT($Z12), MATCH('Calc - Sparklines'!$C$1,INDIRECT($AA12),0), MATCH('Calc - Sparklines'!$D12,INDIRECT($AB12),0)-O$3))=FALSE,NA(), INDEX(INDIRECT($Z12), MATCH('Calc - Sparklines'!$C$1,INDIRECT($AA12),0), MATCH('Calc - Sparklines'!$D12,INDIRECT($AB12),0)-O$3)),NA()) ->  | P12: =IFERROR(IF(ISNUMBER( INDEX(INDIRECT($Z12), MATCH('Calc - Sparklines'!$C$1,INDIRECT($AA12),0), MATCH('Calc - Sparklines'!$D12,INDIRECT($AB12),0)-P$3))=FALSE,NA(), INDEX(INDIRECT($Z12), MATCH('Calc - Sparklines'!$C$1,INDIRECT($AA12),0), MATCH('Calc - Sparklines'!$D12,INDIRECT($AB12),0)-P$3)),NA()) ->  | R12: =IF(COUNTA(K12:P12)-COUNTIF(K12:P12,"#N/A")<3, 0, COUNTA(K12:P12)) -> 0 | S12: =IF(P12="N/A",IF(O12="N/A",2,1),0) ->  | T12: =OFFSET(P12,,-S12) ->  | W12: Sparkline01 | X12: =IF(ISNA(T12),"N/A",IF(R12<=2,"N/A","")) -> N/A | AD12: Placeholder | AE12: Placeholder
A13: Children and Young people Mental Health | B13: Children and Young people Mental Health | E13: =IFERROR(IF(ISNUMBER( INDEX(INDIRECT($Z13), MATCH('Calc - Sparklines'!$C$1,INDIRECT($AA13),0), MATCH('Calc - Sparklines'!$D13,INDIRECT($AB13),0)-E$3))=FALSE,NA(), INDEX(INDIRECT($Z13), MATCH('Calc - Sparklines'!$C$1,INDIRECT($AA13),0), MATCH('Calc - Sparklines'!$D13,INDIRECT($AB13),0)-E$3)),NA()) ->  | F13: =IFERROR(IF(ISNUMBER( INDEX(INDIRECT($Z13), MATCH('Calc - Sparklines'!$C$1,INDIRECT($AA13),0), MATCH('Calc - Sparklines'!$D13,INDIRECT($AB13),0)-F$3))=FALSE,NA(), INDEX(INDIRECT($Z13), MATCH('Calc - Sparklines'!$C$1,INDIRECT($AA13),0), MATCH('Calc - Sparklines'!$D13,INDIRECT($AB13),0)-F$3)),NA()) ->  | G13: =IFERROR(IF(ISNUMBER( INDEX(INDIRECT($Z13), MATCH('Calc - Sparklines'!$C$1,INDIRECT($AA13),0), MATCH('Calc - Sparklines'!$D13,INDIRECT($AB13),0)-G$3))=FALSE,NA(), INDEX(INDIRECT($Z13), MATCH('Calc - Sparklines'!$C$1,INDIRECT($AA13),0), MATCH('Calc - Sparklines'!$D13,INDIRECT($AB13),0)-G$3)),NA()) ->  | H13: =IFERROR(IF(ISNUMBER( INDEX(INDIRECT($Z13), MATCH('Calc - Sparklines'!$C$1,INDIRECT($AA13),0), MATCH('Calc - Sparklines'!$D13,INDIRECT($AB13),0)-H$3))=FALSE,NA(), INDEX(INDIRECT($Z13), MATCH('Calc - Sparklines'!$C$1,INDIRECT($AA13),0), MATCH('Calc - Sparklines'!$D13,INDIRECT($AB13),0)-H$3)),NA()) ->  | I13: =IFERROR(IF(ISNUMBER( INDEX(INDIRECT($Z13), MATCH('Calc - Sparklines'!$C$1,INDIRECT($AA13),0), MATCH('Calc - Sparklines'!$D13,INDIRECT($AB13),0)-I$3))=FALSE,NA(), INDEX(INDIRECT($Z13), MATCH('Calc - Sparklines'!$C$1,INDIRECT($AA13),0), MATCH('Calc - Sparklines'!$D13,INDIRECT($AB13),0)-I$3)),NA()) ->  | J13: =IFERROR(IF(ISNUMBER( INDEX(INDIRECT($Z13), MATCH('Calc - Sparklines'!$C$1,INDIRECT($AA13),0), MATCH('Calc - Sparklines'!$D13,INDIRECT($AB13),0)-J$3))=FALSE,NA(), INDEX(INDIRECT($Z13), MATCH('Calc - Sparklines'!$C$1,INDIRECT($AA13),0), MATCH('Calc - Sparklines'!$D13,INDIRECT($AB13),0)-J$3)),NA()) ->  | K13: =IFERROR(IF(ISNUMBER( INDEX(INDIRECT($Z13), MATCH('Calc - Sparklines'!$C$1,INDIRECT($AA13),0), MATCH('Calc - Sparklines'!$D13,INDIRECT($AB13),0)-K$3))=FALSE,NA(), INDEX(INDIRECT($Z13), MATCH('Calc - Sparklines'!$C$1,INDIRECT($AA13),0), MATCH('Calc - Sparklines'!$D13,INDIRECT($AB13),0)-K$3)),NA()) ->  | L13: =IFERROR(IF(ISNUMBER( INDEX(INDIRECT($Z13), MATCH('Calc - Sparklines'!$C$1,INDIRECT($AA13),0), MATCH('Calc - Sparklines'!$D13,INDIRECT($AB13),0)-L$3))=FALSE,NA(), INDEX(INDIRECT($Z13), MATCH('Calc - Sparklines'!$C$1,INDIRECT($AA13),0), MATCH('Calc - Sparklines'!$D13,INDIRECT($AB13),0)-L$3)),NA()) ->  | M13: =IFERROR(IF(ISNUMBER( INDEX(INDIRECT($Z13), MATCH('Calc - Sparklines'!$C$1,INDIRECT($AA13),0), MATCH('Calc - Sparklines'!$D13,INDIRECT($AB13),0)-M$3))=FALSE,NA(), INDEX(INDIRECT($Z13), MATCH('Calc - Sparklines'!$C$1,INDIRECT($AA13),0), MATCH('Calc - Sparklines'!$D13,INDIRECT($AB13),0)-M$3)),NA()) ->  | N13: =IFERROR(IF(ISNUMBER( INDEX(INDIRECT($Z13), MATCH('Calc - Sparklines'!$C$1,INDIRECT($AA13),0), MATCH('Calc - Sparklines'!$D13,INDIRECT($AB13),0)-N$3))=FALSE,NA(), INDEX(INDIRECT($Z13), MATCH('Calc - Sparklines'!$C$1,INDIRECT($AA13),0), MATCH('Calc - Sparklines'!$D13,INDIRECT($AB13),0)-N$3)),NA()) ->  | O13: =IFERROR(IF(ISNUMBER( INDEX(INDIRECT($Z13), MATCH('Calc - Sparklines'!$C$1,INDIRECT($AA13),0), MATCH('Calc - Sparklines'!$D13,INDIRECT($AB13),0)-O$3))=FALSE,NA(), INDEX(INDIRECT($Z13), MATCH('Calc - Sparklines'!$C$1,INDIRECT($AA13),0), MATCH('Calc - Sparklines'!$D13,INDIRECT($AB13),0)-O$3)),NA()) ->  | P13: =IFERROR(IF(ISNUMBER( INDEX(INDIRECT($Z13), MATCH('Calc - Sparklines'!$C$1,INDIRECT($AA13),0), MATCH('Calc - Sparklines'!$D13,INDIRECT($AB13),0)-P$3))=FALSE,NA(), INDEX(INDIRECT($Z13), MATCH('Calc - Sparklines'!$C$1,INDIRECT($AA13),0), MATCH('Calc - Sparklines'!$D13,INDIRECT($AB13),0)-P$3)),NA()) ->  | R13: =IF(COUNTA(K13:P13)-COUNTIF(K13:P13,"#N/A")<3, 0, COUNTA(K13:P13)) -> 0 | X13: N/A | AD13: Heading
A14: CYP_i | B14: CYP(i) | C14: Number of new CYP aged 0-18 receiving treatment from NHS funded community services | D14: ='CYP(i)_FINAL CALC'!B6 -> 2017/18 | E14: =IFERROR(IF(ISNUMBER( INDEX(INDIRECT($Z14), MATCH('Calc - Sparklines'!$C$1,INDIRECT($AA14),0), MATCH('Calc - Sparklines'!$D14,INDIRECT($AB14),0)-E$3))=FALSE,NA(), INDEX(INDIRECT($Z14), MATCH('Calc - Sparklines'!$C$1,INDIRECT($AA14),0), MATCH('Calc - Sparklines'!$D14,INDIRECT($AB14),0)-E$3)),NA()) ->  | F14: =IFERROR(IF(ISNUMBER( INDEX(INDIRECT($Z14), MATCH('Calc - Sparklines'!$C$1,INDIRECT($AA14),0), MATCH('Calc - Sparklines'!$D14,INDIRECT($AB14),0)-F$3))=FALSE,NA(), INDEX(INDIRECT($Z14), MATCH('Calc - Sparklines'!$C$1,INDIRECT($AA14),0), MATCH('Calc - Sparklines'!$D14,INDIRECT($AB14),0)-F$3)),NA()) ->  | G14: =IFERROR(IF(ISNUMBER( INDEX(INDIRECT($Z14), MATCH('Calc - Sparklines'!$C$1,INDIRECT($AA14),0), MATCH('Calc - Sparklines'!$D14,INDIRECT($AB14),0)-G$3))=FALSE,NA(), INDEX(INDIRECT($Z14), MATCH('Calc - Sparklines'!$C$1,INDIRECT($AA14),0), MATCH('Calc - Sparklines'!$D14,INDIRECT($AB14),0)-G$3)),NA()) ->  | H14: =IFERROR(IF(ISNUMBER( INDEX(INDIRECT($Z14), MATCH('Calc - Sparklines'!$C$1,INDIRECT($AA14),0), MATCH('Calc - Sparklines'!$D14,INDIRECT($AB14),0)-H$3))=FALSE,NA(), INDEX(INDIRECT($Z14), MATCH('Calc - Sparklines'!$C$1,INDIRECT($AA14),0), MATCH('Calc - Sparklines'!$D14,INDIRECT($AB14),0)-H$3)),NA()) ->  | I14: =IFERROR(IF(ISNUMBER( INDEX(INDIRECT($Z14), MATCH('Calc - Sparklines'!$C$1,INDIRECT($AA14),0), MATCH('Calc - Sparklines'!$D14,INDIRECT($AB14),0)-I$3))=FALSE,NA(), INDEX(INDIRECT($Z14), MATCH('Calc - Sparklines'!$C$1,INDIRECT($AA14),0), MATCH('Calc - Sparklines'!$D14,INDIRECT($AB14),0)-I$3)),NA()) ->  | J14: =IFERROR(IF(ISNUMBER( INDEX(INDIRECT($Z14), MATCH('Calc - Sparklines'!$C$1,INDIRECT($AA14),0), MATCH('Calc - Sparklines'!$D14,INDIRECT($AB14),0)-J$3))=FALSE,NA(), INDEX(INDIRECT($Z14), MATCH('Calc - Sparklines'!$C$1,INDIRECT($AA14),0), MATCH('Calc - Sparklines'!$D14,INDIRECT($AB14),0)-J$3)),NA()) -> 41568 | K14: =IFERROR(IF(ISNUMBER( INDEX(INDIRECT($Z14), MATCH('Calc - Sparklines'!$C$1,INDIRECT($AA14),0), MATCH('Calc - Sparklines'!$D14,INDIRECT($AB14),0)-K$3))=FALSE,NA(), INDEX(INDIRECT($Z14), MATCH('Calc - Sparklines'!$C$1,INDIRECT($AA14),0), MATCH('Calc - Sparklines'!$D14,INDIRECT($AB14),0)-K$3)),NA()) -> 41356 | L14: =IFERROR(IF(ISNUMBER( INDEX(INDIRECT($Z14), MATCH('Calc - Sparklines'!$C$1,INDIRECT($AA14),0), MATCH('Calc - Sparklines'!$D14,INDIRECT($AB14),0)-L$3))=FALSE,NA(), INDEX(INDIRECT($Z14), MATCH('Calc - Sparklines'!$C$1,INDIRECT($AA14),0), MATCH('Calc - Sparklines'!$D14,INDIRECT($AB14),0)-L$3)),NA()) -> 42039 | M14: =IFERROR(IF(ISNUMBER( INDEX(INDIRECT($Z14), MATCH('Calc - Sparklines'!$C$1,INDIRECT($AA14),0), MATCH('Calc - Sparklines'!$D14,INDIRECT($AB14),0)-M$3))=FALSE,NA(), INDEX(INDIRECT($Z14), MATCH('Calc - Sparklines'!$C$1,INDIRECT($AA14),0), MATCH('Calc - Sparklines'!$D14,INDIRECT($AB14),0)-M$3)),NA()) -> 48988 | N14: =IFERROR(IF(ISNUMBER( INDEX(INDIRECT($Z14), MATCH('Calc - Sparklines'!$C$1,INDIRECT($AA14),0), MATCH('Calc - Sparklines'!$D14,INDIRECT($AB14),0)-N$3))=FALSE,NA(), INDEX(INDIRECT($Z14), MATCH('Calc - Sparklines'!$C$1,INDIRECT($AA14),0), MATCH('Calc - Sparklines'!$D14,INDIRECT($AB14),0)-N$3)),NA()) -> 0 | O14: =IFERROR(IF(ISNUMBER( INDEX(INDIRECT($Z14), MATCH('Calc - Sparklines'!$C$1,INDIRECT($AA14),0), MATCH('Calc - Sparklines'!$D14,INDIRECT($AB14),0)-O$3))=FALSE,NA(), INDEX(INDIRECT($Z14), MATCH('Calc - Sparklines'!$C$1,INDIRECT($AA14),0), MATCH('Calc - Sparklines'!$D14,INDIRECT($AB14),0)-O$3)),NA()) -> 0 | P14: =IFERROR(IF(ISNUMBER( INDEX(INDIRECT($Z14), MATCH('Calc - Sparklines'!$C$1,INDIRECT($AA14),0), MATCH('Calc - Sparklines'!$D14,INDIRECT($AB14),0)-P$3))=FALSE,NA(), INDEX(INDIRECT($Z14), MATCH('Calc - Sparklines'!$C$1,INDIRECT($AA14),0), MATCH('Calc - Sparklines'!$D14,INDIRECT($AB14),0)-P$3)),NA()) -> 0.3050977763 | R14: 6 | S14: 0 | T14: 0.3050977763 | U14: 0 | V14: =IF(D14="","",IFERROR(IF(T14>U14,"▲", IF(T14<U14,"▼","◄►")),"N/A")) -> ▲ | W14: Sparkline04 | X14: N/A | Z14: Data_Table_CYP_i | AA14: Data_Orgs_CYP_i | AB14: Data_Dates_CYP_i | AD14: National and regional measure only | AE14: National and regional measure only
A15: CYP_ii_a | B15: CYP(ii.a) | C15: % of CYP with eating disorders seen within 1 week (urgent) | D15: ='CYP(ii_a)_FINAL CALC'!B6 -> Q2 2018/19 | E15: =IFERROR(IF(ISNUMBER( INDEX(INDIRECT($Z15), MATCH('Calc - Sparklines'!$C$1,INDIRECT($AA15),0), MATCH('Calc - Sparklines'!$D15,INDIRECT($AB15),0)-E$3))=FALSE,NA(), INDEX(INDIRECT($Z15), MATCH('Calc - Sparklines'!$C$1,INDIRECT($AA15),0), MATCH('Calc - Sparklines'!$D15,INDIRECT($AB15),0)-E$3)),NA()) ->  | F15: =IFERROR(IF(ISNUMBER( INDEX(INDIRECT($Z15), MATCH('Calc - Sparklines'!$C$1,INDIRECT($AA15),0), MATCH('Calc - Sparklines'!$D15,INDIRECT($AB15),0)-F$3))=FALSE,NA(), INDEX(INDIRECT($Z15), MATCH('Calc - Sparklines'!$C$1,INDIRECT($AA15),0), MATCH('Calc - Sparklines'!$D15,INDIRECT($AB15),0)-F$3)),NA()) ->  | G15: =IFERROR(IF(ISNUMBER( INDEX(INDIRECT($Z15), MATCH('Calc - Sparklines'!$C$1,INDIRECT($AA15),0), MATCH('Calc - Sparklines'!$D15,INDIRECT($AB15),0)-G$3))=FALSE,NA(), INDEX(INDIRECT($Z15), MATCH('Calc - Sparklines'!$C$1,INDIRECT($AA15),0), MATCH('Calc - Sparklines'!$D15,INDIRECT($AB15),0)-G$3)),NA()) -> 0.6485355649 | H15: =IFERROR(IF(ISNUMBER( INDEX(INDIRECT($Z15), MATCH('Calc - Sparklines'!$C$1,INDIRECT($AA15),0), MATCH('Calc - Sparklines'!$D15,INDIRECT($AB15),0)-H$3))=FALSE,NA(), INDEX(INDIRECT($Z15), MATCH('Calc - Sparklines'!$C$1,INDIRECT($AA15),0), MATCH('Calc - Sparklines'!$D15,INDIRECT($AB15),0)-H$3)),NA()) -> 0.5796460177 | I15: =IFERROR(IF(ISNUMBER( INDEX(INDIRECT($Z15), MATCH('Calc - Sparklines'!$C$1,INDIRECT($AA15),0), MATCH('Calc - Sparklines'!$D15,INDIRECT($AB15),0)-I$3))=FALSE,NA(), INDEX(INDIRECT($Z15), MATCH('Calc - Sparklines'!$C$1,INDIRECT($AA15),0), MATCH('Calc - Sparklines'!$D15,INDIRECT($AB15),0)-I$3)),NA()) -> 0.6721854305 | J15: =IFERROR(IF(ISNUMBER( INDEX(INDIRECT($Z15), MATCH('Calc - Sparklines'!$C$1,INDIRECT($AA15),0), MATCH('Calc - Sparklines'!$D15,INDIRECT($AB15),0)-J$3))=FALSE,NA(), INDEX(INDIRECT($Z15), MATCH('Calc - Sparklines'!$C$1,INDIRECT($AA15),0), MATCH('Calc - Sparklines'!$D15,INDIRECT($AB15),0)-J$3)),NA()) -> 0.686746988 | K15: =IFERROR(IF(ISNUMBER( INDEX(INDIRECT($Z15), MATCH('Calc - Sparklines'!$C$1,INDIRECT($AA15),0), MATCH('Calc - Sparklines'!$D15,INDIRECT($AB15),0)-K$3))=FALSE,NA(), INDEX(INDIRECT($Z15), MATCH('Calc - Sparklines'!$C$1,INDIRECT($AA15),0), MATCH('Calc - Sparklines'!$D15,INDIRECT($AB15),0)-K$3)),NA()) -> 0.7330960854 | L15: =IFERROR(IF(ISNUMBER( INDEX(INDIRECT($Z15), MATCH('Calc - Sparklines'!$C$1,INDIRECT($AA15),0), MATCH('Calc - Sparklines'!$D15,INDIRECT($AB15),0)-L$3))=FALSE,NA(), INDEX(INDIRECT($Z15), MATCH('Calc - Sparklines'!$C$1,INDIRECT($AA15),0), MATCH('Calc - Sparklines'!$D15,INDIRECT($AB15),0)-L$3)),NA()) -> 0.7097902098 | M15: =IFERROR(IF(ISNUMBER( INDEX(INDIRECT($Z15), MATCH('Calc - Sparklines'!$C$1,INDIRECT($AA15),0), MATCH('Calc - Sparklines'!$D15,INDIRECT($AB15),0)-M$3))=FALSE,NA(), INDEX(INDIRECT($Z15), MATCH('Calc - Sparklines'!$C$1,INDIRECT($AA15),0), MATCH('Calc - Sparklines'!$D15,INDIRECT($AB15),0)-M$3)),NA()) -> 0.7687296417 | N15: =IFERROR(IF(ISNUMBER( INDEX(INDIRECT($Z15), MATCH('Calc - Sparklines'!$C$1,INDIRECT($AA15),0), MATCH('Calc - Sparklines'!$D15,INDIRECT($AB15),0)-N$3))=FALSE,NA(), INDEX(INDIRECT($Z15), MATCH('Calc - Sparklines'!$C$1,INDIRECT($AA15),0), MATCH('Calc - Sparklines'!$D15,INDIRECT($AB15),0)-N$3)),NA()) -> 0.7894736842 | O15: =IFERROR(IF(ISNUMBER( INDEX(INDIRECT($Z15), MATCH('Calc - Sparklines'!$C$1,INDIRECT($AA15),0), MATCH('Calc - Sparklines'!$D15,INDIRECT($AB15),0)-O$3))=FALSE,NA(), INDEX(INDIRECT($Z15), MATCH('Calc - Sparklines'!$C$1,INDIRECT($AA15),0), MATCH('Calc - Sparklines'!$D15,INDIRECT($AB15),0)-O$3)),NA()) -> 0.747440273 | P15: =IFERROR(IF(ISNUMBER( INDEX(INDIRECT($Z15), MATCH('Calc - Sparklines'!$C$1,INDIRECT($AA15),0), MATCH('Calc - Sparklines'!$D15,INDIRECT($AB15),0)-P$3))=FALSE,NA(), INDEX(INDIRECT($Z15), MATCH('Calc - Sparklines'!$C$1,INDIRECT($AA15),0), MATCH('Calc - Sparklines'!$D15,INDIRECT($AB15),0)-P$3)),NA()) -> 0.8130081301 | R15: 6 | S15: 0 | T15: 0.8130081301 | U15: 0.747440273 | V15: ▲ | W15: Sparkline54 | Z15: Data_Table_CYP_ii_a | AA15: Data_Orgs_CYP_ii_a | AB15: Data_Dates_CYP_ii_a | AD15: National and regional measure only | AE15: National and regional measure only
A16: CYP_ii_b | B16: CYP(ii.b) | C16: % of CYP with eating disorders seen within 4 weeks (routine) | D16: ='CYP(ii_b)_FINAL CALC'!B6 -> Q2 2018/19 | E16: =IFERROR(IF(ISNUMBER( INDEX(INDIRECT($Z16), MATCH('Calc - Sparklines'!$C$1,INDIRECT($AA16),0), MATCH('Calc - Sparklines'!$D16,INDIRECT($AB16),0)-E$3))=FALSE,NA(), INDEX(INDIRECT($Z16), MATCH('Calc - Sparklines'!$C$1,INDIRECT($AA16),0), MATCH('Calc - Sparklines'!$D16,INDIRECT($AB16),0)-E$3)),NA()) ->  | F16: =IFERROR(IF(ISNUMBER( INDEX(INDIRECT($Z16), MATCH('Calc - Sparklines'!$C$1,INDIRECT($AA16),0), MATCH('Calc - Sparklines'!$D16,INDIRECT($AB16),0)-F$3))=FALSE,NA(), INDEX(INDIRECT($Z16), MATCH('Calc - Sparklines'!$C$1,INDIRECT($AA16),0), MATCH('Calc - Sparklines'!$D16,INDIRECT($AB16),0)-F$3)),NA()) ->  | G16: =IFERROR(IF(ISNUMBER( INDEX(INDIRECT($Z16), MATCH('Calc - Sparklines'!$C$1,INDIRECT($AA16),0), MATCH('Calc - Sparklines'!$D16,INDIRECT($AB16),0)-G$3))=FALSE,NA(), INDEX(INDIRECT($Z16), MATCH('Calc - Sparklines'!$C$1,INDIRECT($AA16),0), MATCH('Calc - Sparklines'!$D16,INDIRECT($AB16),0)-G$3)),NA()) -> 0.6513661202 | H16: =IFERROR(IF(ISNUMBER( INDEX(INDIRECT($Z16), MATCH('Calc - Sparklines'!$C$1,INDIRECT($AA16),0), MATCH('Calc - Sparklines'!$D16,INDIRECT($AB16),0)-H$3))=FALSE,NA(), INDEX(INDIRECT($Z16), MATCH('Calc - Sparklines'!$C$1,INDIRECT($AA16),0), MATCH('Calc - Sparklines'!$D16,INDIRECT($AB16),0)-H$3)),NA()) -> 0.6748140276 | I16: =IFERROR(IF(ISNUMBER( INDEX(INDIRECT($Z16), MATCH('Calc - Sparklines'!$C$1,INDIRECT($AA16),0), MATCH('Calc - Sparklines'!$D16,INDIRECT($AB16),0)-I$3))=FALSE,NA(), INDEX(INDIRECT($Z16), MATCH('Calc - Sparklines'!$C$1,INDIRECT($AA16),0), MATCH('Calc - Sparklines'!$D16,INDIRECT($AB16),0)-I$3)),NA()) -> 0.7896081772 | J16: =IFERROR(IF(ISNUMBER( INDEX(INDIRECT($Z16), MATCH('Calc - Sparklines'!$C$1,INDIRECT($AA16),0), MATCH('Calc - Sparklines'!$D16,INDIRECT($AB16),0)-J$3))=FALSE,NA(), INDEX(INDIRECT($Z16), MATCH('Calc - Sparklines'!$C$1,INDIRECT($AA16),0), MATCH('Calc - Sparklines'!$D16,INDIRECT($AB16),0)-J$3)),NA()) -> 0.7886382623 | K16: =IFERROR(IF(ISNUMBER( INDEX(INDIRECT($Z16), MATCH('Calc - Sparklines'!$C$1,INDIRECT($AA16),0), MATCH('Calc - Sparklines'!$D16,INDIRECT($AB16),0)-K$3))=FALSE,NA(), INDEX(INDIRECT($Z16), MATCH('Calc - Sparklines'!$C$1,INDIRECT($AA16),0), MATCH('Calc - Sparklines'!$D16,INDIRECT($AB16),0)-K$3)),NA()) -> 0.7874538745 | L16: =IFERROR(IF(ISNUMBER( INDEX(INDIRECT($Z16), MATCH('Calc - Sparklines'!$C$1,INDIRECT($AA16),0), MATCH('Calc - Sparklines'!$D16,INDIRECT($AB16),0)-L$3))=FALSE,NA(), INDEX(INDIRECT($Z16), MATCH('Calc - Sparklines'!$C$1,INDIRECT($AA16),0), MATCH('Calc - Sparklines'!$D16,INDIRECT($AB16),0)-L$3)),NA()) -> 0.824456114 | M16: =IFERROR(IF(ISNUMBER( INDEX(INDIRECT($Z16), MATCH('Calc - Sparklines'!$C$1,INDIRECT($AA16),0), MATCH('Calc - Sparklines'!$D16,INDIRECT($AB16),0)-M$3))=FALSE,NA(), INDEX(INDIRECT($Z16), MATCH('Calc - Sparklines'!$C$1,INDIRECT($AA16),0), MATCH('Calc - Sparklines'!$D16,INDIRECT($AB16),0)-M$3)),NA()) -> 0.8314304903 | N16: =IFERROR(IF(ISNUMBER( INDEX(INDIRECT($Z16), MATCH('Calc - Sparklines'!$C$1,INDIRECT($AA16),0), MATCH('Calc - Sparklines'!$D16,INDIRECT($AB16),0)-N$3))=FALSE,NA(), INDEX(INDIRECT($Z16), MATCH('Calc - Sparklines'!$C$1,INDIRECT($AA16),0), MATCH('Calc - Sparklines'!$D16,INDIRECT($AB16),0)-N$3)),NA()) -> 0.7993548387 | O16: =IFERROR(IF(ISNUMBER( INDEX(INDIRECT($Z16), MATCH('Calc - Sparklines'!$C$1,INDIRECT($AA16),0), MATCH('Calc - Sparklines'!$D16,INDIRECT($AB16),0)-O$3))=FALSE,NA(), INDEX(INDIRECT($Z16), MATCH('Calc - Sparklines'!$C$1,INDIRECT($AA16),0), MATCH('Calc - Sparklines'!$D16,INDIRECT($AB16),0)-O$3)),NA()) -> 0.8124183007 | P16: =IFERROR(IF(ISNUMBER( INDEX(INDIRECT($Z16), MATCH('Calc - Sparklines'!$C$1,INDIRECT($AA16),0), MATCH('Calc - Sparklines'!$D16,INDIRECT($AB16),0)-P$3))=FALSE,NA(), INDEX(INDIRECT($Z16), MATCH('Calc - Sparklines'!$C$1,INDIRECT($AA16),0), MATCH('Calc - Sparklines'!$D16,INDIRECT($AB16),0)-P$3)),NA()) -> 0.8017894012 | R16: 6 | S16: 0 | T16: 0.8017894012 | U16: 0.8124183007 | V16: =IF(D16="","",IFERROR(IF(T16>U16,"▲", IF(T16<U16,"▼","◄►")),"N/A")) -> ▼ | W16: Sparkline05 | Z16: Data_Table_CYP_ii_b | AA16: Data_Orgs_CYP_ii_b | AB16: Data_Dates_CYP_ii_b | AD16: Chart available at CCG & STP level only | AE16: =IF(OR(Dashboard!$N$3=1,Dashboard!$N$3=2),"Chart available at CCG & STP level only","") -> Chart available at CCG & STP level only
A17: CYP_iii_a | B17: CYP(iii.a) | C17: Number of bed days for CYP under 18 in CAMHS tier 4 wards | D17: ='CYP(iii_a)_FINAL CALC'!B6 -> Q2 2018/19 | E17: =IFERROR(IF(ISNUMBER( INDEX(INDIRECT($Z17), MATCH('Calc - Sparklines'!$C$1,INDIRECT($AA17),0), MATCH('Calc - Sparklines'!$D17,INDIRECT($AB17),0)-E$3))=FALSE,NA(), INDEX(INDIRECT($Z17), MATCH('Calc - Sparklines'!$C$1,INDIRECT($AA17),0), MATCH('Calc - Sparklines'!$D17,INDIRECT($AB17),0)-E$3)),NA()) ->  | F17: =IFERROR(IF(ISNUMBER( INDEX(INDIRECT($Z17), MATCH('Calc - Sparklines'!$C$1,INDIRECT($AA17),0), MATCH('Calc - Sparklines'!$D17,INDIRECT($AB17),0)-F$3))=FALSE,NA(), INDEX(INDIRECT($Z17), MATCH('Calc - Sparklines'!$C$1,INDIRECT($AA17),0), MATCH('Calc - Sparklines'!$D17,INDIRECT($AB17),0)-F$3)),NA()) ->  | G17: =IFERROR(IF(ISNUMBER( INDEX(INDIRECT($Z17), MATCH('Calc - Sparklines'!$C$1,INDIRECT($AA17),0), MATCH('Calc - Sparklines'!$D17,INDIRECT($AB17),0)-G$3))=FALSE,NA(), INDEX(INDIRECT($Z17), MATCH('Calc - Sparklines'!$C$1,INDIRECT($AA17),0), MATCH('Calc - Sparklines'!$D17,INDIRECT($AB17),0)-G$3)),NA()) -> 104877 | H17: =IFERROR(IF(ISNUMBER( INDEX(INDIRECT($Z17), MATCH('Calc - Sparklines'!$C$1,INDIRECT($AA17),0), MATCH('Calc - Sparklines'!$D17,INDIRECT($AB17),0)-H$3))=FALSE,NA(), INDEX(INDIRECT($Z17), MATCH('Calc - Sparklines'!$C$1,INDIRECT($AA17),0), MATCH('Calc - Sparklines'!$D17,INDIRECT($AB17),0)-H$3)),NA()) -> 102268 | I17: =IFERROR(IF(ISNUMBER( INDEX(INDIRECT($Z17), MATCH('Calc - Sparklines'!$C$1,INDIRECT($AA17),0), MATCH('Calc - Sparklines'!$D17,INDIRECT($AB17),0)-I$3))=FALSE,NA(), INDEX(INDIRECT($Z17), MATCH('Calc - Sparklines'!$C$1,INDIRECT($AA17),0), MATCH('Calc - Sparklines'!$D17,INDIRECT($AB17),0)-I$3)),NA()) -> 110032 | J17: =IFERROR(IF(ISNUMBER( INDEX(INDIRECT($Z17), MATCH('Calc - Sparklines'!$C$1,INDIRECT($AA17),0), MATCH('Calc - Sparklines'!$D17,INDIRECT($AB17),0)-J$3))=FALSE,NA(), INDEX(INDIRECT($Z17), MATCH('Calc - Sparklines'!$C$1,INDIRECT($AA17),0), MATCH('Calc - Sparklines'!$D17,INDIRECT($AB17),0)-J$3)),NA()) -> 110216 | K17: =IFERROR(IF(ISNUMBER( INDEX(INDIRECT($Z17), MATCH('Calc - Sparklines'!$C$1,INDIRECT($AA17),0), MATCH('Calc - Sparklines'!$D17,INDIRECT($AB17),0)-K$3))=FALSE,NA(), INDEX(INDIRECT($Z17), MATCH('Calc - Sparklines'!$C$1,INDIRECT($AA17),0), MATCH('Calc - Sparklines'!$D17,INDIRECT($AB17),0)-K$3)),NA()) -> 117128 | L17: =IFERROR(IF(ISNUMBER( INDEX(INDIRECT($Z17), MATCH('Calc - Sparklines'!$C$1,INDIRECT($AA17),0), MATCH('Calc - Sparklines'!$D17,INDIRECT($AB17),0)-L$3))=FALSE,NA(), INDEX(INDIRECT($Z17), MATCH('Calc - Sparklines'!$C$1,INDIRECT($AA17),0), MATCH('Calc - Sparklines'!$D17,INDIRECT($AB17),0)-L$3)),NA()) -> 112752 | M17: =IFERROR(IF(ISNUMBER( INDEX(INDIRECT($Z17), MATCH('Calc - Sparklines'!$C$1,INDIRECT($AA17),0), MATCH('Calc - Sparklines'!$D17,INDIRECT($AB17),0)-M$3))=FALSE,NA(), INDEX(INDIRECT($Z17), MATCH('Calc - Sparklines'!$C$1,INDIRECT($AA17),0), MATCH('Calc - Sparklines'!$D17,INDIRECT($AB17),0)-M$3)),NA()) -> 119096 | N17: =IFERROR(IF(ISNUMBER( INDEX(INDIRECT($Z17), MATCH('Calc - Sparklines'!$C$1,INDIRECT($AA17),0), MATCH('Calc - Sparklines'!$D17,INDIRECT($AB17),0)-N$3))=FALSE,NA(), INDEX(INDIRECT($Z17), MATCH('Calc - Sparklines'!$C$1,INDIRECT($AA17),0), MATCH('Calc - Sparklines'!$D17,INDIRECT($AB17),0)-N$3)),NA()) -> 116790 | O17: =IFERROR(IF(ISNUMBER( INDEX(INDIRECT($Z17), MATCH('Calc - Sparklines'!$C$1,INDIRECT($AA17),0), MATCH('Calc - Sparklines'!$D17,INDIRECT($AB17),0)-O$3))=FALSE,NA(), INDEX(INDIRECT($Z17), MATCH('Calc - Sparklines'!$C$1,INDIRECT($AA17),0), MATCH('Calc - Sparklines'!$D17,INDIRECT($AB17),0)-O$3)),NA()) -> 107924 | P17: =IFERROR(IF(ISNUMBER( INDEX(INDIRECT($Z17), MATCH('Calc - Sparklines'!$C$1,INDIRECT($AA17),0), MATCH('Calc - Sparklines'!$D17,INDIRECT($AB17),0)-P$3))=FALSE,NA(), INDEX(INDIRECT($Z17), MATCH('Calc - Sparklines'!$C$1,INDIRECT($AA17),0), MATCH('Calc - Sparklines'!$D17,INDIRECT($AB17),0)-P$3)),NA()) -> 101976 | R17: 6 | S17: 0 | T17: 101976 | U17: 107924 | V17: ▼ | W17: Sparkline06 | Z17: Data_Table_CYP_iii_a | AA17: Data_Orgs_CYP_iii_a | AB17: Data_Dates_CYP_iii_a | AD17: Chart available at CCG & STP level only | AE17: =IF(OR(Dashboard!$N$3=1,Dashboard!$N$3=2),"Chart available at CCG & STP level only","") -> Chart available at CCG & STP level only
A18: CYP_iii_b | B18: CYP(iii.b) | C18: Number of admissions of CYP under 18 in CAMHS tier 4 wards | D18: ='CYP(iii_b)_FINAL CALC'!B6 -> Q2 2018/19 | E18: =IFERROR(IF(ISNUMBER( INDEX(INDIRECT($Z18), MATCH('Calc - Sparklines'!$C$1,INDIRECT($AA18),0), MATCH('Calc - Sparklines'!$D18,INDIRECT($AB18),0)-E$3))=FALSE,NA(), INDEX(INDIRECT($Z18), MATCH('Calc - Sparklines'!$C$1,INDIRECT($AA18),0), MATCH('Calc - Sparklines'!$D18,INDIRECT($AB18),0)-E$3)),NA()) ->  | F18: =IFERROR(IF(ISNUMBER( INDEX(INDIRECT($Z18), MATCH('Calc - Sparklines'!$C$1,INDIRECT($AA18),0), MATCH('Calc - Sparklines'!$D18,INDIRECT($AB18),0)-F$3))=FALSE,NA(), INDEX(INDIRECT($Z18), MATCH('Calc - Sparklines'!$C$1,INDIRECT($AA18),0), MATCH('Calc - Sparklines'!$D18,INDIRECT($AB18),0)-F$3)),NA()) ->  | G18: =IFERROR(IF(ISNUMBER( INDEX(INDIRECT($Z18), MATCH('Calc - Sparklines'!$C$1,INDIRECT($AA18),0), MATCH('Calc - Sparklines'!$D18,INDIRECT($AB18),0)-G$3))=FALSE,NA(), INDEX(INDIRECT($Z18), MATCH('Calc - Sparklines'!$C$1,INDIRECT($AA18),0), MATCH('Calc - Sparklines'!$D18,INDIRECT($AB18),0)-G$3)),NA()) -> 1303 | H18: =IFERROR(IF(ISNUMBER( INDEX(INDIRECT($Z18), MATCH('Calc - Sparklines'!$C$1,INDIRECT($AA18),0), MATCH('Calc - Sparklines'!$D18,INDIRECT($AB18),0)-H$3))=FALSE,NA(), INDEX(INDIRECT($Z18), MATCH('Calc - Sparklines'!$C$1,INDIRECT($AA18),0), MATCH('Calc - Sparklines'!$D18,INDIRECT($AB18),0)-H$3)),NA()) -> 1167 | I18: =IFERROR(IF(ISNUMBER( INDEX(INDIRECT($Z18), MATCH('Calc - Sparklines'!$C$1,INDIRECT($AA18),0), MATCH('Calc - Sparklines'!$D18,INDIRECT($AB18),0)-I$3))=FALSE,NA(), INDEX(INDIRECT($Z18), MATCH('Calc - Sparklines'!$C$1,INDIRECT($AA18),0), MATCH('Calc - Sparklines'!$D18,INDIRECT($AB18),0)-I$3)),NA()) -> 1269 | J18: =IFERROR(IF(ISNUMBER( INDEX(INDIRECT($Z18), MATCH('Calc - Sparklines'!$C$1,INDIRECT($AA18),0), MATCH('Calc - Sparklines'!$D18,INDIRECT($AB18),0)-J$3))=FALSE,NA(), INDEX(INDIRECT($Z18), MATCH('Calc - Sparklines'!$C$1,INDIRECT($AA18),0), MATCH('Calc - Sparklines'!$D18,INDIRECT($AB18),0)-J$3)),NA()) -> 1190 | K18: =IFERROR(IF(ISNUMBER( INDEX(INDIRECT($Z18), MATCH('Calc - Sparklines'!$C$1,INDIRECT($AA18),0), MATCH('Calc - Sparklines'!$D18,INDIRECT($AB18),0)-K$3))=FALSE,NA(), INDEX(INDIRECT($Z18), MATCH('Calc - Sparklines'!$C$1,INDIRECT($AA18),0), MATCH('Calc - Sparklines'!$D18,INDIRECT($AB18),0)-K$3)),NA()) -> 1269 | L18: =IFERROR(IF(ISNUMBER( INDEX(INDIRECT($Z18), MATCH('Calc - Sparklines'!$C$1,INDIRECT($AA18),0), MATCH('Calc - Sparklines'!$D18,INDIRECT($AB18),0)-L$3))=FALSE,NA(), INDEX(INDIRECT($Z18), MATCH('Calc - Sparklines'!$C$1,INDIRECT($AA18),0), MATCH('Calc - Sparklines'!$D18,INDIRECT($AB18),0)-L$3)),NA()) -> 1104 | M18: =IFERROR(IF(ISNUMBER( INDEX(INDIRECT($Z18), MATCH('Calc - Sparklines'!$C$1,INDIRECT($AA18),0), MATCH('Calc - Sparklines'!$D18,INDIRECT($AB18),0)-M$3))=FALSE,NA(), INDEX(INDIRECT($Z18), MATCH('Calc - Sparklines'!$C$1,INDIRECT($AA18),0), MATCH('Calc - Sparklines'!$D18,INDIRECT($AB18),0)-M$3)),NA()) -> 1202 | N18: =IFERROR(IF(ISNUMBER( INDEX(INDIRECT($Z18), MATCH('Calc - Sparklines'!$C$1,INDIRECT($AA18),0), MATCH('Calc - Sparklines'!$D18,INDIRECT($AB18),0)-N$3))=FALSE,NA(), INDEX(INDIRECT($Z18), MATCH('Calc - Sparklines'!$C$1,INDIRECT($AA18),0), MATCH('Calc - Sparklines'!$D18,INDIRECT($AB18),0)-N$3)),NA()) -> 1076 | O18: =IFERROR(IF(ISNUMBER( INDEX(INDIRECT($Z18), MATCH('Calc - Sparklines'!$C$1,INDIRECT($AA18),0), MATCH('Calc - Sparklines'!$D18,INDIRECT($AB18),0)-O$3))=FALSE,NA(), INDEX(INDIRECT($Z18), MATCH('Calc - Sparklines'!$C$1,INDIRECT($AA18),0), MATCH('Calc - Sparklines'!$D18,INDIRECT($AB18),0)-O$3)),NA()) -> 1261 | P18: =IFERROR(IF(ISNUMBER( INDEX(INDIRECT($Z18), MATCH('Calc - Sparklines'!$C$1,INDIRECT($AA18),0), MATCH('Calc - Sparklines'!$D18,INDIRECT($AB18),0)-P$3))=FALSE,NA(), INDEX(INDIRECT($Z18), MATCH('Calc - Sparklines'!$C$1,INDIRECT($AA18),0), MATCH('Calc - Sparklines'!$D18,INDIRECT($AB18),0)-P$3)),NA()) -> 1108 | R18: 6 | S18: =IF(P18="N/A",IF(O18="N/A",2,1),0) -> 0 | T18: 1108 | U18: 1261 | V18: ▼ | W18: Sparkline07 | Z18: Data_Table_CYP_iii_b | AA18: Data_Orgs_CYP_iii_b | AB18: Data_Dates_CYP_iii_b | AD18: National and regional measure only | AE18: National and regional measure only
A19: CYP_iv_a | B19: CYP(iv.a) | C19: Bed days of CYP under 18 in adult in-patient wards | D19: ='CYP(iv_a)_FINAL CALC'!B6 -> Q2 2018/19 | E19: =IFERROR(IF(ISNUMBER( INDEX(INDIRECT($Z19), MATCH('Calc - Sparklines'!$C$1,INDIRECT($AA19),0), MATCH('Calc - Sparklines'!$D19,INDIRECT($AB19),0)-E$3))=FALSE,NA(), INDEX(INDIRECT($Z19), MATCH('Calc - Sparklines'!$C$1,INDIRECT($AA19),0), MATCH('Calc - Sparklines'!$D19,INDIRECT($AB19),0)-E$3)),NA()) ->  | F19: =IFERROR(IF(ISNUMBER( INDEX(INDIRECT($Z19), MATCH('Calc - Sparklines'!$C$1,INDIRECT($AA19),0), MATCH('Calc - Sparklines'!$D19,INDIRECT($AB19),0)-F$3))=FALSE,NA(), INDEX(INDIRECT($Z19), MATCH('Calc - Sparklines'!$C$1,INDIRECT($AA19),0), MATCH('Calc - Sparklines'!$D19,INDIRECT($AB19),0)-F$3)),NA()) ->  | G19: =IFERROR(IF(ISNUMBER( INDEX(INDIRECT($Z19), MATCH('Calc - Sparklines'!$C$1,INDIRECT($AA19),0), MATCH('Calc - Sparklines'!$D19,INDIRECT($AB19),0)-G$3))=FALSE,NA(), INDEX(INDIRECT($Z19), MATCH('Calc - Sparklines'!$C$1,INDIRECT($AA19),0), MATCH('Calc - Sparklines'!$D19,INDIRECT($AB19),0)-G$3)),NA()) -> 1938 | H19: =IFERROR(IF(ISNUMBER( INDEX(INDIRECT($Z19), MATCH('Calc - Sparklines'!$C$1,INDIRECT($AA19),0), MATCH('Calc - Sparklines'!$D19,INDIRECT($AB19),0)-H$3))=FALSE,NA(), INDEX(INDIRECT($Z19), MATCH('Calc - Sparklines'!$C$1,INDIRECT($AA19),0), MATCH('Calc - Sparklines'!$D19,INDIRECT($AB19),0)-H$3)),NA()) -> 2654 | I19: =IFERROR(IF(ISNUMBER( INDEX(INDIRECT($Z19), MATCH('Calc - Sparklines'!$C$1,INDIRECT($AA19),0), MATCH('Calc - Sparklines'!$D19,INDIRECT($AB19),0)-I$3))=FALSE,NA(), INDEX(INDIRECT($Z19), MATCH('Calc - Sparklines'!$C$1,INDIRECT($AA19),0), MATCH('Calc - Sparklines'!$D19,INDIRECT($AB19),0)-I$3)),NA()) -> 2700 | J19: =IFERROR(IF(ISNUMBER( INDEX(INDIRECT($Z19), MATCH('Calc - Sparklines'!$C$1,INDIRECT($AA19),0), MATCH('Calc - Sparklines'!$D19,INDIRECT($AB19),0)-J$3))=FALSE,NA(), INDEX(INDIRECT($Z19), MATCH('Calc - Sparklines'!$C$1,INDIRECT($AA19),0), MATCH('Calc - Sparklines'!$D19,INDIRECT($AB19),0)-J$3)),NA()) -> 321 | K19: =IFERROR(IF(ISNUMBER( INDEX(INDIRECT($Z19), MATCH('Calc - Sparklines'!$C$1,INDIRECT($AA19),0), MATCH('Calc - Sparklines'!$D19,INDIRECT($AB19),0)-K$3))=FALSE,NA(), INDEX(INDIRECT($Z19), MATCH('Calc - Sparklines'!$C$1,INDIRECT($AA19),0), MATCH('Calc - Sparklines'!$D19,INDIRECT($AB19),0)-K$3)),NA()) -> 428 | L19: =IFERROR(IF(ISNUMBER( INDEX(INDIRECT($Z19), MATCH('Calc - Sparklines'!$C$1,INDIRECT($AA19),0), MATCH('Calc - Sparklines'!$D19,INDIRECT($AB19),0)-L$3))=FALSE,NA(), INDEX(INDIRECT($Z19), MATCH('Calc - Sparklines'!$C$1,INDIRECT($AA19),0), MATCH('Calc - Sparklines'!$D19,INDIRECT($AB19),0)-L$3)),NA()) -> 522 | M19: =IFERROR(IF(ISNUMBER( INDEX(INDIRECT($Z19), MATCH('Calc - Sparklines'!$C$1,INDIRECT($AA19),0), MATCH('Calc - Sparklines'!$D19,INDIRECT($AB19),0)-M$3))=FALSE,NA(), INDEX(INDIRECT($Z19), MATCH('Calc - Sparklines'!$C$1,INDIRECT($AA19),0), MATCH('Calc - Sparklines'!$D19,INDIRECT($AB19),0)-M$3)),NA()) -> 767 | N19: =IFERROR(IF(ISNUMBER( INDEX(INDIRECT($Z19), MATCH('Calc - Sparklines'!$C$1,INDIRECT($AA19),0), MATCH('Calc - Sparklines'!$D19,INDIRECT($AB19),0)-N$3))=FALSE,NA(), INDEX(INDIRECT($Z19), MATCH('Calc - Sparklines'!$C$1,INDIRECT($AA19),0), MATCH('Calc - Sparklines'!$D19,INDIRECT($AB19),0)-N$3)),NA()) -> 451 | O19: =IFERROR(IF(ISNUMBER( INDEX(INDIRECT($Z19), MATCH('Calc - Sparklines'!$C$1,INDIRECT($AA19),0), MATCH('Calc - Sparklines'!$D19,INDIRECT($AB19),0)-O$3))=FALSE,NA(), INDEX(INDIRECT($Z19), MATCH('Calc - Sparklines'!$C$1,INDIRECT($AA19),0), MATCH('Calc - Sparklines'!$D19,INDIRECT($AB19),0)-O$3)),NA()) -> 364 | P19: =IFERROR(IF(ISNUMBER( INDEX(INDIRECT($Z19), MATCH('Calc - Sparklines'!$C$1,INDIRECT($AA19),0), MATCH('Calc - Sparklines'!$D19,INDIRECT($AB19),0)-P$3))=FALSE,NA(), INDEX(INDIRECT($Z19), MATCH('Calc - Sparklines'!$C$1,INDIRECT($AA19),0), MATCH('Calc - Sparklines'!$D19,INDIRECT($AB19),0)-P$3)),NA()) -> 388 | R19: 6 | S19: 0 | T19: 388 | U19: 364 | V19: ▲ | W19: Sparkline08 | Z19: Data_Table_CYP_iv_a | AA19: Data_Orgs_CYP_iv_a | AB19: Data_Dates_CYP_iv_a | AD19: National and regional measure only | AE19: National and regional measure only
A20: CYP_iv_b | B20: CYP(iv.b) | C20: Number of CYP under 18 in adult in-patient wards | D20: ='CYP(iv_b)_FINAL CALC'!B6 -> Q2 2018/19 | E20: =IFERROR(IF(ISNUMBER( INDEX(INDIRECT($Z20), MATCH('Calc - Sparklines'!$C$1,INDIRECT($AA20),0), MATCH('Calc - Sparklines'!$D20,INDIRECT($AB20),0)-E$3))=FALSE,NA(), INDEX(INDIRECT($Z20), MATCH('Calc - Sparklines'!$C$1,INDIRECT($AA20),0), MATCH('Calc - Sparklines'!$D20,INDIRECT($AB20),0)-E$3)),NA()) ->  | F20: =IFERROR(IF(ISNUMBER( INDEX(INDIRECT($Z20), MATCH('Calc - Sparklines'!$C$1,INDIRECT($AA20),0), MATCH('Calc - Sparklines'!$D20,INDIRECT($AB20),0)-F$3))=FALSE,NA(), INDEX(INDIRECT($Z20), MATCH('Calc - Sparklines'!$C$1,INDIRECT($AA20),0), MATCH('Calc - Sparklines'!$D20,INDIRECT($AB20),0)-F$3)),NA()) ->  | G20: =IFERROR(IF(ISNUMBER( INDEX(INDIRECT($Z20), MATCH('Calc - Sparklines'!$C$1,INDIRECT($AA20),0), MATCH('Calc - Sparklines'!$D20,INDIRECT($AB20),0)-G$3))=FALSE,NA(), INDEX(INDIRECT($Z20), MATCH('Calc - Sparklines'!$C$1,INDIRECT($AA20),0), MATCH('Calc - Sparklines'!$D20,INDIRECT($AB20),0)-G$3)),NA()) -> 79 | H20: =IFERROR(IF(ISNUMBER( INDEX(INDIRECT($Z20), MATCH('Calc - Sparklines'!$C$1,INDIRECT($AA20),0), MATCH('Calc - Sparklines'!$D20,INDIRECT($AB20),0)-H$3))=FALSE,NA(), INDEX(INDIRECT($Z20), MATCH('Calc - Sparklines'!$C$1,INDIRECT($AA20),0), MATCH('Calc - Sparklines'!$D20,INDIRECT($AB20),0)-H$3)),NA()) -> 90 | I20: =IFERROR(IF(ISNUMBER( INDEX(INDIRECT($Z20), MATCH('Calc - Sparklines'!$C$1,INDIRECT($AA20),0), MATCH('Calc - Sparklines'!$D20,INDIRECT($AB20),0)-I$3))=FALSE,NA(), INDEX(INDIRECT($Z20), MATCH('Calc - Sparklines'!$C$1,INDIRECT($AA20),0), MATCH('Calc - Sparklines'!$D20,INDIRECT($AB20),0)-I$3)),NA()) -> 83 | J20: =IFERROR(IF(ISNUMBER( INDEX(INDIRECT($Z20), MATCH('Calc - Sparklines'!$C$1,INDIRECT($AA20),0), MATCH('Calc - Sparklines'!$D20,INDIRECT($AB20),0)-J$3))=FALSE,NA(), INDEX(INDIRECT($Z20), MATCH('Calc - Sparklines'!$C$1,INDIRECT($AA20),0), MATCH('Calc - Sparklines'!$D20,INDIRECT($AB20),0)-J$3)),NA()) -> 42 | K20: =IFERROR(IF(ISNUMBER( INDEX(INDIRECT($Z20), MATCH('Calc - Sparklines'!$C$1,INDIRECT($AA20),0), MATCH('Calc - Sparklines'!$D20,INDIRECT($AB20),0)-K$3))=FALSE,NA(), INDEX(INDIRECT($Z20), MATCH('Calc - Sparklines'!$C$1,INDIRECT($AA20),0), MATCH('Calc - Sparklines'!$D20,INDIRECT($AB20),0)-K$3)),NA()) -> 57 | L20: =IFERROR(IF(ISNUMBER( INDEX(INDIRECT($Z20), MATCH('Calc - Sparklines'!$C$1,INDIRECT($AA20),0), MATCH('Calc - Sparklines'!$D20,INDIRECT($AB20),0)-L$3))=FALSE,NA(), INDEX(INDIRECT($Z20), MATCH('Calc - Sparklines'!$C$1,INDIRECT($AA20),0), MATCH('Calc - Sparklines'!$D20,INDIRECT($AB20),0)-L$3)),NA()) -> 49 | M20: =IFERROR(IF(ISNUMBER( INDEX(INDIRECT($Z20), MATCH('Calc - Sparklines'!$C$1,INDIRECT($AA20),0), MATCH('Calc - Sparklines'!$D20,INDIRECT($AB20),0)-M$3))=FALSE,NA(), INDEX(INDIRECT($Z20), MATCH('Calc - Sparklines'!$C$1,INDIRECT($AA20),0), MATCH('Calc - Sparklines'!$D20,INDIRECT($AB20),0)-M$3)),NA()) -> 58 | N20: =IFERROR(IF(ISNUMBER( INDEX(INDIRECT($Z20), MATCH('Calc - Sparklines'!$C$1,INDIRECT($AA20),0), MATCH('Calc - Sparklines'!$D20,INDIRECT($AB20),0)-N$3))=FALSE,NA(), INDEX(INDIRECT($Z20), MATCH('Calc - Sparklines'!$C$1,INDIRECT($AA20),0), MATCH('Calc - Sparklines'!$D20,INDIRECT($AB20),0)-N$3)),NA()) -> 53 | O20: =IFERROR(IF(ISNUMBER( INDEX(INDIRECT($Z20), MATCH('Calc - Sparklines'!$C$1,INDIRECT($AA20),0), MATCH('Calc - Sparklines'!$D20,INDIRECT($AB20),0)-O$3))=FALSE,NA(), INDEX(INDIRECT($Z20), MATCH('Calc - Sparklines'!$C$1,INDIRECT($AA20),0), MATCH('Calc - Sparklines'!$D20,INDIRECT($AB20),0)-O$3)),NA()) -> 48 | P20: =IFERROR(IF(ISNUMBER( INDEX(INDIRECT($Z20), MATCH('Calc - Sparklines'!$C$1,INDIRECT($AA20),0), MATCH('Calc - Sparklines'!$D20,INDIRECT($AB20),0)-P$3))=FALSE,NA(), INDEX(INDIRECT($Z20), MATCH('Calc - Sparklines'!$C$1,INDIRECT($AA20),0), MATCH('Calc - Sparklines'!$D20,INDIRECT($AB20),0)-P$3)),NA()) -> 37 | R20: 6 | S20: 0 | T20: 37 | U20: 48 | V20: ▼ | W20: Sparkline09 | Z20: Data_Table_CYP_iv_b | AA20: Data_Orgs_CYP_iv_b | AB20: Data_Dates_CYP_iv_b | AD20: Chart available at STP level only | AE20: =IF(OR(Dashboard!$N$3=1,Dashboard!$N$3=2),"Chart available at CCG & STP level only","") -> Chart available at CCG & STP level only
A21: CYP_v | B21: CYP(v) | C21: CYP MH forecast outturn (£k) - excluding learning disabilities and eating disorders | D21: ='CYP(v)_FINAL CALC'!$B$6 -> 2018/19 planned | E21: =IFERROR(IF(ISNUMBER( INDEX(INDIRECT($Z21), MATCH('Calc - Sparklines'!$C$1,INDIRECT($AA21),0), MATCH('Calc - Sparklines'!$D21,INDIRECT($AB21),0)-E$3))=FALSE,NA(), INDEX(INDIRECT($Z21), MATCH('Calc - Sparklines'!$C$1,INDIRECT($AA21),0), MATCH('Calc - Sparklines'!$D21,INDIRECT($AB21),0)-E$3)),NA()) ->  | F21: =IFERROR(IF(ISNUMBER( INDEX(INDIRECT($Z21), MATCH('Calc - Sparklines'!$C$1,INDIRECT($AA21),0), MATCH('Calc - Sparklines'!$D21,INDIRECT($AB21),0)-F$3))=FALSE,NA(), INDEX(INDIRECT($Z21), MATCH('Calc - Sparklines'!$C$1,INDIRECT($AA21),0), MATCH('Calc - Sparklines'!$D21,INDIRECT($AB21),0)-F$3)),NA()) ->  | G21: =IFERROR(IF(ISNUMBER( INDEX(INDIRECT($Z21), MATCH('Calc - Sparklines'!$C$1,INDIRECT($AA21),0), MATCH('Calc - Sparklines'!$D21,INDIRECT($AB21),0)-G$3))=FALSE,NA(), INDEX(INDIRECT($Z21), MATCH('Calc - Sparklines'!$C$1,INDIRECT($AA21),0), MATCH('Calc - Sparklines'!$D21,INDIRECT($AB21),0)-G$3)),NA()) ->  | H21: =IFERROR(IF(ISNUMBER( INDEX(INDIRECT($Z21), MATCH('Calc - Sparklines'!$C$1,INDIRECT($AA21),0), MATCH('Calc - Sparklines'!$D21,INDIRECT($AB21),0)-H$3))=FALSE,NA(), INDEX(INDIRECT($Z21), MATCH('Calc - Sparklines'!$C$1,INDIRECT($AA21),0), MATCH('Calc - Sparklines'!$D21,INDIRECT($AB21),0)-H$3)),NA()) ->  | I21: =IFERROR(IF(ISNUMBER( INDEX(INDIRECT($Z21), MATCH('Calc - Sparklines'!$C$1,INDIRECT($AA21),0), MATCH('Calc - Sparklines'!$D21,INDIRECT($AB21),0)-I$3))=FALSE,NA(), INDEX(INDIRECT($Z21), MATCH('Calc - Sparklines'!$C$1,INDIRECT($AA21),0), MATCH('Calc - Sparklines'!$D21,INDIRECT($AB21),0)-I$3)),NA()) ->  | J21: =IFERROR(IF(ISNUMBER( INDEX(INDIRECT($Z21), MATCH('Calc - Sparklines'!$C$1,INDIRECT($AA21),0), MATCH('Calc - Sparklines'!$D21,INDIRECT($AB21),0)-J$3))=FALSE,NA(), INDEX(INDIRECT($Z21), MATCH('Calc - Sparklines'!$C$1,INDIRECT($AA21),0), MATCH('Calc - Sparklines'!$D21,INDIRECT($AB21),0)-J$3)),NA()) ->  | K21: =IFERROR(IF(ISNUMBER( INDEX(INDIRECT($Z21), MATCH('Calc - Sparklines'!$C$1,INDIRECT($AA21),0), MATCH('Calc - Sparklines'!$D21,INDIRECT($AB21),0)-K$3))=FALSE,NA(), INDEX(INDIRECT($Z21), MATCH('Calc - Sparklines'!$C$1,INDIRECT($AA21),0), MATCH('Calc - Sparklines'!$D21,INDIRECT($AB21),0)-K$3)),NA()) ->  | L21: =IFERROR(IF(ISNUMBER( INDEX(INDIRECT($Z21), MATCH('Calc - Sparklines'!$C$1,INDIRECT($AA21),0), MATCH('Calc - Sparklines'!$D21,INDIRECT($AB21),0)-L$3))=FALSE,NA(), INDEX(INDIRECT($Z21), MATCH('Calc - Sparklines'!$C$1,INDIRECT($AA21),0), MATCH('Calc - Sparklines'!$D21,INDIRECT($AB21),0)-L$3)),NA()) ->  | M21: =IFERROR(IF(ISNUMBER( INDEX(INDIRECT($Z21), MATCH('Calc - Sparklines'!$C$1,INDIRECT($AA21),0), MATCH('Calc - Sparklines'!$D21,INDIRECT($AB21),0)-M$3))=FALSE,NA(), INDEX(INDIRECT($Z21), MATCH('Calc - Sparklines'!$C$1,INDIRECT($AA21),0), MATCH('Calc - Sparklines'!$D21,INDIRECT($AB21),0)-M$3)),NA()) ->  | N21: =IFERROR(IF(ISNUMBER( INDEX(INDIRECT($Z21), MATCH('Calc - Sparklines'!$C$1,INDIRECT($AA21),0), MATCH('Calc - Sparklines'!$D21,INDIRECT($AB21),0)-N$3))=FALSE,NA(), INDEX(INDIRECT($Z21), MATCH('Calc - Sparklines'!$C$1,INDIRECT($AA21),0), MATCH('Calc - Sparklines'!$D21,INDIRECT($AB21),0)-N$3)),NA()) ->  | O21: =IFERROR(IF(ISNUMBER( INDEX(INDIRECT($Z21), MATCH('Calc - Sparklines'!$C$1,INDIRECT($AA21),0), MATCH('Calc - Sparklines'!$D21,INDIRECT($AB21),0)-O$3))=FALSE,NA(), INDEX(INDIRECT($Z21), MATCH('Calc - Sparklines'!$C$1,INDIRECT($AA21),0), MATCH('Calc - Sparklines'!$D21,INDIRECT($AB21),0)-O$3)),NA()) ->  | P21: =IFERROR(IF(ISNUMBER( INDEX(INDIRECT($Z21), MATCH('Calc - Sparklines'!$C$1,INDIRECT($AA21),0), MATCH('Calc - Sparklines'!$D21,INDIRECT($AB21),0)-P$3))=FALSE,NA(), INDEX(INDIRECT($Z21), MATCH('Calc - Sparklines'!$C$1,INDIRECT($AA21),0), MATCH('Calc - Sparklines'!$D21,INDIRECT($AB21),0)-P$3)),NA()) -> 676604727.4 | R21: 0 | S21: 0 | T21: 676604727.4 | V21: N/A | W21: Sparkline10 | X21: N/A | Z21: Data_Table_CYP_v | AA21: Data_Orgs_CYP_v | AB21: Data_Dates_CYP_v | AD21: Not Applicable | AE21: Not Applicable
A22: CYP_vi | B22: CYP(vi) | C22: CYP MH forecast outturn (£k) - eating disorders | D22: ='CYP(vi)_FINAL CALC'!$B$6 -> 2018/19 planned | E22: =IFERROR(IF(ISNUMBER( INDEX(INDIRECT($Z22), MATCH('Calc - Sparklines'!$C$1,INDIRECT($AA22),0), MATCH('Calc - Sparklines'!$D22,INDIRECT($AB22),0)-E$3))=FALSE,NA(), INDEX(INDIRECT($Z22), MATCH('Calc - Sparklines'!$C$1,INDIRECT($AA22),0), MATCH('Calc - Sparklines'!$D22,INDIRECT($AB22),0)-E$3)),NA()) ->  | F22: =IFERROR(IF(ISNUMBER( INDEX(INDIRECT($Z22), MATCH('Calc - Sparklines'!$C$1,INDIRECT($AA22),0), MATCH('Calc - Sparklines'!$D22,INDIRECT($AB22),0)-F$3))=FALSE,NA(), INDEX(INDIRECT($Z22), MATCH('Calc - Sparklines'!$C$1,INDIRECT($AA22),0), MATCH('Calc - Sparklines'!$D22,INDIRECT($AB22),0)-F$3)),NA()) ->  | G22: =IFERROR(IF(ISNUMBER( INDEX(INDIRECT($Z22), MATCH('Calc - Sparklines'!$C$1,INDIRECT($AA22),0), MATCH('Calc - Sparklines'!$D22,INDIRECT($AB22),0)-G$3))=FALSE,NA(), INDEX(INDIRECT($Z22), MATCH('Calc - Sparklines'!$C$1,INDIRECT($AA22),0), MATCH('Calc - Sparklines'!$D22,INDIRECT($AB22),0)-G$3)),NA()) ->  | H22: =IFERROR(IF(ISNUMBER( INDEX(INDIRECT($Z22), MATCH('Calc - Sparklines'!$C$1,INDIRECT($AA22),0), MATCH('Calc - Sparklines'!$D22,INDIRECT($AB22),0)-H$3))=FALSE,NA(), INDEX(INDIRECT($Z22), MATCH('Calc - Sparklines'!$C$1,INDIRECT($AA22),0), MATCH('Calc - Sparklines'!$D22,INDIRECT($AB22),0)-H$3)),NA()) ->  | I22: =IFERROR(IF(ISNUMBER( INDEX(INDIRECT($Z22), MATCH('Calc - Sparklines'!$C$1,INDIRECT($AA22),0), MATCH('Calc - Sparklines'!$D22,INDIRECT($AB22),0)-I$3))=FALSE,NA(), INDEX(INDIRECT($Z22), MATCH('Calc - Sparklines'!$C$1,INDIRECT($AA22),0), MATCH('Calc - Sparklines'!$D22,INDIRECT($AB22),0)-I$3)),NA()) ->  | J22: =IFERROR(IF(ISNUMBER( INDEX(INDIRECT($Z22), MATCH('Calc - Sparklines'!$C$1,INDIRECT($AA22),0), MATCH('Calc - Sparklines'!$D22,INDIRECT($AB22),0)-J$3))=FALSE,NA(), INDEX(INDIRECT($Z22), MATCH('Calc - Sparklines'!$C$1,INDIRECT($AA22),0), MATCH('Calc - Sparklines'!$D22,INDIRECT($AB22),0)-J$3)),NA()) ->  | K22: =IFERROR(IF(ISNUMBER( INDEX(INDIRECT($Z22), MATCH('Calc - Sparklines'!$C$1,INDIRECT($AA22),0), MATCH('Calc - Sparklines'!$D22,INDIRECT($AB22),0)-K$3))=FALSE,NA(), INDEX(INDIRECT($Z22), MATCH('Calc - Sparklines'!$C$1,INDIRECT($AA22),0), MATCH('Calc - Sparklines'!$D22,INDIRECT($AB22),0)-K$3)),NA()) ->  | L22: =IFERROR(IF(ISNUMBER( INDEX(INDIRECT($Z22), MATCH('Calc - Sparklines'!$C$1,INDIRECT($AA22),0), MATCH('Calc - Sparklines'!$D22,INDIRECT($AB22),0)-L$3))=FALSE,NA(), INDEX(INDIRECT($Z22), MATCH('Calc - Sparklines'!$C$1,INDIRECT($AA22),0), MATCH('Calc - Sparklines'!$D22,INDIRECT($AB22),0)-L$3)),NA()) ->  | M22: =IFERROR(IF(ISNUMBER( INDEX(INDIRECT($Z22), MATCH('Calc - Sparklines'!$C$1,INDIRECT($AA22),0), MATCH('Calc - Sparklines'!$D22,INDIRECT($AB22),0)-M$3))=FALSE,NA(), INDEX(INDIRECT($Z22), MATCH('Calc - Sparklines'!$C$1,INDIRECT($AA22),0), MATCH('Calc - Sparklines'!$D22,INDIRECT($AB22),0)-M$3)),NA()) ->  | N22: =IFERROR(IF(ISNUMBER( INDEX(INDIRECT($Z22), MATCH('Calc - Sparklines'!$C$1,INDIRECT($AA22),0), MATCH('Calc - Sparklines'!$D22,INDIRECT($AB22),0)-N$3))=FALSE,NA(), INDEX(INDIRECT($Z22), MATCH('Calc - Sparklines'!$C$1,INDIRECT($AA22),0), MATCH('Calc - Sparklines'!$D22,INDIRECT($AB22),0)-N$3)),NA()) ->  | O22: =IFERROR(IF(ISNUMBER( INDEX(INDIRECT($Z22), MATCH('Calc - Sparklines'!$C$1,INDIRECT($AA22),0), MATCH('Calc - Sparklines'!$D22,INDIRECT($AB22),0)-O$3))=FALSE,NA(), INDEX(INDIRECT($Z22), MATCH('Calc - Sparklines'!$C$1,INDIRECT($AA22),0), MATCH('Calc - Sparklines'!$D22,INDIRECT($AB22),0)-O$3)),NA()) ->  | P22: =IFERROR(IF(ISNUMBER( INDEX(INDIRECT($Z22), MATCH('Calc - Sparklines'!$C$1,INDIRECT($AA22),0), MATCH('Calc - Sparklines'!$D22,INDIRECT($AB22),0)-P$3))=FALSE,NA(), INDEX(INDIRECT($Z22), MATCH('Calc - Sparklines'!$C$1,INDIRECT($AA22),0), MATCH('Calc - Sparklines'!$D22,INDIRECT($AB22),0)-P$3)),NA()) -> 50720650.11 | R22: 0 | S22: 0 | T22: 50720650.11 | V22: N/A | X22: N/A | Z22: Data_Table_CYP_vi | AA22: Data_Orgs_CYP_vi | AB22: Data_Dates_CYP_vi
A23: Adult mental health: common mental health problems | B23: Adult mental health: common mental health problems | E23: =IFERROR(IF(ISNUMBER( INDEX(INDIRECT($Z23), MATCH('Calc - Sparklines'!$C$1,INDIRECT($AA23),0), MATCH('Calc - Sparklines'!$D23,INDIRECT($AB23),0)-E$3))=FALSE,NA(), INDEX(INDIRECT($Z23), MATCH('Calc - Sparklines'!$C$1,INDIRECT($AA23),0), MATCH('Calc - Sparklines'!$D23,INDIRECT($AB23),0)-E$3)),NA()) ->  | F23: =IFERROR(IF(ISNUMBER( INDEX(INDIRECT($Z23), MATCH('Calc - Sparklines'!$C$1,INDIRECT($AA23),0), MATCH('Calc - Sparklines'!$D23,INDIRECT($AB23),0)-F$3))=FALSE,NA(), INDEX(INDIRECT($Z23), MATCH('Calc - Sparklines'!$C$1,INDIRECT($AA23),0), MATCH('Calc - Sparklines'!$D23,INDIRECT($AB23),0)-F$3)),NA()) ->  | G23: =IFERROR(IF(ISNUMBER( INDEX(INDIRECT($Z23), MATCH('Calc - Sparklines'!$C$1,INDIRECT($AA23),0), MATCH('Calc - Sparklines'!$D23,INDIRECT($AB23),0)-G$3))=FALSE,NA(), INDEX(INDIRECT($Z23), MATCH('Calc - Sparklines'!$C$1,INDIRECT($AA23),0), MATCH('Calc - Sparklines'!$D23,INDIRECT($AB23),0)-G$3)),NA()) ->  | H23: =IFERROR(IF(ISNUMBER( INDEX(INDIRECT($Z23), MATCH('Calc - Sparklines'!$C$1,INDIRECT($AA23),0), MATCH('Calc - Sparklines'!$D23,INDIRECT($AB23),0)-H$3))=FALSE,NA(), INDEX(INDIRECT($Z23), MATCH('Calc - Sparklines'!$C$1,INDIRECT($AA23),0), MATCH('Calc - Sparklines'!$D23,INDIRECT($AB23),0)-H$3)),NA()) ->  | I23: =IFERROR(IF(ISNUMBER( INDEX(INDIRECT($Z23), MATCH('Calc - Sparklines'!$C$1,INDIRECT($AA23),0), MATCH('Calc - Sparklines'!$D23,INDIRECT($AB23),0)-I$3))=FALSE,NA(), INDEX(INDIRECT($Z23), MATCH('Calc - Sparklines'!$C$1,INDIRECT($AA23),0), MATCH('Calc - Sparklines'!$D23,INDIRECT($AB23),0)-I$3)),NA()) ->  | J23: =IFERROR(IF(ISNUMBER( INDEX(INDIRECT($Z23), MATCH('Calc - Sparklines'!$C$1,INDIRECT($AA23),0), MATCH('Calc - Sparklines'!$D23,INDIRECT($AB23),0)-J$3))=FALSE,NA(), INDEX(INDIRECT($Z23), MATCH('Calc - Sparklines'!$C$1,INDIRECT($AA23),0), MATCH('Calc - Sparklines'!$D23,INDIRECT($AB23),0)-J$3)),NA()) ->  | K23: =IFERROR(IF(ISNUMBER( INDEX(INDIRECT($Z23), MATCH('Calc - Sparklines'!$C$1,INDIRECT($AA23),0), MATCH('Calc - Sparklines'!$D23,INDIRECT($AB23),0)-K$3))=FALSE,NA(), INDEX(INDIRECT($Z23), MATCH('Calc - Sparklines'!$C$1,INDIRECT($AA23),0), MATCH('Calc - Sparklines'!$D23,INDIRECT($AB23),0)-K$3)),NA()) ->  | L23: =IFERROR(IF(ISNUMBER( INDEX(INDIRECT($Z23), MATCH('Calc - Sparklines'!$C$1,INDIRECT($AA23),0), MATCH('Calc - Sparklines'!$D23,INDIRECT($AB23),0)-L$3))=FALSE,NA(), INDEX(INDIRECT($Z23), MATCH('Calc - Sparklines'!$C$1,INDIRECT($AA23),0), MATCH('Calc - Sparklines'!$D23,INDIRECT($AB23),0)-L$3)),NA()) ->  | M23: =IFERROR(IF(ISNUMBER( INDEX(INDIRECT($Z23), MATCH('Calc - Sparklines'!$C$1,INDIRECT($AA23),0), MATCH('Calc - Sparklines'!$D23,INDIRECT($AB23),0)-M$3))=FALSE,NA(), INDEX(INDIRECT($Z23), MATCH('Calc - Sparklines'!$C$1,INDIRECT($AA23),0), MATCH('Calc - Sparklines'!$D23,INDIRECT($AB23),0)-M$3)),NA()) ->  | N23: =IFERROR(IF(ISNUMBER( INDEX(INDIRECT($Z23), MATCH('Calc - Sparklines'!$C$1,INDIRECT($AA23),0), MATCH('Calc - Sparklines'!$D23,INDIRECT($AB23),0)-N$3))=FALSE,NA(), INDEX(INDIRECT($Z23), MATCH('Calc - Sparklines'!$C$1,INDIRECT($AA23),0), MATCH('Calc - Sparklines'!$D23,INDIRECT($AB23),0)-N$3)),NA()) ->  | O23: =IFERROR(IF(ISNUMBER( INDEX(INDIRECT($Z23), MATCH('Calc - Sparklines'!$C$1,INDIRECT($AA23),0), MATCH('Calc - Sparklines'!$D23,INDIRECT($AB23),0)-O$3))=FALSE,NA(), INDEX(INDIRECT($Z23), MATCH('Calc - Sparklines'!$C$1,INDIRECT($AA23),0), MATCH('Calc - Sparklines'!$D23,INDIRECT($AB23),0)-O$3)),NA()) ->  | P23: =IFERROR(IF(ISNUMBER( INDEX(INDIRECT($Z23), MATCH('Calc - Sparklines'!$C$1,INDIRECT($AA23),0), MATCH('Calc - Sparklines'!$D23,INDIRECT($AB23),0)-P$3))=FALSE,NA(), INDEX(INDIRECT($Z23), MATCH('Calc - Sparklines'!$C$1,INDIRECT($AA23),0), MATCH('Calc - Sparklines'!$D23,INDIRECT($AB23),0)-P$3)),NA()) ->  | R23: 0 | X23: =IF(ISNA(T23),"N/A",IF(R23<=2,"N/A","")) -> N/A | AD23: Heading
A24: IAPT_i_a | B24: IAPT(i.a) | C24: IAPT access to treatment rate | D24: ='IAPT(i_a)_FINAL CALC'!B6 -> Q2 2018/19 | E24: =IFERROR(IF(ISNUMBER( INDEX(INDIRECT($Z24), MATCH('Calc - Sparklines'!$C$1,INDIRECT($AA24),0), MATCH('Calc - Sparklines'!$D24,INDIRECT($AB24),0)-E$3))=FALSE,NA(), INDEX(INDIRECT($Z24), MATCH('Calc - Sparklines'!$C$1,INDIRECT($AA24),0), MATCH('Calc - Sparklines'!$D24,INDIRECT($AB24),0)-E$3)),NA()) ->  | F24: =IFERROR(IF(ISNUMBER( INDEX(INDIRECT($Z24), MATCH('Calc - Sparklines'!$C$1,INDIRECT($AA24),0), MATCH('Calc - Sparklines'!$D24,INDIRECT($AB24),0)-F$3))=FALSE,NA(), INDEX(INDIRECT($Z24), MATCH('Calc - Sparklines'!$C$1,INDIRECT($AA24),0), MATCH('Calc - Sparklines'!$D24,INDIRECT($AB24),0)-F$3)),NA()) -> 0.04196837531 | G24: =IFERROR(IF(ISNUMBER( INDEX(INDIRECT($Z24), MATCH('Calc - Sparklines'!$C$1,INDIRECT($AA24),0), MATCH('Calc - Sparklines'!$D24,INDIRECT($AB24),0)-G$3))=FALSE,NA(), INDEX(INDIRECT($Z24), MATCH('Calc - Sparklines'!$C$1,INDIRECT($AA24),0), MATCH('Calc - Sparklines'!$D24,INDIRECT($AB24),0)-G$3)),NA()) -> 0.04004039662 | H24: =IFERROR(IF(ISNUMBER( INDEX(INDIRECT($Z24), MATCH('Calc - Sparklines'!$C$1,INDIRECT($AA24),0), MATCH('Calc - Sparklines'!$D24,INDIRECT($AB24),0)-H$3))=FALSE,NA(), INDEX(INDIRECT($Z24), MATCH('Calc - Sparklines'!$C$1,INDIRECT($AA24),0), MATCH('Calc - Sparklines'!$D24,INDIRECT($AB24),0)-H$3)),NA()) -> 0.03752950236 | I24: =IFERROR(IF(ISNUMBER( INDEX(INDIRECT($Z24), MATCH('Calc - Sparklines'!$C$1,INDIRECT($AA24),0), MATCH('Calc - Sparklines'!$D24,INDIRECT($AB24),0)-I$3))=FALSE,NA(), INDEX(INDIRECT($Z24), MATCH('Calc - Sparklines'!$C$1,INDIRECT($AA24),0), MATCH('Calc - Sparklines'!$D24,INDIRECT($AB24),0)-I$3)),NA()) -> 0.03806242492 | J24: =IFERROR(IF(ISNUMBER( INDEX(INDIRECT($Z24), MATCH('Calc - Sparklines'!$C$1,INDIRECT($AA24),0), MATCH('Calc - Sparklines'!$D24,INDIRECT($AB24),0)-J$3))=FALSE,NA(), INDEX(INDIRECT($Z24), MATCH('Calc - Sparklines'!$C$1,INDIRECT($AA24),0), MATCH('Calc - Sparklines'!$D24,INDIRECT($AB24),0)-J$3)),NA()) -> 0.04120502699 | K24: =IFERROR(IF(ISNUMBER( INDEX(INDIRECT($Z24), MATCH('Calc - Sparklines'!$C$1,INDIRECT($AA24),0), MATCH('Calc - Sparklines'!$D24,INDIRECT($AB24),0)-K$3))=FALSE,NA(), INDEX(INDIRECT($Z24), MATCH('Calc - Sparklines'!$C$1,INDIRECT($AA24),0), MATCH('Calc - Sparklines'!$D24,INDIRECT($AB24),0)-K$3)),NA()) -> 0.04030370169 | L24: =IFERROR(IF(ISNUMBER( INDEX(INDIRECT($Z24), MATCH('Calc - Sparklines'!$C$1,INDIRECT($AA24),0), MATCH('Calc - Sparklines'!$D24,INDIRECT($AB24),0)-L$3))=FALSE,NA(), INDEX(INDIRECT($Z24), MATCH('Calc - Sparklines'!$C$1,INDIRECT($AA24),0), MATCH('Calc - Sparklines'!$D24,INDIRECT($AB24),0)-L$3)),NA()) -> 0.04011036142 | M24: =IFERROR(IF(ISNUMBER( INDEX(INDIRECT($Z24), MATCH('Calc - Sparklines'!$C$1,INDIRECT($AA24),0), MATCH('Calc - Sparklines'!$D24,INDIRECT($AB24),0)-M$3))=FALSE,NA(), INDEX(INDIRECT($Z24), MATCH('Calc - Sparklines'!$C$1,INDIRECT($AA24),0), MATCH('Calc - Sparklines'!$D24,INDIRECT($AB24),0)-M$3)),NA()) -> 0.04036843719 | N24: =IFERROR(IF(ISNUMBER( INDEX(INDIRECT($Z24), MATCH('Calc - Sparklines'!$C$1,INDIRECT($AA24),0), MATCH('Calc - Sparklines'!$D24,INDIRECT($AB24),0)-N$3))=FALSE,NA(), INDEX(INDIRECT($Z24), MATCH('Calc - Sparklines'!$C$1,INDIRECT($AA24),0), MATCH('Calc - Sparklines'!$D24,INDIRECT($AB24),0)-N$3)),NA()) -> 0.0427111943 | O24: =IFERROR(IF(ISNUMBER( INDEX(INDIRECT($Z24), MATCH('Calc - Sparklines'!$C$1,INDIRECT($AA24),0), MATCH('Calc - Sparklines'!$D24,INDIRECT($AB24),0)-O$3))=FALSE,NA(), INDEX(INDIRECT($Z24), MATCH('Calc - Sparklines'!$C$1,INDIRECT($AA24),0), MATCH('Calc - Sparklines'!$D24,INDIRECT($AB24),0)-O$3)),NA()) -> 0.04200192594 | P24: =IFERROR(IF(ISNUMBER( INDEX(INDIRECT($Z24), MATCH('Calc - Sparklines'!$C$1,INDIRECT($AA24),0), MATCH('Calc - Sparklines'!$D24,INDIRECT($AB24),0)-P$3))=FALSE,NA(), INDEX(INDIRECT($Z24), MATCH('Calc - Sparklines'!$C$1,INDIRECT($AA24),0), MATCH('Calc - Sparklines'!$D24,INDIRECT($AB24),0)-P$3)),NA()) -> 0.04239202189 | R24: 6 | S24: 0 | T24: 0.04239202189 | U24: 0.04200192594 | V24: ▲ | W24: Sparkline12 | Z24: Data_Table_IAPT_i_a | AA24: Data_Orgs_IAPT_i_a | AB24: Data_Dates_IAPT_i_a | AD24: Chart available at CCG & STP level only | AE24: =IF(OR(Dashboard!$N$3=1,Dashboard!$N$3=2),"Chart available at CCG & STP level only","") -> Chart available at CCG & STP level only
A25: IAPT_i_b | B25: IAPT(i.b) | C25: IAPT % of all referrals that are for older people 65+ | D25: ='IAPT(i_b)_FINAL CALC'!B6 -> Q2 2018/19 | E25: =IFERROR(IF(ISNUMBER( INDEX(INDIRECT($Z25), MATCH('Calc - Sparklines'!$C$1,INDIRECT($AA25),0), MATCH('Calc - Sparklines'!$D25,INDIRECT($AB25),0)-E$3))=FALSE,NA(), INDEX(INDIRECT($Z25), MATCH('Calc - Sparklines'!$C$1,INDIRECT($AA25),0), MATCH('Calc - Sparklines'!$D25,INDIRECT($AB25),0)-E$3)),NA()) ->  | F25: =IFERROR(IF(ISNUMBER( INDEX(INDIRECT($Z25), MATCH('Calc - Sparklines'!$C$1,INDIRECT($AA25),0), MATCH('Calc - Sparklines'!$D25,INDIRECT($AB25),0)-F$3))=FALSE,NA(), INDEX(INDIRECT($Z25), MATCH('Calc - Sparklines'!$C$1,INDIRECT($AA25),0), MATCH('Calc - Sparklines'!$D25,INDIRECT($AB25),0)-F$3)),NA()) ->  | G25: =IFERROR(IF(ISNUMBER( INDEX(INDIRECT($Z25), MATCH('Calc - Sparklines'!$C$1,INDIRECT($AA25),0), MATCH('Calc - Sparklines'!$D25,INDIRECT($AB25),0)-G$3))=FALSE,NA(), INDEX(INDIRECT($Z25), MATCH('Calc - Sparklines'!$C$1,INDIRECT($AA25),0), MATCH('Calc - Sparklines'!$D25,INDIRECT($AB25),0)-G$3)),NA()) ->  | H25: =IFERROR(IF(ISNUMBER( INDEX(INDIRECT($Z25), MATCH('Calc - Sparklines'!$C$1,INDIRECT($AA25),0), MATCH('Calc - Sparklines'!$D25,INDIRECT($AB25),0)-H$3))=FALSE,NA(), INDEX(INDIRECT($Z25), MATCH('Calc - Sparklines'!$C$1,INDIRECT($AA25),0), MATCH('Calc - Sparklines'!$D25,INDIRECT($AB25),0)-H$3)),NA()) -> 0.07019107049 | I25: =IFERROR(IF(ISNUMBER( INDEX(INDIRECT($Z25), MATCH('Calc - Sparklines'!$C$1,INDIRECT($AA25),0), MATCH('Calc - Sparklines'!$D25,INDIRECT($AB25),0)-I$3))=FALSE,NA(), INDEX(INDIRECT($Z25), MATCH('Calc - Sparklines'!$C$1,INDIRECT($AA25),0), MATCH('Calc - Sparklines'!$D25,INDIRECT($AB25),0)-I$3)),NA()) -> 0.06117463801 | J25: =IFERROR(IF(ISNUMBER( INDEX(INDIRECT($Z25), MATCH('Calc - Sparklines'!$C$1,INDIRECT($AA25),0), MATCH('Calc - Sparklines'!$D25,INDIRECT($AB25),0)-J$3))=FALSE,NA(), INDEX(INDIRECT($Z25), MATCH('Calc - Sparklines'!$C$1,INDIRECT($AA25),0), MATCH('Calc - Sparklines'!$D25,INDIRECT($AB25),0)-J$3)),NA()) -> 0.06403633131 | K25: =IFERROR(IF(ISNUMBER( INDEX(INDIRECT($Z25), MATCH('Calc - Sparklines'!$C$1,INDIRECT($AA25),0), MATCH('Calc - Sparklines'!$D25,INDIRECT($AB25),0)-K$3))=FALSE,NA(), INDEX(INDIRECT($Z25), MATCH('Calc - Sparklines'!$C$1,INDIRECT($AA25),0), MATCH('Calc - Sparklines'!$D25,INDIRECT($AB25),0)-K$3)),NA()) -> 0.06786990036 | L25: =IFERROR(IF(ISNUMBER( INDEX(INDIRECT($Z25), MATCH('Calc - Sparklines'!$C$1,INDIRECT($AA25),0), MATCH('Calc - Sparklines'!$D25,INDIRECT($AB25),0)-L$3))=FALSE,NA(), INDEX(INDIRECT($Z25), MATCH('Calc - Sparklines'!$C$1,INDIRECT($AA25),0), MATCH('Calc - Sparklines'!$D25,INDIRECT($AB25),0)-L$3)),NA()) -> 0.0698328274 | M25: =IFERROR(IF(ISNUMBER( INDEX(INDIRECT($Z25), MATCH('Calc - Sparklines'!$C$1,INDIRECT($AA25),0), MATCH('Calc - Sparklines'!$D25,INDIRECT($AB25),0)-M$3))=FALSE,NA(), INDEX(INDIRECT($Z25), MATCH('Calc - Sparklines'!$C$1,INDIRECT($AA25),0), MATCH('Calc - Sparklines'!$D25,INDIRECT($AB25),0)-M$3)),NA()) -> 0.06498038852 | N25: =IFERROR(IF(ISNUMBER( INDEX(INDIRECT($Z25), MATCH('Calc - Sparklines'!$C$1,INDIRECT($AA25),0), MATCH('Calc - Sparklines'!$D25,INDIRECT($AB25),0)-N$3))=FALSE,NA(), INDEX(INDIRECT($Z25), MATCH('Calc - Sparklines'!$C$1,INDIRECT($AA25),0), MATCH('Calc - Sparklines'!$D25,INDIRECT($AB25),0)-N$3)),NA()) -> 0.06765652158 | O25: =IFERROR(IF(ISNUMBER( INDEX(INDIRECT($Z25), MATCH('Calc - Sparklines'!$C$1,INDIRECT($AA25),0), MATCH('Calc - Sparklines'!$D25,INDIRECT($AB25),0)-O$3))=FALSE,NA(), INDEX(INDIRECT($Z25), MATCH('Calc - Sparklines'!$C$1,INDIRECT($AA25),0), MATCH('Calc - Sparklines'!$D25,INDIRECT($AB25),0)-O$3)),NA()) -> 0.06930133626 | P25: =IFERROR(IF(ISNUMBER( INDEX(INDIRECT($Z25), MATCH('Calc - Sparklines'!$C$1,INDIRECT($AA25),0), MATCH('Calc - Sparklines'!$D25,INDIRECT($AB25),0)-P$3))=FALSE,NA(), INDEX(INDIRECT($Z25), MATCH('Calc - Sparklines'!$C$1,INDIRECT($AA25),0), MATCH('Calc - Sparklines'!$D25,INDIRECT($AB25),0)-P$3)),NA()) -> 0.06626504439 | R25: 6 | S25: 0 | T25: 0.06626504439 | U25: 0.06930133626 | V25: ▼ | W25: Sparkline13 | Z25: Data_Table_IAPT_i_b | AA25: Data_Orgs_IAPT_i_b | AB25: Data_Dates_IAPT_i_b | AD25: Chart available at CCG & STP level only | AE25: =IF(OR(Dashboard!$N$3=1,Dashboard!$N$3=2),"Chart available at CCG & STP level only","") -> Chart available at CCG & STP level only
A26: IAPT_ii_a | B26: IAPT(ii.a) | C26: IAPT recovery rate: % of people that attended at least 2 treatment contacts and are moving to recovery | D26: ='IAPT(ii_a)_FINAL CALC'!B6 -> Q2 2018/19 | E26: =IFERROR(IF(ISNUMBER( INDEX(INDIRECT($Z26), MATCH('Calc - Sparklines'!$C$1,INDIRECT($AA26),0), MATCH('Calc - Sparklines'!$D26,INDIRECT($AB26),0)-E$3))=FALSE,NA(), INDEX(INDIRECT($Z26), MATCH('Calc - Sparklines'!$C$1,INDIRECT($AA26),0), MATCH('Calc - Sparklines'!$D26,INDIRECT($AB26),0)-E$3)),NA()) ->  | F26: =IFERROR(IF(ISNUMBER( INDEX(INDIRECT($Z26), MATCH('Calc - Sparklines'!$C$1,INDIRECT($AA26),0), MATCH('Calc - Sparklines'!$D26,INDIRECT($AB26),0)-F$3))=FALSE,NA(), INDEX(INDIRECT($Z26), MATCH('Calc - Sparklines'!$C$1,INDIRECT($AA26),0), MATCH('Calc - Sparklines'!$D26,INDIRECT($AB26),0)-F$3)),NA()) -> 0.481968539 | G26: =IFERROR(IF(ISNUMBER( INDEX(INDIRECT($Z26), MATCH('Calc - Sparklines'!$C$1,INDIRECT($AA26),0), MATCH('Calc - Sparklines'!$D26,INDIRECT($AB26),0)-G$3))=FALSE,NA(), INDEX(INDIRECT($Z26), MATCH('Calc - Sparklines'!$C$1,INDIRECT($AA26),0), MATCH('Calc - Sparklines'!$D26,INDIRECT($AB26),0)-G$3)),NA()) -> 0.489 | H26: =IFERROR(IF(ISNUMBER( INDEX(INDIRECT($Z26), MATCH('Calc - Sparklines'!$C$1,INDIRECT($AA26),0), MATCH('Calc - Sparklines'!$D26,INDIRECT($AB26),0)-H$3))=FALSE,NA(), INDEX(INDIRECT($Z26), MATCH('Calc - Sparklines'!$C$1,INDIRECT($AA26),0), MATCH('Calc - Sparklines'!$D26,INDIRECT($AB26),0)-H$3)),NA()) -> 0.485 | I26: =IFERROR(IF(ISNUMBER( INDEX(INDIRECT($Z26), MATCH('Calc - Sparklines'!$C$1,INDIRECT($AA26),0), MATCH('Calc - Sparklines'!$D26,INDIRECT($AB26),0)-I$3))=FALSE,NA(), INDEX(INDIRECT($Z26), MATCH('Calc - Sparklines'!$C$1,INDIRECT($AA26),0), MATCH('Calc - Sparklines'!$D26,INDIRECT($AB26),0)-I$3)),NA()) -> 0.488 | J26: =IFERROR(IF(ISNUMBER( INDEX(INDIRECT($Z26), MATCH('Calc - Sparklines'!$C$1,INDIRECT($AA26),0), MATCH('Calc - Sparklines'!$D26,INDIRECT($AB26),0)-J$3))=FALSE,NA(), INDEX(INDIRECT($Z26), MATCH('Calc - Sparklines'!$C$1,INDIRECT($AA26),0), MATCH('Calc - Sparklines'!$D26,INDIRECT($AB26),0)-J$3)),NA()) -> 0.51 | K26: =IFERROR(IF(ISNUMBER( INDEX(INDIRECT($Z26), MATCH('Calc - Sparklines'!$C$1,INDIRECT($AA26),0), MATCH('Calc - Sparklines'!$D26,INDIRECT($AB26),0)-K$3))=FALSE,NA(), INDEX(INDIRECT($Z26), MATCH('Calc - Sparklines'!$C$1,INDIRECT($AA26),0), MATCH('Calc - Sparklines'!$D26,INDIRECT($AB26),0)-K$3)),NA()) -> 0.506 | L26: =IFERROR(IF(ISNUMBER( INDEX(INDIRECT($Z26), MATCH('Calc - Sparklines'!$C$1,INDIRECT($AA26),0), MATCH('Calc - Sparklines'!$D26,INDIRECT($AB26),0)-L$3))=FALSE,NA(), INDEX(INDIRECT($Z26), MATCH('Calc - Sparklines'!$C$1,INDIRECT($AA26),0), MATCH('Calc - Sparklines'!$D26,INDIRECT($AB26),0)-L$3)),NA()) -> 0.508 | M26: =IFERROR(IF(ISNUMBER( INDEX(INDIRECT($Z26), MATCH('Calc - Sparklines'!$C$1,INDIRECT($AA26),0), MATCH('Calc - Sparklines'!$D26,INDIRECT($AB26),0)-M$3))=FALSE,NA(), INDEX(INDIRECT($Z26), MATCH('Calc - Sparklines'!$C$1,INDIRECT($AA26),0), MATCH('Calc - Sparklines'!$D26,INDIRECT($AB26),0)-M$3)),NA()) -> 0.502 | N26: =IFERROR(IF(ISNUMBER( INDEX(INDIRECT($Z26), MATCH('Calc - Sparklines'!$C$1,INDIRECT($AA26),0), MATCH('Calc - Sparklines'!$D26,INDIRECT($AB26),0)-N$3))=FALSE,NA(), INDEX(INDIRECT($Z26), MATCH('Calc - Sparklines'!$C$1,INDIRECT($AA26),0), MATCH('Calc - Sparklines'!$D26,INDIRECT($AB26),0)-N$3)),NA()) -> 0.517 | O26: =IFERROR(IF(ISNUMBER( INDEX(INDIRECT($Z26), MATCH('Calc - Sparklines'!$C$1,INDIRECT($AA26),0), MATCH('Calc - Sparklines'!$D26,INDIRECT($AB26),0)-O$3))=FALSE,NA(), INDEX(INDIRECT($Z26), MATCH('Calc - Sparklines'!$C$1,INDIRECT($AA26),0), MATCH('Calc - Sparklines'!$D26,INDIRECT($AB26),0)-O$3)),NA()) -> 0.524 | P26: =IFERROR(IF(ISNUMBER( INDEX(INDIRECT($Z26), MATCH('Calc - Sparklines'!$C$1,INDIRECT($AA26),0), MATCH('Calc - Sparklines'!$D26,INDIRECT($AB26),0)-P$3))=FALSE,NA(), INDEX(INDIRECT($Z26), MATCH('Calc - Sparklines'!$C$1,INDIRECT($AA26),0), MATCH('Calc - Sparklines'!$D26,INDIRECT($AB26),0)-P$3)),NA()) -> 0.513 | R26: 6 | S26: 0 | T26: 0.513 | U26: 0.524 | V26: ▼ | W26: Sparkline14 | Z26: Data_Table_IAPT_ii_a | AA26: Data_Orgs_IAPT_ii_a | AB26: Data_Dates_IAPT_ii_a | AD26: Chart available at CCG & STP level only | AE26: =IF(OR(Dashboard!$N$3=1,Dashboard!$N$3=2),"Chart available at CCG & STP level only","") -> Chart available at CCG & STP level only
A27: IAPT_ii_b | B27: IAPT(ii.b) | C27: IAPT recovery rate for black or minority ethnic (BME) groups | D27: ='IAPT(ii_b)_FINAL CALC'!B6 -> Q2 2018/19 | E27: =IFERROR(IF(ISNUMBER( INDEX(INDIRECT($Z27), MATCH('Calc - Sparklines'!$C$1,INDIRECT($AA27),0), MATCH('Calc - Sparklines'!$D27,INDIRECT($AB27),0)-E$3))=FALSE,NA(), INDEX(INDIRECT($Z27), MATCH('Calc - Sparklines'!$C$1,INDIRECT($AA27),0), MATCH('Calc - Sparklines'!$D27,INDIRECT($AB27),0)-E$3)),NA()) ->  | F27: =IFERROR(IF(ISNUMBER( INDEX(INDIRECT($Z27), MATCH('Calc - Sparklines'!$C$1,INDIRECT($AA27),0), MATCH('Calc - Sparklines'!$D27,INDIRECT($AB27),0)-F$3))=FALSE,NA(), INDEX(INDIRECT($Z27), MATCH('Calc - Sparklines'!$C$1,INDIRECT($AA27),0), MATCH('Calc - Sparklines'!$D27,INDIRECT($AB27),0)-F$3)),NA()) -> 0.438 | G27: =IFERROR(IF(ISNUMBER( INDEX(INDIRECT($Z27), MATCH('Calc - Sparklines'!$C$1,INDIRECT($AA27),0), MATCH('Calc - Sparklines'!$D27,INDIRECT($AB27),0)-G$3))=FALSE,NA(), INDEX(INDIRECT($Z27), MATCH('Calc - Sparklines'!$C$1,INDIRECT($AA27),0), MATCH('Calc - Sparklines'!$D27,INDIRECT($AB27),0)-G$3)),NA()) -> 0.451 | H27: =IFERROR(IF(ISNUMBER( INDEX(INDIRECT($Z27), MATCH('Calc - Sparklines'!$C$1,INDIRECT($AA27),0), MATCH('Calc - Sparklines'!$D27,INDIRECT($AB27),0)-H$3))=FALSE,NA(), INDEX(INDIRECT($Z27), MATCH('Calc - Sparklines'!$C$1,INDIRECT($AA27),0), MATCH('Calc - Sparklines'!$D27,INDIRECT($AB27),0)-H$3)),NA()) -> 0.45 | I27: =IFERROR(IF(ISNUMBER( INDEX(INDIRECT($Z27), MATCH('Calc - Sparklines'!$C$1,INDIRECT($AA27),0), MATCH('Calc - Sparklines'!$D27,INDIRECT($AB27),0)-I$3))=FALSE,NA(), INDEX(INDIRECT($Z27), MATCH('Calc - Sparklines'!$C$1,INDIRECT($AA27),0), MATCH('Calc - Sparklines'!$D27,INDIRECT($AB27),0)-I$3)),NA()) -> 0.457 | J27: =IFERROR(IF(ISNUMBER( INDEX(INDIRECT($Z27), MATCH('Calc - Sparklines'!$C$1,INDIRECT($AA27),0), MATCH('Calc - Sparklines'!$D27,INDIRECT($AB27),0)-J$3))=FALSE,NA(), INDEX(INDIRECT($Z27), MATCH('Calc - Sparklines'!$C$1,INDIRECT($AA27),0), MATCH('Calc - Sparklines'!$D27,INDIRECT($AB27),0)-J$3)),NA()) -> 0.47 | K27: =IFERROR(IF(ISNUMBER( INDEX(INDIRECT($Z27), MATCH('Calc - Sparklines'!$C$1,INDIRECT($AA27),0), MATCH('Calc - Sparklines'!$D27,INDIRECT($AB27),0)-K$3))=FALSE,NA(), INDEX(INDIRECT($Z27), MATCH('Calc - Sparklines'!$C$1,INDIRECT($AA27),0), MATCH('Calc - Sparklines'!$D27,INDIRECT($AB27),0)-K$3)),NA()) -> 0.468 | L27: =IFERROR(IF(ISNUMBER( INDEX(INDIRECT($Z27), MATCH('Calc - Sparklines'!$C$1,INDIRECT($AA27),0), MATCH('Calc - Sparklines'!$D27,INDIRECT($AB27),0)-L$3))=FALSE,NA(), INDEX(INDIRECT($Z27), MATCH('Calc - Sparklines'!$C$1,INDIRECT($AA27),0), MATCH('Calc - Sparklines'!$D27,INDIRECT($AB27),0)-L$3)),NA()) -> 0.473 | M27: =IFERROR(IF(ISNUMBER( INDEX(INDIRECT($Z27), MATCH('Calc - Sparklines'!$C$1,INDIRECT($AA27),0), MATCH('Calc - Sparklines'!$D27,INDIRECT($AB27),0)-M$3))=FALSE,NA(), INDEX(INDIRECT($Z27), MATCH('Calc - Sparklines'!$C$1,INDIRECT($AA27),0), MATCH('Calc - Sparklines'!$D27,INDIRECT($AB27),0)-M$3)),NA()) -> 0.468 | N27: =IFERROR(IF(ISNUMBER( INDEX(INDIRECT($Z27), MATCH('Calc - Sparklines'!$C$1,INDIRECT($AA27),0), MATCH('Calc - Sparklines'!$D27,INDIRECT($AB27),0)-N$3))=FALSE,NA(), INDEX(INDIRECT($Z27), MATCH('Calc - Sparklines'!$C$1,INDIRECT($AA27),0), MATCH('Calc - Sparklines'!$D27,INDIRECT($AB27),0)-N$3)),NA()) -> 0.482 | O27: =IFERROR(IF(ISNUMBER( INDEX(INDIRECT($Z27), MATCH('Calc - Sparklines'!$C$1,INDIRECT($AA27),0), MATCH('Calc - Sparklines'!$D27,INDIRECT($AB27),0)-O$3))=FALSE,NA(), INDEX(INDIRECT($Z27), MATCH('Calc - Sparklines'!$C$1,INDIRECT($AA27),0), MATCH('Calc - Sparklines'!$D27,INDIRECT($AB27),0)-O$3)),NA()) -> 0.495 | P27: =IFERROR(IF(ISNUMBER( INDEX(INDIRECT($Z27), MATCH('Calc - Sparklines'!$C$1,INDIRECT($AA27),0), MATCH('Calc - Sparklines'!$D27,INDIRECT($AB27),0)-P$3))=FALSE,NA(), INDEX(INDIRECT($Z27), MATCH('Calc - Sparklines'!$C$1,INDIRECT($AA27),0), MATCH('Calc - Sparklines'!$D27,INDIRECT($AB27),0)-P$3)),NA()) -> 0.479 | R27: 6 | S27: 0 | T27: 0.479 | U27: 0.495 | V27: ▼ | W27: Sparkline15 | Z27: Data_Table_IAPT_ii_b | AA27: Data_Orgs_IAPT_ii_b | AB27: Data_Dates_IAPT_ii_b | AD27: Chart available at CCG & STP level only | AE27: =IF(OR(Dashboard!$N$3=1,Dashboard!$N$3=2),"Chart available at CCG & STP level only","") -> Chart available at CCG & STP level only
A28: IAPT_iii_a | B28: IAPT(iii.a) | C28: IAPT: % of people receiving first treatment appointment within 6 weeks of referral | D28: ='IAPT(iii_a)_FINAL CALC'!B6 -> Q2 2018/19 | E28: =IFERROR(IF(ISNUMBER( INDEX(INDIRECT($Z28), MATCH('Calc - Sparklines'!$C$1,INDIRECT($AA28),0), MATCH('Calc - Sparklines'!$D28,INDIRECT($AB28),0)-E$3))=FALSE,NA(), INDEX(INDIRECT($Z28), MATCH('Calc - Sparklines'!$C$1,INDIRECT($AA28),0), MATCH('Calc - Sparklines'!$D28,INDIRECT($AB28),0)-E$3)),NA()) ->  | F28: =IFERROR(IF(ISNUMBER( INDEX(INDIRECT($Z28), MATCH('Calc - Sparklines'!$C$1,INDIRECT($AA28),0), MATCH('Calc - Sparklines'!$D28,INDIRECT($AB28),0)-F$3))=FALSE,NA(), INDEX(INDIRECT($Z28), MATCH('Calc - Sparklines'!$C$1,INDIRECT($AA28),0), MATCH('Calc - Sparklines'!$D28,INDIRECT($AB28),0)-F$3)),NA()) ->  | G28: =IFERROR(IF(ISNUMBER( INDEX(INDIRECT($Z28), MATCH('Calc - Sparklines'!$C$1,INDIRECT($AA28),0), MATCH('Calc - Sparklines'!$D28,INDIRECT($AB28),0)-G$3))=FALSE,NA(), INDEX(INDIRECT($Z28), MATCH('Calc - Sparklines'!$C$1,INDIRECT($AA28),0), MATCH('Calc - Sparklines'!$D28,INDIRECT($AB28),0)-G$3)),NA()) -> 0.8456414993 | H28: =IFERROR(IF(ISNUMBER( INDEX(INDIRECT($Z28), MATCH('Calc - Sparklines'!$C$1,INDIRECT($AA28),0), MATCH('Calc - Sparklines'!$D28,INDIRECT($AB28),0)-H$3))=FALSE,NA(), INDEX(INDIRECT($Z28), MATCH('Calc - Sparklines'!$C$1,INDIRECT($AA28),0), MATCH('Calc - Sparklines'!$D28,INDIRECT($AB28),0)-H$3)),NA()) -> 0.8672008928 | I28: =IFERROR(IF(ISNUMBER( INDEX(INDIRECT($Z28), MATCH('Calc - Sparklines'!$C$1,INDIRECT($AA28),0), MATCH('Calc - Sparklines'!$D28,INDIRECT($AB28),0)-I$3))=FALSE,NA(), INDEX(INDIRECT($Z28), MATCH('Calc - Sparklines'!$C$1,INDIRECT($AA28),0), MATCH('Calc - Sparklines'!$D28,INDIRECT($AB28),0)-I$3)),NA()) -> 0.8864402442 | J28: =IFERROR(IF(ISNUMBER( INDEX(INDIRECT($Z28), MATCH('Calc - Sparklines'!$C$1,INDIRECT($AA28),0), MATCH('Calc - Sparklines'!$D28,INDIRECT($AB28),0)-J$3))=FALSE,NA(), INDEX(INDIRECT($Z28), MATCH('Calc - Sparklines'!$C$1,INDIRECT($AA28),0), MATCH('Calc - Sparklines'!$D28,INDIRECT($AB28),0)-J$3)),NA()) -> 0.8964721093 | K28: =IFERROR(IF(ISNUMBER( INDEX(INDIRECT($Z28), MATCH('Calc - Sparklines'!$C$1,INDIRECT($AA28),0), MATCH('Calc - Sparklines'!$D28,INDIRECT($AB28),0)-K$3))=FALSE,NA(), INDEX(INDIRECT($Z28), MATCH('Calc - Sparklines'!$C$1,INDIRECT($AA28),0), MATCH('Calc - Sparklines'!$D28,INDIRECT($AB28),0)-K$3)),NA()) -> 0.892 | L28: =IFERROR(IF(ISNUMBER( INDEX(INDIRECT($Z28), MATCH('Calc - Sparklines'!$C$1,INDIRECT($AA28),0), MATCH('Calc - Sparklines'!$D28,INDIRECT($AB28),0)-L$3))=FALSE,NA(), INDEX(INDIRECT($Z28), MATCH('Calc - Sparklines'!$C$1,INDIRECT($AA28),0), MATCH('Calc - Sparklines'!$D28,INDIRECT($AB28),0)-L$3)),NA()) -> 0.886 | M28: =IFERROR(IF(ISNUMBER( INDEX(INDIRECT($Z28), MATCH('Calc - Sparklines'!$C$1,INDIRECT($AA28),0), MATCH('Calc - Sparklines'!$D28,INDIRECT($AB28),0)-M$3))=FALSE,NA(), INDEX(INDIRECT($Z28), MATCH('Calc - Sparklines'!$C$1,INDIRECT($AA28),0), MATCH('Calc - Sparklines'!$D28,INDIRECT($AB28),0)-M$3)),NA()) -> 0.89 | N28: =IFERROR(IF(ISNUMBER( INDEX(INDIRECT($Z28), MATCH('Calc - Sparklines'!$C$1,INDIRECT($AA28),0), MATCH('Calc - Sparklines'!$D28,INDIRECT($AB28),0)-N$3))=FALSE,NA(), INDEX(INDIRECT($Z28), MATCH('Calc - Sparklines'!$C$1,INDIRECT($AA28),0), MATCH('Calc - Sparklines'!$D28,INDIRECT($AB28),0)-N$3)),NA()) -> 0.893 | O28: =IFERROR(IF(ISNUMBER( INDEX(INDIRECT($Z28), MATCH('Calc - Sparklines'!$C$1,INDIRECT($AA28),0), MATCH('Calc - Sparklines'!$D28,INDIRECT($AB28),0)-O$3))=FALSE,NA(), INDEX(INDIRECT($Z28), MATCH('Calc - Sparklines'!$C$1,INDIRECT($AA28),0), MATCH('Calc - Sparklines'!$D28,INDIRECT($AB28),0)-O$3)),NA()) -> 0.895 | P28: =IFERROR(IF(ISNUMBER( INDEX(INDIRECT($Z28), MATCH('Calc - Sparklines'!$C$1,INDIRECT($AA28),0), MATCH('Calc - Sparklines'!$D28,INDIRECT($AB28),0)-P$3))=FALSE,NA(), INDEX(INDIRECT($Z28), MATCH('Calc - Sparklines'!$C$1,INDIRECT($AA28),0), MATCH('Calc - Sparklines'!$D28,INDIRECT($AB28),0)-P$3)),NA()) -> 0.895 | R28: 6 | S28: 0 | T28: 0.895 | U28: 0.895 | V28: ◄► | W28: Sparkline16 | Z28: Data_Table_IAPT_iii_a | AA28: Data_Orgs_IAPT_iii_a | AB28: Data_Dates_IAPT_iii_a | AD28: Chart available at CCG & STP level only | AE28: =IF(OR(Dashboard!$N$3=1,Dashboard!$N$3=2),"Chart available at CCG & STP level only","") -> Chart available at CCG & STP level only
A29: IAPT_iii_b | B29: IAPT(iii.b) | C29: IAPT: % of people receiving first treatment appointment within 18 weeks of referral | D29: ='IAPT(iii_b)_FINAL CALC'!B6 -> Q2 2018/19 | E29: =IFERROR(IF(ISNUMBER( INDEX(INDIRECT($Z29), MATCH('Calc - Sparklines'!$C$1,INDIRECT($AA29),0), MATCH('Calc - Sparklines'!$D29,INDIRECT($AB29),0)-E$3))=FALSE,NA(), INDEX(INDIRECT($Z29), MATCH('Calc - Sparklines'!$C$1,INDIRECT($AA29),0), MATCH('Calc - Sparklines'!$D29,INDIRECT($AB29),0)-E$3)),NA()) ->  | F29: =IFERROR(IF(ISNUMBER( INDEX(INDIRECT($Z29), MATCH('Calc - Sparklines'!$C$1,INDIRECT($AA29),0), MATCH('Calc - Sparklines'!$D29,INDIRECT($AB29),0)-F$3))=FALSE,NA(), INDEX(INDIRECT($Z29), MATCH('Calc - Sparklines'!$C$1,INDIRECT($AA29),0), MATCH('Calc - Sparklines'!$D29,INDIRECT($AB29),0)-F$3)),NA()) ->  | G29: =IFERROR(IF(ISNUMBER( INDEX(INDIRECT($Z29), MATCH('Calc - Sparklines'!$C$1,INDIRECT($AA29),0), MATCH('Calc - Sparklines'!$D29,INDIRECT($AB29),0)-G$3))=FALSE,NA(), INDEX(INDIRECT($Z29), MATCH('Calc - Sparklines'!$C$1,INDIRECT($AA29),0), MATCH('Calc - Sparklines'!$D29,INDIRECT($AB29),0)-G$3)),NA()) -> 0.9726217678 | H29: =IFERROR(IF(ISNUMBER( INDEX(INDIRECT($Z29), MATCH('Calc - Sparklines'!$C$1,INDIRECT($AA29),0), MATCH('Calc - Sparklines'!$D29,INDIRECT($AB29),0)-H$3))=FALSE,NA(), INDEX(INDIRECT($Z29), MATCH('Calc - Sparklines'!$C$1,INDIRECT($AA29),0), MATCH('Calc - Sparklines'!$D29,INDIRECT($AB29),0)-H$3)),NA()) -> 0.9800135797 | I29: =IFERROR(IF(ISNUMBER( INDEX(INDIRECT($Z29), MATCH('Calc - Sparklines'!$C$1,INDIRECT($AA29),0), MATCH('Calc - Sparklines'!$D29,INDIRECT($AB29),0)-I$3))=FALSE,NA(), INDEX(INDIRECT($Z29), MATCH('Calc - Sparklines'!$C$1,INDIRECT($AA29),0), MATCH('Calc - Sparklines'!$D29,INDIRECT($AB29),0)-I$3)),NA()) -> 0.983957884 | J29: =IFERROR(IF(ISNUMBER( INDEX(INDIRECT($Z29), MATCH('Calc - Sparklines'!$C$1,INDIRECT($AA29),0), MATCH('Calc - Sparklines'!$D29,INDIRECT($AB29),0)-J$3))=FALSE,NA(), INDEX(INDIRECT($Z29), MATCH('Calc - Sparklines'!$C$1,INDIRECT($AA29),0), MATCH('Calc - Sparklines'!$D29,INDIRECT($AB29),0)-J$3)),NA()) -> 0.988 | K29: =IFERROR(IF(ISNUMBER( INDEX(INDIRECT($Z29), MATCH('Calc - Sparklines'!$C$1,INDIRECT($AA29),0), MATCH('Calc - Sparklines'!$D29,INDIRECT($AB29),0)-K$3))=FALSE,NA(), INDEX(INDIRECT($Z29), MATCH('Calc - Sparklines'!$C$1,INDIRECT($AA29),0), MATCH('Calc - Sparklines'!$D29,INDIRECT($AB29),0)-K$3)),NA()) -> 0.99 | L29: =IFERROR(IF(ISNUMBER( INDEX(INDIRECT($Z29), MATCH('Calc - Sparklines'!$C$1,INDIRECT($AA29),0), MATCH('Calc - Sparklines'!$D29,INDIRECT($AB29),0)-L$3))=FALSE,NA(), INDEX(INDIRECT($Z29), MATCH('Calc - Sparklines'!$C$1,INDIRECT($AA29),0), MATCH('Calc - Sparklines'!$D29,INDIRECT($AB29),0)-L$3)),NA()) -> 0.989 | M29: =IFERROR(IF(ISNUMBER( INDEX(INDIRECT($Z29), MATCH('Calc - Sparklines'!$C$1,INDIRECT($AA29),0), MATCH('Calc - Sparklines'!$D29,INDIRECT($AB29),0)-M$3))=FALSE,NA(), INDEX(INDIRECT($Z29), MATCH('Calc - Sparklines'!$C$1,INDIRECT($AA29),0), MATCH('Calc - Sparklines'!$D29,INDIRECT($AB29),0)-M$3)),NA()) -> 0.987 | N29: =IFERROR(IF(ISNUMBER( INDEX(INDIRECT($Z29), MATCH('Calc - Sparklines'!$C$1,INDIRECT($AA29),0), MATCH('Calc - Sparklines'!$D29,INDIRECT($AB29),0)-N$3))=FALSE,NA(), INDEX(INDIRECT($Z29), MATCH('Calc - Sparklines'!$C$1,INDIRECT($AA29),0), MATCH('Calc - Sparklines'!$D29,INDIRECT($AB29),0)-N$3)),NA()) -> 0.987 | O29: =IFERROR(IF(ISNUMBER( INDEX(INDIRECT($Z29), MATCH('Calc - Sparklines'!$C$1,INDIRECT($AA29),0), MATCH('Calc - Sparklines'!$D29,INDIRECT($AB29),0)-O$3))=FALSE,NA(), INDEX(INDIRECT($Z29), MATCH('Calc - Sparklines'!$C$1,INDIRECT($AA29),0), MATCH('Calc - Sparklines'!$D29,INDIRECT($AB29),0)-O$3)),NA()) -> 0.99 | P29: =IFERROR(IF(ISNUMBER( INDEX(INDIRECT($Z29), MATCH('Calc - Sparklines'!$C$1,INDIRECT($AA29),0), MATCH('Calc - Sparklines'!$D29,INDIRECT($AB29),0)-P$3))=FALSE,NA(), INDEX(INDIRECT($Z29), MATCH('Calc - Sparklines'!$C$1,INDIRECT($AA29),0), MATCH('Calc - Sparklines'!$D29,INDIRECT($AB29),0)-P$3)),NA()) -> 0.991 | R29: 6 | S29: 0 | T29: 0.991 | U29: 0.99 | V29: ▲ | W29: Sparkline17 | Z29: Data_Table_IAPT_iii_b | AA29: Data_Orgs_IAPT_iii_b | AB29: Data_Dates_IAPT_iii_b | AD29: Not Applicable | AE29: Not Applicable
A30: IAPT_iv | B30: IAPT(iv) | C30: IAPT forecast outturn (£k) | D30: ='IAPT(iv)_FINAL CALC'!B6 -> 2018/19 planned | E30: =IFERROR(IF(ISNUMBER( INDEX(INDIRECT($Z30), MATCH('Calc - Sparklines'!$C$1,INDIRECT($AA30),0), MATCH('Calc - Sparklines'!$D30,INDIRECT($AB30),0)-E$3))=FALSE,NA(), INDEX(INDIRECT($Z30), MATCH('Calc - Sparklines'!$C$1,INDIRECT($AA30),0), MATCH('Calc - Sparklines'!$D30,INDIRECT($AB30),0)-E$3)),NA()) ->  | F30: =IFERROR(IF(ISNUMBER( INDEX(INDIRECT($Z30), MATCH('Calc - Sparklines'!$C$1,INDIRECT($AA30),0), MATCH('Calc - Sparklines'!$D30,INDIRECT($AB30),0)-F$3))=FALSE,NA(), INDEX(INDIRECT($Z30), MATCH('Calc - Sparklines'!$C$1,INDIRECT($AA30),0), MATCH('Calc - Sparklines'!$D30,INDIRECT($AB30),0)-F$3)),NA()) ->  | G30: =IFERROR(IF(ISNUMBER( INDEX(INDIRECT($Z30), MATCH('Calc - Sparklines'!$C$1,INDIRECT($AA30),0), MATCH('Calc - Sparklines'!$D30,INDIRECT($AB30),0)-G$3))=FALSE,NA(), INDEX(INDIRECT($Z30), MATCH('Calc - Sparklines'!$C$1,INDIRECT($AA30),0), MATCH('Calc - Sparklines'!$D30,INDIRECT($AB30),0)-G$3)),NA()) ->  | H30: =IFERROR(IF(ISNUMBER( INDEX(INDIRECT($Z30), MATCH('Calc - Sparklines'!$C$1,INDIRECT($AA30),0), MATCH('Calc - Sparklines'!$D30,INDIRECT($AB30),0)-H$3))=FALSE,NA(), INDEX(INDIRECT($Z30), MATCH('Calc - Sparklines'!$C$1,INDIRECT($AA30),0), MATCH('Calc - Sparklines'!$D30,INDIRECT($AB30),0)-H$3)),NA()) ->  | I30: =IFERROR(IF(ISNUMBER( INDEX(INDIRECT($Z30), MATCH('Calc - Sparklines'!$C$1,INDIRECT($AA30),0), MATCH('Calc - Sparklines'!$D30,INDIRECT($AB30),0)-I$3))=FALSE,NA(), INDEX(INDIRECT($Z30), MATCH('Calc - Sparklines'!$C$1,INDIRECT($AA30),0), MATCH('Calc - Sparklines'!$D30,INDIRECT($AB30),0)-I$3)),NA()) ->  | J30: =IFERROR(IF(ISNUMBER( INDEX(INDIRECT($Z30), MATCH('Calc - Sparklines'!$C$1,INDIRECT($AA30),0), MATCH('Calc - Sparklines'!$D30,INDIRECT($AB30),0)-J$3))=FALSE,NA(), INDEX(INDIRECT($Z30), MATCH('Calc - Sparklines'!$C$1,INDIRECT($AA30),0), MATCH('Calc - Sparklines'!$D30,INDIRECT($AB30),0)-J$3)),NA()) ->  | K30: =IFERROR(IF(ISNUMBER( INDEX(INDIRECT($Z30), MATCH('Calc - Sparklines'!$C$1,INDIRECT($AA30),0), MATCH('Calc - Sparklines'!$D30,INDIRECT($AB30),0)-K$3))=FALSE,NA(), INDEX(INDIRECT($Z30), MATCH('Calc - Sparklines'!$C$1,INDIRECT($AA30),0), MATCH('Calc - Sparklines'!$D30,INDIRECT($AB30),0)-K$3)),NA()) ->  | L30: =IFERROR(IF(ISNUMBER( INDEX(INDIRECT($Z30), MATCH('Calc - Sparklines'!$C$1,INDIRECT($AA30),0), MATCH('Calc - Sparklines'!$D30,INDIRECT($AB30),0)-L$3))=FALSE,NA(), INDEX(INDIRECT($Z30), MATCH('Calc - Sparklines'!$C$1,INDIRECT($AA30),0), MATCH('Calc - Sparklines'!$D30,INDIRECT($AB30),0)-L$3)),NA()) ->  | M30: =IFERROR(IF(ISNUMBER( INDEX(INDIRECT($Z30), MATCH('Calc - Sparklines'!$C$1,INDIRECT($AA30),0), MATCH('Calc - Sparklines'!$D30,INDIRECT($AB30),0)-M$3))=FALSE,NA(), INDEX(INDIRECT($Z30), MATCH('Calc - Sparklines'!$C$1,INDIRECT($AA30),0), MATCH('Calc - Sparklines'!$D30,INDIRECT($AB30),0)-M$3)),NA()) ->  | N30: =IFERROR(IF(ISNUMBER( INDEX(INDIRECT($Z30), MATCH('Calc - Sparklines'!$C$1,INDIRECT($AA30),0), MATCH('Calc - Sparklines'!$D30,INDIRECT($AB30),0)-N$3))=FALSE,NA(), INDEX(INDIRECT($Z30), MATCH('Calc - Sparklines'!$C$1,INDIRECT($AA30),0), MATCH('Calc - Sparklines'!$D30,INDIRECT($AB30),0)-N$3)),NA()) ->  | O30: =IFERROR(IF(ISNUMBER( INDEX(INDIRECT($Z30), MATCH('Calc - Sparklines'!$C$1,INDIRECT($AA30),0), MATCH('Calc - Sparklines'!$D30,INDIRECT($AB30),0)-O$3))=FALSE,NA(), INDEX(INDIRECT($Z30), MATCH('Calc - Sparklines'!$C$1,INDIRECT($AA30),0), MATCH('Calc - Sparklines'!$D30,INDIRECT($AB30),0)-O$3)),NA()) ->  | P30: =IFERROR(IF(ISNUMBER( INDEX(INDIRECT($Z30), MATCH('Calc - Sparklines'!$C$1,INDIRECT($AA30),0), MATCH('Calc - Sparklines'!$D30,INDIRECT($AB30),0)-P$3))=FALSE,NA(), INDEX(INDIRECT($Z30), MATCH('Calc - Sparklines'!$C$1,INDIRECT($AA30),0), MATCH('Calc - Sparklines'!$D30,INDIRECT($AB30),0)-P$3)),NA()) -> 479857086.7 | R30: 0 | S30: 0 | T30: 479857086.7 | V30: N/A | X30: N/A | Z30: Data_Table_IAPT_iv | AA30: Data_Orgs_IAPT_iv | AB30: Data_Dates_IAPT_iv
A31: EIP | B31: EIP | E31: =IFERROR(IF(ISNUMBER( INDEX(INDIRECT($Z31), MATCH('Calc - Sparklines'!$C$1,INDIRECT($AA31),0), MATCH('Calc - Sparklines'!$D31,INDIRECT($AB31),0)-E$3))=FALSE,NA(), INDEX(INDIRECT($Z31), MATCH('Calc - Sparklines'!$C$1,INDIRECT($AA31),0), MATCH('Calc - Sparklines'!$D31,INDIRECT($AB31),0)-E$3)),NA()) ->  | F31: =IFERROR(IF(ISNUMBER( INDEX(INDIRECT($Z31), MATCH('Calc - Sparklines'!$C$1,INDIRECT($AA31),0), MATCH('Calc - Sparklines'!$D31,INDIRECT($AB31),0)-F$3))=FALSE,NA(), INDEX(INDIRECT($Z31), MATCH('Calc - Sparklines'!$C$1,INDIRECT($AA31),0), MATCH('Calc - Sparklines'!$D31,INDIRECT($AB31),0)-F$3)),NA()) ->  | G31: =IFERROR(IF(ISNUMBER( INDEX(INDIRECT($Z31), MATCH('Calc - Sparklines'!$C$1,INDIRECT($AA31),0), MATCH('Calc - Sparklines'!$D31,INDIRECT($AB31),0)-G$3))=FALSE,NA(), INDEX(INDIRECT($Z31), MATCH('Calc - Sparklines'!$C$1,INDIRECT($AA31),0), MATCH('Calc - Sparklines'!$D31,INDIRECT($AB31),0)-G$3)),NA()) ->  | H31: =IFERROR(IF(ISNUMBER( INDEX(INDIRECT($Z31), MATCH('Calc - Sparklines'!$C$1,INDIRECT($AA31),0), MATCH('Calc - Sparklines'!$D31,INDIRECT($AB31),0)-H$3))=FALSE,NA(), INDEX(INDIRECT($Z31), MATCH('Calc - Sparklines'!$C$1,INDIRECT($AA31),0), MATCH('Calc - Sparklines'!$D31,INDIRECT($AB31),0)-H$3)),NA()) ->  | I31: =IFERROR(IF(ISNUMBER( INDEX(INDIRECT($Z31), MATCH('Calc - Sparklines'!$C$1,INDIRECT($AA31),0), MATCH('Calc - Sparklines'!$D31,INDIRECT($AB31),0)-I$3))=FALSE,NA(), INDEX(INDIRECT($Z31), MATCH('Calc - Sparklines'!$C$1,INDIRECT($AA31),0), MATCH('Calc - Sparklines'!$D31,INDIRECT($AB31),0)-I$3)),NA()) ->  | J31: =IFERROR(IF(ISNUMBER( INDEX(INDIRECT($Z31), MATCH('Calc - Sparklines'!$C$1,INDIRECT($AA31),0), MATCH('Calc - Sparklines'!$D31,INDIRECT($AB31),0)-J$3))=FALSE,NA(), INDEX(INDIRECT($Z31), MATCH('Calc - Sparklines'!$C$1,INDIRECT($AA31),0), MATCH('Calc - Sparklines'!$D31,INDIRECT($AB31),0)-J$3)),NA()) ->  | K31: =IFERROR(IF(ISNUMBER( INDEX(INDIRECT($Z31), MATCH('Calc - Sparklines'!$C$1,INDIRECT($AA31),0), MATCH('Calc - Sparklines'!$D31,INDIRECT($AB31),0)-K$3))=FALSE,NA(), INDEX(INDIRECT($Z31), MATCH('Calc - Sparklines'!$C$1,INDIRECT($AA31),0), MATCH('Calc - Sparklines'!$D31,INDIRECT($AB31),0)-K$3)),NA()) ->  | L31: =IFERROR(IF(ISNUMBER( INDEX(INDIRECT($Z31), MATCH('Calc - Sparklines'!$C$1,INDIRECT($AA31),0), MATCH('Calc - Sparklines'!$D31,INDIRECT($AB31),0)-L$3))=FALSE,NA(), INDEX(INDIRECT($Z31), MATCH('Calc - Sparklines'!$C$1,INDIRECT($AA31),0), MATCH('Calc - Sparklines'!$D31,INDIRECT($AB31),0)-L$3)),NA()) ->  | M31: =IFERROR(IF(ISNUMBER( INDEX(INDIRECT($Z31), MATCH('Calc - Sparklines'!$C$1,INDIRECT($AA31),0), MATCH('Calc - Sparklines'!$D31,INDIRECT($AB31),0)-M$3))=FALSE,NA(), INDEX(INDIRECT($Z31), MATCH('Calc - Sparklines'!$C$1,INDIRECT($AA31),0), MATCH('Calc - Sparklines'!$D31,INDIRECT($AB31),0)-M$3)),NA()) ->  | N31: =IFERROR(IF(ISNUMBER( INDEX(INDIRECT($Z31), MATCH('Calc - Sparklines'!$C$1,INDIRECT($AA31),0), MATCH('Calc - Sparklines'!$D31,INDIRECT($AB31),0)-N$3))=FALSE,NA(), INDEX(INDIRECT($Z31), MATCH('Calc - Sparklines'!$C$1,INDIRECT($AA31),0), MATCH('Calc - Sparklines'!$D31,INDIRECT($AB31),0)-N$3)),NA()) ->  | O31: =IFERROR(IF(ISNUMBER( INDEX(INDIRECT($Z31), MATCH('Calc - Sparklines'!$C$1,INDIRECT($AA31),0), MATCH('Calc - Sparklines'!$D31,INDIRECT($AB31),0)-O$3))=FALSE,NA(), INDEX(INDIRECT($Z31), MATCH('Calc - Sparklines'!$C$1,INDIRECT($AA31),0), MATCH('Calc - Sparklines'!$D31,INDIRECT($AB31),0)-O$3)),NA()) ->  | P31: =IFERROR(IF(ISNUMBER( INDEX(INDIRECT($Z31), MATCH('Calc - Sparklines'!$C$1,INDIRECT($AA31),0), MATCH('Calc - Sparklines'!$D31,INDIRECT($AB31),0)-P$3))=FALSE,NA(), INDEX(INDIRECT($Z31), MATCH('Calc - Sparklines'!$C$1,INDIRECT($AA31),0), MATCH('Calc - Sparklines'!$D31,INDIRECT($AB31),0)-P$3)),NA()) ->  | R31: 0 | X31: N/A | AD31: Subheading
A32: EIP_i | B32: EIP(i) | C32: % of people who started treatment within 2 weeks of referral - All ages | D32: ='EIP(i)_FINAL CALC'!B6 -> Q2 2018/19 | E32: =IFERROR(IF(ISNUMBER( INDEX(INDIRECT($Z32), MATCH('Calc - Sparklines'!$C$1,INDIRECT($AA32),0), MATCH('Calc - Sparklines'!$D32,INDIRECT($AB32),0)-E$3))=FALSE,NA(), INDEX(INDIRECT($Z32), MATCH('Calc - Sparklines'!$C$1,INDIRECT($AA32),0), MATCH('Calc - Sparklines'!$D32,INDIRECT($AB32),0)-E$3)),NA()) ->  | F32: =IFERROR(IF(ISNUMBER( INDEX(INDIRECT($Z32), MATCH('Calc - Sparklines'!$C$1,INDIRECT($AA32),0), MATCH('Calc - Sparklines'!$D32,INDIRECT($AB32),0)-F$3))=FALSE,NA(), INDEX(INDIRECT($Z32), MATCH('Calc - Sparklines'!$C$1,INDIRECT($AA32),0), MATCH('Calc - Sparklines'!$D32,INDIRECT($AB32),0)-F$3)),NA()) -> 0.6293047433 | G32: =IFERROR(IF(ISNUMBER( INDEX(INDIRECT($Z32), MATCH('Calc - Sparklines'!$C$1,INDIRECT($AA32),0), MATCH('Calc - Sparklines'!$D32,INDIRECT($AB32),0)-G$3))=FALSE,NA(), INDEX(INDIRECT($Z32), MATCH('Calc - Sparklines'!$C$1,INDIRECT($AA32),0), MATCH('Calc - Sparklines'!$D32,INDIRECT($AB32),0)-G$3)),NA()) -> 0.6867061812 | H32: =IFERROR(IF(ISNUMBER( INDEX(INDIRECT($Z32), MATCH('Calc - Sparklines'!$C$1,INDIRECT($AA32),0), MATCH('Calc - Sparklines'!$D32,INDIRECT($AB32),0)-H$3))=FALSE,NA(), INDEX(INDIRECT($Z32), MATCH('Calc - Sparklines'!$C$1,INDIRECT($AA32),0), MATCH('Calc - Sparklines'!$D32,INDIRECT($AB32),0)-H$3)),NA()) -> 0.7619843924 | I32: =IFERROR(IF(ISNUMBER( INDEX(INDIRECT($Z32), MATCH('Calc - Sparklines'!$C$1,INDIRECT($AA32),0), MATCH('Calc - Sparklines'!$D32,INDIRECT($AB32),0)-I$3))=FALSE,NA(), INDEX(INDIRECT($Z32), MATCH('Calc - Sparklines'!$C$1,INDIRECT($AA32),0), MATCH('Calc - Sparklines'!$D32,INDIRECT($AB32),0)-I$3)),NA()) -> 0.7625737567 | J32: =IFERROR(IF(ISNUMBER( INDEX(INDIRECT($Z32), MATCH('Calc - Sparklines'!$C$1,INDIRECT($AA32),0), MATCH('Calc - Sparklines'!$D32,INDIRECT($AB32),0)-J$3))=FALSE,NA(), INDEX(INDIRECT($Z32), MATCH('Calc - Sparklines'!$C$1,INDIRECT($AA32),0), MATCH('Calc - Sparklines'!$D32,INDIRECT($AB32),0)-J$3)),NA()) -> 0.7659084365 | K32: =IFERROR(IF(ISNUMBER( INDEX(INDIRECT($Z32), MATCH('Calc - Sparklines'!$C$1,INDIRECT($AA32),0), MATCH('Calc - Sparklines'!$D32,INDIRECT($AB32),0)-K$3))=FALSE,NA(), INDEX(INDIRECT($Z32), MATCH('Calc - Sparklines'!$C$1,INDIRECT($AA32),0), MATCH('Calc - Sparklines'!$D32,INDIRECT($AB32),0)-K$3)),NA()) -> 0.7619793298 | L32: =IFERROR(IF(ISNUMBER( INDEX(INDIRECT($Z32), MATCH('Calc - Sparklines'!$C$1,INDIRECT($AA32),0), MATCH('Calc - Sparklines'!$D32,INDIRECT($AB32),0)-L$3))=FALSE,NA(), INDEX(INDIRECT($Z32), MATCH('Calc - Sparklines'!$C$1,INDIRECT($AA32),0), MATCH('Calc - Sparklines'!$D32,INDIRECT($AB32),0)-L$3)),NA()) -> 0.7560750538 | M32: =IFERROR(IF(ISNUMBER( INDEX(INDIRECT($Z32), MATCH('Calc - Sparklines'!$C$1,INDIRECT($AA32),0), MATCH('Calc - Sparklines'!$D32,INDIRECT($AB32),0)-M$3))=FALSE,NA(), INDEX(INDIRECT($Z32), MATCH('Calc - Sparklines'!$C$1,INDIRECT($AA32),0), MATCH('Calc - Sparklines'!$D32,INDIRECT($AB32),0)-M$3)),NA()) -> 0.7428023033 | N32: =IFERROR(IF(ISNUMBER( INDEX(INDIRECT($Z32), MATCH('Calc - Sparklines'!$C$1,INDIRECT($AA32),0), MATCH('Calc - Sparklines'!$D32,INDIRECT($AB32),0)-N$3))=FALSE,NA(), INDEX(INDIRECT($Z32), MATCH('Calc - Sparklines'!$C$1,INDIRECT($AA32),0), MATCH('Calc - Sparklines'!$D32,INDIRECT($AB32),0)-N$3)),NA()) -> 0.7396562699 | O32: =IFERROR(IF(ISNUMBER( INDEX(INDIRECT($Z32), MATCH('Calc - Sparklines'!$C$1,INDIRECT($AA32),0), MATCH('Calc - Sparklines'!$D32,INDIRECT($AB32),0)-O$3))=FALSE,NA(), INDEX(INDIRECT($Z32), MATCH('Calc - Sparklines'!$C$1,INDIRECT($AA32),0), MATCH('Calc - Sparklines'!$D32,INDIRECT($AB32),0)-O$3)),NA()) -> 0.7558569667 | P32: =IFERROR(IF(ISNUMBER( INDEX(INDIRECT($Z32), MATCH('Calc - Sparklines'!$C$1,INDIRECT($AA32),0), MATCH('Calc - Sparklines'!$D32,INDIRECT($AB32),0)-P$3))=FALSE,NA(), INDEX(INDIRECT($Z32), MATCH('Calc - Sparklines'!$C$1,INDIRECT($AA32),0), MATCH('Calc - Sparklines'!$D32,INDIRECT($AB32),0)-P$3)),NA()) -> 0.7542533081 | R32: 6 | S32: 0 | T32: 0.7542533081 | U32: 0.7558569667 | V32: ▼ | W32: Sparkline18 | Z32: Data_Table_EIP_i | AA32: Data_Orgs_EIP_i | AB32: Data_Dates_EIP_i | AD32: Placeholder | AE32: Placeholder
A33: EIP_i_a | B33: EIP(i.a) | C33: % of CCG commissioned EIP services meeting NICE level 2 | D33: ='EIP(i_a)_FINAL CALC'!B6 -> 2017/18 | E33: =IFERROR(IF(ISNUMBER( INDEX(INDIRECT($Z33), MATCH('Calc - Sparklines'!$C$1,INDIRECT($AA33),0), MATCH('Calc - Sparklines'!$D33,INDIRECT($AB33),0)-E$3))=FALSE,NA(), INDEX(INDIRECT($Z33), MATCH('Calc - Sparklines'!$C$1,INDIRECT($AA33),0), MATCH('Calc - Sparklines'!$D33,INDIRECT($AB33),0)-E$3)),NA()) ->  | F33: =IFERROR(IF(ISNUMBER( INDEX(INDIRECT($Z33), MATCH('Calc - Sparklines'!$C$1,INDIRECT($AA33),0), MATCH('Calc - Sparklines'!$D33,INDIRECT($AB33),0)-F$3))=FALSE,NA(), INDEX(INDIRECT($Z33), MATCH('Calc - Sparklines'!$C$1,INDIRECT($AA33),0), MATCH('Calc - Sparklines'!$D33,INDIRECT($AB33),0)-F$3)),NA()) ->  | G33: =IFERROR(IF(ISNUMBER( INDEX(INDIRECT($Z33), MATCH('Calc - Sparklines'!$C$1,INDIRECT($AA33),0), MATCH('Calc - Sparklines'!$D33,INDIRECT($AB33),0)-G$3))=FALSE,NA(), INDEX(INDIRECT($Z33), MATCH('Calc - Sparklines'!$C$1,INDIRECT($AA33),0), MATCH('Calc - Sparklines'!$D33,INDIRECT($AB33),0)-G$3)),NA()) ->  | H33: =IFERROR(IF(ISNUMBER( INDEX(INDIRECT($Z33), MATCH('Calc - Sparklines'!$C$1,INDIRECT($AA33),0), MATCH('Calc - Sparklines'!$D33,INDIRECT($AB33),0)-H$3))=FALSE,NA(), INDEX(INDIRECT($Z33), MATCH('Calc - Sparklines'!$C$1,INDIRECT($AA33),0), MATCH('Calc - Sparklines'!$D33,INDIRECT($AB33),0)-H$3)),NA()) ->  | I33: =IFERROR(IF(ISNUMBER( INDEX(INDIRECT($Z33), MATCH('Calc - Sparklines'!$C$1,INDIRECT($AA33),0), MATCH('Calc - Sparklines'!$D33,INDIRECT($AB33),0)-I$3))=FALSE,NA(), INDEX(INDIRECT($Z33), MATCH('Calc - Sparklines'!$C$1,INDIRECT($AA33),0), MATCH('Calc - Sparklines'!$D33,INDIRECT($AB33),0)-I$3)),NA()) ->  | J33: =IFERROR(IF(ISNUMBER( INDEX(INDIRECT($Z33), MATCH('Calc - Sparklines'!$C$1,INDIRECT($AA33),0), MATCH('Calc - Sparklines'!$D33,INDIRECT($AB33),0)-J$3))=FALSE,NA(), INDEX(INDIRECT($Z33), MATCH('Calc - Sparklines'!$C$1,INDIRECT($AA33),0), MATCH('Calc - Sparklines'!$D33,INDIRECT($AB33),0)-J$3)),NA()) ->  | K33: =IFERROR(IF(ISNUMBER( INDEX(INDIRECT($Z33), MATCH('Calc - Sparklines'!$C$1,INDIRECT($AA33),0), MATCH('Calc - Sparklines'!$D33,INDIRECT($AB33),0)-K$3))=FALSE,NA(), INDEX(INDIRECT($Z33), MATCH('Calc - Sparklines'!$C$1,INDIRECT($AA33),0), MATCH('Calc - Sparklines'!$D33,INDIRECT($AB33),0)-K$3)),NA()) ->  | L33: =IFERROR(IF(ISNUMBER( INDEX(INDIRECT($Z33), MATCH('Calc - Sparklines'!$C$1,INDIRECT($AA33),0), MATCH('Calc - Sparklines'!$D33,INDIRECT($AB33),0)-L$3))=FALSE,NA(), INDEX(INDIRECT($Z33), MATCH('Calc - Sparklines'!$C$1,INDIRECT($AA33),0), MATCH('Calc - Sparklines'!$D33,INDIRECT($AB33),0)-L$3)),NA()) ->  | M33: =IFERROR(IF(ISNUMBER( INDEX(INDIRECT($Z33), MATCH('Calc - Sparklines'!$C$1,INDIRECT($AA33),0), MATCH('Calc - Sparklines'!$D33,INDIRECT($AB33),0)-M$3))=FALSE,NA(), INDEX(INDIRECT($Z33), MATCH('Calc - Sparklines'!$C$1,INDIRECT($AA33),0), MATCH('Calc - Sparklines'!$D33,INDIRECT($AB33),0)-M$3)),NA()) ->  | N33: =IFERROR(IF(ISNUMBER( INDEX(INDIRECT($Z33), MATCH('Calc - Sparklines'!$C$1,INDIRECT($AA33),0), MATCH('Calc - Sparklines'!$D33,INDIRECT($AB33),0)-N$3))=FALSE,NA(), INDEX(INDIRECT($Z33), MATCH('Calc - Sparklines'!$C$1,INDIRECT($AA33),0), MATCH('Calc - Sparklines'!$D33,INDIRECT($AB33),0)-N$3)),NA()) ->  | O33: =IFERROR(IF(ISNUMBER( INDEX(INDIRECT($Z33), MATCH('Calc - Sparklines'!$C$1,INDIRECT($AA33),0), MATCH('Calc - Sparklines'!$D33,INDIRECT($AB33),0)-O$3))=FALSE,NA(), INDEX(INDIRECT($Z33), MATCH('Calc - Sparklines'!$C$1,INDIRECT($AA33),0), MATCH('Calc - Sparklines'!$D33,INDIRECT($AB33),0)-O$3)),NA()) ->  | P33: =IFERROR(IF(ISNUMBER( INDEX(INDIRECT($Z33), MATCH('Calc - Sparklines'!$C$1,INDIRECT($AA33),0), MATCH('Calc - Sparklines'!$D33,INDIRECT($AB33),0)-P$3))=FALSE,NA(), INDEX(INDIRECT($Z33), MATCH('Calc - Sparklines'!$C$1,INDIRECT($AA33),0), MATCH('Calc - Sparklines'!$D33,INDIRECT($AB33),0)-P$3)),NA()) -> 0.779 | R33: =IF(COUNTA(K33:P33)-COUNTIF(K33:P33,"#N/A")<3, 0, COUNTA(K33:P33)) -> 0 | S33: =IF(P33="N/A",IF(O33="N/A",2,1),0) -> 0 | T33: =OFFSET(P33,,-S33) -> 0.779 | U33: =IF(ISERROR(O33),IF(ISERROR(N33),IF(ISERROR(M33),IF(ISERROR(L33),IF(ISERROR(K33),IF(ISERROR(J33),IF(ISERROR(I33),IF(ISERROR(H33),IF(ISERROR(G33),IF(ISERROR(F33),IF(ISERROR(E33), NA(), E33),F33),G33),H33),I33),J33),K33),L33),M33),N33),O33) ->  | V33: N/A | W33: Sparkline19 | X33: N/A | Z33: Data_Table_EIP_i_a | AA33: Data_Orgs_EIP_i_a | AB33: Data_Dates_EIP_i_a | AD33: Placeholder | AE33: Placeholder
A34: EIP_ii | B34: EIP(ii) | C34: EIP forecast outturn (£k) | D34: ='EIP(ii)_FINAL CALC'!B6 -> 2018/19 planned | E34: =IFERROR(IF(ISNUMBER( INDEX(INDIRECT($Z34), MATCH('Calc - Sparklines'!$C$1,INDIRECT($AA34),0), MATCH('Calc - Sparklines'!$D34,INDIRECT($AB34),0)-E$3))=FALSE,NA(), INDEX(INDIRECT($Z34), MATCH('Calc - Sparklines'!$C$1,INDIRECT($AA34),0), MATCH('Calc - Sparklines'!$D34,INDIRECT($AB34),0)-E$3)),NA()) ->  | F34: =IFERROR(IF(ISNUMBER( INDEX(INDIRECT($Z34), MATCH('Calc - Sparklines'!$C$1,INDIRECT($AA34),0), MATCH('Calc - Sparklines'!$D34,INDIRECT($AB34),0)-F$3))=FALSE,NA(), INDEX(INDIRECT($Z34), MATCH('Calc - Sparklines'!$C$1,INDIRECT($AA34),0), MATCH('Calc - Sparklines'!$D34,INDIRECT($AB34),0)-F$3)),NA()) ->  | G34: =IFERROR(IF(ISNUMBER( INDEX(INDIRECT($Z34), MATCH('Calc - Sparklines'!$C$1,INDIRECT($AA34),0), MATCH('Calc - Sparklines'!$D34,INDIRECT($AB34),0)-G$3))=FALSE,NA(), INDEX(INDIRECT($Z34), MATCH('Calc - Sparklines'!$C$1,INDIRECT($AA34),0), MATCH('Calc - Sparklines'!$D34,INDIRECT($AB34),0)-G$3)),NA()) ->  | H34: =IFERROR(IF(ISNUMBER( INDEX(INDIRECT($Z34), MATCH('Calc - Sparklines'!$C$1,INDIRECT($AA34),0), MATCH('Calc - Sparklines'!$D34,INDIRECT($AB34),0)-H$3))=FALSE,NA(), INDEX(INDIRECT($Z34), MATCH('Calc - Sparklines'!$C$1,INDIRECT($AA34),0), MATCH('Calc - Sparklines'!$D34,INDIRECT($AB34),0)-H$3)),NA()) ->  | I34: =IFERROR(IF(ISNUMBER( INDEX(INDIRECT($Z34), MATCH('Calc - Sparklines'!$C$1,INDIRECT($AA34),0), MATCH('Calc - Sparklines'!$D34,INDIRECT($AB34),0)-I$3))=FALSE,NA(), INDEX(INDIRECT($Z34), MATCH('Calc - Sparklines'!$C$1,INDIRECT($AA34),0), MATCH('Calc - Sparklines'!$D34,INDIRECT($AB34),0)-I$3)),NA()) ->  | J34: =IFERROR(IF(ISNUMBER( INDEX(INDIRECT($Z34), MATCH('Calc - Sparklines'!$C$1,INDIRECT($AA34),0), MATCH('Calc - Sparklines'!$D34,INDIRECT($AB34),0)-J$3))=FALSE,NA(), INDEX(INDIRECT($Z34), MATCH('Calc - Sparklines'!$C$1,INDIRECT($AA34),0), MATCH('Calc - Sparklines'!$D34,INDIRECT($AB34),0)-J$3)),NA()) ->  | K34: =IFERROR(IF(ISNUMBER( INDEX(INDIRECT($Z34), MATCH('Calc - Sparklines'!$C$1,INDIRECT($AA34),0), MATCH('Calc - Sparklines'!$D34,INDIRECT($AB34),0)-K$3))=FALSE,NA(), INDEX(INDIRECT($Z34), MATCH('Calc - Sparklines'!$C$1,INDIRECT($AA34),0), MATCH('Calc - Sparklines'!$D34,INDIRECT($AB34),0)-K$3)),NA()) ->  | L34: =IFERROR(IF(ISNUMBER( INDEX(INDIRECT($Z34), MATCH('Calc - Sparklines'!$C$1,INDIRECT($AA34),0), MATCH('Calc - Sparklines'!$D34,INDIRECT($AB34),0)-L$3))=FALSE,NA(), INDEX(INDIRECT($Z34), MATCH('Calc - Sparklines'!$C$1,INDIRECT($AA34),0), MATCH('Calc - Sparklines'!$D34,INDIRECT($AB34),0)-L$3)),NA()) ->  | M34: =IFERROR(IF(ISNUMBER( INDEX(INDIRECT($Z34), MATCH('Calc - Sparklines'!$C$1,INDIRECT($AA34),0), MATCH('Calc - Sparklines'!$D34,INDIRECT($AB34),0)-M$3))=FALSE,NA(), INDEX(INDIRECT($Z34), MATCH('Calc - Sparklines'!$C$1,INDIRECT($AA34),0), MATCH('Calc - Sparklines'!$D34,INDIRECT($AB34),0)-M$3)),NA()) ->  | N34: =IFERROR(IF(ISNUMBER( INDEX(INDIRECT($Z34), MATCH('Calc - Sparklines'!$C$1,INDIRECT($AA34),0), MATCH('Calc - Sparklines'!$D34,INDIRECT($AB34),0)-N$3))=FALSE,NA(), INDEX(INDIRECT($Z34), MATCH('Calc - Sparklines'!$C$1,INDIRECT($AA34),0), MATCH('Calc - Sparklines'!$D34,INDIRECT($AB34),0)-N$3)),NA()) ->  | O34: =IFERROR(IF(ISNUMBER( INDEX(INDIRECT($Z34), MATCH('Calc - Sparklines'!$C$1,INDIRECT($AA34),0), MATCH('Calc - Sparklines'!$D34,INDIRECT($AB34),0)-O$3))=FALSE,NA(), INDEX(INDIRECT($Z34), MATCH('Calc - Sparklines'!$C$1,INDIRECT($AA34),0), MATCH('Calc - Sparklines'!$D34,INDIRECT($AB34),0)-O$3)),NA()) ->  | P34: =IFERROR(IF(ISNUMBER( INDEX(INDIRECT($Z34), MATCH('Calc - Sparklines'!$C$1,INDIRECT($AA34),0), MATCH('Calc - Sparklines'!$D34,INDIRECT($AB34),0)-P$3))=FALSE,NA(), INDEX(INDIRECT($Z34), MATCH('Calc - Sparklines'!$C$1,INDIRECT($AA34),0), MATCH('Calc - Sparklines'!$D34,INDIRECT($AB34),0)-P$3)),NA()) -> 164444118.7 | R34: 0 | S34: 0 | T34: 164444118.7 | V34: N/A | W34: Sparkline20 | X34: N/A | Z34: Data_Table_EIP_ii | AA34: Data_Orgs_EIP_ii | AB34: Data_Dates_EIP_ii | AD34: Placeholder | AE34: Placeholder
A35: Crisis and acute care and use of the Mental Health Act | B35: Employment Support | E35: =IFERROR(IF(ISNUMBER( INDEX(INDIRECT($Z35), MATCH('Calc - Sparklines'!$C$1,INDIRECT($AA35),0), MATCH('Calc - Sparklines'!$D35,INDIRECT($AB35),0)-E$3))=FALSE,NA(), INDEX(INDIRECT($Z35), MATCH('Calc - Sparklines'!$C$1,INDIRECT($AA35),0), MATCH('Calc - Sparklines'!$D35,INDIRECT($AB35),0)-E$3)),NA()) ->  | F35: =IFERROR(IF(ISNUMBER( INDEX(INDIRECT($Z35), MATCH('Calc - Sparklines'!$C$1,INDIRECT($AA35),0), MATCH('Calc - Sparklines'!$D35,INDIRECT($AB35),0)-F$3))=FALSE,NA(), INDEX(INDIRECT($Z35), MATCH('Calc - Sparklines'!$C$1,INDIRECT($AA35),0), MATCH('Calc - Sparklines'!$D35,INDIRECT($AB35),0)-F$3)),NA()) ->  | G35: =IFERROR(IF(ISNUMBER( INDEX(INDIRECT($Z35), MATCH('Calc - Sparklines'!$C$1,INDIRECT($AA35),0), MATCH('Calc - Sparklines'!$D35,INDIRECT($AB35),0)-G$3))=FALSE,NA(), INDEX(INDIRECT($Z35), MATCH('Calc - Sparklines'!$C$1,INDIRECT($AA35),0), MATCH('Calc - Sparklines'!$D35,INDIRECT($AB35),0)-G$3)),NA()) ->  | H35: =IFERROR(IF(ISNUMBER( INDEX(INDIRECT($Z35), MATCH('Calc - Sparklines'!$C$1,INDIRECT($AA35),0), MATCH('Calc - Sparklines'!$D35,INDIRECT($AB35),0)-H$3))=FALSE,NA(), INDEX(INDIRECT($Z35), MATCH('Calc - Sparklines'!$C$1,INDIRECT($AA35),0), MATCH('Calc - Sparklines'!$D35,INDIRECT($AB35),0)-H$3)),NA()) ->  | I35: =IFERROR(IF(ISNUMBER( INDEX(INDIRECT($Z35), MATCH('Calc - Sparklines'!$C$1,INDIRECT($AA35),0), MATCH('Calc - Sparklines'!$D35,INDIRECT($AB35),0)-I$3))=FALSE,NA(), INDEX(INDIRECT($Z35), MATCH('Calc - Sparklines'!$C$1,INDIRECT($AA35),0), MATCH('Calc - Sparklines'!$D35,INDIRECT($AB35),0)-I$3)),NA()) ->  | J35: =IFERROR(IF(ISNUMBER( INDEX(INDIRECT($Z35), MATCH('Calc - Sparklines'!$C$1,INDIRECT($AA35),0), MATCH('Calc - Sparklines'!$D35,INDIRECT($AB35),0)-J$3))=FALSE,NA(), INDEX(INDIRECT($Z35), MATCH('Calc - Sparklines'!$C$1,INDIRECT($AA35),0), MATCH('Calc - Sparklines'!$D35,INDIRECT($AB35),0)-J$3)),NA()) ->  | K35: =IFERROR(IF(ISNUMBER( INDEX(INDIRECT($Z35), MATCH('Calc - Sparklines'!$C$1,INDIRECT($AA35),0), MATCH('Calc - Sparklines'!$D35,INDIRECT($AB35),0)-K$3))=FALSE,NA(), INDEX(INDIRECT($Z35), MATCH('Calc - Sparklines'!$C$1,INDIRECT($AA35),0), MATCH('Calc - Sparklines'!$D35,INDIRECT($AB35),0)-K$3)),NA()) ->  | L35: =IFERROR(IF(ISNUMBER( INDEX(INDIRECT($Z35), MATCH('Calc - Sparklines'!$C$1,INDIRECT($AA35),0), MATCH('Calc - Sparklines'!$D35,INDIRECT($AB35),0)-L$3))=FALSE,NA(), INDEX(INDIRECT($Z35), MATCH('Calc - Sparklines'!$C$1,INDIRECT($AA35),0), MATCH('Calc - Sparklines'!$D35,INDIRECT($AB35),0)-L$3)),NA()) ->  | M35: =IFERROR(IF(ISNUMBER( INDEX(INDIRECT($Z35), MATCH('Calc - Sparklines'!$C$1,INDIRECT($AA35),0), MATCH('Calc - Sparklines'!$D35,INDIRECT($AB35),0)-M$3))=FALSE,NA(), INDEX(INDIRECT($Z35), MATCH('Calc - Sparklines'!$C$1,INDIRECT($AA35),0), MATCH('Calc - Sparklines'!$D35,INDIRECT($AB35),0)-M$3)),NA()) ->  | N35: =IFERROR(IF(ISNUMBER( INDEX(INDIRECT($Z35), MATCH('Calc - Sparklines'!$C$1,INDIRECT($AA35),0), MATCH('Calc - Sparklines'!$D35,INDIRECT($AB35),0)-N$3))=FALSE,NA(), INDEX(INDIRECT($Z35), MATCH('Calc - Sparklines'!$C$1,INDIRECT($AA35),0), MATCH('Calc - Sparklines'!$D35,INDIRECT($AB35),0)-N$3)),NA()) ->  | O35: =IFERROR(IF(ISNUMBER( INDEX(INDIRECT($Z35), MATCH('Calc - Sparklines'!$C$1,INDIRECT($AA35),0), MATCH('Calc - Sparklines'!$D35,INDIRECT($AB35),0)-O$3))=FALSE,NA(), INDEX(INDIRECT($Z35), MATCH('Calc - Sparklines'!$C$1,INDIRECT($AA35),0), MATCH('Calc - Sparklines'!$D35,INDIRECT($AB35),0)-O$3)),NA()) ->  | P35: =IFERROR(IF(ISNUMBER( INDEX(INDIRECT($Z35), MATCH('Calc - Sparklines'!$C$1,INDIRECT($AA35),0), MATCH('Calc - Sparklines'!$D35,INDIRECT($AB35),0)-P$3))=FALSE,NA(), INDEX(INDIRECT($Z35), MATCH('Calc - Sparklines'!$C$1,INDIRECT($AA35),0), MATCH('Calc - Sparklines'!$D35,INDIRECT($AB35),0)-P$3)),NA()) ->  | R35: 0 | X35: N/A | AD35: Subheading
A36: ES_i | B36: ES(i) | C36: Number of people accessing IPS services in 2016/17 | D36: ='ES(i)_FINAL CALC'!B6 -> 2016/17 | E36: =IFERROR(IF(ISNUMBER( INDEX(INDIRECT($Z36), MATCH('Calc - Sparklines'!$C$1,INDIRECT($AA36),0), MATCH('Calc - Sparklines'!$D36,INDIRECT($AB36),0)-E$3))=FALSE,NA(), INDEX(INDIRECT($Z36), MATCH('Calc - Sparklines'!$C$1,INDIRECT($AA36),0), MATCH('Calc - Sparklines'!$D36,INDIRECT($AB36),0)-E$3)),NA()) ->  | F36: =IFERROR(IF(ISNUMBER( INDEX(INDIRECT($Z36), MATCH('Calc - Sparklines'!$C$1,INDIRECT($AA36),0), MATCH('Calc - Sparklines'!$D36,INDIRECT($AB36),0)-F$3))=FALSE,NA(), INDEX(INDIRECT($Z36), MATCH('Calc - Sparklines'!$C$1,INDIRECT($AA36),0), MATCH('Calc - Sparklines'!$D36,INDIRECT($AB36),0)-F$3)),NA()) ->  | G36: =IFERROR(IF(ISNUMBER( INDEX(INDIRECT($Z36), MATCH('Calc - Sparklines'!$C$1,INDIRECT($AA36),0), MATCH('Calc - Sparklines'!$D36,INDIRECT($AB36),0)-G$3))=FALSE,NA(), INDEX(INDIRECT($Z36), MATCH('Calc - Sparklines'!$C$1,INDIRECT($AA36),0), MATCH('Calc - Sparklines'!$D36,INDIRECT($AB36),0)-G$3)),NA()) ->  | H36: =IFERROR(IF(ISNUMBER( INDEX(INDIRECT($Z36), MATCH('Calc - Sparklines'!$C$1,INDIRECT($AA36),0), MATCH('Calc - Sparklines'!$D36,INDIRECT($AB36),0)-H$3))=FALSE,NA(), INDEX(INDIRECT($Z36), MATCH('Calc - Sparklines'!$C$1,INDIRECT($AA36),0), MATCH('Calc - Sparklines'!$D36,INDIRECT($AB36),0)-H$3)),NA()) ->  | I36: =IFERROR(IF(ISNUMBER( INDEX(INDIRECT($Z36), MATCH('Calc - Sparklines'!$C$1,INDIRECT($AA36),0), MATCH('Calc - Sparklines'!$D36,INDIRECT($AB36),0)-I$3))=FALSE,NA(), INDEX(INDIRECT($Z36), MATCH('Calc - Sparklines'!$C$1,INDIRECT($AA36),0), MATCH('Calc - Sparklines'!$D36,INDIRECT($AB36),0)-I$3)),NA()) ->  | J36: =IFERROR(IF(ISNUMBER( INDEX(INDIRECT($Z36), MATCH('Calc - Sparklines'!$C$1,INDIRECT($AA36),0), MATCH('Calc - Sparklines'!$D36,INDIRECT($AB36),0)-J$3))=FALSE,NA(), INDEX(INDIRECT($Z36), MATCH('Calc - Sparklines'!$C$1,INDIRECT($AA36),0), MATCH('Calc - Sparklines'!$D36,INDIRECT($AB36),0)-J$3)),NA()) ->  | K36: =IFERROR(IF(ISNUMBER( INDEX(INDIRECT($Z36), MATCH('Calc - Sparklines'!$C$1,INDIRECT($AA36),0), MATCH('Calc - Sparklines'!$D36,INDIRECT($AB36),0)-K$3))=FALSE,NA(), INDEX(INDIRECT($Z36), MATCH('Calc - Sparklines'!$C$1,INDIRECT($AA36),0), MATCH('Calc - Sparklines'!$D36,INDIRECT($AB36),0)-K$3)),NA()) ->  | L36: =IFERROR(IF(ISNUMBER( INDEX(INDIRECT($Z36), MATCH('Calc - Sparklines'!$C$1,INDIRECT($AA36),0), MATCH('Calc - Sparklines'!$D36,INDIRECT($AB36),0)-L$3))=FALSE,NA(), INDEX(INDIRECT($Z36), MATCH('Calc - Sparklines'!$C$1,INDIRECT($AA36),0), MATCH('Calc - Sparklines'!$D36,INDIRECT($AB36),0)-L$3)),NA()) ->  | M36: =IFERROR(IF(ISNUMBER( INDEX(INDIRECT($Z36), MATCH('Calc - Sparklines'!$C$1,INDIRECT($AA36),0), MATCH('Calc - Sparklines'!$D36,INDIRECT($AB36),0)-M$3))=FALSE,NA(), INDEX(INDIRECT($Z36), MATCH('Calc - Sparklines'!$C$1,INDIRECT($AA36),0), MATCH('Calc - Sparklines'!$D36,INDIRECT($AB36),0)-M$3)),NA()) ->  | N36: =IFERROR(IF(ISNUMBER( INDEX(INDIRECT($Z36), MATCH('Calc - Sparklines'!$C$1,INDIRECT($AA36),0), MATCH('Calc - Sparklines'!$D36,INDIRECT($AB36),0)-N$3))=FALSE,NA(), INDEX(INDIRECT($Z36), MATCH('Calc - Sparklines'!$C$1,INDIRECT($AA36),0), MATCH('Calc - Sparklines'!$D36,INDIRECT($AB36),0)-N$3)),NA()) ->  | O36: =IFERROR(IF(ISNUMBER( INDEX(INDIRECT($Z36), MATCH('Calc - Sparklines'!$C$1,INDIRECT($AA36),0), MATCH('Calc - Sparklines'!$D36,INDIRECT($AB36),0)-O$3))=FALSE,NA(), INDEX(INDIRECT($Z36), MATCH('Calc - Sparklines'!$C$1,INDIRECT($AA36),0), MATCH('Calc - Sparklines'!$D36,INDIRECT($AB36),0)-O$3)),NA()) ->  | P36: =IFERROR(IF(ISNUMBER( INDEX(INDIRECT($Z36), MATCH('Calc - Sparklines'!$C$1,INDIRECT($AA36),0), MATCH('Calc - Sparklines'!$D36,INDIRECT($AB36),0)-P$3))=FALSE,NA(), INDEX(INDIRECT($Z36), MATCH('Calc - Sparklines'!$C$1,INDIRECT($AA36),0), MATCH('Calc - Sparklines'!$D36,INDIRECT($AB36),0)-P$3)),NA()) -> 9775 | R36: 0 | S36: =IF(P36="N/A",IF(O36="N/A",2,1),0) -> 0 | T36: =OFFSET(P36,,-S36) -> 9775 | U36: =IF(ISERROR(O36),IF(ISERROR(N36),IF(ISERROR(M36),IF(ISERROR(L36),IF(ISERROR(K36),IF(ISERROR(J36),IF(ISERROR(I36),IF(ISERROR(H36),IF(ISERROR(G36),IF(ISERROR(F36),IF(ISERROR(E36), NA(), E36),F36),G36),H36),I36),J36),K36),L36),M36),N36),O36) ->  | V36: =IF(D36="","",IFERROR(IF(T36>U36,"▲", IF(T36<U36,"▼","◄►")),"N/A")) -> N/A | X36: Baseline figure | Z36: Data_Table_ES_i | AA36: Data_Orgs_ES_i | AB36: Data_Dates_ES_i
A37: Crisis and acute care and use of the Mental Health Act | B37: Crisis and acute care and use of the Mental Health Act | E37: =IFERROR(IF(ISNUMBER( INDEX(INDIRECT($Z37), MATCH('Calc - Sparklines'!$C$1,INDIRECT($AA37),0), MATCH('Calc - Sparklines'!$D37,INDIRECT($AB37),0)-E$3))=FALSE,NA(), INDEX(INDIRECT($Z37), MATCH('Calc - Sparklines'!$C$1,INDIRECT($AA37),0), MATCH('Calc - Sparklines'!$D37,INDIRECT($AB37),0)-E$3)),NA()) ->  | F37: =IFERROR(IF(ISNUMBER( INDEX(INDIRECT($Z37), MATCH('Calc - Sparklines'!$C$1,INDIRECT($AA37),0), MATCH('Calc - Sparklines'!$D37,INDIRECT($AB37),0)-F$3))=FALSE,NA(), INDEX(INDIRECT($Z37), MATCH('Calc - Sparklines'!$C$1,INDIRECT($AA37),0), MATCH('Calc - Sparklines'!$D37,INDIRECT($AB37),0)-F$3)),NA()) ->  | G37: =IFERROR(IF(ISNUMBER( INDEX(INDIRECT($Z37), MATCH('Calc - Sparklines'!$C$1,INDIRECT($AA37),0), MATCH('Calc - Sparklines'!$D37,INDIRECT($AB37),0)-G$3))=FALSE,NA(), INDEX(INDIRECT($Z37), MATCH('Calc - Sparklines'!$C$1,INDIRECT($AA37),0), MATCH('Calc - Sparklines'!$D37,INDIRECT($AB37),0)-G$3)),NA()) ->  | H37: =IFERROR(IF(ISNUMBER( INDEX(INDIRECT($Z37), MATCH('Calc - Sparklines'!$C$1,INDIRECT($AA37),0), MATCH('Calc - Sparklines'!$D37,INDIRECT($AB37),0)-H$3))=FALSE,NA(), INDEX(INDIRECT($Z37), MATCH('Calc - Sparklines'!$C$1,INDIRECT($AA37),0), MATCH('Calc - Sparklines'!$D37,INDIRECT($AB37),0)-H$3)),NA()) ->  | I37: =IFERROR(IF(ISNUMBER( INDEX(INDIRECT($Z37), MATCH('Calc - Sparklines'!$C$1,INDIRECT($AA37),0), MATCH('Calc - Sparklines'!$D37,INDIRECT($AB37),0)-I$3))=FALSE,NA(), INDEX(INDIRECT($Z37), MATCH('Calc - Sparklines'!$C$1,INDIRECT($AA37),0), MATCH('Calc - Sparklines'!$D37,INDIRECT($AB37),0)-I$3)),NA()) ->  | J37: =IFERROR(IF(ISNUMBER( INDEX(INDIRECT($Z37), MATCH('Calc - Sparklines'!$C$1,INDIRECT($AA37),0), MATCH('Calc - Sparklines'!$D37,INDIRECT($AB37),0)-J$3))=FALSE,NA(), INDEX(INDIRECT($Z37), MATCH('Calc - Sparklines'!$C$1,INDIRECT($AA37),0), MATCH('Calc - Sparklines'!$D37,INDIRECT($AB37),0)-J$3)),NA()) ->  | K37: =IFERROR(IF(ISNUMBER( INDEX(INDIRECT($Z37), MATCH('Calc - Sparklines'!$C$1,INDIRECT($AA37),0), MATCH('Calc - Sparklines'!$D37,INDIRECT($AB37),0)-K$3))=FALSE,NA(), INDEX(INDIRECT($Z37), MATCH('Calc - Sparklines'!$C$1,INDIRECT($AA37),0), MATCH('Calc - Sparklines'!$D37,INDIRECT($AB37),0)-K$3)),NA()) ->  | L37: =IFERROR(IF(ISNUMBER( INDEX(INDIRECT($Z37), MATCH('Calc - Sparklines'!$C$1,INDIRECT($AA37),0), MATCH('Calc - Sparklines'!$D37,INDIRECT($AB37),0)-L$3))=FALSE,NA(), INDEX(INDIRECT($Z37), MATCH('Calc - Sparklines'!$C$1,INDIRECT($AA37),0), MATCH('Calc - Sparklines'!$D37,INDIRECT($AB37),0)-L$3)),NA()) ->  | M37: =IFERROR(IF(ISNUMBER( INDEX(INDIRECT($Z37), MATCH('Calc - Sparklines'!$C$1,INDIRECT($AA37),0), MATCH('Calc - Sparklines'!$D37,INDIRECT($AB37),0)-M$3))=FALSE,NA(), INDEX(INDIRECT($Z37), MATCH('Calc - Sparklines'!$C$1,INDIRECT($AA37),0), MATCH('Calc - Sparklines'!$D37,INDIRECT($AB37),0)-M$3)),NA()) ->  | N37: =IFERROR(IF(ISNUMBER( INDEX(INDIRECT($Z37), MATCH('Calc - Sparklines'!$C$1,INDIRECT($AA37),0), MATCH('Calc - Sparklines'!$D37,INDIRECT($AB37),0)-N$3))=FALSE,NA(), INDEX(INDIRECT($Z37), MATCH('Calc - Sparklines'!$C$1,INDIRECT($AA37),0), MATCH('Calc - Sparklines'!$D37,INDIRECT($AB37),0)-N$3)),NA()) ->  | O37: =IFERROR(IF(ISNUMBER( INDEX(INDIRECT($Z37), MATCH('Calc - Sparklines'!$C$1,INDIRECT($AA37),0), MATCH('Calc - Sparklines'!$D37,INDIRECT($AB37),0)-O$3))=FALSE,NA(), INDEX(INDIRECT($Z37), MATCH('Calc - Sparklines'!$C$1,INDIRECT($AA37),0), MATCH('Calc - Sparklines'!$D37,INDIRECT($AB37),0)-O$3)),NA()) ->  | P37: =IFERROR(IF(ISNUMBER( INDEX(INDIRECT($Z37), MATCH('Calc - Sparklines'!$C$1,INDIRECT($AA37),0), MATCH('Calc - Sparklines'!$D37,INDIRECT($AB37),0)-P$3))=FALSE,NA(), INDEX(INDIRECT($Z37), MATCH('Calc - Sparklines'!$C$1,INDIRECT($AA37),0), MATCH('Calc - Sparklines'!$D37,INDIRECT($AB37),0)-P$3)),NA()) ->  | R37: 0 | S37: =IF(P37="N/A",IF(O37="N/A",2,1),0) ->  | T37: =OFFSET(P37,,-S37) ->  | U37: =IF(ISERROR(O37),IF(ISERROR(N37),IF(ISERROR(M37),IF(ISERROR(L37),IF(ISERROR(K37),IF(ISERROR(J37),IF(ISERROR(I37),IF(ISERROR(H37),IF(ISERROR(G37),IF(ISERROR(F37),IF(ISERROR(E37), NA(), E37),F37),G37),H37),I37),J37),K37),L37),M37),N37),O37) ->  | V37: =IF(D37="","",IFERROR(IF(T37>U37,"▲", IF(T37<U37,"▼","◄►")),"N/A")) ->  | X37: N/A | AD37: Subheading
A38: CR_i | B38: CR(i) | C38: % of CRHT services in the STP area able to meet selected core functions | D38: ='CR(i)_FINAL CALC'!$B$6 -> 2016/17 | E38: =IFERROR(IF(ISNUMBER( INDEX(INDIRECT($Z38), MATCH('Calc - Sparklines'!$C$1,INDIRECT($AA38),0), MATCH('Calc - Sparklines'!$D38,INDIRECT($AB38),0)-E$3))=FALSE,NA(), INDEX(INDIRECT($Z38), MATCH('Calc - Sparklines'!$C$1,INDIRECT($AA38),0), MATCH('Calc - Sparklines'!$D38,INDIRECT($AB38),0)-E$3)),NA()) ->  | F38: =IFERROR(IF(ISNUMBER( INDEX(INDIRECT($Z38), MATCH('Calc - Sparklines'!$C$1,INDIRECT($AA38),0), MATCH('Calc - Sparklines'!$D38,INDIRECT($AB38),0)-F$3))=FALSE,NA(), INDEX(INDIRECT($Z38), MATCH('Calc - Sparklines'!$C$1,INDIRECT($AA38),0), MATCH('Calc - Sparklines'!$D38,INDIRECT($AB38),0)-F$3)),NA()) ->  | G38: =IFERROR(IF(ISNUMBER( INDEX(INDIRECT($Z38), MATCH('Calc - Sparklines'!$C$1,INDIRECT($AA38),0), MATCH('Calc - Sparklines'!$D38,INDIRECT($AB38),0)-G$3))=FALSE,NA(), INDEX(INDIRECT($Z38), MATCH('Calc - Sparklines'!$C$1,INDIRECT($AA38),0), MATCH('Calc - Sparklines'!$D38,INDIRECT($AB38),0)-G$3)),NA()) ->  | H38: =IFERROR(IF(ISNUMBER( INDEX(INDIRECT($Z38), MATCH('Calc - Sparklines'!$C$1,INDIRECT($AA38),0), MATCH('Calc - Sparklines'!$D38,INDIRECT($AB38),0)-H$3))=FALSE,NA(), INDEX(INDIRECT($Z38), MATCH('Calc - Sparklines'!$C$1,INDIRECT($AA38),0), MATCH('Calc - Sparklines'!$D38,INDIRECT($AB38),0)-H$3)),NA()) ->  | I38: =IFERROR(IF(ISNUMBER( INDEX(INDIRECT($Z38), MATCH('Calc - Sparklines'!$C$1,INDIRECT($AA38),0), MATCH('Calc - Sparklines'!$D38,INDIRECT($AB38),0)-I$3))=FALSE,NA(), INDEX(INDIRECT($Z38), MATCH('Calc - Sparklines'!$C$1,INDIRECT($AA38),0), MATCH('Calc - Sparklines'!$D38,INDIRECT($AB38),0)-I$3)),NA()) ->  | J38: =IFERROR(IF(ISNUMBER( INDEX(INDIRECT($Z38), MATCH('Calc - Sparklines'!$C$1,INDIRECT($AA38),0), MATCH('Calc - Sparklines'!$D38,INDIRECT($AB38),0)-J$3))=FALSE,NA(), INDEX(INDIRECT($Z38), MATCH('Calc - Sparklines'!$C$1,INDIRECT($AA38),0), MATCH('Calc - Sparklines'!$D38,INDIRECT($AB38),0)-J$3)),NA()) ->  | K38: =IFERROR(IF(ISNUMBER( INDEX(INDIRECT($Z38), MATCH('Calc - Sparklines'!$C$1,INDIRECT($AA38),0), MATCH('Calc - Sparklines'!$D38,INDIRECT($AB38),0)-K$3))=FALSE,NA(), INDEX(INDIRECT($Z38), MATCH('Calc - Sparklines'!$C$1,INDIRECT($AA38),0), MATCH('Calc - Sparklines'!$D38,INDIRECT($AB38),0)-K$3)),NA()) ->  | L38: =IFERROR(IF(ISNUMBER( INDEX(INDIRECT($Z38), MATCH('Calc - Sparklines'!$C$1,INDIRECT($AA38),0), MATCH('Calc - Sparklines'!$D38,INDIRECT($AB38),0)-L$3))=FALSE,NA(), INDEX(INDIRECT($Z38), MATCH('Calc - Sparklines'!$C$1,INDIRECT($AA38),0), MATCH('Calc - Sparklines'!$D38,INDIRECT($AB38),0)-L$3)),NA()) ->  | M38: =IFERROR(IF(ISNUMBER( INDEX(INDIRECT($Z38), MATCH('Calc - Sparklines'!$C$1,INDIRECT($AA38),0), MATCH('Calc - Sparklines'!$D38,INDIRECT($AB38),0)-M$3))=FALSE,NA(), INDEX(INDIRECT($Z38), MATCH('Calc - Sparklines'!$C$1,INDIRECT($AA38),0), MATCH('Calc - Sparklines'!$D38,INDIRECT($AB38),0)-M$3)),NA()) ->  | N38: =IFERROR(IF(ISNUMBER( INDEX(INDIRECT($Z38), MATCH('Calc - Sparklines'!$C$1,INDIRECT($AA38),0), MATCH('Calc - Sparklines'!$D38,INDIRECT($AB38),0)-N$3))=FALSE,NA(), INDEX(INDIRECT($Z38), MATCH('Calc - Sparklines'!$C$1,INDIRECT($AA38),0), MATCH('Calc - Sparklines'!$D38,INDIRECT($AB38),0)-N$3)),NA()) ->  | O38: =IFERROR(IF(ISNUMBER( INDEX(INDIRECT($Z38), MATCH('Calc - Sparklines'!$C$1,INDIRECT($AA38),0), MATCH('Calc - Sparklines'!$D38,INDIRECT($AB38),0)-O$3))=FALSE,NA(), INDEX(INDIRECT($Z38), MATCH('Calc - Sparklines'!$C$1,INDIRECT($AA38),0), MATCH('Calc - Sparklines'!$D38,INDIRECT($AB38),0)-O$3)),NA()) ->  | P38: =IFERROR(IF(ISNUMBER( INDEX(INDIRECT($Z38), MATCH('Calc - Sparklines'!$C$1,INDIRECT($AA38),0), MATCH('Calc - Sparklines'!$D38,INDIRECT($AB38),0)-P$3))=FALSE,NA(), INDEX(INDIRECT($Z38), MATCH('Calc - Sparklines'!$C$1,INDIRECT($AA38),0), MATCH('Calc - Sparklines'!$D38,INDIRECT($AB38),0)-P$3)),NA()) -> 0.2368421053 | R38: 0 | S38: 0 | T38: 0.2368421053 | V38: N/A | W38: Sparkline29 | X38: Baseline figure | Z38: Data_Table_CR_i | AA38: Data_Orgs_CR_i | AB38: Data_Dates_CR_i | AD38: Chart available at STP level only | AE38: Chart available at STP level only
A39: CR_ii | B39: CR(ii) | C39: Crisis resolution home treatment teams forecast outturn (£k) | D39: ='CR(ii)_FINAL CALC'!$B$6 -> 2018/19 planned | E39: =IFERROR(IF(ISNUMBER( INDEX(INDIRECT($Z39), MATCH('Calc - Sparklines'!$C$1,INDIRECT($AA39),0), MATCH('Calc - Sparklines'!$D39,INDIRECT($AB39),0)-E$3))=FALSE,NA(), INDEX(INDIRECT($Z39), MATCH('Calc - Sparklines'!$C$1,INDIRECT($AA39),0), MATCH('Calc - Sparklines'!$D39,INDIRECT($AB39),0)-E$3)),NA()) ->  | F39: =IFERROR(IF(ISNUMBER( INDEX(INDIRECT($Z39), MATCH('Calc - Sparklines'!$C$1,INDIRECT($AA39),0), MATCH('Calc - Sparklines'!$D39,INDIRECT($AB39),0)-F$3))=FALSE,NA(), INDEX(INDIRECT($Z39), MATCH('Calc - Sparklines'!$C$1,INDIRECT($AA39),0), MATCH('Calc - Sparklines'!$D39,INDIRECT($AB39),0)-F$3)),NA()) ->  | G39: =IFERROR(IF(ISNUMBER( INDEX(INDIRECT($Z39), MATCH('Calc - Sparklines'!$C$1,INDIRECT($AA39),0), MATCH('Calc - Sparklines'!$D39,INDIRECT($AB39),0)-G$3))=FALSE,NA(), INDEX(INDIRECT($Z39), MATCH('Calc - Sparklines'!$C$1,INDIRECT($AA39),0), MATCH('Calc - Sparklines'!$D39,INDIRECT($AB39),0)-G$3)),NA()) ->  | H39: =IFERROR(IF(ISNUMBER( INDEX(INDIRECT($Z39), MATCH('Calc - Sparklines'!$C$1,INDIRECT($AA39),0), MATCH('Calc - Sparklines'!$D39,INDIRECT($AB39),0)-H$3))=FALSE,NA(), INDEX(INDIRECT($Z39), MATCH('Calc - Sparklines'!$C$1,INDIRECT($AA39),0), MATCH('Calc - Sparklines'!$D39,INDIRECT($AB39),0)-H$3)),NA()) ->  | I39: =IFERROR(IF(ISNUMBER( INDEX(INDIRECT($Z39), MATCH('Calc - Sparklines'!$C$1,INDIRECT($AA39),0), MATCH('Calc - Sparklines'!$D39,INDIRECT($AB39),0)-I$3))=FALSE,NA(), INDEX(INDIRECT($Z39), MATCH('Calc - Sparklines'!$C$1,INDIRECT($AA39),0), MATCH('Calc - Sparklines'!$D39,INDIRECT($AB39),0)-I$3)),NA()) ->  | J39: =IFERROR(IF(ISNUMBER( INDEX(INDIRECT($Z39), MATCH('Calc - Sparklines'!$C$1,INDIRECT($AA39),0), MATCH('Calc - Sparklines'!$D39,INDIRECT($AB39),0)-J$3))=FALSE,NA(), INDEX(INDIRECT($Z39), MATCH('Calc - Sparklines'!$C$1,INDIRECT($AA39),0), MATCH('Calc - Sparklines'!$D39,INDIRECT($AB39),0)-J$3)),NA()) ->  | K39: =IFERROR(IF(ISNUMBER( INDEX(INDIRECT($Z39), MATCH('Calc - Sparklines'!$C$1,INDIRECT($AA39),0), MATCH('Calc - Sparklines'!$D39,INDIRECT($AB39),0)-K$3))=FALSE,NA(), INDEX(INDIRECT($Z39), MATCH('Calc - Sparklines'!$C$1,INDIRECT($AA39),0), MATCH('Calc - Sparklines'!$D39,INDIRECT($AB39),0)-K$3)),NA()) ->  | L39: =IFERROR(IF(ISNUMBER( INDEX(INDIRECT($Z39), MATCH('Calc - Sparklines'!$C$1,INDIRECT($AA39),0), MATCH('Calc - Sparklines'!$D39,INDIRECT($AB39),0)-L$3))=FALSE,NA(), INDEX(INDIRECT($Z39), MATCH('Calc - Sparklines'!$C$1,INDIRECT($AA39),0), MATCH('Calc - Sparklines'!$D39,INDIRECT($AB39),0)-L$3)),NA()) ->  | M39: =IFERROR(IF(ISNUMBER( INDEX(INDIRECT($Z39), MATCH('Calc - Sparklines'!$C$1,INDIRECT($AA39),0), MATCH('Calc - Sparklines'!$D39,INDIRECT($AB39),0)-M$3))=FALSE,NA(), INDEX(INDIRECT($Z39), MATCH('Calc - Sparklines'!$C$1,INDIRECT($AA39),0), MATCH('Calc - Sparklines'!$D39,INDIRECT($AB39),0)-M$3)),NA()) ->  | N39: =IFERROR(IF(ISNUMBER( INDEX(INDIRECT($Z39), MATCH('Calc - Sparklines'!$C$1,INDIRECT($AA39),0), MATCH('Calc - Sparklines'!$D39,INDIRECT($AB39),0)-N$3))=FALSE,NA(), INDEX(INDIRECT($Z39), MATCH('Calc - Sparklines'!$C$1,INDIRECT($AA39),0), MATCH('Calc - Sparklines'!$D39,INDIRECT($AB39),0)-N$3)),NA()) ->  | O39: =IFERROR(IF(ISNUMBER( INDEX(INDIRECT($Z39), MATCH('Calc - Sparklines'!$C$1,INDIRECT($AA39),0), MATCH('Calc - Sparklines'!$D39,INDIRECT($AB39),0)-O$3))=FALSE,NA(), INDEX(INDIRECT($Z39), MATCH('Calc - Sparklines'!$C$1,INDIRECT($AA39),0), MATCH('Calc - Sparklines'!$D39,INDIRECT($AB39),0)-O$3)),NA()) ->  | P39: =IFERROR(IF(ISNUMBER( INDEX(INDIRECT($Z39), MATCH('Calc - Sparklines'!$C$1,INDIRECT($AA39),0), MATCH('Calc - Sparklines'!$D39,INDIRECT($AB39),0)-P$3))=FALSE,NA(), INDEX(INDIRECT($Z39), MATCH('Calc - Sparklines'!$C$1,INDIRECT($AA39),0), MATCH('Calc - Sparklines'!$D39,INDIRECT($AB39),0)-P$3)),NA()) -> 328554773.6 | R39: =IF(COUNTA(K39:P39)-COUNTIF(K39:P39,"#N/A")<3, 0, COUNTA(K39:P39)) -> 0 | S39: 0 | T39: 328554773.6 | V39: N/A | W39: Sparkline30 | X39: N/A | Z39: Data_Table_CR_ii | AA39: Data_Orgs_CR_ii | AB39: Data_Dates_CR_ii | AD39: Chart available at CCG & STP level only | AE39: =IF(OR(Dashboard!$N$3=1,Dashboard!$N$3=2),"Chart available at CCG & STP level only","") -> Chart available at CCG & STP level only
A40: CR_iii_a | B40: CR(iii.a) | C40: Total number of inappropriate Out of Area bed days | D40: ='CR(iii_a)_FINAL CALC'!$B$6 -> Q2 2018/19 | E40: =IFERROR(IF(ISNUMBER( INDEX(INDIRECT($Z40), MATCH('Calc - Sparklines'!$C$1,INDIRECT($AA40),0), MATCH('Calc - Sparklines'!$D40,INDIRECT($AB40),0)-E$3))=FALSE,NA(), INDEX(INDIRECT($Z40), MATCH('Calc - Sparklines'!$C$1,INDIRECT($AA40),0), MATCH('Calc - Sparklines'!$D40,INDIRECT($AB40),0)-E$3)),NA()) ->  | F40: =IFERROR(IF(ISNUMBER( INDEX(INDIRECT($Z40), MATCH('Calc - Sparklines'!$C$1,INDIRECT($AA40),0), MATCH('Calc - Sparklines'!$D40,INDIRECT($AB40),0)-F$3))=FALSE,NA(), INDEX(INDIRECT($Z40), MATCH('Calc - Sparklines'!$C$1,INDIRECT($AA40),0), MATCH('Calc - Sparklines'!$D40,INDIRECT($AB40),0)-F$3)),NA()) ->  | G40: =IFERROR(IF(ISNUMBER( INDEX(INDIRECT($Z40), MATCH('Calc - Sparklines'!$C$1,INDIRECT($AA40),0), MATCH('Calc - Sparklines'!$D40,INDIRECT($AB40),0)-G$3))=FALSE,NA(), INDEX(INDIRECT($Z40), MATCH('Calc - Sparklines'!$C$1,INDIRECT($AA40),0), MATCH('Calc - Sparklines'!$D40,INDIRECT($AB40),0)-G$3)),NA()) ->  | H40: =IFERROR(IF(ISNUMBER( INDEX(INDIRECT($Z40), MATCH('Calc - Sparklines'!$C$1,INDIRECT($AA40),0), MATCH('Calc - Sparklines'!$D40,INDIRECT($AB40),0)-H$3))=FALSE,NA(), INDEX(INDIRECT($Z40), MATCH('Calc - Sparklines'!$C$1,INDIRECT($AA40),0), MATCH('Calc - Sparklines'!$D40,INDIRECT($AB40),0)-H$3)),NA()) ->  | I40: =IFERROR(IF(ISNUMBER( INDEX(INDIRECT($Z40), MATCH('Calc - Sparklines'!$C$1,INDIRECT($AA40),0), MATCH('Calc - Sparklines'!$D40,INDIRECT($AB40),0)-I$3))=FALSE,NA(), INDEX(INDIRECT($Z40), MATCH('Calc - Sparklines'!$C$1,INDIRECT($AA40),0), MATCH('Calc - Sparklines'!$D40,INDIRECT($AB40),0)-I$3)),NA()) ->  | J40: =IFERROR(IF(ISNUMBER( INDEX(INDIRECT($Z40), MATCH('Calc - Sparklines'!$C$1,INDIRECT($AA40),0), MATCH('Calc - Sparklines'!$D40,INDIRECT($AB40),0)-J$3))=FALSE,NA(), INDEX(INDIRECT($Z40), MATCH('Calc - Sparklines'!$C$1,INDIRECT($AA40),0), MATCH('Calc - Sparklines'!$D40,INDIRECT($AB40),0)-J$3)),NA()) ->  | K40: =IFERROR(IF(ISNUMBER( INDEX(INDIRECT($Z40), MATCH('Calc - Sparklines'!$C$1,INDIRECT($AA40),0), MATCH('Calc - Sparklines'!$D40,INDIRECT($AB40),0)-K$3))=FALSE,NA(), INDEX(INDIRECT($Z40), MATCH('Calc - Sparklines'!$C$1,INDIRECT($AA40),0), MATCH('Calc - Sparklines'!$D40,INDIRECT($AB40),0)-K$3)),NA()) ->  | L40: =IFERROR(IF(ISNUMBER( INDEX(INDIRECT($Z40), MATCH('Calc - Sparklines'!$C$1,INDIRECT($AA40),0), MATCH('Calc - Sparklines'!$D40,INDIRECT($AB40),0)-L$3))=FALSE,NA(), INDEX(INDIRECT($Z40), MATCH('Calc - Sparklines'!$C$1,INDIRECT($AA40),0), MATCH('Calc - Sparklines'!$D40,INDIRECT($AB40),0)-L$3)),NA()) -> 67891 | M40: =IFERROR(IF(ISNUMBER( INDEX(INDIRECT($Z40), MATCH('Calc - Sparklines'!$C$1,INDIRECT($AA40),0), MATCH('Calc - Sparklines'!$D40,INDIRECT($AB40),0)-M$3))=FALSE,NA(), INDEX(INDIRECT($Z40), MATCH('Calc - Sparklines'!$C$1,INDIRECT($AA40),0), MATCH('Calc - Sparklines'!$D40,INDIRECT($AB40),0)-M$3)),NA()) -> 60265 | N40: =IFERROR(IF(ISNUMBER( INDEX(INDIRECT($Z40), MATCH('Calc - Sparklines'!$C$1,INDIRECT($AA40),0), MATCH('Calc - Sparklines'!$D40,INDIRECT($AB40),0)-N$3))=FALSE,NA(), INDEX(INDIRECT($Z40), MATCH('Calc - Sparklines'!$C$1,INDIRECT($AA40),0), MATCH('Calc - Sparklines'!$D40,INDIRECT($AB40),0)-N$3)),NA()) -> 54440 | O40: =IFERROR(IF(ISNUMBER( INDEX(INDIRECT($Z40), MATCH('Calc - Sparklines'!$C$1,INDIRECT($AA40),0), MATCH('Calc - Sparklines'!$D40,INDIRECT($AB40),0)-O$3))=FALSE,NA(), INDEX(INDIRECT($Z40), MATCH('Calc - Sparklines'!$C$1,INDIRECT($AA40),0), MATCH('Calc - Sparklines'!$D40,INDIRECT($AB40),0)-O$3)),NA()) -> 59075 | P40: =IFERROR(IF(ISNUMBER( INDEX(INDIRECT($Z40), MATCH('Calc - Sparklines'!$C$1,INDIRECT($AA40),0), MATCH('Calc - Sparklines'!$D40,INDIRECT($AB40),0)-P$3))=FALSE,NA(), INDEX(INDIRECT($Z40), MATCH('Calc - Sparklines'!$C$1,INDIRECT($AA40),0), MATCH('Calc - Sparklines'!$D40,INDIRECT($AB40),0)-P$3)),NA()) -> 57290 | R40: 6 | S40: 0 | T40: 57290 | U40: 59075 | V40: ▼ | W40: Sparkline32 | X40: =IF(ISNA(T40),"N/A",IF(R40<=2,"N/A","")) ->  | Z40: Data_Table_CR_iii_a | AA40: Data_Orgs_CR_iii_a | AB40: Data_Dates_CR_iii_a | AD40: Not Applicable | AE40: Not Applicable
A41: CR_iii_b | B41: CR(iii.b) | C41: Number of inappropriate Mental Health Out of Area Placements started in the period | D41: ='CR(iii_b)_FINAL CALC'!$B$6 -> Q2 2018/19 | E41: =IFERROR(IF(ISNUMBER( INDEX(INDIRECT($Z41), MATCH('Calc - Sparklines'!$C$1,INDIRECT($AA41),0), MATCH('Calc - Sparklines'!$D41,INDIRECT($AB41),0)-E$3))=FALSE,NA(), INDEX(INDIRECT($Z41), MATCH('Calc - Sparklines'!$C$1,INDIRECT($AA41),0), MATCH('Calc - Sparklines'!$D41,INDIRECT($AB41),0)-E$3)),NA()) ->  | F41: =IFERROR(IF(ISNUMBER( INDEX(INDIRECT($Z41), MATCH('Calc - Sparklines'!$C$1,INDIRECT($AA41),0), MATCH('Calc - Sparklines'!$D41,INDIRECT($AB41),0)-F$3))=FALSE,NA(), INDEX(INDIRECT($Z41), MATCH('Calc - Sparklines'!$C$1,INDIRECT($AA41),0), MATCH('Calc - Sparklines'!$D41,INDIRECT($AB41),0)-F$3)),NA()) ->  | G41: =IFERROR(IF(ISNUMBER( INDEX(INDIRECT($Z41), MATCH('Calc - Sparklines'!$C$1,INDIRECT($AA41),0), MATCH('Calc - Sparklines'!$D41,INDIRECT($AB41),0)-G$3))=FALSE,NA(), INDEX(INDIRECT($Z41), MATCH('Calc - Sparklines'!$C$1,INDIRECT($AA41),0), MATCH('Calc - Sparklines'!$D41,INDIRECT($AB41),0)-G$3)),NA()) ->  | H41: =IFERROR(IF(ISNUMBER( INDEX(INDIRECT($Z41), MATCH('Calc - Sparklines'!$C$1,INDIRECT($AA41),0), MATCH('Calc - Sparklines'!$D41,INDIRECT($AB41),0)-H$3))=FALSE,NA(), INDEX(INDIRECT($Z41), MATCH('Calc - Sparklines'!$C$1,INDIRECT($AA41),0), MATCH('Calc - Sparklines'!$D41,INDIRECT($AB41),0)-H$3)),NA()) ->  | I41: =IFERROR(IF(ISNUMBER( INDEX(INDIRECT($Z41), MATCH('Calc - Sparklines'!$C$1,INDIRECT($AA41),0), MATCH('Calc - Sparklines'!$D41,INDIRECT($AB41),0)-I$3))=FALSE,NA(), INDEX(INDIRECT($Z41), MATCH('Calc - Sparklines'!$C$1,INDIRECT($AA41),0), MATCH('Calc - Sparklines'!$D41,INDIRECT($AB41),0)-I$3)),NA()) ->  | J41: =IFERROR(IF(ISNUMBER( INDEX(INDIRECT($Z41), MATCH('Calc - Sparklines'!$C$1,INDIRECT($AA41),0), MATCH('Calc - Sparklines'!$D41,INDIRECT($AB41),0)-J$3))=FALSE,NA(), INDEX(INDIRECT($Z41), MATCH('Calc - Sparklines'!$C$1,INDIRECT($AA41),0), MATCH('Calc - Sparklines'!$D41,INDIRECT($AB41),0)-J$3)),NA()) ->  | K41: =IFERROR(IF(ISNUMBER( INDEX(INDIRECT($Z41), MATCH('Calc - Sparklines'!$C$1,INDIRECT($AA41),0), MATCH('Calc - Sparklines'!$D41,INDIRECT($AB41),0)-K$3))=FALSE,NA(), INDEX(INDIRECT($Z41), MATCH('Calc - Sparklines'!$C$1,INDIRECT($AA41),0), MATCH('Calc - Sparklines'!$D41,INDIRECT($AB41),0)-K$3)),NA()) ->  | L41: =IFERROR(IF(ISNUMBER( INDEX(INDIRECT($Z41), MATCH('Calc - Sparklines'!$C$1,INDIRECT($AA41),0), MATCH('Calc - Sparklines'!$D41,INDIRECT($AB41),0)-L$3))=FALSE,NA(), INDEX(INDIRECT($Z41), MATCH('Calc - Sparklines'!$C$1,INDIRECT($AA41),0), MATCH('Calc - Sparklines'!$D41,INDIRECT($AB41),0)-L$3)),NA()) -> 1872 | M41: =IFERROR(IF(ISNUMBER( INDEX(INDIRECT($Z41), MATCH('Calc - Sparklines'!$C$1,INDIRECT($AA41),0), MATCH('Calc - Sparklines'!$D41,INDIRECT($AB41),0)-M$3))=FALSE,NA(), INDEX(INDIRECT($Z41), MATCH('Calc - Sparklines'!$C$1,INDIRECT($AA41),0), MATCH('Calc - Sparklines'!$D41,INDIRECT($AB41),0)-M$3)),NA()) -> 2000 | N41: =IFERROR(IF(ISNUMBER( INDEX(INDIRECT($Z41), MATCH('Calc - Sparklines'!$C$1,INDIRECT($AA41),0), MATCH('Calc - Sparklines'!$D41,INDIRECT($AB41),0)-N$3))=FALSE,NA(), INDEX(INDIRECT($Z41), MATCH('Calc - Sparklines'!$C$1,INDIRECT($AA41),0), MATCH('Calc - Sparklines'!$D41,INDIRECT($AB41),0)-N$3)),NA()) -> 1980 | O41: =IFERROR(IF(ISNUMBER( INDEX(INDIRECT($Z41), MATCH('Calc - Sparklines'!$C$1,INDIRECT($AA41),0), MATCH('Calc - Sparklines'!$D41,INDIRECT($AB41),0)-O$3))=FALSE,NA(), INDEX(INDIRECT($Z41), MATCH('Calc - Sparklines'!$C$1,INDIRECT($AA41),0), MATCH('Calc - Sparklines'!$D41,INDIRECT($AB41),0)-O$3)),NA()) -> 1925 | P41: =IFERROR(IF(ISNUMBER( INDEX(INDIRECT($Z41), MATCH('Calc - Sparklines'!$C$1,INDIRECT($AA41),0), MATCH('Calc - Sparklines'!$D41,INDIRECT($AB41),0)-P$3))=FALSE,NA(), INDEX(INDIRECT($Z41), MATCH('Calc - Sparklines'!$C$1,INDIRECT($AA41),0), MATCH('Calc - Sparklines'!$D41,INDIRECT($AB41),0)-P$3)),NA()) -> 1855 | R41: =IF(COUNTA(K41:P41)-COUNTIF(K41:P41,"#N/A")<3, 0, COUNTA(K41:P41)) -> 6 | S41: =IF(P41="N/A",IF(O41="N/A",2,1),0) -> 0 | T41: =OFFSET(P41,,-S41) -> 1855 | U41: =IF(ISERROR(O41),IF(ISERROR(N41),IF(ISERROR(M41),IF(ISERROR(L41),IF(ISERROR(K41),IF(ISERROR(J41),IF(ISERROR(I41),IF(ISERROR(H41),IF(ISERROR(G41),IF(ISERROR(F41),IF(ISERROR(E41), NA(), E41),F41),G41),H41),I41),J41),K41),L41),M41),N41),O41) -> 1925 | V41: =IF(D41="","",IFERROR(IF(T41>U41,"▲", IF(T41<U41,"▼","◄►")),"N/A")) -> ▼ | W41: Sparkline33 | Z41: Data_Table_CR_iii_b | AA41: Data_Orgs_CR_iii_b | AB41: Data_Dates_CR_iii_b
A42: CR_iii_c | B42: CR(iii.c) | C42: Reported spend on inappropriate Out of Area Placements | D42: ='CR(iii_c)_FINAL CALC'!$B$6 -> Q2 2018/19 | E42: =IFERROR(IF(ISNUMBER( INDEX(INDIRECT($Z42), MATCH('Calc - Sparklines'!$C$1,INDIRECT($AA42),0), MATCH('Calc - Sparklines'!$D42,INDIRECT($AB42),0)-E$3))=FALSE,NA(), INDEX(INDIRECT($Z42), MATCH('Calc - Sparklines'!$C$1,INDIRECT($AA42),0), MATCH('Calc - Sparklines'!$D42,INDIRECT($AB42),0)-E$3)),NA()) ->  | F42: =IFERROR(IF(ISNUMBER( INDEX(INDIRECT($Z42), MATCH('Calc - Sparklines'!$C$1,INDIRECT($AA42),0), MATCH('Calc - Sparklines'!$D42,INDIRECT($AB42),0)-F$3))=FALSE,NA(), INDEX(INDIRECT($Z42), MATCH('Calc - Sparklines'!$C$1,INDIRECT($AA42),0), MATCH('Calc - Sparklines'!$D42,INDIRECT($AB42),0)-F$3)),NA()) ->  | G42: =IFERROR(IF(ISNUMBER( INDEX(INDIRECT($Z42), MATCH('Calc - Sparklines'!$C$1,INDIRECT($AA42),0), MATCH('Calc - Sparklines'!$D42,INDIRECT($AB42),0)-G$3))=FALSE,NA(), INDEX(INDIRECT($Z42), MATCH('Calc - Sparklines'!$C$1,INDIRECT($AA42),0), MATCH('Calc - Sparklines'!$D42,INDIRECT($AB42),0)-G$3)),NA()) ->  | H42: =IFERROR(IF(ISNUMBER( INDEX(INDIRECT($Z42), MATCH('Calc - Sparklines'!$C$1,INDIRECT($AA42),0), MATCH('Calc - Sparklines'!$D42,INDIRECT($AB42),0)-H$3))=FALSE,NA(), INDEX(INDIRECT($Z42), MATCH('Calc - Sparklines'!$C$1,INDIRECT($AA42),0), MATCH('Calc - Sparklines'!$D42,INDIRECT($AB42),0)-H$3)),NA()) ->  | I42: =IFERROR(IF(ISNUMBER( INDEX(INDIRECT($Z42), MATCH('Calc - Sparklines'!$C$1,INDIRECT($AA42),0), MATCH('Calc - Sparklines'!$D42,INDIRECT($AB42),0)-I$3))=FALSE,NA(), INDEX(INDIRECT($Z42), MATCH('Calc - Sparklines'!$C$1,INDIRECT($AA42),0), MATCH('Calc - Sparklines'!$D42,INDIRECT($AB42),0)-I$3)),NA()) ->  | J42: =IFERROR(IF(ISNUMBER( INDEX(INDIRECT($Z42), MATCH('Calc - Sparklines'!$C$1,INDIRECT($AA42),0), MATCH('Calc - Sparklines'!$D42,INDIRECT($AB42),0)-J$3))=FALSE,NA(), INDEX(INDIRECT($Z42), MATCH('Calc - Sparklines'!$C$1,INDIRECT($AA42),0), MATCH('Calc - Sparklines'!$D42,INDIRECT($AB42),0)-J$3)),NA()) ->  | K42: =IFERROR(IF(ISNUMBER( INDEX(INDIRECT($Z42), MATCH('Calc - Sparklines'!$C$1,INDIRECT($AA42),0), MATCH('Calc - Sparklines'!$D42,INDIRECT($AB42),0)-K$3))=FALSE,NA(), INDEX(INDIRECT($Z42), MATCH('Calc - Sparklines'!$C$1,INDIRECT($AA42),0), MATCH('Calc - Sparklines'!$D42,INDIRECT($AB42),0)-K$3)),NA()) ->  | L42: =IFERROR(IF(ISNUMBER( INDEX(INDIRECT($Z42), MATCH('Calc - Sparklines'!$C$1,INDIRECT($AA42),0), MATCH('Calc - Sparklines'!$D42,INDIRECT($AB42),0)-L$3))=FALSE,NA(), INDEX(INDIRECT($Z42), MATCH('Calc - Sparklines'!$C$1,INDIRECT($AA42),0), MATCH('Calc - Sparklines'!$D42,INDIRECT($AB42),0)-L$3)),NA()) -> 25616000 | M42: =IFERROR(IF(ISNUMBER( INDEX(INDIRECT($Z42), MATCH('Calc - Sparklines'!$C$1,INDIRECT($AA42),0), MATCH('Calc - Sparklines'!$D42,INDIRECT($AB42),0)-M$3))=FALSE,NA(), INDEX(INDIRECT($Z42), MATCH('Calc - Sparklines'!$C$1,INDIRECT($AA42),0), MATCH('Calc - Sparklines'!$D42,INDIRECT($AB42),0)-M$3)),NA()) -> 24785328 | N42: =IFERROR(IF(ISNUMBER( INDEX(INDIRECT($Z42), MATCH('Calc - Sparklines'!$C$1,INDIRECT($AA42),0), MATCH('Calc - Sparklines'!$D42,INDIRECT($AB42),0)-N$3))=FALSE,NA(), INDEX(INDIRECT($Z42), MATCH('Calc - Sparklines'!$C$1,INDIRECT($AA42),0), MATCH('Calc - Sparklines'!$D42,INDIRECT($AB42),0)-N$3)),NA()) -> 22265261 | O42: =IFERROR(IF(ISNUMBER( INDEX(INDIRECT($Z42), MATCH('Calc - Sparklines'!$C$1,INDIRECT($AA42),0), MATCH('Calc - Sparklines'!$D42,INDIRECT($AB42),0)-O$3))=FALSE,NA(), INDEX(INDIRECT($Z42), MATCH('Calc - Sparklines'!$C$1,INDIRECT($AA42),0), MATCH('Calc - Sparklines'!$D42,INDIRECT($AB42),0)-O$3)),NA()) -> 26570883 | P42: =IFERROR(IF(ISNUMBER( INDEX(INDIRECT($Z42), MATCH('Calc - Sparklines'!$C$1,INDIRECT($AA42),0), MATCH('Calc - Sparklines'!$D42,INDIRECT($AB42),0)-P$3))=FALSE,NA(), INDEX(INDIRECT($Z42), MATCH('Calc - Sparklines'!$C$1,INDIRECT($AA42),0), MATCH('Calc - Sparklines'!$D42,INDIRECT($AB42),0)-P$3)),NA()) -> 26805460 | R42: 6 | S42: 0 | T42: 26805460 | U42: 26570883 | V42: ▲ | W42: Sparkline34 | Z42: Data_Table_CR_iii_c | AA42: Data_Orgs_CR_iii_c | AB42: Data_Dates_CR_iii_c
A43: CR_iv_a | B43: CR(iv.a) | C43: Number of detentions under the Mental Health Act | D43: ='CR(iv_a)_FINAL CALC'!B6 -> 2017/18 | E43: =IFERROR(IF(ISNUMBER( INDEX(INDIRECT($Z43), MATCH('Calc - Sparklines'!$C$1,INDIRECT($AA43),0), MATCH('Calc - Sparklines'!$D43,INDIRECT($AB43),0)-E$3))=FALSE,NA(), INDEX(INDIRECT($Z43), MATCH('Calc - Sparklines'!$C$1,INDIRECT($AA43),0), MATCH('Calc - Sparklines'!$D43,INDIRECT($AB43),0)-E$3)),NA()) ->  | F43: =IFERROR(IF(ISNUMBER( INDEX(INDIRECT($Z43), MATCH('Calc - Sparklines'!$C$1,INDIRECT($AA43),0), MATCH('Calc - Sparklines'!$D43,INDIRECT($AB43),0)-F$3))=FALSE,NA(), INDEX(INDIRECT($Z43), MATCH('Calc - Sparklines'!$C$1,INDIRECT($AA43),0), MATCH('Calc - Sparklines'!$D43,INDIRECT($AB43),0)-F$3)),NA()) ->  | G43: =IFERROR(IF(ISNUMBER( INDEX(INDIRECT($Z43), MATCH('Calc - Sparklines'!$C$1,INDIRECT($AA43),0), MATCH('Calc - Sparklines'!$D43,INDIRECT($AB43),0)-G$3))=FALSE,NA(), INDEX(INDIRECT($Z43), MATCH('Calc - Sparklines'!$C$1,INDIRECT($AA43),0), MATCH('Calc - Sparklines'!$D43,INDIRECT($AB43),0)-G$3)),NA()) ->  | H43: =IFERROR(IF(ISNUMBER( INDEX(INDIRECT($Z43), MATCH('Calc - Sparklines'!$C$1,INDIRECT($AA43),0), MATCH('Calc - Sparklines'!$D43,INDIRECT($AB43),0)-H$3))=FALSE,NA(), INDEX(INDIRECT($Z43), MATCH('Calc - Sparklines'!$C$1,INDIRECT($AA43),0), MATCH('Calc - Sparklines'!$D43,INDIRECT($AB43),0)-H$3)),NA()) ->  | I43: =IFERROR(IF(ISNUMBER( INDEX(INDIRECT($Z43), MATCH('Calc - Sparklines'!$C$1,INDIRECT($AA43),0), MATCH('Calc - Sparklines'!$D43,INDIRECT($AB43),0)-I$3))=FALSE,NA(), INDEX(INDIRECT($Z43), MATCH('Calc - Sparklines'!$C$1,INDIRECT($AA43),0), MATCH('Calc - Sparklines'!$D43,INDIRECT($AB43),0)-I$3)),NA()) ->  | J43: =IFERROR(IF(ISNUMBER( INDEX(INDIRECT($Z43), MATCH('Calc - Sparklines'!$C$1,INDIRECT($AA43),0), MATCH('Calc - Sparklines'!$D43,INDIRECT($AB43),0)-J$3))=FALSE,NA(), INDEX(INDIRECT($Z43), MATCH('Calc - Sparklines'!$C$1,INDIRECT($AA43),0), MATCH('Calc - Sparklines'!$D43,INDIRECT($AB43),0)-J$3)),NA()) ->  | K43: =IFERROR(IF(ISNUMBER( INDEX(INDIRECT($Z43), MATCH('Calc - Sparklines'!$C$1,INDIRECT($AA43),0), MATCH('Calc - Sparklines'!$D43,INDIRECT($AB43),0)-K$3))=FALSE,NA(), INDEX(INDIRECT($Z43), MATCH('Calc - Sparklines'!$C$1,INDIRECT($AA43),0), MATCH('Calc - Sparklines'!$D43,INDIRECT($AB43),0)-K$3)),NA()) ->  | L43: =IFERROR(IF(ISNUMBER( INDEX(INDIRECT($Z43), MATCH('Calc - Sparklines'!$C$1,INDIRECT($AA43),0), MATCH('Calc - Sparklines'!$D43,INDIRECT($AB43),0)-L$3))=FALSE,NA(), INDEX(INDIRECT($Z43), MATCH('Calc - Sparklines'!$C$1,INDIRECT($AA43),0), MATCH('Calc - Sparklines'!$D43,INDIRECT($AB43),0)-L$3)),NA()) ->  | M43: =IFERROR(IF(ISNUMBER( INDEX(INDIRECT($Z43), MATCH('Calc - Sparklines'!$C$1,INDIRECT($AA43),0), MATCH('Calc - Sparklines'!$D43,INDIRECT($AB43),0)-M$3))=FALSE,NA(), INDEX(INDIRECT($Z43), MATCH('Calc - Sparklines'!$C$1,INDIRECT($AA43),0), MATCH('Calc - Sparklines'!$D43,INDIRECT($AB43),0)-M$3)),NA()) ->  | N43: =IFERROR(IF(ISNUMBER( INDEX(INDIRECT($Z43), MATCH('Calc - Sparklines'!$C$1,INDIRECT($AA43),0), MATCH('Calc - Sparklines'!$D43,INDIRECT($AB43),0)-N$3))=FALSE,NA(), INDEX(INDIRECT($Z43), MATCH('Calc - Sparklines'!$C$1,INDIRECT($AA43),0), MATCH('Calc - Sparklines'!$D43,INDIRECT($AB43),0)-N$3)),NA()) ->  | O43: =IFERROR(IF(ISNUMBER( INDEX(INDIRECT($Z43), MATCH('Calc - Sparklines'!$C$1,INDIRECT($AA43),0), MATCH('Calc - Sparklines'!$D43,INDIRECT($AB43),0)-O$3))=FALSE,NA(), INDEX(INDIRECT($Z43), MATCH('Calc - Sparklines'!$C$1,INDIRECT($AA43),0), MATCH('Calc - Sparklines'!$D43,INDIRECT($AB43),0)-O$3)),NA()) -> 45864 | P43: =IFERROR(IF(ISNUMBER( INDEX(INDIRECT($Z43), MATCH('Calc - Sparklines'!$C$1,INDIRECT($AA43),0), MATCH('Calc - Sparklines'!$D43,INDIRECT($AB43),0)-P$3))=FALSE,NA(), INDEX(INDIRECT($Z43), MATCH('Calc - Sparklines'!$C$1,INDIRECT($AA43),0), MATCH('Calc - Sparklines'!$D43,INDIRECT($AB43),0)-P$3)),NA()) -> 49551 | R43: 0 | S43: 0 | T43: 49551 | U43: 45864 | V43: ▲ | W43: Sparkline35 | X43: N/A | Z43: Data_Table_CR_iv_a | AA43: Data_Orgs_CR_iv_a | AB43: Data_Dates_CR_iv_a | AD43: National measure only | AE43: National measure only
A44: CR_iv_b | B44: CR(iv.b) | C44: % of people detained under the MHA who are BME | D44: ='CR(iv_b)_FINAL CALC'!B6 -> 2017/18 | E44: =IFERROR(IF(ISNUMBER( INDEX(INDIRECT($Z44), MATCH('Calc - Sparklines'!$C$1,INDIRECT($AA44),0), MATCH('Calc - Sparklines'!$D44,INDIRECT($AB44),0)-E$3))=FALSE,NA(), INDEX(INDIRECT($Z44), MATCH('Calc - Sparklines'!$C$1,INDIRECT($AA44),0), MATCH('Calc - Sparklines'!$D44,INDIRECT($AB44),0)-E$3)),NA()) ->  | F44: =IFERROR(IF(ISNUMBER( INDEX(INDIRECT($Z44), MATCH('Calc - Sparklines'!$C$1,INDIRECT($AA44),0), MATCH('Calc - Sparklines'!$D44,INDIRECT($AB44),0)-F$3))=FALSE,NA(), INDEX(INDIRECT($Z44), MATCH('Calc - Sparklines'!$C$1,INDIRECT($AA44),0), MATCH('Calc - Sparklines'!$D44,INDIRECT($AB44),0)-F$3)),NA()) ->  | G44: =IFERROR(IF(ISNUMBER( INDEX(INDIRECT($Z44), MATCH('Calc - Sparklines'!$C$1,INDIRECT($AA44),0), MATCH('Calc - Sparklines'!$D44,INDIRECT($AB44),0)-G$3))=FALSE,NA(), INDEX(INDIRECT($Z44), MATCH('Calc - Sparklines'!$C$1,INDIRECT($AA44),0), MATCH('Calc - Sparklines'!$D44,INDIRECT($AB44),0)-G$3)),NA()) ->  | H44: =IFERROR(IF(ISNUMBER( INDEX(INDIRECT($Z44), MATCH('Calc - Sparklines'!$C$1,INDIRECT($AA44),0), MATCH('Calc - Sparklines'!$D44,INDIRECT($AB44),0)-H$3))=FALSE,NA(), INDEX(INDIRECT($Z44), MATCH('Calc - Sparklines'!$C$1,INDIRECT($AA44),0), MATCH('Calc - Sparklines'!$D44,INDIRECT($AB44),0)-H$3)),NA()) ->  | I44: =IFERROR(IF(ISNUMBER( INDEX(INDIRECT($Z44), MATCH('Calc - Sparklines'!$C$1,INDIRECT($AA44),0), MATCH('Calc - Sparklines'!$D44,INDIRECT($AB44),0)-I$3))=FALSE,NA(), INDEX(INDIRECT($Z44), MATCH('Calc - Sparklines'!$C$1,INDIRECT($AA44),0), MATCH('Calc - Sparklines'!$D44,INDIRECT($AB44),0)-I$3)),NA()) ->  | J44: =IFERROR(IF(ISNUMBER( INDEX(INDIRECT($Z44), MATCH('Calc - Sparklines'!$C$1,INDIRECT($AA44),0), MATCH('Calc - Sparklines'!$D44,INDIRECT($AB44),0)-J$3))=FALSE,NA(), INDEX(INDIRECT($Z44), MATCH('Calc - Sparklines'!$C$1,INDIRECT($AA44),0), MATCH('Calc - Sparklines'!$D44,INDIRECT($AB44),0)-J$3)),NA()) ->  | K44: =IFERROR(IF(ISNUMBER( INDEX(INDIRECT($Z44), MATCH('Calc - Sparklines'!$C$1,INDIRECT($AA44),0), MATCH('Calc - Sparklines'!$D44,INDIRECT($AB44),0)-K$3))=FALSE,NA(), INDEX(INDIRECT($Z44), MATCH('Calc - Sparklines'!$C$1,INDIRECT($AA44),0), MATCH('Calc - Sparklines'!$D44,INDIRECT($AB44),0)-K$3)),NA()) ->  | L44: =IFERROR(IF(ISNUMBER( INDEX(INDIRECT($Z44), MATCH('Calc - Sparklines'!$C$1,INDIRECT($AA44),0), MATCH('Calc - Sparklines'!$D44,INDIRECT($AB44),0)-L$3))=FALSE,NA(), INDEX(INDIRECT($Z44), MATCH('Calc - Sparklines'!$C$1,INDIRECT($AA44),0), MATCH('Calc - Sparklines'!$D44,INDIRECT($AB44),0)-L$3)),NA()) ->  | M44: =IFERROR(IF(ISNUMBER( INDEX(INDIRECT($Z44), MATCH('Calc - Sparklines'!$C$1,INDIRECT($AA44),0), MATCH('Calc - Sparklines'!$D44,INDIRECT($AB44),0)-M$3))=FALSE,NA(), INDEX(INDIRECT($Z44), MATCH('Calc - Sparklines'!$C$1,INDIRECT($AA44),0), MATCH('Calc - Sparklines'!$D44,INDIRECT($AB44),0)-M$3)),NA()) ->  | N44: =IFERROR(IF(ISNUMBER( INDEX(INDIRECT($Z44), MATCH('Calc - Sparklines'!$C$1,INDIRECT($AA44),0), MATCH('Calc - Sparklines'!$D44,INDIRECT($AB44),0)-N$3))=FALSE,NA(), INDEX(INDIRECT($Z44), MATCH('Calc - Sparklines'!$C$1,INDIRECT($AA44),0), MATCH('Calc - Sparklines'!$D44,INDIRECT($AB44),0)-N$3)),NA()) ->  | O44: =IFERROR(IF(ISNUMBER( INDEX(INDIRECT($Z44), MATCH('Calc - Sparklines'!$C$1,INDIRECT($AA44),0), MATCH('Calc - Sparklines'!$D44,INDIRECT($AB44),0)-O$3))=FALSE,NA(), INDEX(INDIRECT($Z44), MATCH('Calc - Sparklines'!$C$1,INDIRECT($AA44),0), MATCH('Calc - Sparklines'!$D44,INDIRECT($AB44),0)-O$3)),NA()) -> 0.3 | P44: =IFERROR(IF(ISNUMBER( INDEX(INDIRECT($Z44), MATCH('Calc - Sparklines'!$C$1,INDIRECT($AA44),0), MATCH('Calc - Sparklines'!$D44,INDIRECT($AB44),0)-P$3))=FALSE,NA(), INDEX(INDIRECT($Z44), MATCH('Calc - Sparklines'!$C$1,INDIRECT($AA44),0), MATCH('Calc - Sparklines'!$D44,INDIRECT($AB44),0)-P$3)),NA()) -> 0.29 | R44: 0 | S44: 0 | T44: 0.29 | U44: 0.3 | V44: ▼ | W44: Sparkline36 | X44: N/A | Z44: Data_Table_CR_iv_b | AA44: Data_Orgs_CR_iv_b | AB44: Data_Dates_CR_iv_b | AD44: National measure only | AE44: National measure only
A45: CR_v_a | B45: CR(v.a) | C45: Number of section 136 detentions taken to police cells as a place of safety | D45: ='CR(v_a)_FINAL CALC'!B6 -> 2017/18 | E45: =IFERROR(IF(ISNUMBER( INDEX(INDIRECT($Z45), MATCH('Calc - Sparklines'!$C$1,INDIRECT($AA45),0), MATCH('Calc - Sparklines'!$D45,INDIRECT($AB45),0)-E$3))=FALSE,NA(), INDEX(INDIRECT($Z45), MATCH('Calc - Sparklines'!$C$1,INDIRECT($AA45),0), MATCH('Calc - Sparklines'!$D45,INDIRECT($AB45),0)-E$3)),NA()) ->  | F45: =IFERROR(IF(ISNUMBER( INDEX(INDIRECT($Z45), MATCH('Calc - Sparklines'!$C$1,INDIRECT($AA45),0), MATCH('Calc - Sparklines'!$D45,INDIRECT($AB45),0)-F$3))=FALSE,NA(), INDEX(INDIRECT($Z45), MATCH('Calc - Sparklines'!$C$1,INDIRECT($AA45),0), MATCH('Calc - Sparklines'!$D45,INDIRECT($AB45),0)-F$3)),NA()) ->  | G45: =IFERROR(IF(ISNUMBER( INDEX(INDIRECT($Z45), MATCH('Calc - Sparklines'!$C$1,INDIRECT($AA45),0), MATCH('Calc - Sparklines'!$D45,INDIRECT($AB45),0)-G$3))=FALSE,NA(), INDEX(INDIRECT($Z45), MATCH('Calc - Sparklines'!$C$1,INDIRECT($AA45),0), MATCH('Calc - Sparklines'!$D45,INDIRECT($AB45),0)-G$3)),NA()) ->  | H45: =IFERROR(IF(ISNUMBER( INDEX(INDIRECT($Z45), MATCH('Calc - Sparklines'!$C$1,INDIRECT($AA45),0), MATCH('Calc - Sparklines'!$D45,INDIRECT($AB45),0)-H$3))=FALSE,NA(), INDEX(INDIRECT($Z45), MATCH('Calc - Sparklines'!$C$1,INDIRECT($AA45),0), MATCH('Calc - Sparklines'!$D45,INDIRECT($AB45),0)-H$3)),NA()) ->  | I45: =IFERROR(IF(ISNUMBER( INDEX(INDIRECT($Z45), MATCH('Calc - Sparklines'!$C$1,INDIRECT($AA45),0), MATCH('Calc - Sparklines'!$D45,INDIRECT($AB45),0)-I$3))=FALSE,NA(), INDEX(INDIRECT($Z45), MATCH('Calc - Sparklines'!$C$1,INDIRECT($AA45),0), MATCH('Calc - Sparklines'!$D45,INDIRECT($AB45),0)-I$3)),NA()) ->  | J45: =IFERROR(IF(ISNUMBER( INDEX(INDIRECT($Z45), MATCH('Calc - Sparklines'!$C$1,INDIRECT($AA45),0), MATCH('Calc - Sparklines'!$D45,INDIRECT($AB45),0)-J$3))=FALSE,NA(), INDEX(INDIRECT($Z45), MATCH('Calc - Sparklines'!$C$1,INDIRECT($AA45),0), MATCH('Calc - Sparklines'!$D45,INDIRECT($AB45),0)-J$3)),NA()) ->  | K45: =IFERROR(IF(ISNUMBER( INDEX(INDIRECT($Z45), MATCH('Calc - Sparklines'!$C$1,INDIRECT($AA45),0), MATCH('Calc - Sparklines'!$D45,INDIRECT($AB45),0)-K$3))=FALSE,NA(), INDEX(INDIRECT($Z45), MATCH('Calc - Sparklines'!$C$1,INDIRECT($AA45),0), MATCH('Calc - Sparklines'!$D45,INDIRECT($AB45),0)-K$3)),NA()) ->  | L45: =IFERROR(IF(ISNUMBER( INDEX(INDIRECT($Z45), MATCH('Calc - Sparklines'!$C$1,INDIRECT($AA45),0), MATCH('Calc - Sparklines'!$D45,INDIRECT($AB45),0)-L$3))=FALSE,NA(), INDEX(INDIRECT($Z45), MATCH('Calc - Sparklines'!$C$1,INDIRECT($AA45),0), MATCH('Calc - Sparklines'!$D45,INDIRECT($AB45),0)-L$3)),NA()) -> 6028 | M45: =IFERROR(IF(ISNUMBER( INDEX(INDIRECT($Z45), MATCH('Calc - Sparklines'!$C$1,INDIRECT($AA45),0), MATCH('Calc - Sparklines'!$D45,INDIRECT($AB45),0)-M$3))=FALSE,NA(), INDEX(INDIRECT($Z45), MATCH('Calc - Sparklines'!$C$1,INDIRECT($AA45),0), MATCH('Calc - Sparklines'!$D45,INDIRECT($AB45),0)-M$3)),NA()) -> 3996 | N45: =IFERROR(IF(ISNUMBER( INDEX(INDIRECT($Z45), MATCH('Calc - Sparklines'!$C$1,INDIRECT($AA45),0), MATCH('Calc - Sparklines'!$D45,INDIRECT($AB45),0)-N$3))=FALSE,NA(), INDEX(INDIRECT($Z45), MATCH('Calc - Sparklines'!$C$1,INDIRECT($AA45),0), MATCH('Calc - Sparklines'!$D45,INDIRECT($AB45),0)-N$3)),NA()) -> 1764 | O45: =IFERROR(IF(ISNUMBER( INDEX(INDIRECT($Z45), MATCH('Calc - Sparklines'!$C$1,INDIRECT($AA45),0), MATCH('Calc - Sparklines'!$D45,INDIRECT($AB45),0)-O$3))=FALSE,NA(), INDEX(INDIRECT($Z45), MATCH('Calc - Sparklines'!$C$1,INDIRECT($AA45),0), MATCH('Calc - Sparklines'!$D45,INDIRECT($AB45),0)-O$3)),NA()) -> 898 | P45: =IFERROR(IF(ISNUMBER( INDEX(INDIRECT($Z45), MATCH('Calc - Sparklines'!$C$1,INDIRECT($AA45),0), MATCH('Calc - Sparklines'!$D45,INDIRECT($AB45),0)-P$3))=FALSE,NA(), INDEX(INDIRECT($Z45), MATCH('Calc - Sparklines'!$C$1,INDIRECT($AA45),0), MATCH('Calc - Sparklines'!$D45,INDIRECT($AB45),0)-P$3)),NA()) -> 408 | R45: 6 | S45: 0 | T45: 408 | U45: 898 | V45: ▼ | W45: Sparkline37 | Z45: Data_Table_CR_v_a | AA45: Data_Orgs_CR_v_a | AB45: Data_Dates_CR_v_a | AD45: National measure only | AE45: National measure only
A46: CR_v_b | B46: CR(v.b) | C46: Number of these that are under 18 | D46: ='CR(v_b)_FINAL CALC'!B6 -> 2017/18 | E46: =IFERROR(IF(ISNUMBER( INDEX(INDIRECT($Z46), MATCH('Calc - Sparklines'!$C$1,INDIRECT($AA46),0), MATCH('Calc - Sparklines'!$D46,INDIRECT($AB46),0)-E$3))=FALSE,NA(), INDEX(INDIRECT($Z46), MATCH('Calc - Sparklines'!$C$1,INDIRECT($AA46),0), MATCH('Calc - Sparklines'!$D46,INDIRECT($AB46),0)-E$3)),NA()) ->  | F46: =IFERROR(IF(ISNUMBER( INDEX(INDIRECT($Z46), MATCH('Calc - Sparklines'!$C$1,INDIRECT($AA46),0), MATCH('Calc - Sparklines'!$D46,INDIRECT($AB46),0)-F$3))=FALSE,NA(), INDEX(INDIRECT($Z46), MATCH('Calc - Sparklines'!$C$1,INDIRECT($AA46),0), MATCH('Calc - Sparklines'!$D46,INDIRECT($AB46),0)-F$3)),NA()) ->  | G46: =IFERROR(IF(ISNUMBER( INDEX(INDIRECT($Z46), MATCH('Calc - Sparklines'!$C$1,INDIRECT($AA46),0), MATCH('Calc - Sparklines'!$D46,INDIRECT($AB46),0)-G$3))=FALSE,NA(), INDEX(INDIRECT($Z46), MATCH('Calc - Sparklines'!$C$1,INDIRECT($AA46),0), MATCH('Calc - Sparklines'!$D46,INDIRECT($AB46),0)-G$3)),NA()) ->  | H46: =IFERROR(IF(ISNUMBER( INDEX(INDIRECT($Z46), MATCH('Calc - Sparklines'!$C$1,INDIRECT($AA46),0), MATCH('Calc - Sparklines'!$D46,INDIRECT($AB46),0)-H$3))=FALSE,NA(), INDEX(INDIRECT($Z46), MATCH('Calc - Sparklines'!$C$1,INDIRECT($AA46),0), MATCH('Calc - Sparklines'!$D46,INDIRECT($AB46),0)-H$3)),NA()) ->  | I46: =IFERROR(IF(ISNUMBER( INDEX(INDIRECT($Z46), MATCH('Calc - Sparklines'!$C$1,INDIRECT($AA46),0), MATCH('Calc - Sparklines'!$D46,INDIRECT($AB46),0)-I$3))=FALSE,NA(), INDEX(INDIRECT($Z46), MATCH('Calc - Sparklines'!$C$1,INDIRECT($AA46),0), MATCH('Calc - Sparklines'!$D46,INDIRECT($AB46),0)-I$3)),NA()) ->  | J46: =IFERROR(IF(ISNUMBER( INDEX(INDIRECT($Z46), MATCH('Calc - Sparklines'!$C$1,INDIRECT($AA46),0), MATCH('Calc - Sparklines'!$D46,INDIRECT($AB46),0)-J$3))=FALSE,NA(), INDEX(INDIRECT($Z46), MATCH('Calc - Sparklines'!$C$1,INDIRECT($AA46),0), MATCH('Calc - Sparklines'!$D46,INDIRECT($AB46),0)-J$3)),NA()) ->  | K46: =IFERROR(IF(ISNUMBER( INDEX(INDIRECT($Z46), MATCH('Calc - Sparklines'!$C$1,INDIRECT($AA46),0), MATCH('Calc - Sparklines'!$D46,INDIRECT($AB46),0)-K$3))=FALSE,NA(), INDEX(INDIRECT($Z46), MATCH('Calc - Sparklines'!$C$1,INDIRECT($AA46),0), MATCH('Calc - Sparklines'!$D46,INDIRECT($AB46),0)-K$3)),NA()) ->  | L46: =IFERROR(IF(ISNUMBER( INDEX(INDIRECT($Z46), MATCH('Calc - Sparklines'!$C$1,INDIRECT($AA46),0), MATCH('Calc - Sparklines'!$D46,INDIRECT($AB46),0)-L$3))=FALSE,NA(), INDEX(INDIRECT($Z46), MATCH('Calc - Sparklines'!$C$1,INDIRECT($AA46),0), MATCH('Calc - Sparklines'!$D46,INDIRECT($AB46),0)-L$3)),NA()) -> 236 | M46: =IFERROR(IF(ISNUMBER( INDEX(INDIRECT($Z46), MATCH('Calc - Sparklines'!$C$1,INDIRECT($AA46),0), MATCH('Calc - Sparklines'!$D46,INDIRECT($AB46),0)-M$3))=FALSE,NA(), INDEX(INDIRECT($Z46), MATCH('Calc - Sparklines'!$C$1,INDIRECT($AA46),0), MATCH('Calc - Sparklines'!$D46,INDIRECT($AB46),0)-M$3)),NA()) -> 145 | N46: =IFERROR(IF(ISNUMBER( INDEX(INDIRECT($Z46), MATCH('Calc - Sparklines'!$C$1,INDIRECT($AA46),0), MATCH('Calc - Sparklines'!$D46,INDIRECT($AB46),0)-N$3))=FALSE,NA(), INDEX(INDIRECT($Z46), MATCH('Calc - Sparklines'!$C$1,INDIRECT($AA46),0), MATCH('Calc - Sparklines'!$D46,INDIRECT($AB46),0)-N$3)),NA()) -> 35 | O46: =IFERROR(IF(ISNUMBER( INDEX(INDIRECT($Z46), MATCH('Calc - Sparklines'!$C$1,INDIRECT($AA46),0), MATCH('Calc - Sparklines'!$D46,INDIRECT($AB46),0)-O$3))=FALSE,NA(), INDEX(INDIRECT($Z46), MATCH('Calc - Sparklines'!$C$1,INDIRECT($AA46),0), MATCH('Calc - Sparklines'!$D46,INDIRECT($AB46),0)-O$3)),NA()) -> 20 | P46: =IFERROR(IF(ISNUMBER( INDEX(INDIRECT($Z46), MATCH('Calc - Sparklines'!$C$1,INDIRECT($AA46),0), MATCH('Calc - Sparklines'!$D46,INDIRECT($AB46),0)-P$3))=FALSE,NA(), INDEX(INDIRECT($Z46), MATCH('Calc - Sparklines'!$C$1,INDIRECT($AA46),0), MATCH('Calc - Sparklines'!$D46,INDIRECT($AB46),0)-P$3)),NA()) -> 10 | R46: 6 | S46: 0 | T46: 10 | U46: 20 | V46: ▼ | W46: Sparkline01 | Z46: Data_Table_CR_v_b | AA46: Data_Orgs_CR_v_b | AB46: Data_Dates_CR_v_b
B47: Acute hospital (UEC) liaison | E47: =IFERROR(IF(ISNUMBER( INDEX(INDIRECT($Z47), MATCH('Calc - Sparklines'!$C$1,INDIRECT($AA47),0), MATCH('Calc - Sparklines'!$D47,INDIRECT($AB47),0)-E$3))=FALSE,NA(), INDEX(INDIRECT($Z47), MATCH('Calc - Sparklines'!$C$1,INDIRECT($AA47),0), MATCH('Calc - Sparklines'!$D47,INDIRECT($AB47),0)-E$3)),NA()) ->  | F47: =IFERROR(IF(ISNUMBER( INDEX(INDIRECT($Z47), MATCH('Calc - Sparklines'!$C$1,INDIRECT($AA47),0), MATCH('Calc - Sparklines'!$D47,INDIRECT($AB47),0)-F$3))=FALSE,NA(), INDEX(INDIRECT($Z47), MATCH('Calc - Sparklines'!$C$1,INDIRECT($AA47),0), MATCH('Calc - Sparklines'!$D47,INDIRECT($AB47),0)-F$3)),NA()) ->  | G47: =IFERROR(IF(ISNUMBER( INDEX(INDIRECT($Z47), MATCH('Calc - Sparklines'!$C$1,INDIRECT($AA47),0), MATCH('Calc - Sparklines'!$D47,INDIRECT($AB47),0)-G$3))=FALSE,NA(), INDEX(INDIRECT($Z47), MATCH('Calc - Sparklines'!$C$1,INDIRECT($AA47),0), MATCH('Calc - Sparklines'!$D47,INDIRECT($AB47),0)-G$3)),NA()) ->  | H47: =IFERROR(IF(ISNUMBER( INDEX(INDIRECT($Z47), MATCH('Calc - Sparklines'!$C$1,INDIRECT($AA47),0), MATCH('Calc - Sparklines'!$D47,INDIRECT($AB47),0)-H$3))=FALSE,NA(), INDEX(INDIRECT($Z47), MATCH('Calc - Sparklines'!$C$1,INDIRECT($AA47),0), MATCH('Calc - Sparklines'!$D47,INDIRECT($AB47),0)-H$3)),NA()) ->  | I47: =IFERROR(IF(ISNUMBER( INDEX(INDIRECT($Z47), MATCH('Calc - Sparklines'!$C$1,INDIRECT($AA47),0), MATCH('Calc - Sparklines'!$D47,INDIRECT($AB47),0)-I$3))=FALSE,NA(), INDEX(INDIRECT($Z47), MATCH('Calc - Sparklines'!$C$1,INDIRECT($AA47),0), MATCH('Calc - Sparklines'!$D47,INDIRECT($AB47),0)-I$3)),NA()) ->  | J47: =IFERROR(IF(ISNUMBER( INDEX(INDIRECT($Z47), MATCH('Calc - Sparklines'!$C$1,INDIRECT($AA47),0), MATCH('Calc - Sparklines'!$D47,INDIRECT($AB47),0)-J$3))=FALSE,NA(), INDEX(INDIRECT($Z47), MATCH('Calc - Sparklines'!$C$1,INDIRECT($AA47),0), MATCH('Calc - Sparklines'!$D47,INDIRECT($AB47),0)-J$3)),NA()) ->  | K47: =IFERROR(IF(ISNUMBER( INDEX(INDIRECT($Z47), MATCH('Calc - Sparklines'!$C$1,INDIRECT($AA47),0), MATCH('Calc - Sparklines'!$D47,INDIRECT($AB47),0)-K$3))=FALSE,NA(), INDEX(INDIRECT($Z47), MATCH('Calc - Sparklines'!$C$1,INDIRECT($AA47),0), MATCH('Calc - Sparklines'!$D47,INDIRECT($AB47),0)-K$3)),NA()) ->  | L47: =IFERROR(IF(ISNUMBER( INDEX(INDIRECT($Z47), MATCH('Calc - Sparklines'!$C$1,INDIRECT($AA47),0), MATCH('Calc - Sparklines'!$D47,INDIRECT($AB47),0)-L$3))=FALSE,NA(), INDEX(INDIRECT($Z47), MATCH('Calc - Sparklines'!$C$1,INDIRECT($AA47),0), MATCH('Calc - Sparklines'!$D47,INDIRECT($AB47),0)-L$3)),NA()) ->  | M47: =IFERROR(IF(ISNUMBER( INDEX(INDIRECT($Z47), MATCH('Calc - Sparklines'!$C$1,INDIRECT($AA47),0), MATCH('Calc - Sparklines'!$D47,INDIRECT($AB47),0)-M$3))=FALSE,NA(), INDEX(INDIRECT($Z47), MATCH('Calc - Sparklines'!$C$1,INDIRECT($AA47),0), MATCH('Calc - Sparklines'!$D47,INDIRECT($AB47),0)-M$3)),NA()) ->  | N47: =IFERROR(IF(ISNUMBER( INDEX(INDIRECT($Z47), MATCH('Calc - Sparklines'!$C$1,INDIRECT($AA47),0), MATCH('Calc - Sparklines'!$D47,INDIRECT($AB47),0)-N$3))=FALSE,NA(), INDEX(INDIRECT($Z47), MATCH('Calc - Sparklines'!$C$1,INDIRECT($AA47),0), MATCH('Calc - Sparklines'!$D47,INDIRECT($AB47),0)-N$3)),NA()) ->  | O47: =IFERROR(IF(ISNUMBER( INDEX(INDIRECT($Z47), MATCH('Calc - Sparklines'!$C$1,INDIRECT($AA47),0), MATCH('Calc - Sparklines'!$D47,INDIRECT($AB47),0)-O$3))=FALSE,NA(), INDEX(INDIRECT($Z47), MATCH('Calc - Sparklines'!$C$1,INDIRECT($AA47),0), MATCH('Calc - Sparklines'!$D47,INDIRECT($AB47),0)-O$3)),NA()) ->  | P47: =IFERROR(IF(ISNUMBER( INDEX(INDIRECT($Z47), MATCH('Calc - Sparklines'!$C$1,INDIRECT($AA47),0), MATCH('Calc - Sparklines'!$D47,INDIRECT($AB47),0)-P$3))=FALSE,NA(), INDEX(INDIRECT($Z47), MATCH('Calc - Sparklines'!$C$1,INDIRECT($AA47),0), MATCH('Calc - Sparklines'!$D47,INDIRECT($AB47),0)-P$3)),NA()) ->  | R47: 0 | S47: =IF(P47="N/A",IF(O47="N/A",2,1),0) ->  | T47: =OFFSET(P47,,-S47) ->  | V47: =IF(D47="","",IFERROR(IF(T47>U47,"▲", IF(T47<U47,"▼","◄►")),"N/A")) ->  | X47: =IF(R47<=2,"N/A","") -> N/A | AD47: Subheading
A48: AC_i | B48: AC(i) | C48: % of acute hospitals meeting the ‘core 24’ service standard (criteria a, b and c below) | D48: ='AC(i)_FINAL CALC'!B6 -> 2015/16 | E48: =IFERROR(IF(ISNUMBER( INDEX(INDIRECT($Z48), MATCH('Calc - Sparklines'!$C$1,INDIRECT($AA48),0), MATCH('Calc - Sparklines'!$D48,INDIRECT($AB48),0)-E$3))=FALSE,NA(), INDEX(INDIRECT($Z48), MATCH('Calc - Sparklines'!$C$1,INDIRECT($AA48),0), MATCH('Calc - Sparklines'!$D48,INDIRECT($AB48),0)-E$3)),NA()) ->  | F48: =IFERROR(IF(ISNUMBER( INDEX(INDIRECT($Z48), MATCH('Calc - Sparklines'!$C$1,INDIRECT($AA48),0), MATCH('Calc - Sparklines'!$D48,INDIRECT($AB48),0)-F$3))=FALSE,NA(), INDEX(INDIRECT($Z48), MATCH('Calc - Sparklines'!$C$1,INDIRECT($AA48),0), MATCH('Calc - Sparklines'!$D48,INDIRECT($AB48),0)-F$3)),NA()) ->  | G48: =IFERROR(IF(ISNUMBER( INDEX(INDIRECT($Z48), MATCH('Calc - Sparklines'!$C$1,INDIRECT($AA48),0), MATCH('Calc - Sparklines'!$D48,INDIRECT($AB48),0)-G$3))=FALSE,NA(), INDEX(INDIRECT($Z48), MATCH('Calc - Sparklines'!$C$1,INDIRECT($AA48),0), MATCH('Calc - Sparklines'!$D48,INDIRECT($AB48),0)-G$3)),NA()) ->  | H48: =IFERROR(IF(ISNUMBER( INDEX(INDIRECT($Z48), MATCH('Calc - Sparklines'!$C$1,INDIRECT($AA48),0), MATCH('Calc - Sparklines'!$D48,INDIRECT($AB48),0)-H$3))=FALSE,NA(), INDEX(INDIRECT($Z48), MATCH('Calc - Sparklines'!$C$1,INDIRECT($AA48),0), MATCH('Calc - Sparklines'!$D48,INDIRECT($AB48),0)-H$3)),NA()) ->  | I48: =IFERROR(IF(ISNUMBER( INDEX(INDIRECT($Z48), MATCH('Calc - Sparklines'!$C$1,INDIRECT($AA48),0), MATCH('Calc - Sparklines'!$D48,INDIRECT($AB48),0)-I$3))=FALSE,NA(), INDEX(INDIRECT($Z48), MATCH('Calc - Sparklines'!$C$1,INDIRECT($AA48),0), MATCH('Calc - Sparklines'!$D48,INDIRECT($AB48),0)-I$3)),NA()) ->  | J48: =IFERROR(IF(ISNUMBER( INDEX(INDIRECT($Z48), MATCH('Calc - Sparklines'!$C$1,INDIRECT($AA48),0), MATCH('Calc - Sparklines'!$D48,INDIRECT($AB48),0)-J$3))=FALSE,NA(), INDEX(INDIRECT($Z48), MATCH('Calc - Sparklines'!$C$1,INDIRECT($AA48),0), MATCH('Calc - Sparklines'!$D48,INDIRECT($AB48),0)-J$3)),NA()) ->  | K48: =IFERROR(IF(ISNUMBER( INDEX(INDIRECT($Z48), MATCH('Calc - Sparklines'!$C$1,INDIRECT($AA48),0), MATCH('Calc - Sparklines'!$D48,INDIRECT($AB48),0)-K$3))=FALSE,NA(), INDEX(INDIRECT($Z48), MATCH('Calc - Sparklines'!$C$1,INDIRECT($AA48),0), MATCH('Calc - Sparklines'!$D48,INDIRECT($AB48),0)-K$3)),NA()) ->  | L48: =IFERROR(IF(ISNUMBER( INDEX(INDIRECT($Z48), MATCH('Calc - Sparklines'!$C$1,INDIRECT($AA48),0), MATCH('Calc - Sparklines'!$D48,INDIRECT($AB48),0)-L$3))=FALSE,NA(), INDEX(INDIRECT($Z48), MATCH('Calc - Sparklines'!$C$1,INDIRECT($AA48),0), MATCH('Calc - Sparklines'!$D48,INDIRECT($AB48),0)-L$3)),NA()) ->  | M48: =IFERROR(IF(ISNUMBER( INDEX(INDIRECT($Z48), MATCH('Calc - Sparklines'!$C$1,INDIRECT($AA48),0), MATCH('Calc - Sparklines'!$D48,INDIRECT($AB48),0)-M$3))=FALSE,NA(), INDEX(INDIRECT($Z48), MATCH('Calc - Sparklines'!$C$1,INDIRECT($AA48),0), MATCH('Calc - Sparklines'!$D48,INDIRECT($AB48),0)-M$3)),NA()) ->  | N48: =IFERROR(IF(ISNUMBER( INDEX(INDIRECT($Z48), MATCH('Calc - Sparklines'!$C$1,INDIRECT($AA48),0), MATCH('Calc - Sparklines'!$D48,INDIRECT($AB48),0)-N$3))=FALSE,NA(), INDEX(INDIRECT($Z48), MATCH('Calc - Sparklines'!$C$1,INDIRECT($AA48),0), MATCH('Calc - Sparklines'!$D48,INDIRECT($AB48),0)-N$3)),NA()) ->  | O48: =IFERROR(IF(ISNUMBER( INDEX(INDIRECT($Z48), MATCH('Calc - Sparklines'!$C$1,INDIRECT($AA48),0), MATCH('Calc - Sparklines'!$D48,INDIRECT($AB48),0)-O$3))=FALSE,NA(), INDEX(INDIRECT($Z48), MATCH('Calc - Sparklines'!$C$1,INDIRECT($AA48),0), MATCH('Calc - Sparklines'!$D48,INDIRECT($AB48),0)-O$3)),NA()) -> 0.07 | P48: =IFERROR(IF(ISNUMBER( INDEX(INDIRECT($Z48), MATCH('Calc - Sparklines'!$C$1,INDIRECT($AA48),0), MATCH('Calc - Sparklines'!$D48,INDIRECT($AB48),0)-P$3))=FALSE,NA(), INDEX(INDIRECT($Z48), MATCH('Calc - Sparklines'!$C$1,INDIRECT($AA48),0), MATCH('Calc - Sparklines'!$D48,INDIRECT($AB48),0)-P$3)),NA()) -> 0.1016949153 | R48: 2 | S48: =IF(P48="N/A",IF(O48="N/A",2,1),0) -> 0 | T48: =OFFSET(P48,,-S48) -> 0.1016949153 | U48: 0.07 | V48: ▲ | W48: Sparkline38 | X48: N/A | Z48: Data_Table_AC_i | AA48: Data_Orgs_AC_i | AB48: Data_Dates_AC_i | AD48: National measure only | AE48: National measure only
A49: AC_ii | B49: AC(ii) | C49: A&E and Ward Liaison MH forecast outturn (£k) | D49: ='AC(ii)_FINAL CALC'!B6 -> 2018/19 planned | E49: =IFERROR(IF(ISNUMBER( INDEX(INDIRECT($Z49), MATCH('Calc - Sparklines'!$C$1,INDIRECT($AA49),0), MATCH('Calc - Sparklines'!$D49,INDIRECT($AB49),0)-E$3))=FALSE,NA(), INDEX(INDIRECT($Z49), MATCH('Calc - Sparklines'!$C$1,INDIRECT($AA49),0), MATCH('Calc - Sparklines'!$D49,INDIRECT($AB49),0)-E$3)),NA()) ->  | F49: =IFERROR(IF(ISNUMBER( INDEX(INDIRECT($Z49), MATCH('Calc - Sparklines'!$C$1,INDIRECT($AA49),0), MATCH('Calc - Sparklines'!$D49,INDIRECT($AB49),0)-F$3))=FALSE,NA(), INDEX(INDIRECT($Z49), MATCH('Calc - Sparklines'!$C$1,INDIRECT($AA49),0), MATCH('Calc - Sparklines'!$D49,INDIRECT($AB49),0)-F$3)),NA()) ->  | G49: =IFERROR(IF(ISNUMBER( INDEX(INDIRECT($Z49), MATCH('Calc - Sparklines'!$C$1,INDIRECT($AA49),0), MATCH('Calc - Sparklines'!$D49,INDIRECT($AB49),0)-G$3))=FALSE,NA(), INDEX(INDIRECT($Z49), MATCH('Calc - Sparklines'!$C$1,INDIRECT($AA49),0), MATCH('Calc - Sparklines'!$D49,INDIRECT($AB49),0)-G$3)),NA()) ->  | H49: =IFERROR(IF(ISNUMBER( INDEX(INDIRECT($Z49), MATCH('Calc - Sparklines'!$C$1,INDIRECT($AA49),0), MATCH('Calc - Sparklines'!$D49,INDIRECT($AB49),0)-H$3))=FALSE,NA(), INDEX(INDIRECT($Z49), MATCH('Calc - Sparklines'!$C$1,INDIRECT($AA49),0), MATCH('Calc - Sparklines'!$D49,INDIRECT($AB49),0)-H$3)),NA()) ->  | I49: =IFERROR(IF(ISNUMBER( INDEX(INDIRECT($Z49), MATCH('Calc - Sparklines'!$C$1,INDIRECT($AA49),0), MATCH('Calc - Sparklines'!$D49,INDIRECT($AB49),0)-I$3))=FALSE,NA(), INDEX(INDIRECT($Z49), MATCH('Calc - Sparklines'!$C$1,INDIRECT($AA49),0), MATCH('Calc - Sparklines'!$D49,INDIRECT($AB49),0)-I$3)),NA()) ->  | J49: =IFERROR(IF(ISNUMBER( INDEX(INDIRECT($Z49), MATCH('Calc - Sparklines'!$C$1,INDIRECT($AA49),0), MATCH('Calc - Sparklines'!$D49,INDIRECT($AB49),0)-J$3))=FALSE,NA(), INDEX(INDIRECT($Z49), MATCH('Calc - Sparklines'!$C$1,INDIRECT($AA49),0), MATCH('Calc - Sparklines'!$D49,INDIRECT($AB49),0)-J$3)),NA()) ->  | K49: =IFERROR(IF(ISNUMBER( INDEX(INDIRECT($Z49), MATCH('Calc - Sparklines'!$C$1,INDIRECT($AA49),0), MATCH('Calc - Sparklines'!$D49,INDIRECT($AB49),0)-K$3))=FALSE,NA(), INDEX(INDIRECT($Z49), MATCH('Calc - Sparklines'!$C$1,INDIRECT($AA49),0), MATCH('Calc - Sparklines'!$D49,INDIRECT($AB49),0)-K$3)),NA()) ->  | L49: =IFERROR(IF(ISNUMBER( INDEX(INDIRECT($Z49), MATCH('Calc - Sparklines'!$C$1,INDIRECT($AA49),0), MATCH('Calc - Sparklines'!$D49,INDIRECT($AB49),0)-L$3))=FALSE,NA(), INDEX(INDIRECT($Z49), MATCH('Calc - Sparklines'!$C$1,INDIRECT($AA49),0), MATCH('Calc - Sparklines'!$D49,INDIRECT($AB49),0)-L$3)),NA()) ->  | M49: =IFERROR(IF(ISNUMBER( INDEX(INDIRECT($Z49), MATCH('Calc - Sparklines'!$C$1,INDIRECT($AA49),0), MATCH('Calc - Sparklines'!$D49,INDIRECT($AB49),0)-M$3))=FALSE,NA(), INDEX(INDIRECT($Z49), MATCH('Calc - Sparklines'!$C$1,INDIRECT($AA49),0), MATCH('Calc - Sparklines'!$D49,INDIRECT($AB49),0)-M$3)),NA()) ->  | N49: =IFERROR(IF(ISNUMBER( INDEX(INDIRECT($Z49), MATCH('Calc - Sparklines'!$C$1,INDIRECT($AA49),0), MATCH('Calc - Sparklines'!$D49,INDIRECT($AB49),0)-N$3))=FALSE,NA(), INDEX(INDIRECT($Z49), MATCH('Calc - Sparklines'!$C$1,INDIRECT($AA49),0), MATCH('Calc - Sparklines'!$D49,INDIRECT($AB49),0)-N$3)),NA()) ->  | O49: =IFERROR(IF(ISNUMBER( INDEX(INDIRECT($Z49), MATCH('Calc - Sparklines'!$C$1,INDIRECT($AA49),0), MATCH('Calc - Sparklines'!$D49,INDIRECT($AB49),0)-O$3))=FALSE,NA(), INDEX(INDIRECT($Z49), MATCH('Calc - Sparklines'!$C$1,INDIRECT($AA49),0), MATCH('Calc - Sparklines'!$D49,INDIRECT($AB49),0)-O$3)),NA()) ->  | P49: =IFERROR(IF(ISNUMBER( INDEX(INDIRECT($Z49), MATCH('Calc - Sparklines'!$C$1,INDIRECT($AA49),0), MATCH('Calc - Sparklines'!$D49,INDIRECT($AB49),0)-P$3))=FALSE,NA(), INDEX(INDIRECT($Z49), MATCH('Calc - Sparklines'!$C$1,INDIRECT($AA49),0), MATCH('Calc - Sparklines'!$D49,INDIRECT($AB49),0)-P$3)),NA()) -> 168929399 | R49: 0 | S49: =IF(P49="N/A",IF(O49="N/A",2,1),0) -> 0 | T49: =OFFSET(P49,,-S49) -> 168929399 | U49: =IF(ISERROR(O49),IF(ISERROR(N49),IF(ISERROR(M49),IF(ISERROR(L49),IF(ISERROR(K49),IF(ISERROR(J49),IF(ISERROR(I49),IF(ISERROR(H49),IF(ISERROR(G49),IF(ISERROR(F49),IF(ISERROR(E49), NA(), E49),F49),G49),H49),I49),J49),K49),L49),M49),N49),O49) ->  | V49: N/A | W49: Sparkline42 | X49: N/A | Z49: Data_Table_AC_ii | AA49: Data_Orgs_AC_ii | AB49: Data_Dates_AC_ii
A50: Health & Justice | B50: Health & Justice | E50: =IFERROR(IF(ISNUMBER( INDEX(INDIRECT($Z50), MATCH('Calc - Sparklines'!$C$1,INDIRECT($AA50),0), MATCH('Calc - Sparklines'!$D50,INDIRECT($AB50),0)-E$3))=FALSE,NA(), INDEX(INDIRECT($Z50), MATCH('Calc - Sparklines'!$C$1,INDIRECT($AA50),0), MATCH('Calc - Sparklines'!$D50,INDIRECT($AB50),0)-E$3)),NA()) ->  | F50: =IFERROR(IF(ISNUMBER( INDEX(INDIRECT($Z50), MATCH('Calc - Sparklines'!$C$1,INDIRECT($AA50),0), MATCH('Calc - Sparklines'!$D50,INDIRECT($AB50),0)-F$3))=FALSE,NA(), INDEX(INDIRECT($Z50), MATCH('Calc - Sparklines'!$C$1,INDIRECT($AA50),0), MATCH('Calc - Sparklines'!$D50,INDIRECT($AB50),0)-F$3)),NA()) ->  | G50: =IFERROR(IF(ISNUMBER( INDEX(INDIRECT($Z50), MATCH('Calc - Sparklines'!$C$1,INDIRECT($AA50),0), MATCH('Calc - Sparklines'!$D50,INDIRECT($AB50),0)-G$3))=FALSE,NA(), INDEX(INDIRECT($Z50), MATCH('Calc - Sparklines'!$C$1,INDIRECT($AA50),0), MATCH('Calc - Sparklines'!$D50,INDIRECT($AB50),0)-G$3)),NA()) ->  | H50: =IFERROR(IF(ISNUMBER( INDEX(INDIRECT($Z50), MATCH('Calc - Sparklines'!$C$1,INDIRECT($AA50),0), MATCH('Calc - Sparklines'!$D50,INDIRECT($AB50),0)-H$3))=FALSE,NA(), INDEX(INDIRECT($Z50), MATCH('Calc - Sparklines'!$C$1,INDIRECT($AA50),0), MATCH('Calc - Sparklines'!$D50,INDIRECT($AB50),0)-H$3)),NA()) ->  | I50: =IFERROR(IF(ISNUMBER( INDEX(INDIRECT($Z50), MATCH('Calc - Sparklines'!$C$1,INDIRECT($AA50),0), MATCH('Calc - Sparklines'!$D50,INDIRECT($AB50),0)-I$3))=FALSE,NA(), INDEX(INDIRECT($Z50), MATCH('Calc - Sparklines'!$C$1,INDIRECT($AA50),0), MATCH('Calc - Sparklines'!$D50,INDIRECT($AB50),0)-I$3)),NA()) ->  | J50: =IFERROR(IF(ISNUMBER( INDEX(INDIRECT($Z50), MATCH('Calc - Sparklines'!$C$1,INDIRECT($AA50),0), MATCH('Calc - Sparklines'!$D50,INDIRECT($AB50),0)-J$3))=FALSE,NA(), INDEX(INDIRECT($Z50), MATCH('Calc - Sparklines'!$C$1,INDIRECT($AA50),0), MATCH('Calc - Sparklines'!$D50,INDIRECT($AB50),0)-J$3)),NA()) ->  | K50: =IFERROR(IF(ISNUMBER( INDEX(INDIRECT($Z50), MATCH('Calc - Sparklines'!$C$1,INDIRECT($AA50),0), MATCH('Calc - Sparklines'!$D50,INDIRECT($AB50),0)-K$3))=FALSE,NA(), INDEX(INDIRECT($Z50), MATCH('Calc - Sparklines'!$C$1,INDIRECT($AA50),0), MATCH('Calc - Sparklines'!$D50,INDIRECT($AB50),0)-K$3)),NA()) ->  | L50: =IFERROR(IF(ISNUMBER( INDEX(INDIRECT($Z50), MATCH('Calc - Sparklines'!$C$1,INDIRECT($AA50),0), MATCH('Calc - Sparklines'!$D50,INDIRECT($AB50),0)-L$3))=FALSE,NA(), INDEX(INDIRECT($Z50), MATCH('Calc - Sparklines'!$C$1,INDIRECT($AA50),0), MATCH('Calc - Sparklines'!$D50,INDIRECT($AB50),0)-L$3)),NA()) ->  | M50: =IFERROR(IF(ISNUMBER( INDEX(INDIRECT($Z50), MATCH('Calc - Sparklines'!$C$1,INDIRECT($AA50),0), MATCH('Calc - Sparklines'!$D50,INDIRECT($AB50),0)-M$3))=FALSE,NA(), INDEX(INDIRECT($Z50), MATCH('Calc - Sparklines'!$C$1,INDIRECT($AA50),0), MATCH('Calc - Sparklines'!$D50,INDIRECT($AB50),0)-M$3)),NA()) ->  | N50: =IFERROR(IF(ISNUMBER( INDEX(INDIRECT($Z50), MATCH('Calc - Sparklines'!$C$1,INDIRECT($AA50),0), MATCH('Calc - Sparklines'!$D50,INDIRECT($AB50),0)-N$3))=FALSE,NA(), INDEX(INDIRECT($Z50), MATCH('Calc - Sparklines'!$C$1,INDIRECT($AA50),0), MATCH('Calc - Sparklines'!$D50,INDIRECT($AB50),0)-N$3)),NA()) ->  | O50: =IFERROR(IF(ISNUMBER( INDEX(INDIRECT($Z50), MATCH('Calc - Sparklines'!$C$1,INDIRECT($AA50),0), MATCH('Calc - Sparklines'!$D50,INDIRECT($AB50),0)-O$3))=FALSE,NA(), INDEX(INDIRECT($Z50), MATCH('Calc - Sparklines'!$C$1,INDIRECT($AA50),0), MATCH('Calc - Sparklines'!$D50,INDIRECT($AB50),0)-O$3)),NA()) ->  | P50: =IFERROR(IF(ISNUMBER( INDEX(INDIRECT($Z50), MATCH('Calc - Sparklines'!$C$1,INDIRECT($AA50),0), MATCH('Calc - Sparklines'!$D50,INDIRECT($AB50),0)-P$3))=FALSE,NA(), INDEX(INDIRECT($Z50), MATCH('Calc - Sparklines'!$C$1,INDIRECT($AA50),0), MATCH('Calc - Sparklines'!$D50,INDIRECT($AB50),0)-P$3)),NA()) ->  | R50: 0 | X50: N/A | AD50: Heading
A51: HJ_i | B51: HJ(i) | C51: Number of mental health secure transfers within 2 weeks of acceptance under the MHA- Age:18+ | D51: ='HJ(i)_FINAL CALC'!B6 -> Q2 2018/19 | E51: =IFERROR(IF(ISNUMBER( INDEX(INDIRECT($Z51), MATCH('Calc - Sparklines'!$C$1,INDIRECT($AA51),0), MATCH('Calc - Sparklines'!$D51,INDIRECT($AB51),0)-E$3))=FALSE,NA(), INDEX(INDIRECT($Z51), MATCH('Calc - Sparklines'!$C$1,INDIRECT($AA51),0), MATCH('Calc - Sparklines'!$D51,INDIRECT($AB51),0)-E$3)),NA()) ->  | F51: =IFERROR(IF(ISNUMBER( INDEX(INDIRECT($Z51), MATCH('Calc - Sparklines'!$C$1,INDIRECT($AA51),0), MATCH('Calc - Sparklines'!$D51,INDIRECT($AB51),0)-F$3))=FALSE,NA(), INDEX(INDIRECT($Z51), MATCH('Calc - Sparklines'!$C$1,INDIRECT($AA51),0), MATCH('Calc - Sparklines'!$D51,INDIRECT($AB51),0)-F$3)),NA()) -> 112 | G51: =IFERROR(IF(ISNUMBER( INDEX(INDIRECT($Z51), MATCH('Calc - Sparklines'!$C$1,INDIRECT($AA51),0), MATCH('Calc - Sparklines'!$D51,INDIRECT($AB51),0)-G$3))=FALSE,NA(), INDEX(INDIRECT($Z51), MATCH('Calc - Sparklines'!$C$1,INDIRECT($AA51),0), MATCH('Calc - Sparklines'!$D51,INDIRECT($AB51),0)-G$3)),NA()) -> 90 | H51: =IFERROR(IF(ISNUMBER( INDEX(INDIRECT($Z51), MATCH('Calc - Sparklines'!$C$1,INDIRECT($AA51),0), MATCH('Calc - Sparklines'!$D51,INDIRECT($AB51),0)-H$3))=FALSE,NA(), INDEX(INDIRECT($Z51), MATCH('Calc - Sparklines'!$C$1,INDIRECT($AA51),0), MATCH('Calc - Sparklines'!$D51,INDIRECT($AB51),0)-H$3)),NA()) -> 89 | I51: =IFERROR(IF(ISNUMBER( INDEX(INDIRECT($Z51), MATCH('Calc - Sparklines'!$C$1,INDIRECT($AA51),0), MATCH('Calc - Sparklines'!$D51,INDIRECT($AB51),0)-I$3))=FALSE,NA(), INDEX(INDIRECT($Z51), MATCH('Calc - Sparklines'!$C$1,INDIRECT($AA51),0), MATCH('Calc - Sparklines'!$D51,INDIRECT($AB51),0)-I$3)),NA()) -> 108 | J51: =IFERROR(IF(ISNUMBER( INDEX(INDIRECT($Z51), MATCH('Calc - Sparklines'!$C$1,INDIRECT($AA51),0), MATCH('Calc - Sparklines'!$D51,INDIRECT($AB51),0)-J$3))=FALSE,NA(), INDEX(INDIRECT($Z51), MATCH('Calc - Sparklines'!$C$1,INDIRECT($AA51),0), MATCH('Calc - Sparklines'!$D51,INDIRECT($AB51),0)-J$3)),NA()) -> 83 | K51: =IFERROR(IF(ISNUMBER( INDEX(INDIRECT($Z51), MATCH('Calc - Sparklines'!$C$1,INDIRECT($AA51),0), MATCH('Calc - Sparklines'!$D51,INDIRECT($AB51),0)-K$3))=FALSE,NA(), INDEX(INDIRECT($Z51), MATCH('Calc - Sparklines'!$C$1,INDIRECT($AA51),0), MATCH('Calc - Sparklines'!$D51,INDIRECT($AB51),0)-K$3)),NA()) -> 73 | L51: =IFERROR(IF(ISNUMBER( INDEX(INDIRECT($Z51), MATCH('Calc - Sparklines'!$C$1,INDIRECT($AA51),0), MATCH('Calc - Sparklines'!$D51,INDIRECT($AB51),0)-L$3))=FALSE,NA(), INDEX(INDIRECT($Z51), MATCH('Calc - Sparklines'!$C$1,INDIRECT($AA51),0), MATCH('Calc - Sparklines'!$D51,INDIRECT($AB51),0)-L$3)),NA()) -> 81 | M51: =IFERROR(IF(ISNUMBER( INDEX(INDIRECT($Z51), MATCH('Calc - Sparklines'!$C$1,INDIRECT($AA51),0), MATCH('Calc - Sparklines'!$D51,INDIRECT($AB51),0)-M$3))=FALSE,NA(), INDEX(INDIRECT($Z51), MATCH('Calc - Sparklines'!$C$1,INDIRECT($AA51),0), MATCH('Calc - Sparklines'!$D51,INDIRECT($AB51),0)-M$3)),NA()) -> 99 | N51: =IFERROR(IF(ISNUMBER( INDEX(INDIRECT($Z51), MATCH('Calc - Sparklines'!$C$1,INDIRECT($AA51),0), MATCH('Calc - Sparklines'!$D51,INDIRECT($AB51),0)-N$3))=FALSE,NA(), INDEX(INDIRECT($Z51), MATCH('Calc - Sparklines'!$C$1,INDIRECT($AA51),0), MATCH('Calc - Sparklines'!$D51,INDIRECT($AB51),0)-N$3)),NA()) -> 94 | O51: =IFERROR(IF(ISNUMBER( INDEX(INDIRECT($Z51), MATCH('Calc - Sparklines'!$C$1,INDIRECT($AA51),0), MATCH('Calc - Sparklines'!$D51,INDIRECT($AB51),0)-O$3))=FALSE,NA(), INDEX(INDIRECT($Z51), MATCH('Calc - Sparklines'!$C$1,INDIRECT($AA51),0), MATCH('Calc - Sparklines'!$D51,INDIRECT($AB51),0)-O$3)),NA()) -> 81 | P51: =IFERROR(IF(ISNUMBER( INDEX(INDIRECT($Z51), MATCH('Calc - Sparklines'!$C$1,INDIRECT($AA51),0), MATCH('Calc - Sparklines'!$D51,INDIRECT($AB51),0)-P$3))=FALSE,NA(), INDEX(INDIRECT($Z51), MATCH('Calc - Sparklines'!$C$1,INDIRECT($AA51),0), MATCH('Calc - Sparklines'!$D51,INDIRECT($AB51),0)-P$3)),NA()) -> 74 | R51: 6 | S51: 0 | T51: 74 | U51: 81 | V51: ▼ | W51: Sparkline44 | X51: N/A | Z51: Data_Table_HJ_i | AA51: Data_Orgs_HJ_i | AB51: Data_Dates_HJ_i | AD51: National measure only | AE51: National measure only
A52: HJ_ii_a | B52: HJ(ii.a) | C52: % of mental health patients receiving group therapy in secure and detained settings - Age:18+ | D52: ='HJ(ii_a)_FINAL CALC'!B6 -> Q4 2017/18 | E52: =IFERROR(IF(ISNUMBER( INDEX(INDIRECT($Z52), MATCH('Calc - Sparklines'!$C$1,INDIRECT($AA52),0), MATCH('Calc - Sparklines'!$D52,INDIRECT($AB52),0)-E$3))=FALSE,NA(), INDEX(INDIRECT($Z52), MATCH('Calc - Sparklines'!$C$1,INDIRECT($AA52),0), MATCH('Calc - Sparklines'!$D52,INDIRECT($AB52),0)-E$3)),NA()) ->  | F52: =IFERROR(IF(ISNUMBER( INDEX(INDIRECT($Z52), MATCH('Calc - Sparklines'!$C$1,INDIRECT($AA52),0), MATCH('Calc - Sparklines'!$D52,INDIRECT($AB52),0)-F$3))=FALSE,NA(), INDEX(INDIRECT($Z52), MATCH('Calc - Sparklines'!$C$1,INDIRECT($AA52),0), MATCH('Calc - Sparklines'!$D52,INDIRECT($AB52),0)-F$3)),NA()) ->  | G52: =IFERROR(IF(ISNUMBER( INDEX(INDIRECT($Z52), MATCH('Calc - Sparklines'!$C$1,INDIRECT($AA52),0), MATCH('Calc - Sparklines'!$D52,INDIRECT($AB52),0)-G$3))=FALSE,NA(), INDEX(INDIRECT($Z52), MATCH('Calc - Sparklines'!$C$1,INDIRECT($AA52),0), MATCH('Calc - Sparklines'!$D52,INDIRECT($AB52),0)-G$3)),NA()) ->  | H52: =IFERROR(IF(ISNUMBER( INDEX(INDIRECT($Z52), MATCH('Calc - Sparklines'!$C$1,INDIRECT($AA52),0), MATCH('Calc - Sparklines'!$D52,INDIRECT($AB52),0)-H$3))=FALSE,NA(), INDEX(INDIRECT($Z52), MATCH('Calc - Sparklines'!$C$1,INDIRECT($AA52),0), MATCH('Calc - Sparklines'!$D52,INDIRECT($AB52),0)-H$3)),NA()) ->  | I52: =IFERROR(IF(ISNUMBER( INDEX(INDIRECT($Z52), MATCH('Calc - Sparklines'!$C$1,INDIRECT($AA52),0), MATCH('Calc - Sparklines'!$D52,INDIRECT($AB52),0)-I$3))=FALSE,NA(), INDEX(INDIRECT($Z52), MATCH('Calc - Sparklines'!$C$1,INDIRECT($AA52),0), MATCH('Calc - Sparklines'!$D52,INDIRECT($AB52),0)-I$3)),NA()) ->  | J52: =IFERROR(IF(ISNUMBER( INDEX(INDIRECT($Z52), MATCH('Calc - Sparklines'!$C$1,INDIRECT($AA52),0), MATCH('Calc - Sparklines'!$D52,INDIRECT($AB52),0)-J$3))=FALSE,NA(), INDEX(INDIRECT($Z52), MATCH('Calc - Sparklines'!$C$1,INDIRECT($AA52),0), MATCH('Calc - Sparklines'!$D52,INDIRECT($AB52),0)-J$3)),NA()) ->  | K52: =IFERROR(IF(ISNUMBER( INDEX(INDIRECT($Z52), MATCH('Calc - Sparklines'!$C$1,INDIRECT($AA52),0), MATCH('Calc - Sparklines'!$D52,INDIRECT($AB52),0)-K$3))=FALSE,NA(), INDEX(INDIRECT($Z52), MATCH('Calc - Sparklines'!$C$1,INDIRECT($AA52),0), MATCH('Calc - Sparklines'!$D52,INDIRECT($AB52),0)-K$3)),NA()) ->  | L52: =IFERROR(IF(ISNUMBER( INDEX(INDIRECT($Z52), MATCH('Calc - Sparklines'!$C$1,INDIRECT($AA52),0), MATCH('Calc - Sparklines'!$D52,INDIRECT($AB52),0)-L$3))=FALSE,NA(), INDEX(INDIRECT($Z52), MATCH('Calc - Sparklines'!$C$1,INDIRECT($AA52),0), MATCH('Calc - Sparklines'!$D52,INDIRECT($AB52),0)-L$3)),NA()) ->  | M52: =IFERROR(IF(ISNUMBER( INDEX(INDIRECT($Z52), MATCH('Calc - Sparklines'!$C$1,INDIRECT($AA52),0), MATCH('Calc - Sparklines'!$D52,INDIRECT($AB52),0)-M$3))=FALSE,NA(), INDEX(INDIRECT($Z52), MATCH('Calc - Sparklines'!$C$1,INDIRECT($AA52),0), MATCH('Calc - Sparklines'!$D52,INDIRECT($AB52),0)-M$3)),NA()) -> 0.02068344376 | N52: =IFERROR(IF(ISNUMBER( INDEX(INDIRECT($Z52), MATCH('Calc - Sparklines'!$C$1,INDIRECT($AA52),0), MATCH('Calc - Sparklines'!$D52,INDIRECT($AB52),0)-N$3))=FALSE,NA(), INDEX(INDIRECT($Z52), MATCH('Calc - Sparklines'!$C$1,INDIRECT($AA52),0), MATCH('Calc - Sparklines'!$D52,INDIRECT($AB52),0)-N$3)),NA()) -> 0.02217912222 | O52: =IFERROR(IF(ISNUMBER( INDEX(INDIRECT($Z52), MATCH('Calc - Sparklines'!$C$1,INDIRECT($AA52),0), MATCH('Calc - Sparklines'!$D52,INDIRECT($AB52),0)-O$3))=FALSE,NA(), INDEX(INDIRECT($Z52), MATCH('Calc - Sparklines'!$C$1,INDIRECT($AA52),0), MATCH('Calc - Sparklines'!$D52,INDIRECT($AB52),0)-O$3)),NA()) -> 0.02418978949 | P52: =IFERROR(IF(ISNUMBER( INDEX(INDIRECT($Z52), MATCH('Calc - Sparklines'!$C$1,INDIRECT($AA52),0), MATCH('Calc - Sparklines'!$D52,INDIRECT($AB52),0)-P$3))=FALSE,NA(), INDEX(INDIRECT($Z52), MATCH('Calc - Sparklines'!$C$1,INDIRECT($AA52),0), MATCH('Calc - Sparklines'!$D52,INDIRECT($AB52),0)-P$3)),NA()) -> 0.02024980984 | R52: 6 | S52: 0 | T52: 0.02024980984 | U52: 0.02418978949 | V52: ▼ | W52: Sparkline45 | Z52: Data_Table_HJ_ii_a | AA52: Data_Orgs_HJ_ii_a | AB52: Data_Dates_HJ_ii_a | AD52: National measure only | AE52: National measure only
A53: HJ_ii_b | B53: HJ(ii.b) | C53: % of mental patients receiving individual therapy in secure and detained settings - Age:18+ | D53: ='HJ(ii_b)_FINAL CALC'!B6 -> Q4 2017/18 | E53: =IFERROR(IF(ISNUMBER( INDEX(INDIRECT($Z53), MATCH('Calc - Sparklines'!$C$1,INDIRECT($AA53),0), MATCH('Calc - Sparklines'!$D53,INDIRECT($AB53),0)-E$3))=FALSE,NA(), INDEX(INDIRECT($Z53), MATCH('Calc - Sparklines'!$C$1,INDIRECT($AA53),0), MATCH('Calc - Sparklines'!$D53,INDIRECT($AB53),0)-E$3)),NA()) ->  | F53: =IFERROR(IF(ISNUMBER( INDEX(INDIRECT($Z53), MATCH('Calc - Sparklines'!$C$1,INDIRECT($AA53),0), MATCH('Calc - Sparklines'!$D53,INDIRECT($AB53),0)-F$3))=FALSE,NA(), INDEX(INDIRECT($Z53), MATCH('Calc - Sparklines'!$C$1,INDIRECT($AA53),0), MATCH('Calc - Sparklines'!$D53,INDIRECT($AB53),0)-F$3)),NA()) ->  | G53: =IFERROR(IF(ISNUMBER( INDEX(INDIRECT($Z53), MATCH('Calc - Sparklines'!$C$1,INDIRECT($AA53),0), MATCH('Calc - Sparklines'!$D53,INDIRECT($AB53),0)-G$3))=FALSE,NA(), INDEX(INDIRECT($Z53), MATCH('Calc - Sparklines'!$C$1,INDIRECT($AA53),0), MATCH('Calc - Sparklines'!$D53,INDIRECT($AB53),0)-G$3)),NA()) ->  | H53: =IFERROR(IF(ISNUMBER( INDEX(INDIRECT($Z53), MATCH('Calc - Sparklines'!$C$1,INDIRECT($AA53),0), MATCH('Calc - Sparklines'!$D53,INDIRECT($AB53),0)-H$3))=FALSE,NA(), INDEX(INDIRECT($Z53), MATCH('Calc - Sparklines'!$C$1,INDIRECT($AA53),0), MATCH('Calc - Sparklines'!$D53,INDIRECT($AB53),0)-H$3)),NA()) -> 0.38 | I53: =IFERROR(IF(ISNUMBER( INDEX(INDIRECT($Z53), MATCH('Calc - Sparklines'!$C$1,INDIRECT($AA53),0), MATCH('Calc - Sparklines'!$D53,INDIRECT($AB53),0)-I$3))=FALSE,NA(), INDEX(INDIRECT($Z53), MATCH('Calc - Sparklines'!$C$1,INDIRECT($AA53),0), MATCH('Calc - Sparklines'!$D53,INDIRECT($AB53),0)-I$3)),NA()) -> 0.3186717157 | J53: =IFERROR(IF(ISNUMBER( INDEX(INDIRECT($Z53), MATCH('Calc - Sparklines'!$C$1,INDIRECT($AA53),0), MATCH('Calc - Sparklines'!$D53,INDIRECT($AB53),0)-J$3))=FALSE,NA(), INDEX(INDIRECT($Z53), MATCH('Calc - Sparklines'!$C$1,INDIRECT($AA53),0), MATCH('Calc - Sparklines'!$D53,INDIRECT($AB53),0)-J$3)),NA()) -> 0.3521471192 | K53: =IFERROR(IF(ISNUMBER( INDEX(INDIRECT($Z53), MATCH('Calc - Sparklines'!$C$1,INDIRECT($AA53),0), MATCH('Calc - Sparklines'!$D53,INDIRECT($AB53),0)-K$3))=FALSE,NA(), INDEX(INDIRECT($Z53), MATCH('Calc - Sparklines'!$C$1,INDIRECT($AA53),0), MATCH('Calc - Sparklines'!$D53,INDIRECT($AB53),0)-K$3)),NA()) -> 0.363717605 | L53: =IFERROR(IF(ISNUMBER( INDEX(INDIRECT($Z53), MATCH('Calc - Sparklines'!$C$1,INDIRECT($AA53),0), MATCH('Calc - Sparklines'!$D53,INDIRECT($AB53),0)-L$3))=FALSE,NA(), INDEX(INDIRECT($Z53), MATCH('Calc - Sparklines'!$C$1,INDIRECT($AA53),0), MATCH('Calc - Sparklines'!$D53,INDIRECT($AB53),0)-L$3)),NA()) -> 0.400315831 | M53: =IFERROR(IF(ISNUMBER( INDEX(INDIRECT($Z53), MATCH('Calc - Sparklines'!$C$1,INDIRECT($AA53),0), MATCH('Calc - Sparklines'!$D53,INDIRECT($AB53),0)-M$3))=FALSE,NA(), INDEX(INDIRECT($Z53), MATCH('Calc - Sparklines'!$C$1,INDIRECT($AA53),0), MATCH('Calc - Sparklines'!$D53,INDIRECT($AB53),0)-M$3)),NA()) -> 0.6039034969 | N53: =IFERROR(IF(ISNUMBER( INDEX(INDIRECT($Z53), MATCH('Calc - Sparklines'!$C$1,INDIRECT($AA53),0), MATCH('Calc - Sparklines'!$D53,INDIRECT($AB53),0)-N$3))=FALSE,NA(), INDEX(INDIRECT($Z53), MATCH('Calc - Sparklines'!$C$1,INDIRECT($AA53),0), MATCH('Calc - Sparklines'!$D53,INDIRECT($AB53),0)-N$3)),NA()) -> 0.7000172404 | O53: =IFERROR(IF(ISNUMBER( INDEX(INDIRECT($Z53), MATCH('Calc - Sparklines'!$C$1,INDIRECT($AA53),0), MATCH('Calc - Sparklines'!$D53,INDIRECT($AB53),0)-O$3))=FALSE,NA(), INDEX(INDIRECT($Z53), MATCH('Calc - Sparklines'!$C$1,INDIRECT($AA53),0), MATCH('Calc - Sparklines'!$D53,INDIRECT($AB53),0)-O$3)),NA()) -> 0.889362287 | P53: =IFERROR(IF(ISNUMBER( INDEX(INDIRECT($Z53), MATCH('Calc - Sparklines'!$C$1,INDIRECT($AA53),0), MATCH('Calc - Sparklines'!$D53,INDIRECT($AB53),0)-P$3))=FALSE,NA(), INDEX(INDIRECT($Z53), MATCH('Calc - Sparklines'!$C$1,INDIRECT($AA53),0), MATCH('Calc - Sparklines'!$D53,INDIRECT($AB53),0)-P$3)),NA()) -> 0.856835885 | R53: 6 | S53: 0 | T53: 0.856835885 | U53: 0.889362287 | V53: ▼ | W53: Sparkline46 | Z53: Data_Table_HJ_ii_b | AA53: Data_Orgs_HJ_ii_b | AB53: Data_Dates_HJ_ii_b | AD53: National measure only | AE53: National measure only
A54: HJ_iii | B54: HJ(iii) | C54: % of population with access to liaison and diversion services - All ages | D54: ='HJ(iii)_FINAL CALC'!B6 -> 2017/18 | E54: =IFERROR(IF(ISNUMBER( INDEX(INDIRECT($Z54), MATCH('Calc - Sparklines'!$C$1,INDIRECT($AA54),0), MATCH('Calc - Sparklines'!$D54,INDIRECT($AB54),0)-E$3))=FALSE,NA(), INDEX(INDIRECT($Z54), MATCH('Calc - Sparklines'!$C$1,INDIRECT($AA54),0), MATCH('Calc - Sparklines'!$D54,INDIRECT($AB54),0)-E$3)),NA()) ->  | F54: =IFERROR(IF(ISNUMBER( INDEX(INDIRECT($Z54), MATCH('Calc - Sparklines'!$C$1,INDIRECT($AA54),0), MATCH('Calc - Sparklines'!$D54,INDIRECT($AB54),0)-F$3))=FALSE,NA(), INDEX(INDIRECT($Z54), MATCH('Calc - Sparklines'!$C$1,INDIRECT($AA54),0), MATCH('Calc - Sparklines'!$D54,INDIRECT($AB54),0)-F$3)),NA()) ->  | G54: =IFERROR(IF(ISNUMBER( INDEX(INDIRECT($Z54), MATCH('Calc - Sparklines'!$C$1,INDIRECT($AA54),0), MATCH('Calc - Sparklines'!$D54,INDIRECT($AB54),0)-G$3))=FALSE,NA(), INDEX(INDIRECT($Z54), MATCH('Calc - Sparklines'!$C$1,INDIRECT($AA54),0), MATCH('Calc - Sparklines'!$D54,INDIRECT($AB54),0)-G$3)),NA()) ->  | H54: =IFERROR(IF(ISNUMBER( INDEX(INDIRECT($Z54), MATCH('Calc - Sparklines'!$C$1,INDIRECT($AA54),0), MATCH('Calc - Sparklines'!$D54,INDIRECT($AB54),0)-H$3))=FALSE,NA(), INDEX(INDIRECT($Z54), MATCH('Calc - Sparklines'!$C$1,INDIRECT($AA54),0), MATCH('Calc - Sparklines'!$D54,INDIRECT($AB54),0)-H$3)),NA()) ->  | I54: =IFERROR(IF(ISNUMBER( INDEX(INDIRECT($Z54), MATCH('Calc - Sparklines'!$C$1,INDIRECT($AA54),0), MATCH('Calc - Sparklines'!$D54,INDIRECT($AB54),0)-I$3))=FALSE,NA(), INDEX(INDIRECT($Z54), MATCH('Calc - Sparklines'!$C$1,INDIRECT($AA54),0), MATCH('Calc - Sparklines'!$D54,INDIRECT($AB54),0)-I$3)),NA()) ->  | J54: =IFERROR(IF(ISNUMBER( INDEX(INDIRECT($Z54), MATCH('Calc - Sparklines'!$C$1,INDIRECT($AA54),0), MATCH('Calc - Sparklines'!$D54,INDIRECT($AB54),0)-J$3))=FALSE,NA(), INDEX(INDIRECT($Z54), MATCH('Calc - Sparklines'!$C$1,INDIRECT($AA54),0), MATCH('Calc - Sparklines'!$D54,INDIRECT($AB54),0)-J$3)),NA()) ->  | K54: =IFERROR(IF(ISNUMBER( INDEX(INDIRECT($Z54), MATCH('Calc - Sparklines'!$C$1,INDIRECT($AA54),0), MATCH('Calc - Sparklines'!$D54,INDIRECT($AB54),0)-K$3))=FALSE,NA(), INDEX(INDIRECT($Z54), MATCH('Calc - Sparklines'!$C$1,INDIRECT($AA54),0), MATCH('Calc - Sparklines'!$D54,INDIRECT($AB54),0)-K$3)),NA()) ->  | L54: =IFERROR(IF(ISNUMBER( INDEX(INDIRECT($Z54), MATCH('Calc - Sparklines'!$C$1,INDIRECT($AA54),0), MATCH('Calc - Sparklines'!$D54,INDIRECT($AB54),0)-L$3))=FALSE,NA(), INDEX(INDIRECT($Z54), MATCH('Calc - Sparklines'!$C$1,INDIRECT($AA54),0), MATCH('Calc - Sparklines'!$D54,INDIRECT($AB54),0)-L$3)),NA()) ->  | M54: =IFERROR(IF(ISNUMBER( INDEX(INDIRECT($Z54), MATCH('Calc - Sparklines'!$C$1,INDIRECT($AA54),0), MATCH('Calc - Sparklines'!$D54,INDIRECT($AB54),0)-M$3))=FALSE,NA(), INDEX(INDIRECT($Z54), MATCH('Calc - Sparklines'!$C$1,INDIRECT($AA54),0), MATCH('Calc - Sparklines'!$D54,INDIRECT($AB54),0)-M$3)),NA()) ->  | N54: =IFERROR(IF(ISNUMBER( INDEX(INDIRECT($Z54), MATCH('Calc - Sparklines'!$C$1,INDIRECT($AA54),0), MATCH('Calc - Sparklines'!$D54,INDIRECT($AB54),0)-N$3))=FALSE,NA(), INDEX(INDIRECT($Z54), MATCH('Calc - Sparklines'!$C$1,INDIRECT($AA54),0), MATCH('Calc - Sparklines'!$D54,INDIRECT($AB54),0)-N$3)),NA()) -> 0.22 | O54: =IFERROR(IF(ISNUMBER( INDEX(INDIRECT($Z54), MATCH('Calc - Sparklines'!$C$1,INDIRECT($AA54),0), MATCH('Calc - Sparklines'!$D54,INDIRECT($AB54),0)-O$3))=FALSE,NA(), INDEX(INDIRECT($Z54), MATCH('Calc - Sparklines'!$C$1,INDIRECT($AA54),0), MATCH('Calc - Sparklines'!$D54,INDIRECT($AB54),0)-O$3)),NA()) -> 0.68 | P54: =IFERROR(IF(ISNUMBER( INDEX(INDIRECT($Z54), MATCH('Calc - Sparklines'!$C$1,INDIRECT($AA54),0), MATCH('Calc - Sparklines'!$D54,INDIRECT($AB54),0)-P$3))=FALSE,NA(), INDEX(INDIRECT($Z54), MATCH('Calc - Sparklines'!$C$1,INDIRECT($AA54),0), MATCH('Calc - Sparklines'!$D54,INDIRECT($AB54),0)-P$3)),NA()) -> 0.82 | R54: 6 | S54: 0 | T54: 0.82 | U54: 0.68 | V54: ▲ | W54: Sparkline47 | Z54: Data_Table_HJ_iii | AA54: Data_Orgs_HJ_iii | AB54: Data_Dates_HJ_iii | AD54: National measure only | AE54: National measure only
A55: Suicide prevention | B55: Suicide prevention | E55: =IFERROR(IF(ISNUMBER( INDEX(INDIRECT($Z55), MATCH('Calc - Sparklines'!$C$1,INDIRECT($AA55),0), MATCH('Calc - Sparklines'!$D55,INDIRECT($AB55),0)-E$3))=FALSE,NA(), INDEX(INDIRECT($Z55), MATCH('Calc - Sparklines'!$C$1,INDIRECT($AA55),0), MATCH('Calc - Sparklines'!$D55,INDIRECT($AB55),0)-E$3)),NA()) ->  | F55: =IFERROR(IF(ISNUMBER( INDEX(INDIRECT($Z55), MATCH('Calc - Sparklines'!$C$1,INDIRECT($AA55),0), MATCH('Calc - Sparklines'!$D55,INDIRECT($AB55),0)-F$3))=FALSE,NA(), INDEX(INDIRECT($Z55), MATCH('Calc - Sparklines'!$C$1,INDIRECT($AA55),0), MATCH('Calc - Sparklines'!$D55,INDIRECT($AB55),0)-F$3)),NA()) ->  | G55: =IFERROR(IF(ISNUMBER( INDEX(INDIRECT($Z55), MATCH('Calc - Sparklines'!$C$1,INDIRECT($AA55),0), MATCH('Calc - Sparklines'!$D55,INDIRECT($AB55),0)-G$3))=FALSE,NA(), INDEX(INDIRECT($Z55), MATCH('Calc - Sparklines'!$C$1,INDIRECT($AA55),0), MATCH('Calc - Sparklines'!$D55,INDIRECT($AB55),0)-G$3)),NA()) ->  | H55: =IFERROR(IF(ISNUMBER( INDEX(INDIRECT($Z55), MATCH('Calc - Sparklines'!$C$1,INDIRECT($AA55),0), MATCH('Calc - Sparklines'!$D55,INDIRECT($AB55),0)-H$3))=FALSE,NA(), INDEX(INDIRECT($Z55), MATCH('Calc - Sparklines'!$C$1,INDIRECT($AA55),0), MATCH('Calc - Sparklines'!$D55,INDIRECT($AB55),0)-H$3)),NA()) ->  | I55: =IFERROR(IF(ISNUMBER( INDEX(INDIRECT($Z55), MATCH('Calc - Sparklines'!$C$1,INDIRECT($AA55),0), MATCH('Calc - Sparklines'!$D55,INDIRECT($AB55),0)-I$3))=FALSE,NA(), INDEX(INDIRECT($Z55), MATCH('Calc - Sparklines'!$C$1,INDIRECT($AA55),0), MATCH('Calc - Sparklines'!$D55,INDIRECT($AB55),0)-I$3)),NA()) ->  | J55: =IFERROR(IF(ISNUMBER( INDEX(INDIRECT($Z55), MATCH('Calc - Sparklines'!$C$1,INDIRECT($AA55),0), MATCH('Calc - Sparklines'!$D55,INDIRECT($AB55),0)-J$3))=FALSE,NA(), INDEX(INDIRECT($Z55), MATCH('Calc - Sparklines'!$C$1,INDIRECT($AA55),0), MATCH('Calc - Sparklines'!$D55,INDIRECT($AB55),0)-J$3)),NA()) ->  | K55: =IFERROR(IF(ISNUMBER( INDEX(INDIRECT($Z55), MATCH('Calc - Sparklines'!$C$1,INDIRECT($AA55),0), MATCH('Calc - Sparklines'!$D55,INDIRECT($AB55),0)-K$3))=FALSE,NA(), INDEX(INDIRECT($Z55), MATCH('Calc - Sparklines'!$C$1,INDIRECT($AA55),0), MATCH('Calc - Sparklines'!$D55,INDIRECT($AB55),0)-K$3)),NA()) ->  | L55: =IFERROR(IF(ISNUMBER( INDEX(INDIRECT($Z55), MATCH('Calc - Sparklines'!$C$1,INDIRECT($AA55),0), MATCH('Calc - Sparklines'!$D55,INDIRECT($AB55),0)-L$3))=FALSE,NA(), INDEX(INDIRECT($Z55), MATCH('Calc - Sparklines'!$C$1,INDIRECT($AA55),0), MATCH('Calc - Sparklines'!$D55,INDIRECT($AB55),0)-L$3)),NA()) ->  | M55: =IFERROR(IF(ISNUMBER( INDEX(INDIRECT($Z55), MATCH('Calc - Sparklines'!$C$1,INDIRECT($AA55),0), MATCH('Calc - Sparklines'!$D55,INDIRECT($AB55),0)-M$3))=FALSE,NA(), INDEX(INDIRECT($Z55), MATCH('Calc - Sparklines'!$C$1,INDIRECT($AA55),0), MATCH('Calc - Sparklines'!$D55,INDIRECT($AB55),0)-M$3)),NA()) ->  | N55: =IFERROR(IF(ISNUMBER( INDEX(INDIRECT($Z55), MATCH('Calc - Sparklines'!$C$1,INDIRECT($AA55),0), MATCH('Calc - Sparklines'!$D55,INDIRECT($AB55),0)-N$3))=FALSE,NA(), INDEX(INDIRECT($Z55), MATCH('Calc - Sparklines'!$C$1,INDIRECT($AA55),0), MATCH('Calc - Sparklines'!$D55,INDIRECT($AB55),0)-N$3)),NA()) ->  | O55: =IFERROR(IF(ISNUMBER( INDEX(INDIRECT($Z55), MATCH('Calc - Sparklines'!$C$1,INDIRECT($AA55),0), MATCH('Calc - Sparklines'!$D55,INDIRECT($AB55),0)-O$3))=FALSE,NA(), INDEX(INDIRECT($Z55), MATCH('Calc - Sparklines'!$C$1,INDIRECT($AA55),0), MATCH('Calc - Sparklines'!$D55,INDIRECT($AB55),0)-O$3)),NA()) ->  | P55: =IFERROR(IF(ISNUMBER( INDEX(INDIRECT($Z55), MATCH('Calc - Sparklines'!$C$1,INDIRECT($AA55),0), MATCH('Calc - Sparklines'!$D55,INDIRECT($AB55),0)-P$3))=FALSE,NA(), INDEX(INDIRECT($Z55), MATCH('Calc - Sparklines'!$C$1,INDIRECT($AA55),0), MATCH('Calc - Sparklines'!$D55,INDIRECT($AB55),0)-P$3)),NA()) ->  | R55: 0 | S55: =IF(P55="N/A",IF(O55="N/A",2,1),0) ->  | T55: =OFFSET(P55,,-S55) ->  | U55: =IF(ISERROR(O55),IF(ISERROR(N55),IF(ISERROR(M55),IF(ISERROR(L55),IF(ISERROR(K55),IF(ISERROR(J55),IF(ISERROR(I55),IF(ISERROR(H55),IF(ISERROR(G55),IF(ISERROR(F55),IF(ISERROR(E55), NA(), E55),F55),G55),H55),I55),J55),K55),L55),M55),N55),O55) ->  | V55: =IF(D55="","",IFERROR(IF(T55>U55,"▲", IF(T55<U55,"▼","◄►")),"N/A")) ->  | X55: N/A | AD55: Heading
A56: SP_i | B56: SP(i) | C56: Suicide: age-standardised death rate per 100,000 population - Age:10+ | D56: ='SP(i)_FINAL CALC'!B6 -> 2015-2017 | E56: =IFERROR(IF(ISNUMBER( INDEX(INDIRECT($Z56), MATCH('Calc - Sparklines'!$C$1,INDIRECT($AA56),0), MATCH('Calc - Sparklines'!$D56,INDIRECT($AB56),0)-E$3))=FALSE,NA(), INDEX(INDIRECT($Z56), MATCH('Calc - Sparklines'!$C$1,INDIRECT($AA56),0), MATCH('Calc - Sparklines'!$D56,INDIRECT($AB56),0)-E$3)),NA()) ->  | F56: =IFERROR(IF(ISNUMBER( INDEX(INDIRECT($Z56), MATCH('Calc - Sparklines'!$C$1,INDIRECT($AA56),0), MATCH('Calc - Sparklines'!$D56,INDIRECT($AB56),0)-F$3))=FALSE,NA(), INDEX(INDIRECT($Z56), MATCH('Calc - Sparklines'!$C$1,INDIRECT($AA56),0), MATCH('Calc - Sparklines'!$D56,INDIRECT($AB56),0)-F$3)),NA()) ->  | G56: =IFERROR(IF(ISNUMBER( INDEX(INDIRECT($Z56), MATCH('Calc - Sparklines'!$C$1,INDIRECT($AA56),0), MATCH('Calc - Sparklines'!$D56,INDIRECT($AB56),0)-G$3))=FALSE,NA(), INDEX(INDIRECT($Z56), MATCH('Calc - Sparklines'!$C$1,INDIRECT($AA56),0), MATCH('Calc - Sparklines'!$D56,INDIRECT($AB56),0)-G$3)),NA()) ->  | H56: =IFERROR(IF(ISNUMBER( INDEX(INDIRECT($Z56), MATCH('Calc - Sparklines'!$C$1,INDIRECT($AA56),0), MATCH('Calc - Sparklines'!$D56,INDIRECT($AB56),0)-H$3))=FALSE,NA(), INDEX(INDIRECT($Z56), MATCH('Calc - Sparklines'!$C$1,INDIRECT($AA56),0), MATCH('Calc - Sparklines'!$D56,INDIRECT($AB56),0)-H$3)),NA()) ->  | I56: =IFERROR(IF(ISNUMBER( INDEX(INDIRECT($Z56), MATCH('Calc - Sparklines'!$C$1,INDIRECT($AA56),0), MATCH('Calc - Sparklines'!$D56,INDIRECT($AB56),0)-I$3))=FALSE,NA(), INDEX(INDIRECT($Z56), MATCH('Calc - Sparklines'!$C$1,INDIRECT($AA56),0), MATCH('Calc - Sparklines'!$D56,INDIRECT($AB56),0)-I$3)),NA()) ->  | J56: =IFERROR(IF(ISNUMBER( INDEX(INDIRECT($Z56), MATCH('Calc - Sparklines'!$C$1,INDIRECT($AA56),0), MATCH('Calc - Sparklines'!$D56,INDIRECT($AB56),0)-J$3))=FALSE,NA(), INDEX(INDIRECT($Z56), MATCH('Calc - Sparklines'!$C$1,INDIRECT($AA56),0), MATCH('Calc - Sparklines'!$D56,INDIRECT($AB56),0)-J$3)),NA()) ->  | K56: =IFERROR(IF(ISNUMBER( INDEX(INDIRECT($Z56), MATCH('Calc - Sparklines'!$C$1,INDIRECT($AA56),0), MATCH('Calc - Sparklines'!$D56,INDIRECT($AB56),0)-K$3))=FALSE,NA(), INDEX(INDIRECT($Z56), MATCH('Calc - Sparklines'!$C$1,INDIRECT($AA56),0), MATCH('Calc - Sparklines'!$D56,INDIRECT($AB56),0)-K$3)),NA()) ->  | L56: =IFERROR(IF(ISNUMBER( INDEX(INDIRECT($Z56), MATCH('Calc - Sparklines'!$C$1,INDIRECT($AA56),0), MATCH('Calc - Sparklines'!$D56,INDIRECT($AB56),0)-L$3))=FALSE,NA(), INDEX(INDIRECT($Z56), MATCH('Calc - Sparklines'!$C$1,INDIRECT($AA56),0), MATCH('Calc - Sparklines'!$D56,INDIRECT($AB56),0)-L$3)),NA()) -> 9.8 | M56: =IFERROR(IF(ISNUMBER( INDEX(INDIRECT($Z56), MATCH('Calc - Sparklines'!$C$1,INDIRECT($AA56),0), MATCH('Calc - Sparklines'!$D56,INDIRECT($AB56),0)-M$3))=FALSE,NA(), INDEX(INDIRECT($Z56), MATCH('Calc - Sparklines'!$C$1,INDIRECT($AA56),0), MATCH('Calc - Sparklines'!$D56,INDIRECT($AB56),0)-M$3)),NA()) -> 10 | N56: =IFERROR(IF(ISNUMBER( INDEX(INDIRECT($Z56), MATCH('Calc - Sparklines'!$C$1,INDIRECT($AA56),0), MATCH('Calc - Sparklines'!$D56,INDIRECT($AB56),0)-N$3))=FALSE,NA(), INDEX(INDIRECT($Z56), MATCH('Calc - Sparklines'!$C$1,INDIRECT($AA56),0), MATCH('Calc - Sparklines'!$D56,INDIRECT($AB56),0)-N$3)),NA()) -> 10.1 | O56: =IFERROR(IF(ISNUMBER( INDEX(INDIRECT($Z56), MATCH('Calc - Sparklines'!$C$1,INDIRECT($AA56),0), MATCH('Calc - Sparklines'!$D56,INDIRECT($AB56),0)-O$3))=FALSE,NA(), INDEX(INDIRECT($Z56), MATCH('Calc - Sparklines'!$C$1,INDIRECT($AA56),0), MATCH('Calc - Sparklines'!$D56,INDIRECT($AB56),0)-O$3)),NA()) -> 9.9 | P56: =IFERROR(IF(ISNUMBER( INDEX(INDIRECT($Z56), MATCH('Calc - Sparklines'!$C$1,INDIRECT($AA56),0), MATCH('Calc - Sparklines'!$D56,INDIRECT($AB56),0)-P$3))=FALSE,NA(), INDEX(INDIRECT($Z56), MATCH('Calc - Sparklines'!$C$1,INDIRECT($AA56),0), MATCH('Calc - Sparklines'!$D56,INDIRECT($AB56),0)-P$3)),NA()) -> 9.571141619 | R56: 6 | S56: =IF(P56="N/A",IF(O56="N/A",2,1),0) -> 0 | T56: =OFFSET(P56,,-S56) -> 9.571141619 | U56: =IF(ISERROR(O56),IF(ISERROR(N56),IF(ISERROR(M56),IF(ISERROR(L56),IF(ISERROR(K56),IF(ISERROR(J56),IF(ISERROR(I56),IF(ISERROR(H56),IF(ISERROR(G56),IF(ISERROR(F56),IF(ISERROR(E56), NA(), E56),F56),G56),H56),I56),J56),K56),L56),M56),N56),O56) -> 9.9 | V56: =IF(D56="","",IFERROR(IF(T56>U56,"▲", IF(T56<U56,"▼","◄►")),"N/A")) -> ▼ | W56: Sparkline48 | Z56: Data_Table_SP_i | AA56: Data_Orgs_SP_i | AB56: Data_Dates_SP_i | AD56: Chart available at CCG & STP level only | AE56: =IF(OR(Dashboard!$N$3=1,Dashboard!$N$3=2),"Chart available at CCG & STP level only","") -> Chart available at CCG & STP level only
A57: SP_ii_a | B57: SP(ii.a) | C57: Hospital admissions for self-harm: age standardised rate per 100,000 - Age: 10-24 | D57: ='SP(ii_a)_FINAL CALC'!B6 -> Q2 2018/19 | E57: =IFERROR(IF(ISNUMBER( INDEX(INDIRECT($Z57), MATCH('Calc - Sparklines'!$C$1,INDIRECT($AA57),0), MATCH('Calc - Sparklines'!$D57,INDIRECT($AB57),0)-E$3))=FALSE,NA(), INDEX(INDIRECT($Z57), MATCH('Calc - Sparklines'!$C$1,INDIRECT($AA57),0), MATCH('Calc - Sparklines'!$D57,INDIRECT($AB57),0)-E$3)),NA()) ->  | F57: =IFERROR(IF(ISNUMBER( INDEX(INDIRECT($Z57), MATCH('Calc - Sparklines'!$C$1,INDIRECT($AA57),0), MATCH('Calc - Sparklines'!$D57,INDIRECT($AB57),0)-F$3))=FALSE,NA(), INDEX(INDIRECT($Z57), MATCH('Calc - Sparklines'!$C$1,INDIRECT($AA57),0), MATCH('Calc - Sparklines'!$D57,INDIRECT($AB57),0)-F$3)),NA()) -> 106.2013858 | G57: =IFERROR(IF(ISNUMBER( INDEX(INDIRECT($Z57), MATCH('Calc - Sparklines'!$C$1,INDIRECT($AA57),0), MATCH('Calc - Sparklines'!$D57,INDIRECT($AB57),0)-G$3))=FALSE,NA(), INDEX(INDIRECT($Z57), MATCH('Calc - Sparklines'!$C$1,INDIRECT($AA57),0), MATCH('Calc - Sparklines'!$D57,INDIRECT($AB57),0)-G$3)),NA()) -> 107.5188639 | H57: =IFERROR(IF(ISNUMBER( INDEX(INDIRECT($Z57), MATCH('Calc - Sparklines'!$C$1,INDIRECT($AA57),0), MATCH('Calc - Sparklines'!$D57,INDIRECT($AB57),0)-H$3))=FALSE,NA(), INDEX(INDIRECT($Z57), MATCH('Calc - Sparklines'!$C$1,INDIRECT($AA57),0), MATCH('Calc - Sparklines'!$D57,INDIRECT($AB57),0)-H$3)),NA()) -> 89.94124719 | I57: =IFERROR(IF(ISNUMBER( INDEX(INDIRECT($Z57), MATCH('Calc - Sparklines'!$C$1,INDIRECT($AA57),0), MATCH('Calc - Sparklines'!$D57,INDIRECT($AB57),0)-I$3))=FALSE,NA(), INDEX(INDIRECT($Z57), MATCH('Calc - Sparklines'!$C$1,INDIRECT($AA57),0), MATCH('Calc - Sparklines'!$D57,INDIRECT($AB57),0)-I$3)),NA()) -> 89.30476313 | J57: =IFERROR(IF(ISNUMBER( INDEX(INDIRECT($Z57), MATCH('Calc - Sparklines'!$C$1,INDIRECT($AA57),0), MATCH('Calc - Sparklines'!$D57,INDIRECT($AB57),0)-J$3))=FALSE,NA(), INDEX(INDIRECT($Z57), MATCH('Calc - Sparklines'!$C$1,INDIRECT($AA57),0), MATCH('Calc - Sparklines'!$D57,INDIRECT($AB57),0)-J$3)),NA()) -> 105.7517192 | K57: =IFERROR(IF(ISNUMBER( INDEX(INDIRECT($Z57), MATCH('Calc - Sparklines'!$C$1,INDIRECT($AA57),0), MATCH('Calc - Sparklines'!$D57,INDIRECT($AB57),0)-K$3))=FALSE,NA(), INDEX(INDIRECT($Z57), MATCH('Calc - Sparklines'!$C$1,INDIRECT($AA57),0), MATCH('Calc - Sparklines'!$D57,INDIRECT($AB57),0)-K$3)),NA()) -> 112.4575234 | L57: =IFERROR(IF(ISNUMBER( INDEX(INDIRECT($Z57), MATCH('Calc - Sparklines'!$C$1,INDIRECT($AA57),0), MATCH('Calc - Sparklines'!$D57,INDIRECT($AB57),0)-L$3))=FALSE,NA(), INDEX(INDIRECT($Z57), MATCH('Calc - Sparklines'!$C$1,INDIRECT($AA57),0), MATCH('Calc - Sparklines'!$D57,INDIRECT($AB57),0)-L$3)),NA()) -> 95.1403588 | M57: =IFERROR(IF(ISNUMBER( INDEX(INDIRECT($Z57), MATCH('Calc - Sparklines'!$C$1,INDIRECT($AA57),0), MATCH('Calc - Sparklines'!$D57,INDIRECT($AB57),0)-M$3))=FALSE,NA(), INDEX(INDIRECT($Z57), MATCH('Calc - Sparklines'!$C$1,INDIRECT($AA57),0), MATCH('Calc - Sparklines'!$D57,INDIRECT($AB57),0)-M$3)),NA()) -> 98.26441047 | N57: =IFERROR(IF(ISNUMBER( INDEX(INDIRECT($Z57), MATCH('Calc - Sparklines'!$C$1,INDIRECT($AA57),0), MATCH('Calc - Sparklines'!$D57,INDIRECT($AB57),0)-N$3))=FALSE,NA(), INDEX(INDIRECT($Z57), MATCH('Calc - Sparklines'!$C$1,INDIRECT($AA57),0), MATCH('Calc - Sparklines'!$D57,INDIRECT($AB57),0)-N$3)),NA()) -> 97.62482208 | O57: =IFERROR(IF(ISNUMBER( INDEX(INDIRECT($Z57), MATCH('Calc - Sparklines'!$C$1,INDIRECT($AA57),0), MATCH('Calc - Sparklines'!$D57,INDIRECT($AB57),0)-O$3))=FALSE,NA(), INDEX(INDIRECT($Z57), MATCH('Calc - Sparklines'!$C$1,INDIRECT($AA57),0), MATCH('Calc - Sparklines'!$D57,INDIRECT($AB57),0)-O$3)),NA()) -> 110.5248178 | P57: =IFERROR(IF(ISNUMBER( INDEX(INDIRECT($Z57), MATCH('Calc - Sparklines'!$C$1,INDIRECT($AA57),0), MATCH('Calc - Sparklines'!$D57,INDIRECT($AB57),0)-P$3))=FALSE,NA(), INDEX(INDIRECT($Z57), MATCH('Calc - Sparklines'!$C$1,INDIRECT($AA57),0), MATCH('Calc - Sparklines'!$D57,INDIRECT($AB57),0)-P$3)),NA()) -> 101.8513397 | R57: 6 | S57: =IF(P57="N/A",IF(O57="N/A",2,1),0) -> 0 | T57: =OFFSET(P57,,-S57) -> 101.8513397 | U57: =IF(ISERROR(O57),IF(ISERROR(N57),IF(ISERROR(M57),IF(ISERROR(L57),IF(ISERROR(K57),IF(ISERROR(J57),IF(ISERROR(I57),IF(ISERROR(H57),IF(ISERROR(G57),IF(ISERROR(F57),IF(ISERROR(E57), NA(), E57),F57),G57),H57),I57),J57),K57),L57),M57),N57),O57) -> 110.5248178 | V57: =IF(D57="","",IFERROR(IF(T57>U57,"▲", IF(T57<U57,"▼","◄►")),"N/A")) -> ▼ | W57: Sparkline49 | Z57: Data_Table_SP_ii_a | AA57: Data_Orgs_SP_ii_a | AB57: Data_Dates_SP_ii_a | AD57: Chart available at CCG & STP level only | AE57: =IF(OR(Dashboard!$N$3=1,Dashboard!$N$3=2),"Chart available at CCG & STP level only","") -> Chart available at CCG & STP level only
A58: SP_ii_b | B58: SP(ii.b) | C58: Hospital admissions for self-harm: age standardised rate per 100,000 - Age:25+ | D58: ='SP(ii_b)_FINAL CALC'!B6 -> Q2 2018/19 | E58: =IFERROR(IF(ISNUMBER( INDEX(INDIRECT($Z58), MATCH('Calc - Sparklines'!$C$1,INDIRECT($AA58),0), MATCH('Calc - Sparklines'!$D58,INDIRECT($AB58),0)-E$3))=FALSE,NA(), INDEX(INDIRECT($Z58), MATCH('Calc - Sparklines'!$C$1,INDIRECT($AA58),0), MATCH('Calc - Sparklines'!$D58,INDIRECT($AB58),0)-E$3)),NA()) ->  | F58: =IFERROR(IF(ISNUMBER( INDEX(INDIRECT($Z58), MATCH('Calc - Sparklines'!$C$1,INDIRECT($AA58),0), MATCH('Calc - Sparklines'!$D58,INDIRECT($AB58),0)-F$3))=FALSE,NA(), INDEX(INDIRECT($Z58), MATCH('Calc - Sparklines'!$C$1,INDIRECT($AA58),0), MATCH('Calc - Sparklines'!$D58,INDIRECT($AB58),0)-F$3)),NA()) -> 36.73142902 | G58: =IFERROR(IF(ISNUMBER( INDEX(INDIRECT($Z58), MATCH('Calc - Sparklines'!$C$1,INDIRECT($AA58),0), MATCH('Calc - Sparklines'!$D58,INDIRECT($AB58),0)-G$3))=FALSE,NA(), INDEX(INDIRECT($Z58), MATCH('Calc - Sparklines'!$C$1,INDIRECT($AA58),0), MATCH('Calc - Sparklines'!$D58,INDIRECT($AB58),0)-G$3)),NA()) -> 41.02023713 | H58: =IFERROR(IF(ISNUMBER( INDEX(INDIRECT($Z58), MATCH('Calc - Sparklines'!$C$1,INDIRECT($AA58),0), MATCH('Calc - Sparklines'!$D58,INDIRECT($AB58),0)-H$3))=FALSE,NA(), INDEX(INDIRECT($Z58), MATCH('Calc - Sparklines'!$C$1,INDIRECT($AA58),0), MATCH('Calc - Sparklines'!$D58,INDIRECT($AB58),0)-H$3)),NA()) -> 39.91281021 | I58: =IFERROR(IF(ISNUMBER( INDEX(INDIRECT($Z58), MATCH('Calc - Sparklines'!$C$1,INDIRECT($AA58),0), MATCH('Calc - Sparklines'!$D58,INDIRECT($AB58),0)-I$3))=FALSE,NA(), INDEX(INDIRECT($Z58), MATCH('Calc - Sparklines'!$C$1,INDIRECT($AA58),0), MATCH('Calc - Sparklines'!$D58,INDIRECT($AB58),0)-I$3)),NA()) -> 35.21954812 | J58: =IFERROR(IF(ISNUMBER( INDEX(INDIRECT($Z58), MATCH('Calc - Sparklines'!$C$1,INDIRECT($AA58),0), MATCH('Calc - Sparklines'!$D58,INDIRECT($AB58),0)-J$3))=FALSE,NA(), INDEX(INDIRECT($Z58), MATCH('Calc - Sparklines'!$C$1,INDIRECT($AA58),0), MATCH('Calc - Sparklines'!$D58,INDIRECT($AB58),0)-J$3)),NA()) -> 34.45998154 | K58: =IFERROR(IF(ISNUMBER( INDEX(INDIRECT($Z58), MATCH('Calc - Sparklines'!$C$1,INDIRECT($AA58),0), MATCH('Calc - Sparklines'!$D58,INDIRECT($AB58),0)-K$3))=FALSE,NA(), INDEX(INDIRECT($Z58), MATCH('Calc - Sparklines'!$C$1,INDIRECT($AA58),0), MATCH('Calc - Sparklines'!$D58,INDIRECT($AB58),0)-K$3)),NA()) -> 39.87991401 | L58: =IFERROR(IF(ISNUMBER( INDEX(INDIRECT($Z58), MATCH('Calc - Sparklines'!$C$1,INDIRECT($AA58),0), MATCH('Calc - Sparklines'!$D58,INDIRECT($AB58),0)-L$3))=FALSE,NA(), INDEX(INDIRECT($Z58), MATCH('Calc - Sparklines'!$C$1,INDIRECT($AA58),0), MATCH('Calc - Sparklines'!$D58,INDIRECT($AB58),0)-L$3)),NA()) -> 40.34516372 | M58: =IFERROR(IF(ISNUMBER( INDEX(INDIRECT($Z58), MATCH('Calc - Sparklines'!$C$1,INDIRECT($AA58),0), MATCH('Calc - Sparklines'!$D58,INDIRECT($AB58),0)-M$3))=FALSE,NA(), INDEX(INDIRECT($Z58), MATCH('Calc - Sparklines'!$C$1,INDIRECT($AA58),0), MATCH('Calc - Sparklines'!$D58,INDIRECT($AB58),0)-M$3)),NA()) -> 33.99325772 | N58: =IFERROR(IF(ISNUMBER( INDEX(INDIRECT($Z58), MATCH('Calc - Sparklines'!$C$1,INDIRECT($AA58),0), MATCH('Calc - Sparklines'!$D58,INDIRECT($AB58),0)-N$3))=FALSE,NA(), INDEX(INDIRECT($Z58), MATCH('Calc - Sparklines'!$C$1,INDIRECT($AA58),0), MATCH('Calc - Sparklines'!$D58,INDIRECT($AB58),0)-N$3)),NA()) -> 32.78039203 | O58: =IFERROR(IF(ISNUMBER( INDEX(INDIRECT($Z58), MATCH('Calc - Sparklines'!$C$1,INDIRECT($AA58),0), MATCH('Calc - Sparklines'!$D58,INDIRECT($AB58),0)-O$3))=FALSE,NA(), INDEX(INDIRECT($Z58), MATCH('Calc - Sparklines'!$C$1,INDIRECT($AA58),0), MATCH('Calc - Sparklines'!$D58,INDIRECT($AB58),0)-O$3)),NA()) -> 40.98410281 | P58: =IFERROR(IF(ISNUMBER( INDEX(INDIRECT($Z58), MATCH('Calc - Sparklines'!$C$1,INDIRECT($AA58),0), MATCH('Calc - Sparklines'!$D58,INDIRECT($AB58),0)-P$3))=FALSE,NA(), INDEX(INDIRECT($Z58), MATCH('Calc - Sparklines'!$C$1,INDIRECT($AA58),0), MATCH('Calc - Sparklines'!$D58,INDIRECT($AB58),0)-P$3)),NA()) -> 42.65524903 | R58: 6 | S58: =IF(P58="N/A",IF(O58="N/A",2,1),0) -> 0 | T58: =OFFSET(P58,,-S58) -> 42.65524903 | U58: =IF(ISERROR(O58),IF(ISERROR(N58),IF(ISERROR(M58),IF(ISERROR(L58),IF(ISERROR(K58),IF(ISERROR(J58),IF(ISERROR(I58),IF(ISERROR(H58),IF(ISERROR(G58),IF(ISERROR(F58),IF(ISERROR(E58), NA(), E58),F58),G58),H58),I58),J58),K58),L58),M58),N58),O58) -> 40.98410281 | V58: =IF(D58="","",IFERROR(IF(T58>U58,"▲", IF(T58<U58,"▼","◄►")),"N/A")) -> ▲ | W58: Sparkline50 | Z58: Data_Table_SP_ii_b | AA58: Data_Orgs_SP_ii_b | AB58: Data_Dates_SP_ii_b | AD58: Chart available at CCG & STP level only | AE58: =IF(OR(Dashboard!$N$3=1,Dashboard!$N$3=2),"Chart available at CCG & STP level only","") -> Chart available at CCG & STP level only
A59: SP_iii | B59: SP(iii) | C59: % of patients on CPA discharged from hospital and followed up within 7 days | D59: ='SP(iii)_FINAL CALC'!B6 -> Q2 2018/19 | E59: =IFERROR(IF(ISNUMBER( INDEX(INDIRECT($Z59), MATCH('Calc - Sparklines'!$C$1,INDIRECT($AA59),0), MATCH('Calc - Sparklines'!$D59,INDIRECT($AB59),0)-E$3))=FALSE,NA(), INDEX(INDIRECT($Z59), MATCH('Calc - Sparklines'!$C$1,INDIRECT($AA59),0), MATCH('Calc - Sparklines'!$D59,INDIRECT($AB59),0)-E$3)),NA()) ->  | F59: =IFERROR(IF(ISNUMBER( INDEX(INDIRECT($Z59), MATCH('Calc - Sparklines'!$C$1,INDIRECT($AA59),0), MATCH('Calc - Sparklines'!$D59,INDIRECT($AB59),0)-F$3))=FALSE,NA(), INDEX(INDIRECT($Z59), MATCH('Calc - Sparklines'!$C$1,INDIRECT($AA59),0), MATCH('Calc - Sparklines'!$D59,INDIRECT($AB59),0)-F$3)),NA()) -> 0.9722800625 | G59: =IFERROR(IF(ISNUMBER( INDEX(INDIRECT($Z59), MATCH('Calc - Sparklines'!$C$1,INDIRECT($AA59),0), MATCH('Calc - Sparklines'!$D59,INDIRECT($AB59),0)-G$3))=FALSE,NA(), INDEX(INDIRECT($Z59), MATCH('Calc - Sparklines'!$C$1,INDIRECT($AA59),0), MATCH('Calc - Sparklines'!$D59,INDIRECT($AB59),0)-G$3)),NA()) -> 0.9620300056 | H59: =IFERROR(IF(ISNUMBER( INDEX(INDIRECT($Z59), MATCH('Calc - Sparklines'!$C$1,INDIRECT($AA59),0), MATCH('Calc - Sparklines'!$D59,INDIRECT($AB59),0)-H$3))=FALSE,NA(), INDEX(INDIRECT($Z59), MATCH('Calc - Sparklines'!$C$1,INDIRECT($AA59),0), MATCH('Calc - Sparklines'!$D59,INDIRECT($AB59),0)-H$3)),NA()) -> 0.9679459887 | I59: =IFERROR(IF(ISNUMBER( INDEX(INDIRECT($Z59), MATCH('Calc - Sparklines'!$C$1,INDIRECT($AA59),0), MATCH('Calc - Sparklines'!$D59,INDIRECT($AB59),0)-I$3))=FALSE,NA(), INDEX(INDIRECT($Z59), MATCH('Calc - Sparklines'!$C$1,INDIRECT($AA59),0), MATCH('Calc - Sparklines'!$D59,INDIRECT($AB59),0)-I$3)),NA()) -> 0.9676164977 | J59: =IFERROR(IF(ISNUMBER( INDEX(INDIRECT($Z59), MATCH('Calc - Sparklines'!$C$1,INDIRECT($AA59),0), MATCH('Calc - Sparklines'!$D59,INDIRECT($AB59),0)-J$3))=FALSE,NA(), INDEX(INDIRECT($Z59), MATCH('Calc - Sparklines'!$C$1,INDIRECT($AA59),0), MATCH('Calc - Sparklines'!$D59,INDIRECT($AB59),0)-J$3)),NA()) -> 0.9684847004 | K59: =IFERROR(IF(ISNUMBER( INDEX(INDIRECT($Z59), MATCH('Calc - Sparklines'!$C$1,INDIRECT($AA59),0), MATCH('Calc - Sparklines'!$D59,INDIRECT($AB59),0)-K$3))=FALSE,NA(), INDEX(INDIRECT($Z59), MATCH('Calc - Sparklines'!$C$1,INDIRECT($AA59),0), MATCH('Calc - Sparklines'!$D59,INDIRECT($AB59),0)-K$3)),NA()) -> 0.9665282189 | L59: =IFERROR(IF(ISNUMBER( INDEX(INDIRECT($Z59), MATCH('Calc - Sparklines'!$C$1,INDIRECT($AA59),0), MATCH('Calc - Sparklines'!$D59,INDIRECT($AB59),0)-L$3))=FALSE,NA(), INDEX(INDIRECT($Z59), MATCH('Calc - Sparklines'!$C$1,INDIRECT($AA59),0), MATCH('Calc - Sparklines'!$D59,INDIRECT($AB59),0)-L$3)),NA()) -> 0.967394629 | M59: =IFERROR(IF(ISNUMBER( INDEX(INDIRECT($Z59), MATCH('Calc - Sparklines'!$C$1,INDIRECT($AA59),0), MATCH('Calc - Sparklines'!$D59,INDIRECT($AB59),0)-M$3))=FALSE,NA(), INDEX(INDIRECT($Z59), MATCH('Calc - Sparklines'!$C$1,INDIRECT($AA59),0), MATCH('Calc - Sparklines'!$D59,INDIRECT($AB59),0)-M$3)),NA()) -> 0.9539606909 | N59: =IFERROR(IF(ISNUMBER( INDEX(INDIRECT($Z59), MATCH('Calc - Sparklines'!$C$1,INDIRECT($AA59),0), MATCH('Calc - Sparklines'!$D59,INDIRECT($AB59),0)-N$3))=FALSE,NA(), INDEX(INDIRECT($Z59), MATCH('Calc - Sparklines'!$C$1,INDIRECT($AA59),0), MATCH('Calc - Sparklines'!$D59,INDIRECT($AB59),0)-N$3)),NA()) -> 0.9550461447 | O59: =IFERROR(IF(ISNUMBER( INDEX(INDIRECT($Z59), MATCH('Calc - Sparklines'!$C$1,INDIRECT($AA59),0), MATCH('Calc - Sparklines'!$D59,INDIRECT($AB59),0)-O$3))=FALSE,NA(), INDEX(INDIRECT($Z59), MATCH('Calc - Sparklines'!$C$1,INDIRECT($AA59),0), MATCH('Calc - Sparklines'!$D59,INDIRECT($AB59),0)-O$3)),NA()) -> 0.9575855502 | P59: =IFERROR(IF(ISNUMBER( INDEX(INDIRECT($Z59), MATCH('Calc - Sparklines'!$C$1,INDIRECT($AA59),0), MATCH('Calc - Sparklines'!$D59,INDIRECT($AB59),0)-P$3))=FALSE,NA(), INDEX(INDIRECT($Z59), MATCH('Calc - Sparklines'!$C$1,INDIRECT($AA59),0), MATCH('Calc - Sparklines'!$D59,INDIRECT($AB59),0)-P$3)),NA()) -> 0.9572599532 | R59: 6 | S59: =IF(P59="N/A",IF(O59="N/A",2,1),0) -> 0 | T59: =OFFSET(P59,,-S59) -> 0.9572599532 | U59: =IF(ISERROR(O59),IF(ISERROR(N59),IF(ISERROR(M59),IF(ISERROR(L59),IF(ISERROR(K59),IF(ISERROR(J59),IF(ISERROR(I59),IF(ISERROR(H59),IF(ISERROR(G59),IF(ISERROR(F59),IF(ISERROR(E59), NA(), E59),F59),G59),H59),I59),J59),K59),L59),M59),N59),O59) -> 0.9575855502 | V59: =IF(D59="","",IFERROR(IF(T59>U59,"▲", IF(T59<U59,"▼","◄►")),"N/A")) -> ▼ | W59: Sparkline51 | Z59: Data_Table_SP_iii | AA59: Data_Orgs_SP_iii | AB59: Data_Dates_SP_iii | AD59: Chart available at CCG & STP level only | AE59: =IF(OR(Dashboard!$N$3=1,Dashboard!$N$3=2),"Chart available at CCG & STP level only","") -> Chart available at CCG & STP level only
A60: Meeting commitment to increase mental health funding | B60: Meeting commitment to increase mental health funding | E60: =IFERROR(IF(ISNUMBER( INDEX(INDIRECT($Z60), MATCH('Calc - Sparklines'!$C$1,INDIRECT($AA60),0), MATCH('Calc - Sparklines'!$D60,INDIRECT($AB60),0)-E$3))=FALSE,NA(), INDEX(INDIRECT($Z60), MATCH('Calc - Sparklines'!$C$1,INDIRECT($AA60),0), MATCH('Calc - Sparklines'!$D60,INDIRECT($AB60),0)-E$3)),NA()) ->  | F60: =IFERROR(IF(ISNUMBER( INDEX(INDIRECT($Z60), MATCH('Calc - Sparklines'!$C$1,INDIRECT($AA60),0), MATCH('Calc - Sparklines'!$D60,INDIRECT($AB60),0)-F$3))=FALSE,NA(), INDEX(INDIRECT($Z60), MATCH('Calc - Sparklines'!$C$1,INDIRECT($AA60),0), MATCH('Calc - Sparklines'!$D60,INDIRECT($AB60),0)-F$3)),NA()) ->  | G60: =IFERROR(IF(ISNUMBER( INDEX(INDIRECT($Z60), MATCH('Calc - Sparklines'!$C$1,INDIRECT($AA60),0), MATCH('Calc - Sparklines'!$D60,INDIRECT($AB60),0)-G$3))=FALSE,NA(), INDEX(INDIRECT($Z60), MATCH('Calc - Sparklines'!$C$1,INDIRECT($AA60),0), MATCH('Calc - Sparklines'!$D60,INDIRECT($AB60),0)-G$3)),NA()) ->  | H60: =IFERROR(IF(ISNUMBER( INDEX(INDIRECT($Z60), MATCH('Calc - Sparklines'!$C$1,INDIRECT($AA60),0), MATCH('Calc - Sparklines'!$D60,INDIRECT($AB60),0)-H$3))=FALSE,NA(), INDEX(INDIRECT($Z60), MATCH('Calc - Sparklines'!$C$1,INDIRECT($AA60),0), MATCH('Calc - Sparklines'!$D60,INDIRECT($AB60),0)-H$3)),NA()) ->  | I60: =IFERROR(IF(ISNUMBER( INDEX(INDIRECT($Z60), MATCH('Calc - Sparklines'!$C$1,INDIRECT($AA60),0), MATCH('Calc - Sparklines'!$D60,INDIRECT($AB60),0)-I$3))=FALSE,NA(), INDEX(INDIRECT($Z60), MATCH('Calc - Sparklines'!$C$1,INDIRECT($AA60),0), MATCH('Calc - Sparklines'!$D60,INDIRECT($AB60),0)-I$3)),NA()) ->  | J60: =IFERROR(IF(ISNUMBER( INDEX(INDIRECT($Z60), MATCH('Calc - Sparklines'!$C$1,INDIRECT($AA60),0), MATCH('Calc - Sparklines'!$D60,INDIRECT($AB60),0)-J$3))=FALSE,NA(), INDEX(INDIRECT($Z60), MATCH('Calc - Sparklines'!$C$1,INDIRECT($AA60),0), MATCH('Calc - Sparklines'!$D60,INDIRECT($AB60),0)-J$3)),NA()) ->  | K60: =IFERROR(IF(ISNUMBER( INDEX(INDIRECT($Z60), MATCH('Calc - Sparklines'!$C$1,INDIRECT($AA60),0), MATCH('Calc - Sparklines'!$D60,INDIRECT($AB60),0)-K$3))=FALSE,NA(), INDEX(INDIRECT($Z60), MATCH('Calc - Sparklines'!$C$1,INDIRECT($AA60),0), MATCH('Calc - Sparklines'!$D60,INDIRECT($AB60),0)-K$3)),NA()) ->  | L60: =IFERROR(IF(ISNUMBER( INDEX(INDIRECT($Z60), MATCH('Calc - Sparklines'!$C$1,INDIRECT($AA60),0), MATCH('Calc - Sparklines'!$D60,INDIRECT($AB60),0)-L$3))=FALSE,NA(), INDEX(INDIRECT($Z60), MATCH('Calc - Sparklines'!$C$1,INDIRECT($AA60),0), MATCH('Calc - Sparklines'!$D60,INDIRECT($AB60),0)-L$3)),NA()) ->  | M60: =IFERROR(IF(ISNUMBER( INDEX(INDIRECT($Z60), MATCH('Calc - Sparklines'!$C$1,INDIRECT($AA60),0), MATCH('Calc - Sparklines'!$D60,INDIRECT($AB60),0)-M$3))=FALSE,NA(), INDEX(INDIRECT($Z60), MATCH('Calc - Sparklines'!$C$1,INDIRECT($AA60),0), MATCH('Calc - Sparklines'!$D60,INDIRECT($AB60),0)-M$3)),NA()) ->  | N60: =IFERROR(IF(ISNUMBER( INDEX(INDIRECT($Z60), MATCH('Calc - Sparklines'!$C$1,INDIRECT($AA60),0), MATCH('Calc - Sparklines'!$D60,INDIRECT($AB60),0)-N$3))=FALSE,NA(), INDEX(INDIRECT($Z60), MATCH('Calc - Sparklines'!$C$1,INDIRECT($AA60),0), MATCH('Calc - Sparklines'!$D60,INDIRECT($AB60),0)-N$3)),NA()) ->  | O60: =IFERROR(IF(ISNUMBER( INDEX(INDIRECT($Z60), MATCH('Calc - Sparklines'!$C$1,INDIRECT($AA60),0), MATCH('Calc - Sparklines'!$D60,INDIRECT($AB60),0)-O$3))=FALSE,NA(), INDEX(INDIRECT($Z60), MATCH('Calc - Sparklines'!$C$1,INDIRECT($AA60),0), MATCH('Calc - Sparklines'!$D60,INDIRECT($AB60),0)-O$3)),NA()) ->  | P60: =IFERROR(IF(ISNUMBER( INDEX(INDIRECT($Z60), MATCH('Calc - Sparklines'!$C$1,INDIRECT($AA60),0), MATCH('Calc - Sparklines'!$D60,INDIRECT($AB60),0)-P$3))=FALSE,NA(), INDEX(INDIRECT($Z60), MATCH('Calc - Sparklines'!$C$1,INDIRECT($AA60),0), MATCH('Calc - Sparklines'!$D60,INDIRECT($AB60),0)-P$3)),NA()) ->  | R60: 0 | X60: N/A | AD60: Heading
A61: MHF_i | B61: MHF(i) | C61: Mental health planned spend as a % of overall CCG allocation | D61: ='MHF(i)_FINAL CALC'!B6 -> 2018/19 planned | E61: =IFERROR(IF(ISNUMBER( INDEX(INDIRECT($Z61), MATCH('Calc - Sparklines'!$C$1,INDIRECT($AA61),0), MATCH('Calc - Sparklines'!$D61,INDIRECT($AB61),0)-E$3))=FALSE,NA(), INDEX(INDIRECT($Z61), MATCH('Calc - Sparklines'!$C$1,INDIRECT($AA61),0), MATCH('Calc - Sparklines'!$D61,INDIRECT($AB61),0)-E$3)),NA()) ->  | F61: =IFERROR(IF(ISNUMBER( INDEX(INDIRECT($Z61), MATCH('Calc - Sparklines'!$C$1,INDIRECT($AA61),0), MATCH('Calc - Sparklines'!$D61,INDIRECT($AB61),0)-F$3))=FALSE,NA(), INDEX(INDIRECT($Z61), MATCH('Calc - Sparklines'!$C$1,INDIRECT($AA61),0), MATCH('Calc - Sparklines'!$D61,INDIRECT($AB61),0)-F$3)),NA()) ->  | G61: =IFERROR(IF(ISNUMBER( INDEX(INDIRECT($Z61), MATCH('Calc - Sparklines'!$C$1,INDIRECT($AA61),0), MATCH('Calc - Sparklines'!$D61,INDIRECT($AB61),0)-G$3))=FALSE,NA(), INDEX(INDIRECT($Z61), MATCH('Calc - Sparklines'!$C$1,INDIRECT($AA61),0), MATCH('Calc - Sparklines'!$D61,INDIRECT($AB61),0)-G$3)),NA()) ->  | H61: =IFERROR(IF(ISNUMBER( INDEX(INDIRECT($Z61), MATCH('Calc - Sparklines'!$C$1,INDIRECT($AA61),0), MATCH('Calc - Sparklines'!$D61,INDIRECT($AB61),0)-H$3))=FALSE,NA(), INDEX(INDIRECT($Z61), MATCH('Calc - Sparklines'!$C$1,INDIRECT($AA61),0), MATCH('Calc - Sparklines'!$D61,INDIRECT($AB61),0)-H$3)),NA()) ->  | I61: =IFERROR(IF(ISNUMBER( INDEX(INDIRECT($Z61), MATCH('Calc - Sparklines'!$C$1,INDIRECT($AA61),0), MATCH('Calc - Sparklines'!$D61,INDIRECT($AB61),0)-I$3))=FALSE,NA(), INDEX(INDIRECT($Z61), MATCH('Calc - Sparklines'!$C$1,INDIRECT($AA61),0), MATCH('Calc - Sparklines'!$D61,INDIRECT($AB61),0)-I$3)),NA()) ->  | J61: =IFERROR(IF(ISNUMBER( INDEX(INDIRECT($Z61), MATCH('Calc - Sparklines'!$C$1,INDIRECT($AA61),0), MATCH('Calc - Sparklines'!$D61,INDIRECT($AB61),0)-J$3))=FALSE,NA(), INDEX(INDIRECT($Z61), MATCH('Calc - Sparklines'!$C$1,INDIRECT($AA61),0), MATCH('Calc - Sparklines'!$D61,INDIRECT($AB61),0)-J$3)),NA()) ->  | K61: =IFERROR(IF(ISNUMBER( INDEX(INDIRECT($Z61), MATCH('Calc - Sparklines'!$C$1,INDIRECT($AA61),0), MATCH('Calc - Sparklines'!$D61,INDIRECT($AB61),0)-K$3))=FALSE,NA(), INDEX(INDIRECT($Z61), MATCH('Calc - Sparklines'!$C$1,INDIRECT($AA61),0), MATCH('Calc - Sparklines'!$D61,INDIRECT($AB61),0)-K$3)),NA()) ->  | L61: =IFERROR(IF(ISNUMBER( INDEX(INDIRECT($Z61), MATCH('Calc - Sparklines'!$C$1,INDIRECT($AA61),0), MATCH('Calc - Sparklines'!$D61,INDIRECT($AB61),0)-L$3))=FALSE,NA(), INDEX(INDIRECT($Z61), MATCH('Calc - Sparklines'!$C$1,INDIRECT($AA61),0), MATCH('Calc - Sparklines'!$D61,INDIRECT($AB61),0)-L$3)),NA()) ->  | M61: =IFERROR(IF(ISNUMBER( INDEX(INDIRECT($Z61), MATCH('Calc - Sparklines'!$C$1,INDIRECT($AA61),0), MATCH('Calc - Sparklines'!$D61,INDIRECT($AB61),0)-M$3))=FALSE,NA(), INDEX(INDIRECT($Z61), MATCH('Calc - Sparklines'!$C$1,INDIRECT($AA61),0), MATCH('Calc - Sparklines'!$D61,INDIRECT($AB61),0)-M$3)),NA()) ->  | N61: =IFERROR(IF(ISNUMBER( INDEX(INDIRECT($Z61), MATCH('Calc - Sparklines'!$C$1,INDIRECT($AA61),0), MATCH('Calc - Sparklines'!$D61,INDIRECT($AB61),0)-N$3))=FALSE,NA(), INDEX(INDIRECT($Z61), MATCH('Calc - Sparklines'!$C$1,INDIRECT($AA61),0), MATCH('Calc - Sparklines'!$D61,INDIRECT($AB61),0)-N$3)),NA()) -> 0.1375446959 | O61: =IFERROR(IF(ISNUMBER( INDEX(INDIRECT($Z61), MATCH('Calc - Sparklines'!$C$1,INDIRECT($AA61),0), MATCH('Calc - Sparklines'!$D61,INDIRECT($AB61),0)-O$3))=FALSE,NA(), INDEX(INDIRECT($Z61), MATCH('Calc - Sparklines'!$C$1,INDIRECT($AA61),0), MATCH('Calc - Sparklines'!$D61,INDIRECT($AB61),0)-O$3)),NA()) -> 0.1374959086 | P61: =IFERROR(IF(ISNUMBER( INDEX(INDIRECT($Z61), MATCH('Calc - Sparklines'!$C$1,INDIRECT($AA61),0), MATCH('Calc - Sparklines'!$D61,INDIRECT($AB61),0)-P$3))=FALSE,NA(), INDEX(INDIRECT($Z61), MATCH('Calc - Sparklines'!$C$1,INDIRECT($AA61),0), MATCH('Calc - Sparklines'!$D61,INDIRECT($AB61),0)-P$3)),NA()) -> 0.1380493354 | R61: 6 | S61: 0 | T61: 0.1380493354 | U61: 0.1374959086 | V61: ▲ | X61: N/A | Z61: Data_Table_MHF_i | AA61: Data_Orgs_MHF_i | AB61: Data_Dates_MHF_i | AD61: Not Applicable | AE61: Not Applicable
